Workbook

Sheet Description (hidden)
B2: NHHFA Purchase Price Database
B4: Description: This data set provides an estimate of the median sale price of existing and new primary homes in
B5: New Hampshire. A primary home is defined as a single family home occupied by an owner household as their
B6: primary place of residence. Multi-family rental housing, seasonal or vacation homes and manufactured
B7: housing are not included in the analysis of this data.
B9: Source: For the Period 1990 through 2014, the median purchase prices were calculated from data collected
B10: by the New Hampshire Department of Revenue Administration on the PA-34 Form through their vendor Real
B11: Data Corp. A PA-34 Form is filed by the buyer and seller at the time of sale of all real property in the State of
B12: New Hampshire. In 2015 this source of data was no longer available, and has been replaced by real estate
B13: transaction data supplied by The Warren Group and filtered and compilied by NHHFA. This change in data
B14: source is reflected in the charts by a break in the trend line.
B16: Analysis: Median sale prices of all, new, existing, and condominium homes are calculated. The frequency of
B17: sales by $10,000 increment is also calculated for each of the above categories. Calculations based on
B18: sample sizes smaller than 50 are viewed as providing inconsistent and highly volatile results and are not
B19: typically released. Individual record level data is not released.
B21: Geography: This data is available at the statewide, County, NECTA, LMA, RPC and FMR levels. It is also
B22: available for larger municipalities within the state.
B24: Time Series: Data is available for the period 1990 through 2018 on an annual basis. Current year
B25: data is for a portion of the year and is preliminary.
B28: Limitations: The quality of this data at the higher geographic levels (statewide and counties) is consistent over
B29: the entire time series. For the larger LMAs and Municipalities the data is reasonably consistent with some
B30: holes in the data, especially in the analysis of new home sales for the period prior to 1998. For smaller LMAs
B31: and moderate sized municipalities the data is most consistent for existing homes since 1998. Significant
B32: holes in the data exist at this level prior to 1998. For the smallest municipalities this data set does not provide
B33: adequately consistent analysis.

Sheet AreaSelection
B2: Purchase Price Data for Various Geographic and Political Divisions of New Hampshire
C4: New Hampshire Statewide | K4: Regional Planning Commission Areas | S4: Select a Year for
K5: Select a NH Regional Planning Commission from this list. | S5: Frequency Analysis
C15: Counties | K15: HUD Fair Market Rent Areas
C16: Select a NH County from this drop down list. | K16: Select a NH Metro or Non-Metro area from this list.
R20: Note:
R21: Calculations based on a sample size of less than 50 are highly volatile and not considered valid. Median purchase price numbers are not displayed in the above charts and tables if the sample size is less than 50. Many of the smaller towns and other geographic divisions of New Hampshire may have fewer than 50 property sales within one year. In these cases #N/A is displayed on the table instead of a median price and nothing is displayed on the chart. If you would like to view the median regardless of the sample size change the default sample limit found in the Sample Size Limit box from 49 to 1. Please remember the median price numbers derived from small samples are not statistically valid.
C23: Or | L23: Or
C27: NECTA's and LMA's | K27: Towns and Cities
C28: Select a New England City and Town Area or a NH | K28: Select a NH Town or City from this drop down list.
C29: Labor Market Area from this drop down list.
K32: Then click a button to view the data.
C39: Last Update: | D39: 2024-03-27 | U39: Sample Size Limit
C40: Next Update: | D40: 2024-05-15 | U40: 49
C41: Data Updated: | D41: 2023 Final and 2024 Jan-Feb
B113: Sample Size Limit
B114: =$U$40 -> 49

Sheet Data Notes (hidden)
A2: Date | B2: Update
A4: 2021-02-04 | B4: Updated 2020 preliminary Data
A5: 2020-09-14 | B5: Updated 2020 January through August
A6: 2020-08-04 | B6: Updated 2020 January through mid-July
A7: 2020-04-20 | B7: Updated 2019 Final Data and 2020 Jan-Mar Data
A8: 2020-02-04 | B8: Updated HMFA Data and 2019 Prelminary data
A9: 2019-09-30 | B9: Updated worksheet with Current NECTA and LMA data definfions. NECTA and LMA data is only available from 1998-present.

Sheet StateWideChartAndTable (hidden)
B2: Navigation
E3: OR
H5: =DataLink!A5 -> New Hampshire Statewide
C27: Year | D27: All Homes | F27: Existing Homes | H27: New Homes | J27: Non-Condominiums | L27: Condominiums
D28: Median Purchase Price | E28: Sample Size | F28: Median Purchase Price | G28: Sample Size | H28: Median Purchase Price | I28: Sample Size | J28: Median Purchase Price | K28: Sample Size | L28: Median Purchase Price | M28: Sample Size
C29: =DataLink!B8 -> 2024 Jan-Feb | D29: =IF(DataLink!F8>49, ROUND(DataLink!E8,-2), NA()) -> 430000 | E29: =DataLink!F8 -> 1162 | F29: =IF(DataLink!F43>49, DataLink!E43, NA()) -> 420000 | G29: =DataLink!F43 -> 1094 | H29: =IF(DataLink!F78>49, ROUND(DataLink!E78,-2), NA()) -> 648900 | I29: =DataLink!F78 -> 68 | J29: =IF(DataLink!F113>49, ROUND(DataLink!E113,-2), NA()) -> 440000 | K29: =DataLink!F113 -> 905 | L29: =IF(DataLink!F148>49, ROUND(DataLink!E148,-2), NA()) -> 385000 | M29: =DataLink!F148 -> 257
C30: =DataLink!B9 -> 2023 | D30: =IF(DataLink!F9>49, ROUND(DataLink!E9,-2), NA()) -> 418000 | E30: =DataLink!F9 -> 22112 | F30: =IF(DataLink!F44>49, DataLink!E44, NA()) -> 410000 | G30: =DataLink!F44 -> 21172 | H30: =IF(DataLink!F79>49, ROUND(DataLink!E79,-2), NA()) -> 646300 | I30: =DataLink!F79 -> 940 | J30: =IF(DataLink!F114>49, ROUND(DataLink!E114,-2), NA()) -> 435000 | K30: =DataLink!F114 -> 17186 | L30: =IF(DataLink!F149>49, ROUND(DataLink!E149,-2), NA()) -> 352000 | M30: =DataLink!F149 -> 4926
C31: =DataLink!B10 -> 2022 | D31: =IF(DataLink!F10>49, ROUND(DataLink!E10,-2), NA()) -> 400000 | E31: =DataLink!F10 -> 20374 | F31: =IF(DataLink!F45>49, DataLink!E45, NA()) -> 396000 | G31: =DataLink!F45 -> 20025 | H31: =IF(DataLink!F80>49, ROUND(DataLink!E80,-2), NA()) -> 620000 | I31: =DataLink!F80 -> 349 | J31: =IF(DataLink!F115>49, ROUND(DataLink!E115,-2), NA()) -> 419000 | K31: =DataLink!F115 -> 15819 | L31: =IF(DataLink!F150>49, ROUND(DataLink!E150,-2), NA()) -> 320500 | M31: =DataLink!F150 -> 4555
C32: =DataLink!B11 -> 2021 | D32: =IF(DataLink!F11>49, ROUND(DataLink!E11,-2), NA()) -> 350000 | E32: =DataLink!F11 -> 20014 | F32: =IF(DataLink!F46>49, DataLink!E46, NA()) -> 350000 | G32: =DataLink!F46 -> 19604 | H32: =IF(DataLink!F81>49, ROUND(DataLink!E81,-2), NA()) -> 500000 | I32: =DataLink!F81 -> 410 | J32: =IF(DataLink!F116>49, ROUND(DataLink!E116,-2), NA()) -> 375000 | K32: =DataLink!F116 -> 15569 | L32: =IF(DataLink!F151>49, ROUND(DataLink!E151,-2), NA()) -> 275000 | M32: =DataLink!F151 -> 4445
C33: =DataLink!B12 -> 2020 | D33: =IF(DataLink!F12>49, ROUND(DataLink!E12,-2), NA()) -> 302300 | E33: =DataLink!F12 -> 20201 | F33: =IF(DataLink!F47>49, DataLink!E47, NA()) -> 300000 | G33: =DataLink!F47 -> 19830 | H33: =IF(DataLink!F82>49, ROUND(DataLink!E82,-2), NA()) -> 424900 | I33: =DataLink!F82 -> 371 | J33: =IF(DataLink!F117>49, ROUND(DataLink!E117,-2), NA()) -> 320000 | K33: =DataLink!F117 -> 15093 | L33: =IF(DataLink!F152>49, ROUND(DataLink!E152,-2), NA()) -> 243400 | M33: =DataLink!F152 -> 5108
C34: =DataLink!B13 -> 2019 | D34: =IF(DataLink!F13>49, ROUND(DataLink!E13,-2), NA()) -> 270000 | E34: =DataLink!F13 -> 22476 | F34: =IF(DataLink!F48>49, DataLink!E48, NA()) -> 269933 | G34: =DataLink!F48 -> 22293 | H34: =IF(DataLink!F83>49, ROUND(DataLink!E83,-2), NA()) -> 410000 | I34: =DataLink!F83 -> 183 | J34: =IF(DataLink!F118>49, ROUND(DataLink!E118,-2), NA()) -> 288000 | K34: =DataLink!F118 -> 17151 | L34: =IF(DataLink!F153>49, ROUND(DataLink!E153,-2), NA()) -> 211000 | M34: =DataLink!F153 -> 5325
C35: =DataLink!B14 -> 2018 | D35: =IF(DataLink!F14>49, ROUND(DataLink!E14,-2), NA()) -> 254000 | E35: =DataLink!F14 -> 22483 | F35: =IF(DataLink!F49>49, DataLink!E49, NA()) -> 250000 | G35: =DataLink!F49 -> 21833 | H35: =IF(DataLink!F84>49, ROUND(DataLink!E84,-2), NA()) -> 374300 | I35: =DataLink!F84 -> 650 | J35: =IF(DataLink!F119>49, ROUND(DataLink!E119,-2), NA()) -> 268900 | K35: =DataLink!F119 -> 17246 | L35: =IF(DataLink!F154>49, ROUND(DataLink!E154,-2), NA()) -> 200000 | M35: =DataLink!F154 -> 5237
C36: =DataLink!B15 -> 2017 | D36: =IF(DataLink!F15>49, ROUND(DataLink!E15,-2), NA()) -> 240000 | E36: =DataLink!F15 -> 24898 | F36: =IF(DataLink!F50>49, DataLink!E50, NA()) -> 237933 | G36: =DataLink!F50 -> 24080 | H36: =IF(DataLink!F85>49, ROUND(DataLink!E85,-2), NA()) -> 366000 | I36: =DataLink!F85 -> 818 | J36: =IF(DataLink!F120>49, ROUND(DataLink!E120,-2), NA()) -> 255000 | K36: =DataLink!F120 -> 19414 | L36: =IF(DataLink!F155>49, ROUND(DataLink!E155,-2), NA()) -> 189900 | M36: =DataLink!F155 -> 5484
C37: =DataLink!B16 -> 2016 | D37: =IF(DataLink!F16>49, ROUND(DataLink!E16,-2), NA()) -> 230000 | E37: =DataLink!F16 -> 22864 | F37: =IF(DataLink!F51>49, DataLink!E51, NA()) -> 225000 | G37: =DataLink!F51 -> 22156 | H37: =IF(DataLink!F86>49, ROUND(DataLink!E86,-2), NA()) -> 361500 | I37: =DataLink!F86 -> 708 | J37: =IF(DataLink!F121>49, ROUND(DataLink!E121,-2), NA()) -> 242400 | K37: =DataLink!F121 -> 18146 | L37: =IF(DataLink!F156>49, ROUND(DataLink!E156,-2), NA()) -> 180000 | M37: =DataLink!F156 -> 4718
C38: =DataLink!B17 -> 2015 | D38: =IF(DataLink!F17>49, ROUND(DataLink!E17,-2), NA()) -> 221000 | E38: =DataLink!F17 -> 20297 | F38: =IF(DataLink!F52>49, DataLink!E52, NA()) -> 219933 | G38: =DataLink!F52 -> 19811 | H38: =IF(DataLink!F87>49, ROUND(DataLink!E87,-2), NA()) -> 337200 | I38: =DataLink!F87 -> 486 | J38: =IF(DataLink!F122>49, ROUND(DataLink!E122,-2), NA()) -> 233500 | K38: =DataLink!F122 -> 15964 | L38: =IF(DataLink!F157>49, ROUND(DataLink!E157,-2), NA()) -> 172500 | M38: =DataLink!F157 -> 4333
C39: =DataLink!B18 -> 2014 | D39: =IF(DataLink!F18>49, DataLink!E18, NA()) -> 219000 | E39: =DataLink!F18 -> 10444 | F39: =IF(DataLink!F53>49, DataLink!E53, NA()) -> 213533 | G39: =DataLink!F53 -> 9748 | H39: =IF(DataLink!F88>49, DataLink!E88, NA()) -> 315000 | I39: =DataLink!F88 -> 696 | J39: =IF(DataLink!F123>49, DataLink!E123, NA()) -> 229933 | K39: =DataLink!F123 -> 8200 | L39: =IF(DataLink!F158>49, DataLink!E158, NA()) -> 171766 | M39: =DataLink!F158 -> 2244
C40: =DataLink!B19 -> 2013 | D40: =IF(DataLink!F19>49, DataLink!E19, NA()) -> 220000 | E40: =DataLink!F19 -> 13255 | F40: =IF(DataLink!F54>49, DataLink!E54, NA()) -> 215000 | G40: =DataLink!F54 -> 12174 | H40: =IF(DataLink!F89>49, DataLink!E89, NA()) -> 298900 | I40: =DataLink!F89 -> 1081 | J40: =IF(DataLink!F124>49, DataLink!E124, NA()) -> 227500 | K40: =DataLink!F124 -> 11131 | L40: =IF(DataLink!F159>49, DataLink!E159, NA()) -> 180000 | M40: =DataLink!F159 -> 2124
C41: =DataLink!B20 -> 2012 | D41: =IF(DataLink!F20>49, DataLink!E20, NA()) -> 205000 | E41: =DataLink!F20 -> 11692 | F41: =IF(DataLink!F55>49, DataLink!E55, NA()) -> 199000 | G41: =DataLink!F55 -> 10789 | H41: =IF(DataLink!F90>49, DataLink!E90, NA()) -> 280000 | I41: =DataLink!F90 -> 903 | J41: =IF(DataLink!F125>49, DataLink!E125, NA()) -> 212500 | K41: =DataLink!F125 -> 9885 | L41: =IF(DataLink!F160>49, DataLink!E160, NA()) -> 168000 | M41: =DataLink!F160 -> 1807
C42: =DataLink!B21 -> 2011 | D42: =IF(DataLink!F21>49, DataLink!E21, NA()) -> 207000 | E42: =DataLink!F21 -> 9843 | F42: =IF(DataLink!F56>49, DataLink!E56, NA()) -> 200000 | G42: =DataLink!F56 -> 9018 | H42: =IF(DataLink!F91>49, DataLink!E91, NA()) -> 267500 | I42: =DataLink!F91 -> 825 | J42: =IF(DataLink!F126>49, DataLink!E126, NA()) -> 214450 | K42: =DataLink!F126 -> 8280 | L42: =IF(DataLink!F161>49, DataLink!E161, NA()) -> 171000 | M42: =DataLink!F161 -> 1563
C43: =DataLink!B22 -> 2010 | D43: =IF(DataLink!F22>49, DataLink!E22, NA()) -> 215000 | E43: =DataLink!F22 -> 10215 | F43: =IF(DataLink!F57>49, DataLink!E57, NA()) -> 205000 | G43: =DataLink!F57 -> 9260 | H43: =IF(DataLink!F92>49, DataLink!E92, NA()) -> 270900 | I43: =DataLink!F92 -> 955 | J43: =IF(DataLink!F127>49, DataLink!E127, NA()) -> 223500 | K43: =DataLink!F127 -> 8513 | L43: =IF(DataLink!F162>49, DataLink!E162, NA()) -> 177325 | M43: =DataLink!F162 -> 1702
C44: =DataLink!B23 -> 2009 | D44: =IF(DataLink!F23>49, DataLink!E23, NA()) -> 210000 | E44: =DataLink!F23 -> 11337 | F44: =IF(DataLink!F58>49, DataLink!E58, NA()) -> 200000 | G44: =DataLink!F58 -> 10267 | H44: =IF(DataLink!F93>49, DataLink!E93, NA()) -> 270090 | I44: =DataLink!F93 -> 1070 | J44: =IF(DataLink!F128>49, DataLink!E128, NA()) -> 217000 | K44: =DataLink!F128 -> 9429 | L44: =IF(DataLink!F163>49, DataLink!E163, NA()) -> 173000 | M44: =DataLink!F163 -> 1908
C45: =DataLink!B24 -> 2008 | D45: =IF(DataLink!F24>49, DataLink!E24, NA()) -> 240000 | E45: =DataLink!F24 -> 9265 | F45: =IF(DataLink!F59>49, DataLink!E59, NA()) -> 231950 | G45: =DataLink!F59 -> 8024 | H45: =IF(DataLink!F94>49, DataLink!E94, NA()) -> 295000 | I45: =DataLink!F94 -> 1241 | J45: =IF(DataLink!F129>49, DataLink!E129, NA()) -> 250000 | K45: =DataLink!F129 -> 7499 | L45: =IF(DataLink!F164>49, DataLink!E164, NA()) -> 196000 | M45: =DataLink!F164 -> 1766
C46: =DataLink!B25 -> 2007 | D46: =IF(DataLink!F25>49, DataLink!E25, NA()) -> 252500 | E46: =DataLink!F25 -> 11777 | F46: =IF(DataLink!F60>49, DataLink!E60, NA()) -> 245000 | G46: =DataLink!F60 -> 9838 | H46: =IF(DataLink!F95>49, DataLink!E95, NA()) -> 300000 | I46: =DataLink!F95 -> 1939 | J46: =IF(DataLink!F130>49, DataLink!E130, NA()) -> 269900 | K46: =DataLink!F130 -> 9070 | L46: =IF(DataLink!F165>49, DataLink!E165, NA()) -> 199000 | M46: =DataLink!F165 -> 2707
C47: =DataLink!B26 -> 2006 | D47: =IF(DataLink!F26>49, DataLink!E26, NA()) -> 249900 | E47: =DataLink!F26 -> 14899 | F47: =IF(DataLink!F61>49, DataLink!E61, NA()) -> 240000 | G47: =DataLink!F61 -> 12620 | H47: =IF(DataLink!F96>49, DataLink!E96, NA()) -> 312500 | I47: =DataLink!F96 -> 2279 | J47: =IF(DataLink!F131>49, DataLink!E131, NA()) -> 265000 | K47: =DataLink!F131 -> 11410 | L47: =IF(DataLink!F166>49, DataLink!E166, NA()) -> 192000 | M47: =DataLink!F166 -> 3489
C48: =DataLink!B27 -> 2005 | D48: =IF(DataLink!F27>49, DataLink!E27, NA()) -> 250000 | E48: =DataLink!F27 -> 18519 | F48: =IF(DataLink!F62>49, DataLink!E62, NA()) -> 240000 | G48: =DataLink!F62 -> 15182 | H48: =IF(DataLink!F97>49, DataLink!E97, NA()) -> 299933 | I48: =DataLink!F97 -> 3337 | J48: =IF(DataLink!F132>49, DataLink!E132, NA()) -> 270000 | K48: =DataLink!F132 -> 14120 | L48: =IF(DataLink!F167>49, DataLink!E167, NA()) -> 196000 | M48: =DataLink!F167 -> 4399
C49: =DataLink!B28 -> 2004 | D49: =IF(DataLink!F28>49, DataLink!E28, NA()) -> 238000 | E49: =DataLink!F28 -> 19480 | F49: =IF(DataLink!F63>49, DataLink!E63, NA()) -> 229000 | G49: =DataLink!F63 -> 15936 | H49: =IF(DataLink!F98>49, DataLink!E98, NA()) -> 284225 | I49: =DataLink!F98 -> 3544 | J49: =IF(DataLink!F133>49, DataLink!E133, NA()) -> 252730 | K49: =DataLink!F133 -> 15366 | L49: =IF(DataLink!F168>49, DataLink!E168, NA()) -> 187840 | M49: =DataLink!F168 -> 4114
C50: =DataLink!B29 -> 2003 | D50: =IF(DataLink!F29>49, DataLink!E29, NA()) -> 215000 | E50: =DataLink!F29 -> 18980 | F50: =IF(DataLink!F64>49, DataLink!E64, NA()) -> 201750 | G50: =DataLink!F64 -> 15716 | H50: =IF(DataLink!F99>49, DataLink!E99, NA()) -> 267500 | I50: =DataLink!F99 -> 3264 | J50: =IF(DataLink!F134>49, DataLink!E134, NA()) -> 229450 | K50: =DataLink!F134 -> 15114 | L50: =IF(DataLink!F169>49, DataLink!E169, NA()) -> 169900 | M50: =DataLink!F169 -> 3866
C51: =DataLink!B30 -> 2002 | D51: =IF(DataLink!F30>49, DataLink!E30, NA()) -> 189900 | E51: =DataLink!F30 -> 18263 | F51: =IF(DataLink!F65>49, DataLink!E65, NA()) -> 179900 | G51: =DataLink!F65 -> 15156 | H51: =IF(DataLink!F100>49, DataLink!E100, NA()) -> 259900 | I51: =DataLink!F100 -> 3107 | J51: =IF(DataLink!F135>49, DataLink!E135, NA()) -> 200880 | K51: =DataLink!F135 -> 14911 | L51: =IF(DataLink!F170>49, DataLink!E170, NA()) -> 149900 | M51: =DataLink!F170 -> 3352
C52: =DataLink!B31 -> 2001 | D52: =IF(DataLink!F31>49, DataLink!E31, NA()) -> 162000 | E52: =DataLink!F31 -> 17387 | F52: =IF(DataLink!F66>49, DataLink!E66, NA()) -> 150000 | G52: =DataLink!F66 -> 14620 | H52: =IF(DataLink!F101>49, DataLink!E101, NA()) -> 242533 | I52: =DataLink!F101 -> 2767 | J52: =IF(DataLink!F136>49, DataLink!E136, NA()) -> 174550 | K52: =DataLink!F136 -> 13962 | L52: =IF(DataLink!F171>49, DataLink!E171, NA()) -> 124500 | M52: =DataLink!F171 -> 3425
C53: =DataLink!B32 -> 2000 | D53: =IF(DataLink!F32>49, DataLink!E32, NA()) -> 143000 | E53: =DataLink!F32 -> 18837 | F53: =IF(DataLink!F67>49, DataLink!E67, NA()) -> 133900 | G53: =DataLink!F67 -> 15872 | H53: =IF(DataLink!F102>49, DataLink!E102, NA()) -> 214900 | I53: =DataLink!F102 -> 2965 | J53: =IF(DataLink!F137>49, DataLink!E137, NA()) -> 152450 | K53: =DataLink!F137 -> 15462 | L53: =IF(DataLink!F172>49, DataLink!E172, NA()) -> 105000 | M53: =DataLink!F172 -> 3375
C54: =DataLink!B33 -> 1999 | D54: =IF(DataLink!F33>49, DataLink!E33, NA()) -> 129000 | E54: =DataLink!F33 -> 17576 | F54: =IF(DataLink!F68>49, DataLink!E68, NA()) -> 120900 | G54: =DataLink!F68 -> 14557 | H54: =IF(DataLink!F103>49, DataLink!E103, NA()) -> 183990 | I54: =DataLink!F103 -> 3019 | J54: =IF(DataLink!F138>49, DataLink!E138, NA()) -> 136500 | K54: =DataLink!F138 -> 14538 | L54: =IF(DataLink!F173>49, DataLink!E173, NA()) -> 93000 | M54: =DataLink!F173 -> 3038
C55: =DataLink!B34 -> 1998 | D55: =IF(DataLink!F34>49, DataLink!E34, NA()) -> 124000 | E55: =DataLink!F34 -> 11031 | F55: =IF(DataLink!F69>49, DataLink!E69, NA()) -> 117000 | G55: =DataLink!F69 -> 9337 | H55: =IF(DataLink!F104>49, DataLink!E104, NA()) -> 172062 | I55: =DataLink!F104 -> 1694 | J55: =IF(DataLink!F139>49, DataLink!E139, NA()) -> 127000 | K55: =DataLink!F139 -> 9813 | L55: =IF(DataLink!F174>49, DataLink!E174, NA()) -> 89900 | M55: =DataLink!F174 -> 1218
C56: =DataLink!B35 -> 1997 | D56: =IF(DataLink!F35>49, DataLink!E35, NA()) -> 113000 | E56: =DataLink!F35 -> 17761 | F56: =IF(DataLink!F70>49, DataLink!E70, NA()) -> 107500 | G56: =DataLink!F70 -> 15450 | H56: =IF(DataLink!F105>49, DataLink!E105, NA()) -> 163194 | I56: =DataLink!F105 -> 2311 | J56: =IF(DataLink!F140>49, DataLink!E140, NA()) -> 117000 | K56: =DataLink!F140 -> 15620 | L56: =IF(DataLink!F175>49, DataLink!E175, NA()) -> 80000 | M56: =DataLink!F175 -> 2141
C57: =DataLink!B36 -> 1996 | D57: =IF(DataLink!F36>49, DataLink!E36, NA()) -> 110000 | E57: =DataLink!F36 -> 10257 | F57: =IF(DataLink!F71>49, DataLink!E71, NA()) -> 101200 | G57: =DataLink!F71 -> 8800 | H57: =IF(DataLink!F106>49, DataLink!E106, NA()) -> 160000 | I57: =DataLink!F106 -> 1457 | J57: =IF(DataLink!F141>49, DataLink!E141, NA()) -> 117500 | K57: =DataLink!F141 -> 8499 | L57: =IF(DataLink!F176>49, DataLink!E176, NA()) -> 72900 | M57: =DataLink!F176 -> 1758
C58: =DataLink!B37 -> 1995 | D58: =IF(DataLink!F37>49, DataLink!E37, NA()) -> 108000 | E58: =DataLink!F37 -> 12752 | F58: =IF(DataLink!F72>49, DataLink!E72, NA()) -> 99900 | G58: =DataLink!F72 -> 10656 | H58: =IF(DataLink!F107>49, DataLink!E107, NA()) -> 152000 | I58: =DataLink!F107 -> 2096 | J58: =IF(DataLink!F142>49, DataLink!E142, NA()) -> 114400 | K58: =DataLink!F142 -> 10863 | L58: =IF(DataLink!F177>49, DataLink!E177, NA()) -> 73000 | M58: =DataLink!F177 -> 1889
C59: =DataLink!B38 -> 1994 | D59: =IF(DataLink!F38>49, DataLink!E38, NA()) -> 105000 | E59: =DataLink!F38 -> 14050 | F59: =IF(DataLink!F73>49, DataLink!E73, NA()) -> 96000 | G59: =DataLink!F73 -> 11716 | H59: =IF(DataLink!F108>49, DataLink!E108, NA()) -> 142800 | I59: =DataLink!F108 -> 2334 | J59: =IF(DataLink!F143>49, DataLink!E143, NA()) -> 111000 | K59: =DataLink!F143 -> 11943 | L59: =IF(DataLink!F178>49, DataLink!E178, NA()) -> 69000 | M59: =DataLink!F178 -> 2107
C60: =DataLink!B39 -> 1993 | D60: =IF(DataLink!F39>49, DataLink!E39, NA()) -> 105000 | E60: =DataLink!F39 -> 12034 | F60: =IF(DataLink!F74>49, DataLink!E74, NA()) -> 97500 | G60: =DataLink!F74 -> 9950 | H60: =IF(DataLink!F109>49, DataLink!E109, NA()) -> 134300 | I60: =DataLink!F109 -> 2084 | J60: =IF(DataLink!F144>49, DataLink!E144, NA()) -> 110000 | K60: =DataLink!F144 -> 10342 | L60: =IF(DataLink!F179>49, DataLink!E179, NA()) -> 68900 | M60: =DataLink!F179 -> 1692
C61: =DataLink!B40 -> 1992 | D61: =IF(DataLink!F40>49, DataLink!E40, NA()) -> 101048 | E61: =DataLink!F40 -> 9411 | F61: =IF(DataLink!F75>49, DataLink!E75, NA()) -> 96000 | G61: =DataLink!F75 -> 7689 | H61: =IF(DataLink!F110>49, DataLink!E110, NA()) -> 120000 | I61: =DataLink!F110 -> 1722 | J61: =IF(DataLink!F145>49, DataLink!E145, NA()) -> 108000 | K61: =DataLink!F145 -> 8062 | L61: =IF(DataLink!F180>49, DataLink!E180, NA()) -> 67524 | M61: =DataLink!F180 -> 1349
C62: =DataLink!B41 -> 1991 | D62: =IF(DataLink!F41>49, DataLink!E41, NA()) -> 108000 | E62: =DataLink!F41 -> 7123 | F62: =IF(DataLink!F76>49, DataLink!E76, NA()) -> 104952 | G62: =DataLink!F76 -> 5590 | H62: =IF(DataLink!F111>49, DataLink!E111, NA()) -> 118857 | I62: =DataLink!F111 -> 1533 | J62: =IF(DataLink!F146>49, DataLink!E146, NA()) -> 112000 | K62: =DataLink!F146 -> 5990 | L62: =IF(DataLink!F181>49, DataLink!E181, NA()) -> 77238 | M62: =DataLink!F181 -> 1133
C63: =DataLink!B42 -> 1990 | D63: =IF(DataLink!F42>49, DataLink!E42, NA()) -> 119905 | E63: =DataLink!F42 -> 6009 | F63: =IF(DataLink!F77>49, DataLink!E77, NA()) -> 116000 | G63: =DataLink!F77 -> 4354 | H63: =IF(DataLink!F112>49, DataLink!E112, NA()) -> 125905 | I63: =DataLink!F112 -> 1655 | J63: =IF(DataLink!F147>49, DataLink!E147, NA()) -> 124500 | K63: =DataLink!F147 -> 5099 | L63: =IF(DataLink!F182>49, DataLink!E182, NA()) -> 95000 | M63: =DataLink!F182 -> 910
C65: Source: 1990-2014 - NH Dept. of Revenue, PA-34 Dataset, Compiled by Real Data Corp. Filtered and analyzed by New Hampshire Housing.
C66: 2015 - The Warren Group. Filtered and analyzed by New Hampshire Housing.
C67: Note: Calculations based on a sample size of less than 50 are highly volatile and not considered valid.
C71: =DataLink!A5 -> New Hampshire Statewide
C72: Percent Change In Median Home Purchase Price
D74: All Homes | F74: Existing Homes | H74: New Homes | J74: Non-Condominiums | L74: Condominiums
C75: 2020 to 2023 | D75: =(D30-D33)/D33 -> 0.382732385 | F75: =(F30-F33)/F33 -> 0.3666666667 | H75: =(H30-H33)/H33 -> 0.5210637797 | J75: =(J30-J33)/J33 -> 0.359375 | L75: =(L30-L33)/L33 -> 0.446179129
C76: Avg per Year | D76: =D75/3 -> 0.1275774617 | F76: =F75/3 -> 0.1222222222 | H76: =H75/3 -> 0.1736879266 | J76: =J75/3 -> 0.1197916667 | L76: =L75/3 -> 0.1487263763
C77: 2019 to 2023 | D77: =(D30-D34)/D34 -> 0.5481481481 | F77: =(F30-F34)/F34 -> 0.5188954296 | H77: =(H30-H34)/H34 -> 0.5763414634 | J77: =(J30-J34)/J34 -> 0.5104166667 | L77: =(L30-L34)/L34 -> 0.6682464455
C78: Avg per Year | D78: =D77/5 -> 0.1096296296 | F78: =F77/5 -> 0.1037790859 | H78: =H77/5 -> 0.1152682927 | J78: =J77/5 -> 0.1020833333 | L78: =L77/5 -> 0.1336492891
C79: 2013 to 2023 | D79: =(D30-D40)/D40 -> 0.9 | F79: =(F30-F40)/F40 -> 0.9069767442 | H79: =(H30-H40)/H40 -> 1.162261626 | J79: =(J30-J40)/J40 -> 0.9120879121 | L79: =(L30-L40)/L40 -> 0.9555555556
C80: Avg per Year | D80: =D79/10 -> 0.09 | F80: =F79/10 -> 0.09069767442 | H80: =H79/10 -> 0.1162261626 | J80: =J79/10 -> 0.09120879121 | L80: =L79/10 -> 0.09555555556
C83: 2022 to 2023 | D83: =(D30-D31)/D31 -> 0.045 | F83: =(F30-F31)/F31 -> 0.03535353535 | H83: =(H30-H31)/H31 -> 0.04241935484 | J83: =(J30-J31)/J31 -> 0.03818615752 | L83: =(L30-L31)/L31 -> 0.09828393136
C84: 2021 to 2022 | D84: 0.1428571429 | F84: =(F31-F32)/F32 -> 0.1314285714 | H84: =(H31-H32)/H32 -> 0.24 | J84: =(J31-J32)/J32 -> 0.1173333333 | L84: =(L31-L32)/L32 -> 0.1654545455
C85: 2020 to 2021 | D85: 0.1577902746 | F85: =(F32-F33)/F33 -> 0.1666666667 | H85: =(H32-H33)/H33 -> 0.17674747 | J85: =(J32-J33)/J33 -> 0.171875 | L85: =(L32-L33)/L33 -> 0.1298274445
C86: 2019 to 2020 | D86: 0.1196296296 | F86: =(F33-F34)/F34 -> 0.1113868997 | H86: =(H33-H34)/H34 -> 0.03634146341 | J86: =(J33-J34)/J34 -> 0.1111111111 | L86: =(L33-L34)/L34 -> 0.1535545024
C87: 2018 to 2019 | D87: 0.06299212598 | F87: =(F34-F35)/F35 -> 0.079732 | H87: =(H34-H35)/H35 -> 0.09537803901 | J87: =(J34-J35)/J35 -> 0.07103012272 | L87: =(L34-L35)/L35 -> 0.055
C88: 2017 to 2018 | D88: 0.05833333333 | F88: 0.05071595785 | H88: 0.02267759563 | J88: 0.05450980392 | L88: 0.05318588731
C89: 2016 to 2017 | D89: 0.04347826087 | F89: 0.05748 | H89: 0.01244813278 | J89: 0.05198019802 | L89: 0.055
C90: 2015 to 2016 | D90: 0.0407239819 | F90: 0.02303883455 | H90: 0.07206405694 | J90: 0.03811563169 | L90: 0.04347826087
C91: 2014 to 2015 | D91: =(D38-D39)/D39 -> 0.009132420091 | F91: 0.02997194813 | H91: 0.07047619048 | J91: 0.01551321472 | L91: 0.004273255475
C92: 2013 to 2014 | D92: -0.004545454545 | F92: -0.006823255814 | H92: 0.05386416862 | J92: 0.01069450549 | L92: -0.04574444444
C93: 2012 to 2013 | D93: 0.07317073171 | F93: 0.08040201005 | H93: 0.0675 | J93: 0.07058823529 | L93: 0.07142857143
C94: 2011 to 2012 | D94: -0.009661835749 | F94: -0.005 | H94: 0.04672897196 | J94: -0.009093028678 | L94: -0.01754385965
C95: 2010 to 2011 | D95: -0.03720930233 | F95: -0.0243902439 | H95: -0.01255075674 | J95: -0.04049217002 | L95: -0.03566896941
C96: 2009 to 2010 | D96: 0.02380952381 | F96: =(F43-F44)/F44 -> 0.025 | H96: 0.002999000333 | J96: 0.02995391705 | L96: 0.025
C97: 2008 to 2009 | D97: =(D44-D45)/D45 -> -0.125 | F97: -0.1377452037 | H97: =(H44-H45)/H45 -> -0.08444067797 | J97: =(J44-J45)/J45 -> -0.132 | L97: =(L44-L45)/L45 -> -0.1173469388
C98: 2007 to 2008 | D98: -0.0495049505 | F98: -0.05326530612 | H98: -0.01666666667 | J98: -0.07373101149 | L98: -0.01507537688
C99: 2006 to 2007 | D99: 0.01040416166 | F99: 0.02083333333 | H99: -0.04 | J99: 0.01849056604 | L99: 0.03645833333
C100: 2005 to 2006 | D100: -0.0004 | F100: 0 | H100: 0.04189935752 | J100: -0.01851851852 | L100: -0.02040816327
C101: 2004 to 2005 | D101: 0.05042016807 | F101: 0.0480349345 | H101: 0.05526607441 | J101: 0.06833379496 | L101: 0.04344122658
C102: 2003 to 2004 | D102: 0.1069767442 | F102: =(F49-F50)/F50 -> 0.1350681537 | H102: 0.06252336449 | J102: 0.1014600131 | L102: 0.1055915244
C103: 2002 to 2003 | D103: =(D50-D51)/D51 -> 0.1321748289 | F103: 0.1214563646 | H103: 0.02924201616 | J103: 0.1422242135 | L103: 0.1334222815
C104: 2001 to 2002 | D104: 0.1722222222 | F104: 0.1993333333 | H104: 0.07160675042 | J104: 0.1508450301 | L104: 0.2040160643
C105: 2000 to 2001 | D105: 0.1328671329 | F105: 0.1202389843 | H105: =(H52-H53)/H53 -> 0.1285853886 | J105: =(J52-J53)/J53 -> 0.1449655625 | L105: =(L52-L53)/L53 -> 0.1857142857
C106: 1999 to 2000 | D106: 0.1085271318 | F106: 0.1075268817 | H106: 0.1679982608 | J106: 0.1168498168 | L106: 0.1290322581
C107: 1998 to 1999 | D107: 0.04032258065 | F107: 0.03333333333 | H107: 0.06932384838 | J107: 0.07480314961 | L107: 0.03448275862
C108: 1997 to 1998 | D108: 0.09734513274 | F108: 0.08837209302 | H108: 0.0543402331 | J108: 0.08547008547 | L108: 0.12375
C109: 1996 to 1997 | D109: 0.02727272727 | F109: 0.06225296443 | H109: 0.0199625 | J109: -0.004255319149 | L109: 0.09739368999
C110: 1995 to 1996 | D110: =(D57-D58)/D58 -> 0.01851851852 | F110: 0.01301301301 | H110: 0.05263157895 | J110: 0.0270979021 | L110: -0.001369863014
C111: 1994 to 1995 | D111: 0.02857142857 | F111: 0.040625 | H111: =(H58-H59)/H59 -> 0.06442577031 | J111: =(J58-J59)/J59 -> 0.03063063063 | L111: =(L58-L59)/L59 -> 0.05797101449
C112: 1993 to 1994 | D112: 0 | F112: -0.01538461538 | H112: =(H59-H60)/H60 -> 0.06329113924 | J112: =(J59-J60)/J60 -> 0.009090909091 | L112: =(L59-L60)/L60 -> 0.00145137881
C113: 1992 to 1993 | D113: 0.03911012588 | F113: 0.015625 | H113: =(H60-H61)/H61 -> 0.1191666667 | J113: =(J60-J61)/J61 -> 0.01851851852 | L113: =(L60-L61)/L61 -> 0.0203779397
C114: 1991 to 1992 | D114: -0.06437037037 | F114: -0.08529613538 | H114: =(H61-H62)/H62 -> 0.009616598097 | J114: =(J61-J62)/J62 -> -0.03571428571 | L114: =(L61-L62)/L62 -> -0.1257671095
C115: 1990 to 1991 | D115: -0.09928693549 | F115: -0.09524137931 | H115: =(H62-H63)/H63 -> -0.05597871411 | J115: =(J62-J63)/J63 -> -0.1004016064 | L115: =(L62-L63)/L63 -> -0.1869684211

Sheet StateWideChartAndTable (2) (hidden)
C3: =DataLink!A5 -> New Hampshire Statewide
C25: Year | D25: All Homes | H25: Existing Homes | L25: New Homes | P25: Non-Condominiums | T25: Condominiums
D26: Median Purchase Price | E26: 25th Percentile Price | F26: 75th Percentile Price | G26: Sample Size | H26: Median Purchase Price | I26: 25th Percentile Price | J26: 75th Percentile Price | K26: Sample Size | L26: Median Purchase Price | M26: 25th Percentile Price | N26: 75th Percentile Price | O26: Sample Size | P26: Median Purchase Price | Q26: 25th Percentile Price | R26: 75th Percentile Price | S26: Sample Size | T26: Median Purchase Price | U26: 25th Percentile Price | V26: 75th Percentile Price | W26: Sample Size
C27: =DataLink!B9 -> 2023 | D27: =IF(DataLink!F9>49, DataLink!E9, NA()) -> 418000 | E27: =DataLink!G9 -> 305000 | F27: =DataLink!H9 -> 565000 | G27: =DataLink!F9 -> 22112 | H27: =IF(DataLink!F44>49, DataLink!E44, NA()) -> 410000 | I27: =DataLink!G44 -> 300000 | J27: =DataLink!H44 -> 550000 | K27: =DataLink!F44 -> 21172 | L27: =IF(DataLink!F79>49, DataLink!E79, NA()) -> 646300 | M27: =DataLink!G79 -> 529733 | N27: =DataLink!H79 -> 776133 | O27: =DataLink!F79 -> 940 | P27: =IF(DataLink!F114>49, DataLink!E114, NA()) -> 435000 | Q27: =DataLink!G114 -> 324933 | R27: =DataLink!H114 -> 580000 | S27: =DataLink!F114 -> 17186 | T27: =IF(DataLink!F149>49, DataLink!E149, NA()) -> 352000 | U27: =DataLink!G149 -> 265000 | V27: =DataLink!H149 -> 494950 | W27: =DataLink!F149 -> 4926
C28: =DataLink!B10 -> 2022 | D28: =IF(DataLink!F10>49, DataLink!E10, NA()) -> 400000 | E28: =DataLink!G10 -> 289000 | F28: =DataLink!H10 -> 535000 | G28: =DataLink!F10 -> 20374 | H28: =IF(DataLink!F45>49, DataLink!E45, NA()) -> 396000 | I28: =DataLink!G45 -> 285000 | J28: =DataLink!H45 -> 529000 | K28: =DataLink!F45 -> 20025 | L28: =IF(DataLink!F80>49, DataLink!E80, NA()) -> 620000 | M28: =DataLink!G80 -> 495000 | N28: =DataLink!H80 -> 774933 | O28: =DataLink!F80 -> 349 | P28: =IF(DataLink!F115>49, DataLink!E115, NA()) -> 419000 | Q28: =DataLink!G115 -> 310000 | R28: =DataLink!H115 -> 560000 | S28: =DataLink!F115 -> 15819 | T28: =IF(DataLink!F150>49, DataLink!E150, NA()) -> 320533 | U28: =DataLink!G150 -> 230000 | V28: =DataLink!H150 -> 443600 | W28: =DataLink!F150 -> 4555
C29: =DataLink!B11 -> 2021 | D29: =IF(DataLink!F11>49, DataLink!E11, NA()) -> 350000 | E29: =DataLink!G11 -> 250000 | F29: =DataLink!H11 -> 475000 | G29: =DataLink!F11 -> 20014 | H29: =IF(DataLink!F46>49, DataLink!E46, NA()) -> 350000 | I29: =DataLink!G46 -> 250000 | J29: =DataLink!H46 -> 467000 | K29: =DataLink!F46 -> 19604 | L29: =IF(DataLink!F81>49, DataLink!E81, NA()) -> 500000 | M29: =DataLink!G81 -> 400500 | N29: =DataLink!H81 -> 618150 | O29: =DataLink!F81 -> 410 | P29: =IF(DataLink!F116>49, DataLink!E116, NA()) -> 375000 | Q29: =DataLink!G116 -> 273533 | R29: =DataLink!H116 -> 495000 | S29: =DataLink!F116 -> 15569 | T29: =IF(DataLink!F151>49, DataLink!E151, NA()) -> 275000 | U29: =DataLink!G151 -> 196533 | V29: =DataLink!H151 -> 380000 | W29: =DataLink!F151 -> 4445
C30: =DataLink!B12 -> 2020 | D30: =IF(DataLink!F12>49, DataLink!E12, NA()) -> 302333 | E30: =DataLink!G12 -> 220000 | F30: =DataLink!H12 -> 410000 | G30: =DataLink!F12 -> 20201 | H30: =IF(DataLink!F47>49, DataLink!E47, NA()) -> 300000 | I30: =DataLink!G47 -> 219933 | J30: =DataLink!H47 -> 405000 | K30: =DataLink!F47 -> 19830 | L30: =IF(DataLink!F82>49, DataLink!E82, NA()) -> 424933 | M30: =DataLink!G82 -> 328033 | N30: =DataLink!H82 -> 539933 | O30: =DataLink!F82 -> 371 | P30: =IF(DataLink!F117>49, DataLink!E117, NA()) -> 320000 | Q30: =DataLink!G117 -> 240000 | R30: =DataLink!H117 -> 425000 | S30: =DataLink!F117 -> 15093 | T30: =IF(DataLink!F152>49, DataLink!E152, NA()) -> 243433 | U30: =DataLink!G152 -> 170000 | V30: =DataLink!H152 -> 349000 | W30: =DataLink!F152 -> 5108
C31: =DataLink!B13 -> 2019 | D31: =IF(DataLink!F13>49, DataLink!E13, NA()) -> 270000 | E31: =DataLink!G13 -> 193399.75 | F31: =DataLink!H13 -> 363133.25 | G31: =DataLink!F13 -> 22476 | H31: =IF(DataLink!F48>49, DataLink!E48, NA()) -> 269933 | I31: =DataLink!G48 -> 192533 | J31: =DataLink!H48 -> 360000 | K31: =DataLink!F48 -> 22293 | L31: =IF(DataLink!F83>49, DataLink!E83, NA()) -> 410000 | M31: =DataLink!G83 -> 336466.5 | N31: =DataLink!H83 -> 517000 | O31: =DataLink!F83 -> 183 | P31: =IF(DataLink!F118>49, DataLink!E118, NA()) -> 288000 | Q31: =DataLink!G118 -> 213600 | R31: =DataLink!H118 -> 379000 | S31: =DataLink!F118 -> 17151 | T31: =IF(DataLink!F153>49, DataLink!E153, NA()) -> 211000 | U31: =DataLink!G153 -> 151000 | V31: =DataLink!H153 -> 299933 | W31: =DataLink!F153 -> 5325
C32: =DataLink!B14 -> 2018 | D32: =IF(DataLink!F14>49, DataLink!E14, NA()) -> 254000 | E32: =DataLink!G14 -> 179933 | F32: =DataLink!H14 -> 345000 | G32: =DataLink!F14 -> 22483 | H32: =IF(DataLink!F49>49, DataLink!E49, NA()) -> 250000 | I32: =DataLink!G49 -> 177133 | J32: =DataLink!H49 -> 340000 | K32: =DataLink!F49 -> 21833 | L32: =IF(DataLink!F84>49, DataLink!E84, NA()) -> 374266 | M32: =DataLink!G84 -> 299233.25 | N32: =DataLink!H84 -> 477250 | O32: =DataLink!F84 -> 650 | P32: =IF(DataLink!F119>49, DataLink!E119, NA()) -> 268933 | Q32: =DataLink!G119 -> 195000 | R32: =DataLink!H119 -> 360000 | S32: =DataLink!F119 -> 17246 | T32: =IF(DataLink!F154>49, DataLink!E154, NA()) -> 200000 | U32: =DataLink!G154 -> 144000 | V32: =DataLink!H154 -> 290000 | W32: =DataLink!F154 -> 5237
C33: =DataLink!B15 -> 2017 | D33: =IF(DataLink!F15>49, DataLink!E15, NA()) -> 240000 | E33: =DataLink!G15 -> 168000 | F33: =DataLink!H15 -> 332000 | G33: =DataLink!F15 -> 24898 | H33: =IF(DataLink!F50>49, DataLink!E50, NA()) -> 237933 | I33: =DataLink!G50 -> 165000 | J33: =DataLink!H50 -> 325000 | K33: =DataLink!F50 -> 24080 | L33: =IF(DataLink!F85>49, DataLink!E85, NA()) -> 365966 | M33: =DataLink!G85 -> 303599.75 | N33: =DataLink!H85 -> 449783 | O33: =DataLink!F85 -> 818 | P33: =IF(DataLink!F120>49, DataLink!E120, NA()) -> 255000 | Q33: =DataLink!G120 -> 180400 | R33: =DataLink!H120 -> 345000 | S33: =DataLink!F120 -> 19414 | T33: =IF(DataLink!F155>49, DataLink!E155, NA()) -> 189933 | U33: =DataLink!G155 -> 137000 | V33: =DataLink!H155 -> 280000 | W33: =DataLink!F155 -> 5484
C34: =DataLink!B16 -> 2016 | D34: =IF(DataLink!F16>49, DataLink!E16, NA()) -> 230000 | E34: =DataLink!G16 -> 159933 | F34: =DataLink!H16 -> 319533 | G34: =DataLink!F16 -> 22864 | H34: =IF(DataLink!F51>49, DataLink!E51, NA()) -> 225000 | I34: =DataLink!G51 -> 157933 | J34: =DataLink!H51 -> 310000 | K34: =DataLink!F51 -> 22156 | L34: =IF(DataLink!F86>49, DataLink!E86, NA()) -> 361466 | M34: =DataLink!G86 -> 296983.25 | N34: =DataLink!H86 -> 447933 | O34: =DataLink!F86 -> 708 | P34: =IF(DataLink!F121>49, DataLink!E121, NA()) -> 242400 | Q34: =DataLink!G121 -> 170000 | R34: =DataLink!H121 -> 330000 | S34: =DataLink!F121 -> 18146 | T34: =IF(DataLink!F156>49, DataLink!E156, NA()) -> 180000 | U34: =DataLink!G156 -> 129000 | V34: =DataLink!H156 -> 255000 | W34: =DataLink!F156 -> 4718
C35: =DataLink!B17 -> 2015 | D35: =IF(DataLink!F17>49, DataLink!E17, NA()) -> 221000 | E35: =DataLink!G17 -> 152000 | F35: =DataLink!H17 -> 307400 | G35: =DataLink!F17 -> 20297 | H35: =IF(DataLink!F52>49, DataLink!E52, NA()) -> 219933 | I35: =DataLink!G52 -> 150000 | J35: =DataLink!H52 -> 300000 | K35: =DataLink!F52 -> 19811 | L35: =IF(DataLink!F87>49, DataLink!E87, NA()) -> 337200 | M35: =DataLink!G87 -> 268083 | N35: =DataLink!H87 -> 419050 | O35: =DataLink!F87 -> 486 | P35: =IF(DataLink!F122>49, DataLink!E122, NA()) -> 233533 | Q35: =DataLink!G122 -> 165000 | R35: =DataLink!H122 -> 323000 | S35: =DataLink!F122 -> 15964 | T35: =IF(DataLink!F157>49, DataLink!E157, NA()) -> 172533 | U35: =DataLink!G157 -> 121533 | V35: =DataLink!H157 -> 250000 | W35: =DataLink!F157 -> 4333
C36: =DataLink!B18 -> 2014 | D36: =IF(DataLink!F18>49, DataLink!E18, NA()) -> 219000 | E36: =DataLink!G18 -> 151000 | F36: =DataLink!H18 -> 302566.5 | G36: =DataLink!F18 -> 10444 | H36: =IF(DataLink!F53>49, DataLink!E53, NA()) -> 213533 | I36: =DataLink!G53 -> 149924.75 | J36: =DataLink!H53 -> 293000 | K36: =DataLink!F53 -> 9748 | L36: =IF(DataLink!F88>49, DataLink!E88, NA()) -> 315000 | M36: =DataLink!G88 -> 235699.75 | N36: =DataLink!H88 -> 407433.25 | O36: =DataLink!F88 -> 696 | P36: =IF(DataLink!F123>49, DataLink!E123, NA()) -> 229933 | Q36: =DataLink!G123 -> 164933 | R36: =DataLink!H123 -> 315000 | S36: =DataLink!F123 -> 8200 | T36: =IF(DataLink!F158>49, DataLink!E158, NA()) -> 171766 | U36: =DataLink!G158 -> 123000 | V36: =DataLink!H158 -> 249233.25 | W36: =DataLink!F158 -> 2244
C37: =DataLink!B19 -> 2013 | D37: =IF(DataLink!F19>49, DataLink!E19, NA()) -> 220000 | E37: =DataLink!G19 -> 155000 | F37: =DataLink!H19 -> 302000 | G37: =DataLink!F19 -> 13255 | H37: =IF(DataLink!F54>49, DataLink!E54, NA()) -> 215000 | I37: =DataLink!G54 -> 151000 | J37: =DataLink!H54 -> 292000 | K37: =DataLink!F54 -> 12174 | L37: =IF(DataLink!F89>49, DataLink!E89, NA()) -> 298900 | M37: =DataLink!G89 -> 231743 | N37: =DataLink!H89 -> 379933 | O37: =DataLink!F89 -> 1081 | P37: =IF(DataLink!F124>49, DataLink!E124, NA()) -> 227500 | Q37: =DataLink!G124 -> 163000 | R37: =DataLink!H124 -> 313000 | S37: =DataLink!F124 -> 11131 | T37: =IF(DataLink!F159>49, DataLink!E159, NA()) -> 180000 | U37: =DataLink!G159 -> 128687.5 | V37: =DataLink!H159 -> 254033.25 | W37: =DataLink!F159 -> 2124
C38: =DataLink!B20 -> 2012 | D38: =IF(DataLink!F20>49, DataLink!E20, NA()) -> 205000 | E38: =DataLink!G20 -> 146875 | F38: =DataLink!H20 -> 285000 | G38: =DataLink!F20 -> 11692 | H38: =IF(DataLink!F55>49, DataLink!E55, NA()) -> 199000 | I38: =DataLink!G55 -> 141500 | J38: =DataLink!H55 -> 275000 | K38: =DataLink!F55 -> 10789 | L38: =IF(DataLink!F90>49, DataLink!E90, NA()) -> 280000 | M38: =DataLink!G90 -> 229900 | N38: =DataLink!H90 -> 370601.5 | O38: =DataLink!F90 -> 903 | P38: =IF(DataLink!F125>49, DataLink!E125, NA()) -> 212500 | Q38: =DataLink!G125 -> 153600 | R38: =DataLink!H125 -> 295000 | S38: =DataLink!F125 -> 9885 | T38: =IF(DataLink!F160>49, DataLink!E160, NA()) -> 168000 | U38: =DataLink!G160 -> 118000 | V38: =DataLink!H160 -> 235950 | W38: =DataLink!F160 -> 1807
C39: =DataLink!B21 -> 2011 | D39: =IF(DataLink!F21>49, DataLink!E21, NA()) -> 207000 | E39: =DataLink!G21 -> 147000 | F39: =DataLink!H21 -> 285000 | G39: =DataLink!F21 -> 9843 | H39: =IF(DataLink!F56>49, DataLink!E56, NA()) -> 200000 | I39: =DataLink!G56 -> 142000 | J39: =DataLink!H56 -> 278000 | K39: =DataLink!F56 -> 9018 | L39: =IF(DataLink!F91>49, DataLink!E91, NA()) -> 267500 | M39: =DataLink!G91 -> 219900 | N39: =DataLink!H91 -> 349900 | O39: =DataLink!F91 -> 825 | P39: =IF(DataLink!F126>49, DataLink!E126, NA()) -> 214450 | Q39: =DataLink!G126 -> 153000 | R39: =DataLink!H126 -> 292000 | S39: =DataLink!F126 -> 8280 | T39: =IF(DataLink!F161>49, DataLink!E161, NA()) -> 171000 | U39: =DataLink!G161 -> 119900 | V39: =DataLink!H161 -> 243850 | W39: =DataLink!F161 -> 1563
C40: =DataLink!B22 -> 2010 | D40: =IF(DataLink!F22>49, DataLink!E22, NA()) -> 215000 | E40: =DataLink!G22 -> 155000 | F40: =DataLink!H22 -> 290000 | G40: =DataLink!F22 -> 10215 | H40: =IF(DataLink!F57>49, DataLink!E57, NA()) -> 205000 | I40: =DataLink!G57 -> 150000 | J40: =DataLink!H57 -> 282000 | K40: =DataLink!F57 -> 9260 | L40: =IF(DataLink!F92>49, DataLink!E92, NA()) -> 270900 | M40: =DataLink!G92 -> 224450 | N40: =DataLink!H92 -> 348575 | O40: =DataLink!F92 -> 955 | P40: =IF(DataLink!F127>49, DataLink!E127, NA()) -> 223500 | Q40: =DataLink!G127 -> 162500 | R40: =DataLink!H127 -> 300000 | S40: =DataLink!F127 -> 8513 | T40: =IF(DataLink!F162>49, DataLink!E162, NA()) -> 177325 | U40: =DataLink!G162 -> 131000 | V40: =DataLink!H162 -> 233000 | W40: =DataLink!F162 -> 1702
C41: =DataLink!B23 -> 2009 | D41: =IF(DataLink!F23>49, DataLink!E23, NA()) -> 210000 | E41: =DataLink!G23 -> 155000 | F41: =DataLink!H23 -> 278000 | G41: =DataLink!F23 -> 11337 | H41: =IF(DataLink!F58>49, DataLink!E58, NA()) -> 200000 | I41: =DataLink!G58 -> 150000 | J41: =DataLink!H58 -> 269916.5 | K41: =DataLink!F58 -> 10267 | L41: =IF(DataLink!F93>49, DataLink!E93, NA()) -> 270090 | M41: =DataLink!G93 -> 219949.75 | N41: =DataLink!H93 -> 348435.75 | O41: =DataLink!F93 -> 1070 | P41: =IF(DataLink!F128>49, DataLink!E128, NA()) -> 217000 | Q41: =DataLink!G128 -> 161500 | R41: =DataLink!H128 -> 285000 | S41: =DataLink!F128 -> 9429 | T41: =IF(DataLink!F163>49, DataLink!E163, NA()) -> 173000 | U41: =DataLink!G163 -> 125925 | V41: =DataLink!H163 -> 230000 | W41: =DataLink!F163 -> 1908
C42: =DataLink!B24 -> 2008 | D42: =IF(DataLink!F24>49, DataLink!E24, NA()) -> 240000 | E42: =DataLink!G24 -> 180000 | F42: =DataLink!H24 -> 325000 | G42: =DataLink!F24 -> 9265 | H42: =IF(DataLink!F59>49, DataLink!E59, NA()) -> 231950 | I42: =DataLink!G59 -> 175000 | J42: =DataLink!H59 -> 312000 | K42: =DataLink!F59 -> 8024 | L42: =IF(DataLink!F94>49, DataLink!E94, NA()) -> 295000 | M42: =DataLink!G94 -> 229900 | N42: =DataLink!H94 -> 389000 | O42: =DataLink!F94 -> 1241 | P42: =IF(DataLink!F129>49, DataLink!E129, NA()) -> 250000 | Q42: =DataLink!G129 -> 190000 | R42: =DataLink!H129 -> 340000 | S42: =DataLink!F129 -> 7499 | T42: =IF(DataLink!F164>49, DataLink!E164, NA()) -> 196000 | U42: =DataLink!G164 -> 150000 | V42: =DataLink!H164 -> 255750 | W42: =DataLink!F164 -> 1766
C43: =DataLink!B25 -> 2007 | D43: =IF(DataLink!F25>49, DataLink!E25, NA()) -> 252500 | E43: =DataLink!G25 -> 191000 | F43: =DataLink!H25 -> 335000 | G43: =DataLink!F25 -> 11777 | H43: =IF(DataLink!F60>49, DataLink!E60, NA()) -> 245000 | I43: =DataLink!G60 -> 187500 | J43: =DataLink!H60 -> 322000 | K43: =DataLink!F60 -> 9838 | L43: =IF(DataLink!F95>49, DataLink!E95, NA()) -> 300000 | M43: =DataLink!G95 -> 227950 | N43: =DataLink!H95 -> 385823.5 | O43: =DataLink!F95 -> 1939 | P43: =IF(DataLink!F130>49, DataLink!E130, NA()) -> 269900 | Q43: =DataLink!G130 -> 209075 | R43: =DataLink!H130 -> 350000 | S43: =DataLink!F130 -> 9070 | T43: =IF(DataLink!F165>49, DataLink!E165, NA()) -> 199000 | U43: =DataLink!G165 -> 160000 | V43: =DataLink!H165 -> 262400 | W43: =DataLink!F165 -> 2707
C44: =DataLink!B26 -> 2006 | D44: =IF(DataLink!F26>49, DataLink!E26, NA()) -> 249900 | E44: =DataLink!G26 -> 188900 | F44: =DataLink!H26 -> 329000 | G44: =DataLink!F26 -> 14899 | H44: =IF(DataLink!F61>49, DataLink!E61, NA()) -> 240000 | I44: =DataLink!G61 -> 180000 | J44: =DataLink!H61 -> 314000 | K44: =DataLink!F61 -> 12620 | L44: =IF(DataLink!F96>49, DataLink!E96, NA()) -> 312500 | M44: =DataLink!G96 -> 243415 | N44: =DataLink!H96 -> 399900 | O44: =DataLink!F96 -> 2279 | P44: =IF(DataLink!F131>49, DataLink!E131, NA()) -> 265000 | Q44: =DataLink!G131 -> 207000 | R44: =DataLink!H131 -> 349000 | S44: =DataLink!F131 -> 11410 | T44: =IF(DataLink!F166>49, DataLink!E166, NA()) -> 192000 | U44: =DataLink!G166 -> 147933 | V44: =DataLink!H166 -> 261900 | W44: =DataLink!F166 -> 3489
C45: =DataLink!B27 -> 2005 | D45: =IF(DataLink!F27>49, DataLink!E27, NA()) -> 250000 | E45: =DataLink!G27 -> 189000 | F45: =DataLink!H27 -> 334900 | G45: =DataLink!F27 -> 18519 | H45: =IF(DataLink!F62>49, DataLink!E62, NA()) -> 240000 | I45: =DataLink!G62 -> 180000 | J45: =DataLink!H62 -> 320000 | K45: =DataLink!F62 -> 15182 | L45: =IF(DataLink!F97>49, DataLink!E97, NA()) -> 299933 | M45: =DataLink!G97 -> 235950 | N45: =DataLink!H97 -> 395933 | O45: =DataLink!F97 -> 3337 | P45: =IF(DataLink!F132>49, DataLink!E132, NA()) -> 270000 | Q45: =DataLink!G132 -> 207037.5 | R45: =DataLink!H132 -> 355000 | S45: =DataLink!F132 -> 14120 | T45: =IF(DataLink!F167>49, DataLink!E167, NA()) -> 196000 | U45: =DataLink!G167 -> 150000 | V45: =DataLink!H167 -> 257510 | W45: =DataLink!F167 -> 4399
C46: =DataLink!B28 -> 2004 | D46: =IF(DataLink!F28>49, DataLink!E28, NA()) -> 238000 | E46: =DataLink!G28 -> 176287.5 | F46: =DataLink!H28 -> 314900 | G46: =DataLink!F28 -> 19480 | H46: =IF(DataLink!F63>49, DataLink!E63, NA()) -> 229000 | I46: =DataLink!G63 -> 169900 | J46: =DataLink!H63 -> 299000 | K46: =DataLink!F63 -> 15936 | L46: =IF(DataLink!F98>49, DataLink!E98, NA()) -> 284225 | M46: =DataLink!G98 -> 224900 | N46: =DataLink!H98 -> 373177.75 | O46: =DataLink!F98 -> 3544 | P46: =IF(DataLink!F133>49, DataLink!E133, NA()) -> 252730 | Q46: =DataLink!G133 -> 189900 | R46: =DataLink!H133 -> 330000 | S46: =DataLink!F133 -> 15366 | T46: =IF(DataLink!F168>49, DataLink!E168, NA()) -> 187840 | U46: =DataLink!G168 -> 148000 | V46: =DataLink!H168 -> 241000 | W46: =DataLink!F168 -> 4114
C47: =DataLink!B29 -> 2003 | D47: =IF(DataLink!F29>49, DataLink!E29, NA()) -> 215000 | E47: =DataLink!G29 -> 159000 | F47: =DataLink!H29 -> 285000 | G47: =DataLink!F29 -> 18980 | H47: =IF(DataLink!F64>49, DataLink!E64, NA()) -> 201750 | I47: =DataLink!G64 -> 151000 | J47: =DataLink!H64 -> 270000 | K47: =DataLink!F64 -> 15716 | L47: =IF(DataLink!F99>49, DataLink!E99, NA()) -> 267500 | M47: =DataLink!G99 -> 203399.25 | N47: =DataLink!H99 -> 350828 | O47: =DataLink!F99 -> 3264 | P47: =IF(DataLink!F134>49, DataLink!E134, NA()) -> 229450 | Q47: =DataLink!G134 -> 169900 | R47: =DataLink!H134 -> 300000 | S47: =DataLink!F134 -> 15114 | T47: =IF(DataLink!F169>49, DataLink!E169, NA()) -> 169900 | U47: =DataLink!G169 -> 130000 | V47: =DataLink!H169 -> 217437.5 | W47: =DataLink!F169 -> 3866
C48: =DataLink!B30 -> 2002 | D48: =IF(DataLink!F30>49, DataLink!E30, NA()) -> 189900 | E48: =DataLink!G30 -> 139000 | F48: =DataLink!H30 -> 264000 | G48: =DataLink!F30 -> 18263 | H48: =IF(DataLink!F65>49, DataLink!E65, NA()) -> 179900 | I48: =DataLink!G65 -> 131000 | J48: =DataLink!H65 -> 245000 | K48: =DataLink!F65 -> 15156 | L48: =IF(DataLink!F100>49, DataLink!E100, NA()) -> 259900 | M48: =DataLink!G100 -> 189325 | N48: =DataLink!H100 -> 330000 | O48: =DataLink!F100 -> 3107 | P48: =IF(DataLink!F135>49, DataLink!E135, NA()) -> 200880 | Q48: =DataLink!G135 -> 148000 | R48: =DataLink!H135 -> 275000 | S48: =DataLink!F135 -> 14911 | T48: =IF(DataLink!F170>49, DataLink!E170, NA()) -> 149900 | U48: =DataLink!G170 -> 112000 | V48: =DataLink!H170 -> 190000 | W48: =DataLink!F170 -> 3352
C49: =DataLink!B31 -> 2001 | D49: =IF(DataLink!F31>49, DataLink!E31, NA()) -> 162000 | E49: =DataLink!G31 -> 118000 | F49: =DataLink!H31 -> 230000 | G49: =DataLink!F31 -> 17387 | H49: =IF(DataLink!F66>49, DataLink!E66, NA()) -> 150000 | I49: =DataLink!G66 -> 110000 | J49: =DataLink!H66 -> 207000 | K49: =DataLink!F66 -> 14620 | L49: =IF(DataLink!F101>49, DataLink!E101, NA()) -> 242533 | M49: =DataLink!G101 -> 178418.5 | N49: =DataLink!H101 -> 309125 | O49: =DataLink!F101 -> 2767 | P49: =IF(DataLink!F136>49, DataLink!E136, NA()) -> 174550 | Q49: =DataLink!G136 -> 127508.25 | R49: =DataLink!H136 -> 245000 | S49: =DataLink!F136 -> 13962 | T49: =IF(DataLink!F171>49, DataLink!E171, NA()) -> 124500 | U49: =DataLink!G171 -> 89500 | V49: =DataLink!H171 -> 162900 | W49: =DataLink!F171 -> 3425
C50: =DataLink!B32 -> 2000 | D50: =IF(DataLink!F32>49, DataLink!E32, NA()) -> 143000 | E50: =DataLink!G32 -> 102000 | F50: =DataLink!H32 -> 200000 | G50: =DataLink!F32 -> 18837 | H50: =IF(DataLink!F67>49, DataLink!E67, NA()) -> 133900 | I50: =DataLink!G67 -> 95400 | J50: =DataLink!H67 -> 180000 | K50: =DataLink!F67 -> 15872 | L50: =IF(DataLink!F102>49, DataLink!E102, NA()) -> 214900 | M50: =DataLink!G102 -> 161900 | N50: =DataLink!H102 -> 276000 | O50: =DataLink!F102 -> 2965 | P50: =IF(DataLink!F137>49, DataLink!E137, NA()) -> 152450 | Q50: =DataLink!G137 -> 114000 | R50: =DataLink!H137 -> 214900 | S50: =DataLink!F137 -> 15462 | T50: =IF(DataLink!F172>49, DataLink!E172, NA()) -> 105000 | U50: =DataLink!G172 -> 76465 | V50: =DataLink!H172 -> 140000 | W50: =DataLink!F172 -> 3375
C51: =DataLink!B33 -> 1999 | D51: =IF(DataLink!F33>49, DataLink!E33, NA()) -> 129000 | E51: =DataLink!G33 -> 91900 | F51: =DataLink!H33 -> 177508.25 | G51: =DataLink!F33 -> 17576 | H51: =IF(DataLink!F68>49, DataLink!E68, NA()) -> 120900 | I51: =DataLink!G68 -> 87900 | J51: =DataLink!H68 -> 162000 | K51: =DataLink!F68 -> 14557 | L51: =IF(DataLink!F103>49, DataLink!E103, NA()) -> 183990 | M51: =DataLink!G103 -> 135000 | N51: =DataLink!H103 -> 240000 | O51: =DataLink!F103 -> 3019 | P51: =IF(DataLink!F138>49, DataLink!E138, NA()) -> 136500 | Q51: =DataLink!G138 -> 100000 | R51: =DataLink!H138 -> 186493.75 | S51: =DataLink!F138 -> 14538 | T51: =IF(DataLink!F173>49, DataLink!E173, NA()) -> 93000 | U51: =DataLink!G173 -> 70000 | V51: =DataLink!H173 -> 127000 | W51: =DataLink!F173 -> 3038
C52: =DataLink!B34 -> 1998 | D52: =IF(DataLink!F34>49, DataLink!E34, NA()) -> 124000 | E52: =DataLink!G34 -> 90000 | F52: =DataLink!H34 -> 166918.5 | G52: =DataLink!F34 -> 11031 | H52: =IF(DataLink!F69>49, DataLink!E69, NA()) -> 117000 | I52: =DataLink!G69 -> 86900 | J52: =DataLink!H69 -> 154000 | K52: =DataLink!F69 -> 9337 | L52: =IF(DataLink!F104>49, DataLink!E104, NA()) -> 172062 | M52: =DataLink!G104 -> 131677.25 | N52: =DataLink!H104 -> 230000 | O52: =DataLink!F104 -> 1694 | P52: =IF(DataLink!F139>49, DataLink!E139, NA()) -> 127000 | Q52: =DataLink!G139 -> 94950 | R52: =DataLink!H139 -> 171000 | S52: =DataLink!F139 -> 9813 | T52: =IF(DataLink!F174>49, DataLink!E174, NA()) -> 89900 | U52: =DataLink!G174 -> 68100 | V52: =DataLink!H174 -> 126203.75 | W52: =DataLink!F174 -> 1218
C53: =DataLink!B35 -> 1997 | D53: =IF(DataLink!F35>49, DataLink!E35, NA()) -> 113000 | E53: =DataLink!G35 -> 85000 | F53: =DataLink!H35 -> 150900 | G53: =DataLink!F35 -> 17761 | H53: =IF(DataLink!F70>49, DataLink!E70, NA()) -> 107500 | I53: =DataLink!G70 -> 82000 | J53: =DataLink!H70 -> 140000 | K53: =DataLink!F70 -> 15450 | L53: =IF(DataLink!F105>49, DataLink!E105, NA()) -> 163194 | M53: =DataLink!G105 -> 129000 | N53: =DataLink!H105 -> 220850 | O53: =DataLink!F105 -> 2311 | P53: =IF(DataLink!F140>49, DataLink!E140, NA()) -> 117000 | Q53: =DataLink!G140 -> 89900 | R53: =DataLink!H140 -> 157000 | S53: =DataLink!F140 -> 15620 | T53: =IF(DataLink!F175>49, DataLink!E175, NA()) -> 80000 | U53: =DataLink!G175 -> 59900 | V53: =DataLink!H175 -> 109900 | W53: =DataLink!F175 -> 2141
C54: =DataLink!B36 -> 1996 | D54: =IF(DataLink!F36>49, DataLink!E36, NA()) -> 110000 | E54: =DataLink!G36 -> 80000 | F54: =DataLink!H36 -> 150000 | G54: =DataLink!F36 -> 10257 | H54: =IF(DataLink!F71>49, DataLink!E71, NA()) -> 101200 | I54: =DataLink!G71 -> 75500 | J54: =DataLink!H71 -> 135900 | K54: =DataLink!F71 -> 8800 | L54: =IF(DataLink!F106>49, DataLink!E106, NA()) -> 160000 | M54: =DataLink!G106 -> 128000 | N54: =DataLink!H106 -> 203800 | O54: =DataLink!F106 -> 1457 | P54: =IF(DataLink!F141>49, DataLink!E141, NA()) -> 117500 | Q54: =DataLink!G141 -> 88500 | R54: =DataLink!H141 -> 157000 | S54: =DataLink!F141 -> 8499 | T54: =IF(DataLink!F176>49, DataLink!E176, NA()) -> 72900 | U54: =DataLink!G176 -> 55000 | V54: =DataLink!H176 -> 97100 | W54: =DataLink!F176 -> 1758
C55: =DataLink!B37 -> 1995 | D55: =IF(DataLink!F37>49, DataLink!E37, NA()) -> 108000 | E55: =DataLink!G37 -> 79900 | F55: =DataLink!H37 -> 149000 | G55: =DataLink!F37 -> 12752 | H55: =IF(DataLink!F72>49, DataLink!E72, NA()) -> 99900 | I55: =DataLink!G72 -> 75000 | J55: =DataLink!H72 -> 135000 | K55: =DataLink!F72 -> 10656 | L55: =IF(DataLink!F107>49, DataLink!E107, NA()) -> 152000 | M55: =DataLink!G107 -> 115000 | N55: =DataLink!H107 -> 198000 | O55: =DataLink!F107 -> 2096 | P55: =IF(DataLink!F142>49, DataLink!E142, NA()) -> 114400 | Q55: =DataLink!G142 -> 86000 | R55: =DataLink!H142 -> 155300 | S55: =DataLink!F142 -> 10863 | T55: =IF(DataLink!F177>49, DataLink!E177, NA()) -> 73000 | U55: =DataLink!G177 -> 55000 | V55: =DataLink!H177 -> 94300 | W55: =DataLink!F177 -> 1889
C56: =DataLink!B38 -> 1994 | D56: =IF(DataLink!F38>49, DataLink!E38, NA()) -> 105000 | E56: =DataLink!G38 -> 77000 | F56: =DataLink!H38 -> 142000 | G56: =DataLink!F38 -> 14050 | H56: =IF(DataLink!F73>49, DataLink!E73, NA()) -> 96000 | I56: =DataLink!G73 -> 74000 | J56: =DataLink!H73 -> 131000 | K56: =DataLink!F73 -> 11716 | L56: =IF(DataLink!F108>49, DataLink!E108, NA()) -> 142800 | M56: =DataLink!G108 -> 114000 | N56: =DataLink!H108 -> 187000 | O56: =DataLink!F108 -> 2334 | P56: =IF(DataLink!F143>49, DataLink!E143, NA()) -> 111000 | Q56: =DataLink!G143 -> 84000 | R56: =DataLink!H143 -> 149000 | S56: =DataLink!F143 -> 11943 | T56: =IF(DataLink!F178>49, DataLink!E178, NA()) -> 69000 | U56: =DataLink!G178 -> 51000 | V56: =DataLink!H178 -> 90000 | W56: =DataLink!F178 -> 2107
C57: =DataLink!B39 -> 1993 | D57: =IF(DataLink!F39>49, DataLink!E39, NA()) -> 105000 | E57: =DataLink!G39 -> 78000 | F57: =DataLink!H39 -> 140000 | G57: =DataLink!F39 -> 12034 | H57: =IF(DataLink!F74>49, DataLink!E74, NA()) -> 97500 | I57: =DataLink!G74 -> 75000 | J57: =DataLink!H74 -> 130000 | K57: =DataLink!F74 -> 9950 | L57: =IF(DataLink!F109>49, DataLink!E109, NA()) -> 134300 | M57: =DataLink!G109 -> 108900 | N57: =DataLink!H109 -> 170000 | O57: =DataLink!F109 -> 2084 | P57: =IF(DataLink!F144>49, DataLink!E144, NA()) -> 110000 | Q57: =DataLink!G144 -> 84952 | R57: =DataLink!H144 -> 146500 | S57: =DataLink!F144 -> 10342 | T57: =IF(DataLink!F179>49, DataLink!E179, NA()) -> 68900 | U57: =DataLink!G179 -> 50000 | V57: =DataLink!H179 -> 90000 | W57: =DataLink!F179 -> 1692
C58: =DataLink!B40 -> 1992 | D58: =IF(DataLink!F40>49, DataLink!E40, NA()) -> 101048 | E58: =DataLink!G40 -> 77143 | F58: =DataLink!H40 -> 134000 | G58: =DataLink!F40 -> 9411 | H58: =IF(DataLink!F75>49, DataLink!E75, NA()) -> 96000 | I58: =DataLink!G75 -> 74857 | J58: =DataLink!H75 -> 130000 | K58: =DataLink!F75 -> 7689 | L58: =IF(DataLink!F110>49, DataLink!E110, NA()) -> 120000 | M58: =DataLink!G110 -> 97524 | N58: =DataLink!H110 -> 149905 | O58: =DataLink!F110 -> 1722 | P58: =IF(DataLink!F145>49, DataLink!E145, NA()) -> 108000 | Q58: =DataLink!G145 -> 84000 | R58: =DataLink!H145 -> 139524 | S58: =DataLink!F145 -> 8062 | T58: =IF(DataLink!F180>49, DataLink!E180, NA()) -> 67524 | U58: =DataLink!G180 -> 48500 | V58: =DataLink!H180 -> 87905 | W58: =DataLink!F180 -> 1349
C59: =DataLink!B41 -> 1991 | D59: =IF(DataLink!F41>49, DataLink!E41, NA()) -> 108000 | E59: =DataLink!G41 -> 82900 | F59: =DataLink!H41 -> 135238 | G59: =DataLink!F41 -> 7123 | H59: =IF(DataLink!F76>49, DataLink!E76, NA()) -> 104952 | I59: =DataLink!G76 -> 79905 | J59: =DataLink!H76 -> 135000 | K59: =DataLink!F76 -> 5590 | L59: =IF(DataLink!F111>49, DataLink!E111, NA()) -> 118857 | M59: =DataLink!G111 -> 96286 | N59: =DataLink!H111 -> 140571 | O59: =DataLink!F111 -> 1533 | P59: =IF(DataLink!F146>49, DataLink!E146, NA()) -> 112000 | Q59: =DataLink!G146 -> 89048 | R59: =DataLink!H146 -> 140000 | S59: =DataLink!F146 -> 5990 | T59: =IF(DataLink!F181>49, DataLink!E181, NA()) -> 77238 | U59: =DataLink!G181 -> 58000 | V59: =DataLink!H181 -> 106000 | W59: =DataLink!F181 -> 1133
C60: =DataLink!B42 -> 1990 | D60: =IF(DataLink!F42>49, DataLink!E42, NA()) -> 119905 | E60: =DataLink!G42 -> 92571 | F60: =DataLink!H42 -> 150000 | G60: =DataLink!F42 -> 6009 | H60: =IF(DataLink!F77>49, DataLink!E77, NA()) -> 116000 | I60: =DataLink!G77 -> 89000 | J60: =DataLink!H77 -> 147000 | K60: =DataLink!F77 -> 4354 | L60: =IF(DataLink!F112>49, DataLink!E112, NA()) -> 125905 | M60: =DataLink!G112 -> 105048 | N60: =DataLink!H112 -> 164857 | O60: =DataLink!F112 -> 1655 | P60: =IF(DataLink!F147>49, DataLink!E147, NA()) -> 124500 | Q60: =DataLink!G147 -> 97048 | R60: =DataLink!H147 -> 155048 | S60: =DataLink!F147 -> 5099 | T60: =IF(DataLink!F182>49, DataLink!E182, NA()) -> 95000 | U60: =DataLink!G182 -> 75524 | V60: =DataLink!H182 -> 120000 | W60: =DataLink!F182 -> 910
C62: Source: 1990-2014 - NH Dept. of Revenue, PA-34 Dataset, Compiled by Real Data Corp. Filtered and analyzed by New Hampshire Housing.
C63: 2015 - The Warren Group. Filtered and analyzed by New Hampshire Housing.
C64: Note: Calculations based on a sample size of less than 50 are highly volatile and not considered valid.
C66: =DataLink!A5 -> New Hampshire Statewide
C68: Percent Change In Median Home Purchase Price
D70: All Homes | H70: Existing Homes | L70: New Homes | P70: Non-Condominiums | T70: Condominiums
C71: 2020 to 2023 | D71: =(D27-D30)/D30 -> 0.3825814582 | E71: =(E27-E30)/E30 -> 0.3863636364 | F71: =(F27-F30)/F30 -> 0.3780487805 | H71: =(H27-H30)/H30 -> 0.3666666667 | I71: =(I27-I30)/I30 -> 0.3640517794 | J71: =(J27-J30)/J30 -> 0.3580246914 | L71: =(L27-L30)/L30 -> 0.520945655 | M71: =(M27-M30)/M30 -> 0.6148771617 | N71: =(N27-N30)/N30 -> 0.4374616851 | P71: =(P27-P30)/P30 -> 0.359375 | Q71: =(Q27-Q30)/Q30 -> 0.3538875 | R71: =(R27-R30)/R30 -> 0.3647058824 | T71: =(T27-T30)/T30 -> 0.4459830836 | U71: =(U27-U30)/U30 -> 0.5588235294 | V71: =(V27-V30)/V30 -> 0.4181948424
C72: Avg per Year | D72: =D71/3 -> 0.1275271527 | E72: =E71/3 -> 0.1287878788 | F72: =F71/3 -> 0.1260162602 | H72: =H71/3 -> 0.1222222222 | I72: =I71/3 -> 0.1213505931 | J72: =J71/3 -> 0.1193415638 | L72: =L71/3 -> 0.1736485517 | M72: =M71/3 -> 0.2049590539 | N72: =N71/3 -> 0.1458205617 | P72: =P71/3 -> 0.1197916667 | Q72: =Q71/3 -> 0.1179625 | R72: =R71/3 -> 0.1215686275 | T72: =T71/3 -> 0.1486610279 | U72: =U71/3 -> 0.1862745098 | V72: =V71/3 -> 0.1393982808
C73: 2019 to 2023 | D73: =(D27-D31)/D31 -> 0.5481481481 | E73: =(E27-E31)/E31 -> 0.5770444378 | F73: =(F27-F31)/F31 -> 0.5559026886 | H73: =(H27-H31)/H31 -> 0.5188954296 | I73: =(I27-I31)/I31 -> 0.5581744428 | J73: =(J27-J31)/J31 -> 0.5277777778 | L73: =(L27-L31)/L31 -> 0.5763414634 | M73: =(M27-M31)/M31 -> 0.5744004232 | N73: =(N27-N31)/N31 -> 0.5012243714 | P73: =(P27-P31)/P31 -> 0.5104166667 | Q73: =(Q27-Q31)/Q31 -> 0.5212219101 | R73: =(R27-R31)/R31 -> 0.5303430079 | T73: =(T27-T31)/T31 -> 0.6682464455 | U73: =(U27-U31)/U31 -> 0.7549668874 | V73: =(V27-V31)/V31 -> 0.6502018784
C74: Avg per Year | D74: =D73/7 -> 0.07830687831 | E74: =E73/7 -> 0.08243491968 | F74: =F73/7 -> 0.0794146698 | H74: =H73/7 -> 0.07412791852 | I74: =I73/7 -> 0.07973920612 | J74: =J73/7 -> 0.0753968254 | L74: =L73/7 -> 0.08233449477 | M74: =M73/7 -> 0.08205720332 | N74: =N73/7 -> 0.07160348162 | P74: =P73/7 -> 0.07291666667 | Q74: =Q73/7 -> 0.07446027287 | R74: =R73/7 -> 0.07576328685 | T74: =T73/7 -> 0.09546377793 | U74: =U73/7 -> 0.1078524125 | V74: =V73/7 -> 0.09288598263
C75: 2013 to 2023 | D75: =(D27-D37)/D37 -> 0.9 | E75: =(E27-E37)/E37 -> 0.9677419355 | F75: =(F27-F37)/F37 -> 0.8708609272 | H75: =(H27-H37)/H37 -> 0.9069767442 | I75: =(I27-I37)/I37 -> 0.9867549669 | J75: =(J27-J37)/J37 -> 0.8835616438 | L75: =(L27-L37)/L37 -> 1.162261626 | M75: =(M27-M37)/M37 -> 1.285864082 | N75: =(N27-N37)/N37 -> 1.042815444 | P75: =(P27-P37)/P37 -> 0.9120879121 | Q75: =(Q27-Q37)/Q37 -> 0.9934539877 | R75: =(R27-R37)/R37 -> 0.8530351438 | T75: =(T27-T37)/T37 -> 0.9555555556 | U75: =(U27-U37)/U37 -> 1.059252064 | V75: =(V27-V37)/V37 -> 0.9483669953
C76: Avg per Year | D76: =D75/5 -> 0.18 | E76: =E75/5 -> 0.1935483871 | F76: =F75/5 -> 0.1741721854 | H76: =H75/5 -> 0.1813953488 | I76: =I75/5 -> 0.1973509934 | J76: =J75/5 -> 0.1767123288 | L76: =L75/5 -> 0.2324523252 | M76: =M75/5 -> 0.2571728164 | N76: =N75/5 -> 0.2085630888 | P76: =P75/5 -> 0.1824175824 | Q76: =Q75/5 -> 0.1986907975 | R76: =R75/5 -> 0.1706070288 | T76: =T75/5 -> 0.1911111111 | U76: =U75/5 -> 0.2118504128 | V76: =V75/5 -> 0.1896733991
C78: 2022 to 2023 | D78: =(D27-D28)/D28 -> 0.045 | H78: =(H27-H28)/H28 -> 0.03535353535 | L78: =(L27-L28)/L28 -> 0.04241935484 | P78: =(P27-P28)/P28 -> 0.03818615752 | T78: =(T27-T28)/T28 -> 0.09817085916
C79: 2022 to 2023 | D79: 0.1428571429 | H79: 0.1314285714 | L79: 0.24 | P79: 0.1173333333 | T79: 0.1655745455
C80: 2020 to 2021 | D80: 0.1576639004 | H80: 0.1666666667 | L80: 0.1766560846 | P80: 0.171875 | T80: 0.1296742841
C81: 2019 to 2020 | D81: 0.1197518519 | H81: 0.1113868997 | L81: 0.03642195122 | P81: 0.1111111111 | T81: 0.1537109005
C82: 2018 to 2019 | D82: 0.06299212598 | H82: 0.079732 | L82: 0.09547754805 | P82: 0.07089869968 | T82: 0.055
C83: 2017 to 2018 | D83: 0.05833333333 | H83: =(H32-H33)/H33 -> 0.05071595785 | L83: =(L32-L33)/L33 -> 0.02267970249 | P83: =(P32-P33)/P33 -> 0.05463921569 | T83: =(T32-T33)/T33 -> 0.05300290102
C84: 2016 to 2017 | D84: =(D33-D34)/D34 -> 0.04347826087 | H84: 0.05748 | L84: 0.01244930367 | P84: 0.05198019802 | T84: 0.05518333333
C85: 2015 to 2016 | D85: 0.0407239819 | H85: 0.02303883455 | L85: 0.07196322657 | P85: 0.03796893801 | T85: 0.04327867712
C86: 2014 to 2015 | D86: 0.009132420091 | H86: 0.02997194813 | L86: 0.07047619048 | P86: 0.01565673479 | T86: 0.004465377316
C87: 2013 to 2014 | D87: -0.004545454545 | H87: -0.006823255814 | L87: 0.05386416862 | P87: 0.01069450549 | T87: -0.04574444444
C88: 2012 to 2013 | D88: 0.07317073171 | H88: 0.08040201005 | L88: 0.0675 | P88: 0.07058823529 | T88: 0.07142857143
C89: 2011 to 2012 | D89: -0.009661835749 | H89: -0.005 | L89: 0.04672897196 | P89: -0.009093028678 | T89: -0.01754385965
C90: 2010 to 2011 | D90: -0.03720930233 | H90: -0.0243902439 | L90: -0.01255075674 | P90: -0.04049217002 | T90: -0.03566896941
C91: 2009 to 2010 | D91: 0.02380952381 | H91: 0.025 | L91: 0.002999000333 | P91: 0.02995391705 | T91: 0.025
C92: 2008 to 2009 | D92: -0.125 | H92: -0.1377452037 | L92: -0.08444067797 | P92: -0.132 | T92: =(T41-T42)/T42 -> -0.1173469388
C93: 2007 to 2008 | D93: -0.0495049505 | H93: -0.05326530612 | L93: -0.01666666667 | P93: -0.07373101149 | T93: -0.01507537688
C94: 2006 to 2007 | D94: 0.01040416166 | H94: 0.02083333333 | L94: -0.04 | P94: 0.01849056604 | T94: 0.03645833333
C95: 2005 to 2006 | D95: -0.0004 | H95: 0 | L95: 0.04189935752 | P95: -0.01851851852 | T95: -0.02040816327
C96: 2004 to 2005 | D96: 0.05042016807 | H96: 0.0480349345 | L96: 0.05526607441 | P96: 0.06833379496 | T96: 0.04344122658
C97: 2003 to 2004 | D97: 0.1069767442 | H97: 0.1350681537 | L97: 0.06252336449 | P97: 0.1014600131 | T97: 0.1055915244
C98: 2002 to 2003 | D98: 0.1321748289 | H98: 0.1214563646 | L98: 0.02924201616 | P98: 0.1422242135 | T98: 0.1334222815
C99: 2001 to 2002 | D99: 0.1722222222 | H99: 0.1993333333 | L99: 0.07160675042 | P99: 0.1508450301 | T99: 0.2040160643
C100: 2000 to 2001 | D100: 0.1328671329 | H100: 0.1202389843 | L100: 0.1285853886 | P100: 0.1449655625 | T100: 0.1857142857
C101: 1999 to 2000 | D101: 0.1085271318 | H101: 0.1075268817 | L101: 0.1679982608 | P101: 0.1168498168 | T101: 0.1290322581
C102: 1998 to 1999 | D102: 0.04032258065 | H102: 0.03333333333 | L102: 0.06932384838 | P102: 0.07480314961 | T102: 0.03448275862
C103: 1997 to 1998 | D103: 0.09734513274 | H103: 0.08837209302 | L103: 0.0543402331 | P103: 0.08547008547 | T103: 0.12375
C104: 1996 to 1997 | D104: 0.02727272727 | H104: 0.06225296443 | L104: 0.0199625 | P104: -0.004255319149 | T104: 0.09739368999
C105: 1995 to 1996 | D105: 0.01851851852 | H105: 0.01301301301 | L105: 0.05263157895 | P105: 0.0270979021 | T105: -0.001369863014
C106: 1994 to 1995 | D106: 0.02857142857 | H106: 0.040625 | L106: 0.06442577031 | P106: 0.03063063063 | T106: 0.05797101449
C107: 1993 to 1994 | D107: 0 | H107: -0.01538461538 | L107: 0.06329113924 | P107: 0.009090909091 | T107: 0.00145137881
C108: 1992 to 1993 | D108: 0.03911012588 | H108: 0.015625 | L108: 0.1191666667 | P108: 0.01851851852 | T108: 0.0203779397
C109: 1991 to 1992 | D109: -0.06437037037 | H109: -0.08529613538 | L109: 0.009616598097 | P109: -0.03571428571 | T109: -0.1257671095
C110: 1990 to 1991 | D110: -0.09928693549 | H110: -0.09524137931 | L110: -0.05597871411 | P110: -0.1004016064 | T110: -0.1869684211
C129: Data includes only homes for primary occupancy, data does not include land, multifamily homes, seasonal or vacation property, or manufactured homes.

Sheet StateWideChartAndTable (3) (hidden)
B2: Navigation
E3: OR
H5: =DataLink!A5 -> New Hampshire Statewide
C27: Year | D27: All Homes | F27: Existing Homes | H27: New Homes | J27: Non-Condominiums | L27: Condominiums
D28: Median Purchase Price | E28: Sample Size | F28: Median Purchase Price | G28: Sample Size | H28: Median Purchase Price | I28: Sample Size | J28: Median Purchase Price | K28: Sample Size | L28: Median Purchase Price | M28: Sample Size | P28: New Homes as % of All Homes | Q28: Condominium Homes as % of All Homes
C29: =DataLink!B9 -> 2023 | D29: =IF(DataLink!F9>49, DataLink!E9, NA()) -> 418000 | E29: =DataLink!F9 -> 22112 | F29: =IF(DataLink!F44>49, DataLink!E44, NA()) -> 410000 | G29: =DataLink!F44 -> 21172 | H29: =IF(DataLink!F79>49, DataLink!E79, NA()) -> 646300 | I29: =DataLink!F79 -> 940 | J29: =IF(DataLink!F114>49, DataLink!E114, NA()) -> 435000 | K29: =DataLink!F114 -> 17186 | L29: =IF(DataLink!F149>49, DataLink!E149, NA()) -> 352000 | M29: =DataLink!F149 -> 4926 | P29: =(I29/E29) -> 0.04251085384 | Q29: =(M29/E29) -> 0.2227749638
C30: =DataLink!B10 -> 2022 | D30: =IF(DataLink!F10>49, DataLink!E10, NA()) -> 400000 | E30: =DataLink!F10 -> 20374 | F30: =IF(DataLink!F45>49, DataLink!E45, NA()) -> 396000 | G30: =DataLink!F45 -> 20025 | H30: =IF(DataLink!F80>49, DataLink!E80, NA()) -> 620000 | I30: =DataLink!F80 -> 349 | J30: =IF(DataLink!F115>49, DataLink!E115, NA()) -> 419000 | K30: =DataLink!F115 -> 15819 | L30: =IF(DataLink!F150>49, DataLink!E150, NA()) -> 320533 | M30: =DataLink!F150 -> 4555 | P30: 0.01712967508 | Q30: 0.2235692549
C31: =DataLink!B11 -> 2021 | D31: =IF(DataLink!F11>49, DataLink!E11, NA()) -> 350000 | E31: =DataLink!F11 -> 20014 | F31: =IF(DataLink!F46>49, DataLink!E46, NA()) -> 350000 | G31: =DataLink!F46 -> 19604 | H31: =IF(DataLink!F81>49, DataLink!E81, NA()) -> 500000 | I31: =DataLink!F81 -> 410 | J31: =IF(DataLink!F116>49, DataLink!E116, NA()) -> 375000 | K31: =DataLink!F116 -> 15569 | L31: =IF(DataLink!F151>49, DataLink!E151, NA()) -> 275000 | M31: =DataLink!F151 -> 4445 | P31: 0.02048566004 | Q31: 0.2220945338
C32: =DataLink!B12 -> 2020 | D32: =IF(DataLink!F12>49, DataLink!E12, NA()) -> 302333 | E32: =DataLink!F12 -> 20201 | F32: =IF(DataLink!F47>49, DataLink!E47, NA()) -> 300000 | G32: =DataLink!F47 -> 19830 | H32: =IF(DataLink!F82>49, DataLink!E82, NA()) -> 424933 | I32: =DataLink!F82 -> 371 | J32: =IF(DataLink!F117>49, DataLink!E117, NA()) -> 320000 | K32: =DataLink!F117 -> 15093 | L32: =IF(DataLink!F152>49, DataLink!E152, NA()) -> 243433 | M32: =DataLink!F152 -> 5108 | P32: 0.01836542745 | Q32: 0.2528587694
C33: =DataLink!B13 -> 2019 | D33: =IF(DataLink!F13>49, DataLink!E13, NA()) -> 270000 | E33: =DataLink!F13 -> 22476 | F33: =IF(DataLink!F48>49, DataLink!E48, NA()) -> 269933 | G33: =DataLink!F48 -> 22293 | H33: =IF(DataLink!F83>49, DataLink!E83, NA()) -> 410000 | I33: =DataLink!F83 -> 183 | J33: =IF(DataLink!F118>49, DataLink!E118, NA()) -> 288000 | K33: =DataLink!F118 -> 17151 | L33: =IF(DataLink!F153>49, DataLink!E153, NA()) -> 211000 | M33: =DataLink!F153 -> 5325 | P33: 0.008142018153 | Q33: 0.2369193807
C34: =DataLink!B14 -> 2018 | D34: =IF(DataLink!F14>49, DataLink!E14, NA()) -> 254000 | E34: =DataLink!F14 -> 22483 | F34: =IF(DataLink!F49>49, DataLink!E49, NA()) -> 250000 | G34: =DataLink!F49 -> 21833 | H34: =IF(DataLink!F84>49, DataLink!E84, NA()) -> 374266 | I34: =DataLink!F84 -> 650 | J34: =IF(DataLink!F119>49, DataLink!E119, NA()) -> 268933 | K34: =DataLink!F119 -> 17246 | L34: =IF(DataLink!F154>49, DataLink!E154, NA()) -> 200000 | M34: =DataLink!F154 -> 5237 | P34: =(I34/E34) -> 0.02891073255 | Q34: =(M34/E34) -> 0.2329315483
C35: =DataLink!B15 -> 2017 | D35: =IF(DataLink!F15>49, DataLink!E15, NA()) -> 240000 | E35: =DataLink!F15 -> 24898 | F35: =IF(DataLink!F50>49, DataLink!E50, NA()) -> 237933 | G35: =DataLink!F50 -> 24080 | H35: =IF(DataLink!F85>49, DataLink!E85, NA()) -> 365966 | I35: =DataLink!F85 -> 818 | J35: =IF(DataLink!F120>49, DataLink!E120, NA()) -> 255000 | K35: =DataLink!F120 -> 19414 | L35: =IF(DataLink!F155>49, DataLink!E155, NA()) -> 189933 | M35: =DataLink!F155 -> 5484 | P35: =(I35/E35) -> 0.0328540445 | Q35: =(M35/E35) -> 0.2202586553
C36: =DataLink!B16 -> 2016 | D36: =IF(DataLink!F16>49, DataLink!E16, NA()) -> 230000 | E36: =DataLink!F16 -> 22864 | F36: =IF(DataLink!F51>49, DataLink!E51, NA()) -> 225000 | G36: =DataLink!F51 -> 22156 | H36: =IF(DataLink!F86>49, DataLink!E86, NA()) -> 361466 | I36: =DataLink!F86 -> 708 | J36: =IF(DataLink!F121>49, DataLink!E121, NA()) -> 242400 | K36: =DataLink!F121 -> 18146 | L36: =IF(DataLink!F156>49, DataLink!E156, NA()) -> 180000 | M36: =DataLink!F156 -> 4718 | P36: =(I36/E36) -> 0.03096571029 | Q36: =(M36/E36) -> 0.2063505948
C37: =DataLink!B17 -> 2015 | D37: =IF(DataLink!F17>49, DataLink!E17, NA()) -> 221000 | E37: =DataLink!F17 -> 20297 | F37: =IF(DataLink!F52>49, DataLink!E52, NA()) -> 219933 | G37: =DataLink!F52 -> 19811 | H37: =IF(DataLink!F87>49, DataLink!E87, NA()) -> 337200 | I37: =DataLink!F87 -> 486 | J37: =IF(DataLink!F122>49, DataLink!E122, NA()) -> 233533 | K37: =DataLink!F122 -> 15964 | L37: =IF(DataLink!F157>49, DataLink!E157, NA()) -> 172533 | M37: =DataLink!F157 -> 4333 | P37: 0.02394442528 | Q37: =(M37/E37) -> 0.2134798246
C38: =DataLink!B18 -> 2014 | D38: =IF(DataLink!F18>49, DataLink!E18, NA()) -> 219000 | E38: =DataLink!F18 -> 10444 | F38: =IF(DataLink!F53>49, DataLink!E53, NA()) -> 213533 | G38: =DataLink!F53 -> 9748 | H38: =IF(DataLink!F88>49, DataLink!E88, NA()) -> 315000 | I38: =DataLink!F88 -> 696 | J38: =IF(DataLink!F123>49, DataLink!E123, NA()) -> 229933 | K38: =DataLink!F123 -> 8200 | L38: =IF(DataLink!F158>49, DataLink!E158, NA()) -> 171766 | M38: =DataLink!F158 -> 2244 | P38: 0.06664113367 | Q38: =(M38/E38) -> 0.2148602068
C39: =DataLink!B19 -> 2013 | D39: =IF(DataLink!F19>49, DataLink!E19, NA()) -> 220000 | E39: =DataLink!F19 -> 13255 | F39: =IF(DataLink!F54>49, DataLink!E54, NA()) -> 215000 | G39: =DataLink!F54 -> 12174 | H39: =IF(DataLink!F89>49, DataLink!E89, NA()) -> 298900 | I39: =DataLink!F89 -> 1081 | J39: =IF(DataLink!F124>49, DataLink!E124, NA()) -> 227500 | K39: =DataLink!F124 -> 11131 | L39: =IF(DataLink!F159>49, DataLink!E159, NA()) -> 180000 | M39: =DataLink!F159 -> 2124 | P39: 0.08155413052 | Q39: 0.1602414183
C40: =DataLink!B20 -> 2012 | D40: =IF(DataLink!F20>49, DataLink!E20, NA()) -> 205000 | E40: =DataLink!F20 -> 11692 | F40: =IF(DataLink!F55>49, DataLink!E55, NA()) -> 199000 | G40: =DataLink!F55 -> 10789 | H40: =IF(DataLink!F90>49, DataLink!E90, NA()) -> 280000 | I40: =DataLink!F90 -> 903 | J40: =IF(DataLink!F125>49, DataLink!E125, NA()) -> 212500 | K40: =DataLink!F125 -> 9885 | L40: =IF(DataLink!F160>49, DataLink!E160, NA()) -> 168000 | M40: =DataLink!F160 -> 1807 | P40: 0.07723229559 | Q40: 0.1545501197
C41: =DataLink!B21 -> 2011 | D41: =IF(DataLink!F21>49, DataLink!E21, NA()) -> 207000 | E41: =DataLink!F21 -> 9843 | F41: =IF(DataLink!F56>49, DataLink!E56, NA()) -> 200000 | G41: =DataLink!F56 -> 9018 | H41: =IF(DataLink!F91>49, DataLink!E91, NA()) -> 267500 | I41: =DataLink!F91 -> 825 | J41: =IF(DataLink!F126>49, DataLink!E126, NA()) -> 214450 | K41: =DataLink!F126 -> 8280 | L41: =IF(DataLink!F161>49, DataLink!E161, NA()) -> 171000 | M41: =DataLink!F161 -> 1563 | P41: 0.08381590978 | Q41: 0.1587930509
C42: =DataLink!B22 -> 2010 | D42: =IF(DataLink!F22>49, DataLink!E22, NA()) -> 215000 | E42: =DataLink!F22 -> 10215 | F42: =IF(DataLink!F57>49, DataLink!E57, NA()) -> 205000 | G42: =DataLink!F57 -> 9260 | H42: =IF(DataLink!F92>49, DataLink!E92, NA()) -> 270900 | I42: =DataLink!F92 -> 955 | J42: =IF(DataLink!F127>49, DataLink!E127, NA()) -> 223500 | K42: =DataLink!F127 -> 8513 | L42: =IF(DataLink!F162>49, DataLink!E162, NA()) -> 177325 | M42: =DataLink!F162 -> 1702 | P42: =(I42/E42) -> 0.09348996574 | Q42: 0.166617719
C43: =DataLink!B23 -> 2009 | D43: =IF(DataLink!F23>49, DataLink!E23, NA()) -> 210000 | E43: =DataLink!F23 -> 11337 | F43: =IF(DataLink!F58>49, DataLink!E58, NA()) -> 200000 | G43: =DataLink!F58 -> 10267 | H43: =IF(DataLink!F93>49, DataLink!E93, NA()) -> 270090 | I43: =DataLink!F93 -> 1070 | J43: =IF(DataLink!F128>49, DataLink!E128, NA()) -> 217000 | K43: =DataLink!F128 -> 9429 | L43: =IF(DataLink!F163>49, DataLink!E163, NA()) -> 173000 | M43: =DataLink!F163 -> 1908 | P43: 0.0943812296 | Q43: 0.1682984917
C44: =DataLink!B24 -> 2008 | D44: =IF(DataLink!F24>49, DataLink!E24, NA()) -> 240000 | E44: =DataLink!F24 -> 9265 | F44: =IF(DataLink!F59>49, DataLink!E59, NA()) -> 231950 | G44: =DataLink!F59 -> 8024 | H44: =IF(DataLink!F94>49, DataLink!E94, NA()) -> 295000 | I44: =DataLink!F94 -> 1241 | J44: =IF(DataLink!F129>49, DataLink!E129, NA()) -> 250000 | K44: =DataLink!F129 -> 7499 | L44: =IF(DataLink!F164>49, DataLink!E164, NA()) -> 196000 | M44: =DataLink!F164 -> 1766 | P44: 0.1339449541 | Q44: 0.1906098219
C45: =DataLink!B25 -> 2007 | D45: =IF(DataLink!F25>49, DataLink!E25, NA()) -> 252500 | E45: =DataLink!F25 -> 11777 | F45: =IF(DataLink!F60>49, DataLink!E60, NA()) -> 245000 | G45: =DataLink!F60 -> 9838 | H45: =IF(DataLink!F95>49, DataLink!E95, NA()) -> 300000 | I45: =DataLink!F95 -> 1939 | J45: =IF(DataLink!F130>49, DataLink!E130, NA()) -> 269900 | K45: =DataLink!F130 -> 9070 | L45: =IF(DataLink!F165>49, DataLink!E165, NA()) -> 199000 | M45: =DataLink!F165 -> 2707 | P45: 0.1646429481 | Q45: 0.2298548017
C46: =DataLink!B26 -> 2006 | D46: =IF(DataLink!F26>49, DataLink!E26, NA()) -> 249900 | E46: =DataLink!F26 -> 14899 | F46: =IF(DataLink!F61>49, DataLink!E61, NA()) -> 240000 | G46: =DataLink!F61 -> 12620 | H46: =IF(DataLink!F96>49, DataLink!E96, NA()) -> 312500 | I46: =DataLink!F96 -> 2279 | J46: =IF(DataLink!F131>49, DataLink!E131, NA()) -> 265000 | K46: =DataLink!F131 -> 11410 | L46: =IF(DataLink!F166>49, DataLink!E166, NA()) -> 192000 | M46: =DataLink!F166 -> 3489 | P46: 0.1529632861 | Q46: 0.2341767904
C47: =DataLink!B27 -> 2005 | D47: =IF(DataLink!F27>49, DataLink!E27, NA()) -> 250000 | E47: =DataLink!F27 -> 18519 | F47: =IF(DataLink!F62>49, DataLink!E62, NA()) -> 240000 | G47: =DataLink!F62 -> 15182 | H47: =IF(DataLink!F97>49, DataLink!E97, NA()) -> 299933 | I47: =DataLink!F97 -> 3337 | J47: =IF(DataLink!F132>49, DataLink!E132, NA()) -> 270000 | K47: =DataLink!F132 -> 14120 | L47: =IF(DataLink!F167>49, DataLink!E167, NA()) -> 196000 | M47: =DataLink!F167 -> 4399 | P47: 0.180193315 | Q47: 0.237539824
C48: =DataLink!B28 -> 2004 | D48: =IF(DataLink!F28>49, DataLink!E28, NA()) -> 238000 | E48: =DataLink!F28 -> 19480 | F48: =IF(DataLink!F63>49, DataLink!E63, NA()) -> 229000 | G48: =DataLink!F63 -> 15936 | H48: =IF(DataLink!F98>49, DataLink!E98, NA()) -> 284225 | I48: =DataLink!F98 -> 3544 | J48: =IF(DataLink!F133>49, DataLink!E133, NA()) -> 252730 | K48: =DataLink!F133 -> 15366 | L48: =IF(DataLink!F168>49, DataLink!E168, NA()) -> 187840 | M48: =DataLink!F168 -> 4114 | P48: =I48/E48 -> 0.1819301848 | Q48: 0.2111909651
C49: =DataLink!B29 -> 2003 | D49: =IF(DataLink!F29>49, DataLink!E29, NA()) -> 215000 | E49: =DataLink!F29 -> 18980 | F49: =IF(DataLink!F64>49, DataLink!E64, NA()) -> 201750 | G49: =DataLink!F64 -> 15716 | H49: =IF(DataLink!F99>49, DataLink!E99, NA()) -> 267500 | I49: =DataLink!F99 -> 3264 | J49: =IF(DataLink!F134>49, DataLink!E134, NA()) -> 229450 | K49: =DataLink!F134 -> 15114 | L49: =IF(DataLink!F169>49, DataLink!E169, NA()) -> 169900 | M49: =DataLink!F169 -> 3866 | P49: 0.1719704953 | Q49: 0.2036880927
C50: =DataLink!B30 -> 2002 | D50: =IF(DataLink!F30>49, DataLink!E30, NA()) -> 189900 | E50: =DataLink!F30 -> 18263 | F50: =IF(DataLink!F65>49, DataLink!E65, NA()) -> 179900 | G50: =DataLink!F65 -> 15156 | H50: =IF(DataLink!F100>49, DataLink!E100, NA()) -> 259900 | I50: =DataLink!F100 -> 3107 | J50: =IF(DataLink!F135>49, DataLink!E135, NA()) -> 200880 | K50: =DataLink!F135 -> 14911 | L50: =IF(DataLink!F170>49, DataLink!E170, NA()) -> 149900 | M50: =DataLink!F170 -> 3352 | P50: 0.1701253901 | Q50: 0.1835404917
C51: =DataLink!B31 -> 2001 | D51: =IF(DataLink!F31>49, DataLink!E31, NA()) -> 162000 | E51: =DataLink!F31 -> 17387 | F51: =IF(DataLink!F66>49, DataLink!E66, NA()) -> 150000 | G51: =DataLink!F66 -> 14620 | H51: =IF(DataLink!F101>49, DataLink!E101, NA()) -> 242533 | I51: =DataLink!F101 -> 2767 | J51: =IF(DataLink!F136>49, DataLink!E136, NA()) -> 174550 | K51: =DataLink!F136 -> 13962 | L51: =IF(DataLink!F171>49, DataLink!E171, NA()) -> 124500 | M51: =DataLink!F171 -> 3425 | P51: 0.1591418876 | Q51: 0.1969862541
C52: =DataLink!B32 -> 2000 | D52: =IF(DataLink!F32>49, DataLink!E32, NA()) -> 143000 | E52: =DataLink!F32 -> 18837 | F52: =IF(DataLink!F67>49, DataLink!E67, NA()) -> 133900 | G52: =DataLink!F67 -> 15872 | H52: =IF(DataLink!F102>49, DataLink!E102, NA()) -> 214900 | I52: =DataLink!F102 -> 2965 | J52: =IF(DataLink!F137>49, DataLink!E137, NA()) -> 152450 | K52: =DataLink!F137 -> 15462 | L52: =IF(DataLink!F172>49, DataLink!E172, NA()) -> 105000 | M52: =DataLink!F172 -> 3375 | P52: 0.1574029835 | Q52: 0.1791686574
C53: =DataLink!B33 -> 1999 | D53: =IF(DataLink!F33>49, DataLink!E33, NA()) -> 129000 | E53: =DataLink!F33 -> 17576 | F53: =IF(DataLink!F68>49, DataLink!E68, NA()) -> 120900 | G53: =DataLink!F68 -> 14557 | H53: =IF(DataLink!F103>49, DataLink!E103, NA()) -> 183990 | I53: =DataLink!F103 -> 3019 | J53: =IF(DataLink!F138>49, DataLink!E138, NA()) -> 136500 | K53: =DataLink!F138 -> 14538 | L53: =IF(DataLink!F173>49, DataLink!E173, NA()) -> 93000 | M53: =DataLink!F173 -> 3038 | P53: 0.1717683204 | Q53: 0.17284934
C54: =DataLink!B34 -> 1998 | D54: =IF(DataLink!F34>49, DataLink!E34, NA()) -> 124000 | E54: =DataLink!F34 -> 11031 | F54: =IF(DataLink!F69>49, DataLink!E69, NA()) -> 117000 | G54: =DataLink!F69 -> 9337 | H54: =IF(DataLink!F104>49, DataLink!E104, NA()) -> 172062 | I54: =DataLink!F104 -> 1694 | J54: =IF(DataLink!F139>49, DataLink!E139, NA()) -> 127000 | K54: =DataLink!F139 -> 9813 | L54: =IF(DataLink!F174>49, DataLink!E174, NA()) -> 89900 | M54: =DataLink!F174 -> 1218 | P54: 0.1535672197 | Q54: 0.1104161001
C55: =DataLink!B35 -> 1997 | D55: =IF(DataLink!F35>49, DataLink!E35, NA()) -> 113000 | E55: =DataLink!F35 -> 17761 | F55: =IF(DataLink!F70>49, DataLink!E70, NA()) -> 107500 | G55: =DataLink!F70 -> 15450 | H55: =IF(DataLink!F105>49, DataLink!E105, NA()) -> 163194 | I55: =DataLink!F105 -> 2311 | J55: =IF(DataLink!F140>49, DataLink!E140, NA()) -> 117000 | K55: =DataLink!F140 -> 15620 | L55: =IF(DataLink!F175>49, DataLink!E175, NA()) -> 80000 | M55: =DataLink!F175 -> 2141 | P55: 0.1301165475 | Q55: 0.1205450144
C56: =DataLink!B36 -> 1996 | D56: =IF(DataLink!F36>49, DataLink!E36, NA()) -> 110000 | E56: =DataLink!F36 -> 10257 | F56: =IF(DataLink!F71>49, DataLink!E71, NA()) -> 101200 | G56: =DataLink!F71 -> 8800 | H56: =IF(DataLink!F106>49, DataLink!E106, NA()) -> 160000 | I56: =DataLink!F106 -> 1457 | J56: =IF(DataLink!F141>49, DataLink!E141, NA()) -> 117500 | K56: =DataLink!F141 -> 8499 | L56: =IF(DataLink!F176>49, DataLink!E176, NA()) -> 72900 | M56: =DataLink!F176 -> 1758 | P56: 0.1420493322 | Q56: 0.1713951448
C57: =DataLink!B37 -> 1995 | D57: =IF(DataLink!F37>49, DataLink!E37, NA()) -> 108000 | E57: =DataLink!F37 -> 12752 | F57: =IF(DataLink!F72>49, DataLink!E72, NA()) -> 99900 | G57: =DataLink!F72 -> 10656 | H57: =IF(DataLink!F107>49, DataLink!E107, NA()) -> 152000 | I57: =DataLink!F107 -> 2096 | J57: =IF(DataLink!F142>49, DataLink!E142, NA()) -> 114400 | K57: =DataLink!F142 -> 10863 | L57: =IF(DataLink!F177>49, DataLink!E177, NA()) -> 73000 | M57: =DataLink!F177 -> 1889 | P57: 0.1643663739 | Q57: 0.1481336261
C58: =DataLink!B38 -> 1994 | D58: =IF(DataLink!F38>49, DataLink!E38, NA()) -> 105000 | E58: =DataLink!F38 -> 14050 | F58: =IF(DataLink!F73>49, DataLink!E73, NA()) -> 96000 | G58: =DataLink!F73 -> 11716 | H58: =IF(DataLink!F108>49, DataLink!E108, NA()) -> 142800 | I58: =DataLink!F108 -> 2334 | J58: =IF(DataLink!F143>49, DataLink!E143, NA()) -> 111000 | K58: =DataLink!F143 -> 11943 | L58: =IF(DataLink!F178>49, DataLink!E178, NA()) -> 69000 | M58: =DataLink!F178 -> 2107 | P58: 0.1661209964 | Q58: 0.1499644128
C59: =DataLink!B39 -> 1993 | D59: =IF(DataLink!F39>49, DataLink!E39, NA()) -> 105000 | E59: =DataLink!F39 -> 12034 | F59: =IF(DataLink!F74>49, DataLink!E74, NA()) -> 97500 | G59: =DataLink!F74 -> 9950 | H59: =IF(DataLink!F109>49, DataLink!E109, NA()) -> 134300 | I59: =DataLink!F109 -> 2084 | J59: =IF(DataLink!F144>49, DataLink!E144, NA()) -> 110000 | K59: =DataLink!F144 -> 10342 | L59: =IF(DataLink!F179>49, DataLink!E179, NA()) -> 68900 | M59: =DataLink!F179 -> 1692 | P59: 0.1731760013 | Q59: 0.1406016287
C60: =DataLink!B40 -> 1992 | D60: =IF(DataLink!F40>49, DataLink!E40, NA()) -> 101048 | E60: =DataLink!F40 -> 9411 | F60: =IF(DataLink!F75>49, DataLink!E75, NA()) -> 96000 | G60: =DataLink!F75 -> 7689 | H60: =IF(DataLink!F110>49, DataLink!E110, NA()) -> 120000 | I60: =DataLink!F110 -> 1722 | J60: =IF(DataLink!F145>49, DataLink!E145, NA()) -> 108000 | K60: =DataLink!F145 -> 8062 | L60: =IF(DataLink!F180>49, DataLink!E180, NA()) -> 67524 | M60: =DataLink!F180 -> 1349 | P60: 0.1829773669 | Q60: 0.1433428966
C61: =DataLink!B41 -> 1991 | D61: =IF(DataLink!F41>49, DataLink!E41, NA()) -> 108000 | E61: =DataLink!F41 -> 7123 | F61: =IF(DataLink!F76>49, DataLink!E76, NA()) -> 104952 | G61: =DataLink!F76 -> 5590 | H61: =IF(DataLink!F111>49, DataLink!E111, NA()) -> 118857 | I61: =DataLink!F111 -> 1533 | J61: =IF(DataLink!F146>49, DataLink!E146, NA()) -> 112000 | K61: =DataLink!F146 -> 5990 | L61: =IF(DataLink!F181>49, DataLink!E181, NA()) -> 77238 | M61: =DataLink!F181 -> 1133 | P61: 0.2152183069 | Q61: 0.1590621929
C62: =DataLink!B42 -> 1990 | D62: =IF(DataLink!F42>49, DataLink!E42, NA()) -> 119905 | E62: =DataLink!F42 -> 6009 | F62: =IF(DataLink!F77>49, DataLink!E77, NA()) -> 116000 | G62: =DataLink!F77 -> 4354 | H62: =IF(DataLink!F112>49, DataLink!E112, NA()) -> 125905 | I62: =DataLink!F112 -> 1655 | J62: =IF(DataLink!F147>49, DataLink!E147, NA()) -> 124500 | K62: =DataLink!F147 -> 5099 | L62: =IF(DataLink!F182>49, DataLink!E182, NA()) -> 95000 | M62: =DataLink!F182 -> 910 | P62: 0.275420203 | Q62: 0.1514395074
C64: Source: 1990-2014 - NH Dept. of Revenue, PA-34 Dataset, Compiled by Real Data Corp. Filtered and analyzed by New Hampshire Housing.
C65: 2015 - The Warren Group. Filtered and analyzed by New Hampshire Housing.
C66: Note: Calculations based on a sample size of less than 50 are highly volatile and not considered valid.
C70: =DataLink!A5 -> New Hampshire Statewide
C71: Percent Change In Median Home Purchase Price
D73: All Homes | F73: Existing Homes | H73: New Homes | J73: Non-Condominiums | L73: Condominiums
C74: 2020 to 2023 | D74: =(D29-D32)/D32 -> 0.3825814582 | F74: =(F29-F32)/F32 -> 0.3666666667 | H74: =(H29-H32)/H32 -> 0.520945655 | J74: =(J29-J32)/J32 -> 0.359375 | L74: =(L29-L32)/L32 -> 0.4459830836
C75: Avg per Year | D75: =D74/3 -> 0.1275271527 | F75: =F74/3 -> 0.1222222222 | H75: =H74/3 -> 0.1736485517 | J75: =J74/3 -> 0.1197916667 | L75: =L74/3 -> 0.1486610279
C76: 2019 to 2023 | D76: =(D29-D33)/D33 -> 0.5481481481 | F76: =(F29-F33)/F33 -> 0.5188954296 | H76: =(H29-H33)/H33 -> 0.5763414634 | J76: =(J29-J33)/J33 -> 0.5104166667 | L76: =(L29-L33)/L33 -> 0.6682464455
C77: Avg per Year | D77: =D76/7 -> 0.07830687831 | F77: =F76/7 -> 0.07412791852 | H77: =H76/7 -> 0.08233449477 | J77: =J76/7 -> 0.07291666667 | L77: =L76/7 -> 0.09546377793
C78: 2013 to 2023 | D78: =(D29-D39)/D39 -> 0.9 | F78: =(F29-F39)/F39 -> 0.9069767442 | H78: =(H29-H39)/H39 -> 1.162261626 | J78: =(J29-J39)/J39 -> 0.9120879121 | L78: =(L29-L39)/L39 -> 0.9555555556
C79: Avg per Year | D79: =D78/5 -> 0.18 | F79: =F78/5 -> 0.1813953488 | H79: =H78/5 -> 0.2324523252 | J79: =J78/5 -> 0.1824175824 | L79: =L78/5 -> 0.1911111111
C82: 2022 to 2023 | D82: =(D29-D30)/D30 -> 0.045 | F82: =(F29-F30)/F30 -> 0.03535353535 | H82: =(H29-H30)/H30 -> 0.04241935484 | J82: =(J29-J30)/J30 -> 0.03818615752 | L82: =(L29-L30)/L30 -> 0.09817085916
C83: 2022 to 2023 | D83: =(D30-D31)/D31 -> 0.1428571429 | F83: 0.1314285714 | H83: 0.24 | J83: 0.1173333333 | L83: 0.1655745455
C84: 2020 to 2021 | D84: 0.1576639004 | F84: 0.1666666667 | H84: 0.1766560846 | J84: 0.171875 | L84: 0.1296742841
C85: 2019 to 2020 | D85: 0.1197518519 | F85: 0.1113868997 | H85: 0.03642195122 | J85: 0.1111111111 | L85: 0.1537109005
C86: 2018 to 2019 | D86: 0.06299212598 | F86: 0.079732 | H86: 0.09547754805 | J86: 0.07089869968 | L86: 0.055
C87: 2017 to 2018 | D87: =(D34-D35)/D35 -> 0.05833333333 | F87: =(F34-F35)/F35 -> 0.05071595785 | H87: =(H34-H35)/H35 -> 0.02267970249 | J87: =(J34-J35)/J35 -> 0.05463921569 | L87: =(L34-L35)/L35 -> 0.05300290102
C88: 2016 to 2017 | D88: =(D35-D36)/D36 -> 0.04347826087 | F88: =(F35-F36)/F36 -> 0.05748 | H88: =(H35-H36)/H36 -> 0.01244930367 | J88: =(J35-J36)/J36 -> 0.05198019802 | L88: =(L35-L36)/L36 -> 0.05518333333
C89: 2015 to 2016 | D89: =(D36-D37)/D37 -> 0.0407239819 | F89: =(F36-F37)/F37 -> 0.02303883455 | H89: =(H36-H37)/H37 -> 0.07196322657 | J89: =(J36-J37)/J37 -> 0.03796893801 | L89: =(L36-L37)/L37 -> 0.04327867712
C90: 2014 to 2015 | D90: 0.009132420091 | F90: 0.02997194813 | H90: 0.07047619048 | J90: 0.01565673479 | L90: 0.004465377316
C91: 2013 to 2014 | D91: -0.004545454545 | F91: -0.006823255814 | H91: 0.05386416862 | J91: 0.01069450549 | L91: -0.04574444444
C92: 2012 to 2013 | D92: 0.07317073171 | F92: 0.08040201005 | H92: 0.0675 | J92: 0.07058823529 | L92: 0.07142857143
C93: 2011 to 2012 | D93: -0.009661835749 | F93: -0.005 | H93: 0.04672897196 | J93: -0.009093028678 | L93: -0.01754385965
C94: 2010 to 2011 | D94: -0.03720930233 | F94: -0.0243902439 | H94: -0.01255075674 | J94: -0.04049217002 | L94: -0.03566896941
C95: 2009 to 2010 | D95: 0.02380952381 | F95: 0.025 | H95: 0.002999000333 | J95: 0.02995391705 | L95: 0.025
C96: 2008 to 2009 | D96: -0.125 | F96: -0.1377452037 | H96: -0.08444067797 | J96: -0.132 | L96: -0.1173469388
C97: 2007 to 2008 | D97: -0.0495049505 | F97: -0.05326530612 | H97: -0.01666666667 | J97: -0.07373101149 | L97: -0.01507537688
C98: 2006 to 2007 | D98: 0.01040416166 | F98: 0.02083333333 | H98: -0.04 | J98: 0.01849056604 | L98: 0.03645833333
C99: 2005 to 2006 | D99: -0.0004 | F99: 0 | H99: 0.04189935752 | J99: -0.01851851852 | L99: -0.02040816327
C100: 2004 to 2005 | D100: 0.05042016807 | F100: 0.0480349345 | H100: 0.05526607441 | J100: 0.06833379496 | L100: 0.04344122658
C101: 2003 to 2004 | D101: 0.1069767442 | F101: 0.1350681537 | H101: 0.06252336449 | J101: 0.1014600131 | L101: 0.1055915244
C102: 2002 to 2003 | D102: 0.1321748289 | F102: 0.1214563646 | H102: 0.02924201616 | J102: 0.1422242135 | L102: 0.1334222815
C103: 2001 to 2002 | D103: 0.1722222222 | F103: 0.1993333333 | H103: 0.07160675042 | J103: 0.1508450301 | L103: 0.2040160643
C104: 2000 to 2001 | D104: 0.1328671329 | F104: 0.1202389843 | H104: 0.1285853886 | J104: 0.1449655625 | L104: 0.1857142857
C105: 1999 to 2000 | D105: 0.1085271318 | F105: 0.1075268817 | H105: 0.1679982608 | J105: 0.1168498168 | L105: 0.1290322581
C106: 1998 to 1999 | D106: 0.04032258065 | F106: 0.03333333333 | H106: 0.06932384838 | J106: 0.07480314961 | L106: 0.03448275862
C107: 1997 to 1998 | D107: 0.09734513274 | F107: 0.08837209302 | H107: 0.0543402331 | J107: 0.08547008547 | L107: 0.12375
C108: 1996 to 1997 | D108: 0.02727272727 | F108: 0.06225296443 | H108: 0.0199625 | J108: -0.004255319149 | L108: 0.09739368999
C109: 1995 to 1996 | D109: 0.01851851852 | F109: 0.01301301301 | H109: 0.05263157895 | J109: 0.0270979021 | L109: -0.001369863014
C110: 1994 to 1995 | D110: 0.02857142857 | F110: 0.040625 | H110: 0.06442577031 | J110: 0.03063063063 | L110: 0.05797101449
C111: 1993 to 1994 | D111: 0 | F111: -0.01538461538 | H111: 0.06329113924 | J111: 0.009090909091 | L111: 0.00145137881
C112: 1992 to 1993 | D112: 0.03911012588 | F112: 0.015625 | H112: 0.1191666667 | J112: 0.01851851852 | L112: 0.0203779397
C113: 1991 to 1992 | D113: -0.06437037037 | F113: -0.08529613538 | H113: 0.009616598097 | J113: -0.03571428571 | L113: -0.1257671095
C114: 1990 to 1991 | D114: -0.09928693549 | F114: -0.09524137931 | H114: -0.05597871411 | J114: -0.1004016064 | L114: -0.1869684211

Sheet StateFrequencyCharts (hidden)
B2: Navigation | I2: Select A Year for Frequency Analysis
E3: OR
B5: =DataLink!A185 -> New Hampshire Statewide
C8: Primary Home Purchase Price Frequency
C9: =DataLink!$A$185&", "&DataLink!$B$189 -> New Hampshire Statewide, 2023
C40: Source: 1990-2014 - NH Dept. of Revenue, PA-34 Dataset, Compiled by Real Data Corp. Filtered and analyzed by New Hampshire Housing.
C41: =StateWideChartAndTable!$C$66 -> 2015 - The Warren Group. Filtered and analyzed by New Hampshire Housing.
C42: Note: Calculations based on a sample size of less than 50 are highly volatile and not considered valid.
C44: Primary Home Purchase Price Frequency
C45: =DataLink!$A$185&", "&DataLink!$B$189 -> New Hampshire Statewide, 2023
C78: Source: 1990-2014 - NH Dept. of Revenue, PA-34 Dataset, Compiled by Real Data Corp. Filtered and analyzed by New Hampshire Housing.
C79: =C41 -> 2015 - The Warren Group. Filtered and analyzed by New Hampshire Housing.
C80: Note: Calculations based on a sample size of less than 50 are highly volatile and not considered valid.
C83: Primary Home Purchase Price Frequency
C84: =DataLink!$A$185&", "&DataLink!$B$189 -> New Hampshire Statewide, 2023
C118: Source: 1990-2014 - NH Dept. of Revenue, PA-34 Dataset, Compiled by Real Data Corp. Filtered and analyzed by New Hampshire Housing.
C119: =C41 -> 2015 - The Warren Group. Filtered and analyzed by New Hampshire Housing.
C120: Note: Calculations based on a sample size of less than 50 are highly volatile and not considered valid.
B124: =DataLink!A185 -> New Hampshire Statewide
E125: Price Distribution
A126: Year | C126: Unit Type | D126: Sample | E126: 30000 | F126: 40000 | G126: 50000 | H126: 60000 | I126: 70000 | J126: 80000 | K126: 90000 | L126: 100000 | M126: 110000 | N126: 120000 | O126: 130000 | P126: 140000 | Q126: 150000 | R126: 160000 | S126: 170000 | T126: 180000 | U126: 190000 | V126: 200000 | W126: 210000 | X126: 220000 | Y126: 230000 | Z126: 240000 | AA126: 250000 | AB126: 260000 | AC126: 270000 | AD126: 280000 | AE126: 290000 | AF126: 300000 | AG126: 310000 | AH126: 320000 | AI126: 330000 | AJ126: 340000 | AK126: 350000 | AL126: 360000 | AM126: 370000 | AN126: 380000 | AO126: 390000 | AP126: 400000 | AQ126: 410000 | AR126: 420000 | AS126: 430000 | AT126: 440000 | AU126: 450000 | AV126: 460000 | AW126: 470000 | AX126: 480000 | AY126: 490000 | AZ126: 500000 | BA126: 510000 | BB126: 520000 | BC126: 530000 | BD126: $540,000 and over
A127: =DataLink!B189 -> 2023 | C127: =DataLink!D189 -> All Units | D127: =DataLink!F189 -> 22112 | E127: =DataLink!I189 -> 17 | F127: =DataLink!J189 -> 31 | G127: =DataLink!K189 -> 43 | H127: =DataLink!L189 -> 65 | I127: =DataLink!M189 -> 53 | J127: =DataLink!N189 -> 70 | K127: =DataLink!O189 -> 73 | L127: =DataLink!P189 -> 75 | M127: =DataLink!Q189 -> 81 | N127: =DataLink!R189 -> 108 | O127: =DataLink!S189 -> 135 | P127: =DataLink!T189 -> 131 | Q127: =DataLink!U189 -> 133 | R127: =DataLink!V189 -> 171 | S127: =DataLink!W189 -> 231 | T127: =DataLink!X189 -> 239 | U127: =DataLink!Y189 -> 204 | V127: =DataLink!Z189 -> 265 | W127: =DataLink!AA189 -> 184 | X127: =DataLink!AB189 -> 267 | Y127: =DataLink!AC189 -> 311 | Z127: =DataLink!AD189 -> 318 | AA127: =DataLink!AE189 -> 321 | AB127: =DataLink!AF189 -> 287 | AC127: =DataLink!AG189 -> 305 | AD127: =DataLink!AH189 -> 364 | AE127: =DataLink!AI189 -> 348 | AF127: =DataLink!AJ189 -> 531 | AG127: =DataLink!AK189 -> 368 | AH127: =DataLink!AL189 -> 469 | AI127: =DataLink!AM189 -> 574 | AJ127: =DataLink!AN189 -> 467 | AK127: =DataLink!AO189 -> 622 | AL127: =DataLink!AP189 -> 489 | AM127: =DataLink!AQ189 -> 452 | AN127: =DataLink!AR189 -> 524 | AO127: =DataLink!AS189 -> 400 | AP127: =DataLink!AT189 -> 595 | AQ127: =DataLink!AU189 -> 482 | AR127: =DataLink!AV189 -> 456 | AS127: =DataLink!AW189 -> 525 | AT127: =DataLink!AX189 -> 439 | AU127: =DataLink!AY189 -> 532 | AV127: =DataLink!AZ189 -> 360 | AW127: =DataLink!BA189 -> 334 | AX127: =DataLink!BB189 -> 473 | AY127: =DataLink!BC189 -> 384 | AZ127: =DataLink!BD189 -> 438 | BA127: =DataLink!BE189 -> 307 | BB127: =DataLink!BF189 -> 265 | BC127: =DataLink!BG189 -> 344 | BD127: =DataLink!BH189 -> 6452
A128: =DataLink!B190 -> 2023 | C128: =DataLink!D190 -> Existing | D128: =DataLink!F190 -> 21172 | E128: =DataLink!I190 -> 17 | F128: =DataLink!J190 -> 31 | G128: =DataLink!K190 -> 43 | H128: =DataLink!L190 -> 65 | I128: =DataLink!M190 -> 53 | J128: =DataLink!N190 -> 70 | K128: =DataLink!O190 -> 73 | L128: =DataLink!P190 -> 75 | M128: =DataLink!Q190 -> 81 | N128: =DataLink!R190 -> 106 | O128: =DataLink!S190 -> 135 | P128: =DataLink!T190 -> 131 | Q128: =DataLink!U190 -> 133 | R128: =DataLink!V190 -> 171 | S128: =DataLink!W190 -> 231 | T128: =DataLink!X190 -> 239 | U128: =DataLink!Y190 -> 204 | V128: =DataLink!Z190 -> 263 | W128: =DataLink!AA190 -> 184 | X128: =DataLink!AB190 -> 266 | Y128: =DataLink!AC190 -> 308 | Z128: =DataLink!AD190 -> 311 | AA128: =DataLink!AE190 -> 321 | AB128: =DataLink!AF190 -> 287 | AC128: =DataLink!AG190 -> 305 | AD128: =DataLink!AH190 -> 364 | AE128: =DataLink!AI190 -> 347 | AF128: =DataLink!AJ190 -> 531 | AG128: =DataLink!AK190 -> 366 | AH128: =DataLink!AL190 -> 463 | AI128: =DataLink!AM190 -> 573 | AJ128: =DataLink!AN190 -> 463 | AK128: =DataLink!AO190 -> 612 | AL128: =DataLink!AP190 -> 479 | AM128: =DataLink!AQ190 -> 447 | AN128: =DataLink!AR190 -> 515 | AO128: =DataLink!AS190 -> 399 | AP128: =DataLink!AT190 -> 586 | AQ128: =DataLink!AU190 -> 468 | AR128: =DataLink!AV190 -> 441 | AS128: =DataLink!AW190 -> 513 | AT128: =DataLink!AX190 -> 434 | AU128: =DataLink!AY190 -> 514 | AV128: =DataLink!AZ190 -> 359 | AW128: =DataLink!BA190 -> 324 | AX128: =DataLink!BB190 -> 456 | AY128: =DataLink!BC190 -> 370 | AZ128: =DataLink!BD190 -> 422 | BA128: =DataLink!BE190 -> 292 | BB128: =DataLink!BF190 -> 249 | BC128: =DataLink!BG190 -> 331 | BD128: =DataLink!BH190 -> 5751
A129: =DataLink!B191 -> 2023 | C129: =DataLink!D191 -> New | D129: =DataLink!F191 -> 940 | E129: =DataLink!I191 -> 0 | F129: =DataLink!J191 -> 0 | G129: =DataLink!K191 -> 0 | H129: =DataLink!L191 -> 0 | I129: =DataLink!M191 -> 0 | J129: =DataLink!N191 -> 0 | K129: =DataLink!O191 -> 0 | L129: =DataLink!P191 -> 0 | M129: =DataLink!Q191 -> 0 | N129: =DataLink!R191 -> 2 | O129: =DataLink!S191 -> 0 | P129: =DataLink!T191 -> 0 | Q129: =DataLink!U191 -> 0 | R129: =DataLink!V191 -> 0 | S129: =DataLink!W191 -> 0 | T129: =DataLink!X191 -> 0 | U129: =DataLink!Y191 -> 0 | V129: =DataLink!Z191 -> 2 | W129: =DataLink!AA191 -> 0 | X129: =DataLink!AB191 -> 1 | Y129: =DataLink!AC191 -> 3 | Z129: =DataLink!AD191 -> 7 | AA129: =DataLink!AE191 -> 0 | AB129: =DataLink!AF191 -> 0 | AC129: =DataLink!AG191 -> 0 | AD129: =DataLink!AH191 -> 0 | AE129: =DataLink!AI191 -> 1 | AF129: =DataLink!AJ191 -> 0 | AG129: =DataLink!AK191 -> 2 | AH129: =DataLink!AL191 -> 6 | AI129: =DataLink!AM191 -> 1 | AJ129: =DataLink!AN191 -> 4 | AK129: =DataLink!AO191 -> 10 | AL129: =DataLink!AP191 -> 10 | AM129: =DataLink!AQ191 -> 5 | AN129: =DataLink!AR191 -> 9 | AO129: =DataLink!AS191 -> 1 | AP129: =DataLink!AT191 -> 9 | AQ129: =DataLink!AU191 -> 14 | AR129: =DataLink!AV191 -> 15 | AS129: =DataLink!AW191 -> 12 | AT129: =DataLink!AX191 -> 5 | AU129: =DataLink!AY191 -> 18 | AV129: =DataLink!AZ191 -> 1 | AW129: =DataLink!BA191 -> 10 | AX129: =DataLink!BB191 -> 17 | AY129: =DataLink!BC191 -> 14 | AZ129: =DataLink!BD191 -> 16 | BA129: =DataLink!BE191 -> 15 | BB129: =DataLink!BF191 -> 16 | BC129: =DataLink!BG191 -> 13 | BD129: =DataLink!BH191 -> 701
A130: =DataLink!B192 -> 2023 | C130: =DataLink!D192 -> Non-Condo | D130: =DataLink!F192 -> 17186 | E130: =DataLink!I192 -> 15 | F130: =DataLink!J192 -> 26 | G130: =DataLink!K192 -> 37 | H130: =DataLink!L192 -> 59 | I130: =DataLink!M192 -> 47 | J130: =DataLink!N192 -> 64 | K130: =DataLink!O192 -> 57 | L130: =DataLink!P192 -> 62 | M130: =DataLink!Q192 -> 73 | N130: =DataLink!R192 -> 95 | O130: =DataLink!S192 -> 110 | P130: =DataLink!T192 -> 97 | Q130: =DataLink!U192 -> 101 | R130: =DataLink!V192 -> 105 | S130: =DataLink!W192 -> 142 | T130: =DataLink!X192 -> 157 | U130: =DataLink!Y192 -> 123 | V130: =DataLink!Z192 -> 157 | W130: =DataLink!AA192 -> 119 | X130: =DataLink!AB192 -> 154 | Y130: =DataLink!AC192 -> 199 | Z130: =DataLink!AD192 -> 193 | AA130: =DataLink!AE192 -> 221 | AB130: =DataLink!AF192 -> 185 | AC130: =DataLink!AG192 -> 214 | AD130: =DataLink!AH192 -> 273 | AE130: =DataLink!AI192 -> 227 | AF130: =DataLink!AJ192 -> 378 | AG130: =DataLink!AK192 -> 256 | AH130: =DataLink!AL192 -> 311 | AI130: =DataLink!AM192 -> 403 | AJ130: =DataLink!AN192 -> 301 | AK130: =DataLink!AO192 -> 449 | AL130: =DataLink!AP192 -> 372 | AM130: =DataLink!AQ192 -> 324 | AN130: =DataLink!AR192 -> 415 | AO130: =DataLink!AS192 -> 323 | AP130: =DataLink!AT192 -> 472 | AQ130: =DataLink!AU192 -> 348 | AR130: =DataLink!AV192 -> 366 | AS130: =DataLink!AW192 -> 432 | AT130: =DataLink!AX192 -> 378 | AU130: =DataLink!AY192 -> 457 | AV130: =DataLink!AZ192 -> 295 | AW130: =DataLink!BA192 -> 291 | AX130: =DataLink!BB192 -> 400 | AY130: =DataLink!BC192 -> 334 | AZ130: =DataLink!BD192 -> 358 | BA130: =DataLink!BE192 -> 268 | BB130: =DataLink!BF192 -> 224 | BC130: =DataLink!BG192 -> 293 | BD130: =DataLink!BH192 -> 5426
A131: =DataLink!B193 -> 2023 | C131: =DataLink!D193 -> Condo | D131: =DataLink!F193 -> 4926 | E131: =DataLink!I193 -> 2 | F131: =DataLink!J193 -> 5 | G131: =DataLink!K193 -> 6 | H131: =DataLink!L193 -> 6 | I131: =DataLink!M193 -> 6 | J131: =DataLink!N193 -> 6 | K131: =DataLink!O193 -> 16 | L131: =DataLink!P193 -> 13 | M131: =DataLink!Q193 -> 8 | N131: =DataLink!R193 -> 13 | O131: =DataLink!S193 -> 25 | P131: =DataLink!T193 -> 34 | Q131: =DataLink!U193 -> 32 | R131: =DataLink!V193 -> 66 | S131: =DataLink!W193 -> 89 | T131: =DataLink!X193 -> 82 | U131: =DataLink!Y193 -> 81 | V131: =DataLink!Z193 -> 108 | W131: =DataLink!AA193 -> 65 | X131: =DataLink!AB193 -> 113 | Y131: =DataLink!AC193 -> 112 | Z131: =DataLink!AD193 -> 125 | AA131: =DataLink!AE193 -> 100 | AB131: =DataLink!AF193 -> 102 | AC131: =DataLink!AG193 -> 91 | AD131: =DataLink!AH193 -> 91 | AE131: =DataLink!AI193 -> 121 | AF131: =DataLink!AJ193 -> 153 | AG131: =DataLink!AK193 -> 112 | AH131: =DataLink!AL193 -> 158 | AI131: =DataLink!AM193 -> 171 | AJ131: =DataLink!AN193 -> 166 | AK131: =DataLink!AO193 -> 173 | AL131: =DataLink!AP193 -> 117 | AM131: =DataLink!AQ193 -> 128 | AN131: =DataLink!AR193 -> 109 | AO131: =DataLink!AS193 -> 77 | AP131: =DataLink!AT193 -> 123 | AQ131: =DataLink!AU193 -> 134 | AR131: =DataLink!AV193 -> 90 | AS131: =DataLink!AW193 -> 93 | AT131: =DataLink!AX193 -> 61 | AU131: =DataLink!AY193 -> 75 | AV131: =DataLink!AZ193 -> 65 | AW131: =DataLink!BA193 -> 43 | AX131: =DataLink!BB193 -> 73 | AY131: =DataLink!BC193 -> 50 | AZ131: =DataLink!BD193 -> 80 | BA131: =DataLink!BE193 -> 39 | BB131: =DataLink!BF193 -> 41 | BC131: =DataLink!BG193 -> 51 | BD131: =DataLink!BH193 -> 1026

Sheet CountyChartAndTable (hidden)
B2: Navigation
E3: OR | H3: OR | I3: SELECT ANOTHER COUNTY
H5: =DataLink!A198 -> Hillsborough County
C27: Year | D27: All Homes | F27: Existing Homes | H27: New Homes | J27: Non-Condominiums | L27: Condominiums
D28: Median Purchase Price | E28: Sample Size | F28: Median Purchase Price | G28: Sample Size | H28: Median Purchase Price | I28: Sample Size | J28: Median Purchase Price | K28: Sample Size | L28: Median Purchase Price | M28: Sample Size
C29: =DataLink!B201 -> 2024 Jan-Feb | D29: =IF(DataLink!F201>AreaSelection!$B$114, ROUND(DataLink!E201,-2), NA()) -> 455000 | E29: =DataLink!F201 -> 308 | F29: =IF(DataLink!F236>AreaSelection!$B$114, DataLink!E236, NA()) -> 450000 | G29: =DataLink!F236 -> 293 | H29: =IF(DataLink!F271>AreaSelection!$B$114, ROUND(DataLink!E271,-2), NA()) ->  | I29: =DataLink!F271 -> 15 | J29: =IF(DataLink!F306>AreaSelection!$B$114, ROUND(DataLink!E306,-2), NA()) -> 490000 | K29: =DataLink!F306 -> 229 | L29: =IF(DataLink!F341>AreaSelection!$B$114, ROUND(DataLink!E341,-2), NA()) -> 336000 | M29: =DataLink!F341 -> 79
C30: =DataLink!B202 -> 2023 | D30: =IF(DataLink!F202>AreaSelection!$B$114, ROUND(DataLink!E202,-2), NA()) -> 430000 | E30: =DataLink!F202 -> 6102 | F30: =IF(DataLink!F237>AreaSelection!$B$114, DataLink!E237, NA()) -> 425000 | G30: =DataLink!F237 -> 5879 | H30: =IF(DataLink!F272>AreaSelection!$B$114, ROUND(DataLink!E272,-2), NA()) -> 649000 | I30: =DataLink!F272 -> 223 | J30: =IF(DataLink!F307>AreaSelection!$B$114, ROUND(DataLink!E307,-2), NA()) -> 460000 | K30: =DataLink!F307 -> 4469 | L30: =IF(DataLink!F342>AreaSelection!$B$114, ROUND(DataLink!E342,-2), NA()) -> 332000 | M30: =DataLink!F342 -> 1633
C31: =DataLink!B203 -> 2022 | D31: =IF(DataLink!F203>AreaSelection!$B$114, ROUND(DataLink!E203,-2), NA()) -> 415000 | E31: =DataLink!F203 -> 5382 | F31: =IF(DataLink!F238>AreaSelection!$B$114, DataLink!E238, NA()) -> 410000 | G31: =DataLink!F238 -> 5320 | H31: =IF(DataLink!F273>AreaSelection!$B$114, ROUND(DataLink!E273,-2), NA()) -> 612000 | I31: =DataLink!F273 -> 62 | J31: =IF(DataLink!F308>AreaSelection!$B$114, ROUND(DataLink!E308,-2), NA()) -> 450000 | K31: =DataLink!F308 -> 3794 | L31: =IF(DataLink!F343>AreaSelection!$B$114, ROUND(DataLink!E343,-2), NA()) -> 300000 | M31: =DataLink!F343 -> 1588
C32: =DataLink!B204 -> 2021 | D32: =IF(DataLink!F204>AreaSelection!$B$114, ROUND(DataLink!E204,-2), NA()) -> 372300 | E32: =DataLink!F204 -> 4800 | F32: =IF(DataLink!F239>AreaSelection!$B$114, DataLink!E239, NA()) -> 370000 | G32: =DataLink!F239 -> 4704 | H32: =IF(DataLink!F274>AreaSelection!$B$114, ROUND(DataLink!E274,-2), NA()) -> 462500 | I32: =DataLink!F274 -> 96 | J32: =IF(DataLink!F309>AreaSelection!$B$114, ROUND(DataLink!E309,-2), NA()) -> 410000 | K32: =DataLink!F309 -> 3467 | L32: =IF(DataLink!F344>AreaSelection!$B$114, ROUND(DataLink!E344,-2), NA()) -> 269000 | M32: =DataLink!F344 -> 1333
C33: =DataLink!B205 -> 2020 | D33: =IF(DataLink!F205>AreaSelection!$B$114, ROUND(DataLink!E205,-2), NA()) -> 317000 | E33: =DataLink!F205 -> 5408 | F33: =IF(DataLink!F240>AreaSelection!$B$114, DataLink!E240, NA()) -> 315000 | G33: =DataLink!F240 -> 5322 | H33: =IF(DataLink!F275>AreaSelection!$B$114, ROUND(DataLink!E275,-2), NA()) -> 396500 | I33: =DataLink!F275 -> 86 | J33: =IF(DataLink!F310>AreaSelection!$B$114, ROUND(DataLink!E310,-2), NA()) -> 340000 | K33: =DataLink!F310 -> 3905 | L33: =IF(DataLink!F345>AreaSelection!$B$114, ROUND(DataLink!E345,-2), NA()) -> 235000 | M33: =DataLink!F345 -> 1503
C34: =DataLink!B206 -> 2019 | D34: =IF(DataLink!F206>AreaSelection!$B$114, ROUND(DataLink!E206,-2), NA()) -> 282000 | E34: =DataLink!F206 -> 6385 | F34: =IF(DataLink!F241>AreaSelection!$B$114, DataLink!E241, NA()) -> 280000 | G34: =DataLink!F241 -> 6336 | H34: =IF(DataLink!F276>AreaSelection!$B$114, ROUND(DataLink!E276,-2), NA()) ->  | I34: =DataLink!F276 -> 49 | J34: =IF(DataLink!F311>AreaSelection!$B$114, ROUND(DataLink!E311,-2), NA()) -> 305000 | K34: =DataLink!F311 -> 4681 | L34: =IF(DataLink!F346>AreaSelection!$B$114, ROUND(DataLink!E346,-2), NA()) -> 210000 | M34: =DataLink!F346 -> 1704
C35: =DataLink!B207 -> 2018 | D35: =IF(DataLink!F207>AreaSelection!$B$114, ROUND(DataLink!E207,-2), NA()) -> 265000 | E35: =DataLink!F207 -> 6368 | F35: =IF(DataLink!F242>AreaSelection!$B$114, DataLink!E242, NA()) -> 262000 | G35: =DataLink!F242 -> 6197 | H35: =IF(DataLink!F277>AreaSelection!$B$114, ROUND(DataLink!E277,-2), NA()) -> 359900 | I35: =DataLink!F277 -> 171 | J35: =IF(DataLink!F312>AreaSelection!$B$114, ROUND(DataLink!E312,-2), NA()) -> 285000 | K35: =DataLink!F312 -> 4690 | L35: =IF(DataLink!F347>AreaSelection!$B$114, ROUND(DataLink!E347,-2), NA()) -> 193900 | M35: =DataLink!F347 -> 1678
C36: =DataLink!B208 -> 2017 | D36: =IF(DataLink!F208>AreaSelection!$B$114, ROUND(DataLink!E208,-2), NA()) -> 250000 | E36: =DataLink!F208 -> 7116 | F36: =IF(DataLink!F243>AreaSelection!$B$114, DataLink!E243, NA()) -> 247000 | G36: =DataLink!F243 -> 6871 | H36: =IF(DataLink!F278>AreaSelection!$B$114, ROUND(DataLink!E278,-2), NA()) -> 359900 | I36: =DataLink!F278 -> 245 | J36: =IF(DataLink!F313>AreaSelection!$B$114, ROUND(DataLink!E313,-2), NA()) -> 268000 | K36: =DataLink!F313 -> 5266 | L36: =IF(DataLink!F348>AreaSelection!$B$114, ROUND(DataLink!E348,-2), NA()) -> 182000 | M36: =DataLink!F348 -> 1850
C37: =DataLink!B209 -> 2016 | D37: =IF(DataLink!F209>AreaSelection!$B$114, ROUND(DataLink!E209,-2), NA()) -> 235000 | E37: =DataLink!F209 -> 6725 | F37: =IF(DataLink!F244>AreaSelection!$B$114, DataLink!E244, NA()) -> 232533 | G37: =DataLink!F244 -> 6532 | H37: =IF(DataLink!F279>AreaSelection!$B$114, ROUND(DataLink!E279,-2), NA()) -> 355900 | I37: =DataLink!F279 -> 193 | J37: =IF(DataLink!F314>AreaSelection!$B$114, ROUND(DataLink!E314,-2), NA()) -> 250000 | K37: =DataLink!F314 -> 5155 | L37: =IF(DataLink!F349>AreaSelection!$B$114, ROUND(DataLink!E349,-2), NA()) -> 172000 | M37: =DataLink!F349 -> 1570
C38: =DataLink!B210 -> 2015 | D38: =IF(DataLink!F210>AreaSelection!$B$114, ROUND(DataLink!E210,-2), NA()) -> 225000 | E38: =DataLink!F210 -> 5828 | F38: =IF(DataLink!F245>AreaSelection!$B$114, DataLink!E245, NA()) -> 224000 | G38: =DataLink!F245 -> 5693 | H38: =IF(DataLink!F280>AreaSelection!$B$114, ROUND(DataLink!E280,-2), NA()) -> 353900 | I38: =DataLink!F280 -> 135 | J38: =IF(DataLink!F315>AreaSelection!$B$114, ROUND(DataLink!E315,-2), NA()) -> 242500 | K38: =DataLink!F315 -> 4414 | L38: =IF(DataLink!F350>AreaSelection!$B$114, ROUND(DataLink!E350,-2), NA()) -> 161000 | M38: =DataLink!F350 -> 1414
C39: =DataLink!B211 -> 2014 | D39: =IF(DataLink!F211>AreaSelection!$B$114, DataLink!E211, NA()) -> 216766 | E39: =DataLink!F211 -> 3368 | F39: =IF(DataLink!F246>AreaSelection!$B$114, DataLink!E246, NA()) -> 211000 | G39: =DataLink!F246 -> 3171 | H39: =IF(DataLink!F281>AreaSelection!$B$114, DataLink!E281, NA()) -> 311333 | I39: =DataLink!F281 -> 197 | J39: =IF(DataLink!F316>AreaSelection!$B$114, DataLink!E316, NA()) -> 229966 | K39: =DataLink!F316 -> 2568 | L39: =IF(DataLink!F351>AreaSelection!$B$114, DataLink!E351, NA()) -> 159966 | M39: =DataLink!F351 -> 800
C40: =DataLink!B212 -> 2013 | D40: =IF(DataLink!F212>AreaSelection!$B$114, DataLink!E212, NA()) -> 225000 | E40: =DataLink!F212 -> 4043 | F40: =IF(DataLink!F247>AreaSelection!$B$114, DataLink!E247, NA()) -> 220000 | G40: =DataLink!F247 -> 3712 | H40: =IF(DataLink!F282>AreaSelection!$B$114, DataLink!E282, NA()) -> 307000 | I40: =DataLink!F282 -> 331 | J40: =IF(DataLink!F317>AreaSelection!$B$114, DataLink!E317, NA()) -> 235200 | K40: =DataLink!F317 -> 3189 | L40: =IF(DataLink!F352>AreaSelection!$B$114, DataLink!E352, NA()) -> 177500 | M40: =DataLink!F352 -> 854
C41: =DataLink!B213 -> 2012 | D41: =IF(DataLink!F213>AreaSelection!$B$114, DataLink!E213, NA()) -> 209900 | E41: =DataLink!F213 -> 3633 | F41: =IF(DataLink!F248>AreaSelection!$B$114, DataLink!E248, NA()) -> 203033 | G41: =DataLink!F248 -> 3374 | H41: =IF(DataLink!F283>AreaSelection!$B$114, DataLink!E283, NA()) -> 281594 | I41: =DataLink!F283 -> 259 | J41: =IF(DataLink!F318>AreaSelection!$B$114, DataLink!E318, NA()) -> 219900 | K41: =DataLink!F318 -> 2934 | L41: =IF(DataLink!F353>AreaSelection!$B$114, DataLink!E353, NA()) -> 156000 | M41: =DataLink!F353 -> 699
C42: =DataLink!B214 -> 2011 | D42: =IF(DataLink!F214>AreaSelection!$B$114, DataLink!E214, NA()) -> 210700 | E42: =DataLink!F214 -> 3056 | F42: =IF(DataLink!F249>AreaSelection!$B$114, DataLink!E249, NA()) -> 206000 | G42: =DataLink!F249 -> 2831 | H42: =IF(DataLink!F284>AreaSelection!$B$114, DataLink!E284, NA()) -> 300000 | I42: =DataLink!F284 -> 225 | J42: =IF(DataLink!F319>AreaSelection!$B$114, DataLink!E319, NA()) -> 220000 | K42: =DataLink!F319 -> 2426 | L42: =IF(DataLink!F354>AreaSelection!$B$114, DataLink!E354, NA()) -> 169450 | M42: =DataLink!F354 -> 630
C43: =DataLink!B215 -> 2010 | D43: =IF(DataLink!F215>AreaSelection!$B$114, DataLink!E215, NA()) -> 224916 | E43: =DataLink!F215 -> 3160 | F43: =IF(DataLink!F250>AreaSelection!$B$114, DataLink!E250, NA()) -> 217500 | G43: =DataLink!F250 -> 2855 | H43: =IF(DataLink!F285>AreaSelection!$B$114, DataLink!E285, NA()) -> 285000 | I43: =DataLink!F285 -> 305 | J43: =IF(DataLink!F320>AreaSelection!$B$114, DataLink!E320, NA()) -> 238533 | K43: =DataLink!F320 -> 2461 | L43: =IF(DataLink!F355>AreaSelection!$B$114, DataLink!E355, NA()) -> 175000 | M43: =DataLink!F355 -> 699
C44: =DataLink!B216 -> 2009 | D44: =IF(DataLink!F216>AreaSelection!$B$114, DataLink!E216, NA()) -> 218500 | E44: =DataLink!F216 -> 3731 | F44: =IF(DataLink!F251>AreaSelection!$B$114, DataLink!E251, NA()) -> 212500 | G44: =DataLink!F251 -> 3403 | H44: =IF(DataLink!F286>AreaSelection!$B$114, DataLink!E286, NA()) -> 296666 | I44: =DataLink!F286 -> 328 | J44: =IF(DataLink!F321>AreaSelection!$B$114, DataLink!E321, NA()) -> 230000 | K44: =DataLink!F321 -> 2923 | L44: =IF(DataLink!F356>AreaSelection!$B$114, DataLink!E356, NA()) -> 168000 | M44: =DataLink!F356 -> 808
C45: =DataLink!B217 -> 2008 | D45: =IF(DataLink!F217>AreaSelection!$B$114, DataLink!E217, NA()) -> 244900 | E45: =DataLink!F217 -> 2931 | F45: =IF(DataLink!F252>AreaSelection!$B$114, DataLink!E252, NA()) -> 234900 | G45: =DataLink!F252 -> 2556 | H45: =IF(DataLink!F287>AreaSelection!$B$114, DataLink!E287, NA()) -> 325000 | I45: =DataLink!F287 -> 375 | J45: =IF(DataLink!F322>AreaSelection!$B$114, DataLink!E322, NA()) -> 260000 | K45: =DataLink!F322 -> 2221 | L45: =IF(DataLink!F357>AreaSelection!$B$114, DataLink!E357, NA()) -> 189900 | M45: =DataLink!F357 -> 710
C46: =DataLink!B218 -> 2007 | D46: =IF(DataLink!F218>AreaSelection!$B$114, DataLink!E218, NA()) -> 265000 | E46: =DataLink!F218 -> 3712 | F46: =IF(DataLink!F253>AreaSelection!$B$114, DataLink!E253, NA()) -> 255000 | G46: =DataLink!F253 -> 3140 | H46: =IF(DataLink!F288>AreaSelection!$B$114, DataLink!E288, NA()) -> 322836 | I46: =DataLink!F288 -> 572 | J46: =IF(DataLink!F323>AreaSelection!$B$114, DataLink!E323, NA()) -> 285000 | K46: =DataLink!F323 -> 2612 | L46: =IF(DataLink!F358>AreaSelection!$B$114, DataLink!E358, NA()) -> 197700 | M46: =DataLink!F358 -> 1100
C47: =DataLink!B219 -> 2006 | D47: =IF(DataLink!F219>AreaSelection!$B$114, DataLink!E219, NA()) -> 262000 | E47: =DataLink!F219 -> 4929 | F47: =IF(DataLink!F254>AreaSelection!$B$114, DataLink!E254, NA()) -> 252500 | G47: =DataLink!F254 -> 4207 | H47: =IF(DataLink!F289>AreaSelection!$B$114, DataLink!E289, NA()) -> 323138 | I47: =DataLink!F289 -> 722 | J47: =IF(DataLink!F324>AreaSelection!$B$114, DataLink!E324, NA()) -> 285000 | K47: =DataLink!F324 -> 3410 | L47: =IF(DataLink!F359>AreaSelection!$B$114, DataLink!E359, NA()) -> 189000 | M47: =DataLink!F359 -> 1519
C48: =DataLink!B220 -> 2005 | D48: =IF(DataLink!F220>AreaSelection!$B$114, DataLink!E220, NA()) -> 263900 | E48: =DataLink!F220 -> 6289 | F48: =IF(DataLink!F255>AreaSelection!$B$114, DataLink!E255, NA()) -> 253400 | G48: =DataLink!F255 -> 5153 | H48: =IF(DataLink!F290>AreaSelection!$B$114, DataLink!E290, NA()) -> 319588 | I48: =DataLink!F290 -> 1136 | J48: =IF(DataLink!F325>AreaSelection!$B$114, DataLink!E325, NA()) -> 292000 | K48: =DataLink!F325 -> 4365 | L48: =IF(DataLink!F360>AreaSelection!$B$114, DataLink!E360, NA()) -> 191966 | M48: =DataLink!F360 -> 1924
C49: =DataLink!B221 -> 2004 | D49: =IF(DataLink!F221>AreaSelection!$B$114, DataLink!E221, NA()) -> 249900 | E49: =DataLink!F221 -> 6210 | F49: =IF(DataLink!F256>AreaSelection!$B$114, DataLink!E256, NA()) -> 240000 | G49: =DataLink!F256 -> 5068 | H49: =IF(DataLink!F291>AreaSelection!$B$114, DataLink!E291, NA()) -> 307934 | I49: =DataLink!F291 -> 1142 | J49: =IF(DataLink!F326>AreaSelection!$B$114, DataLink!E326, NA()) -> 274900 | K49: =DataLink!F326 -> 4580 | L49: =IF(DataLink!F361>AreaSelection!$B$114, DataLink!E361, NA()) -> 185000 | M49: =DataLink!F361 -> 1630
C50: =DataLink!B222 -> 2003 | D50: =IF(DataLink!F222>AreaSelection!$B$114, DataLink!E222, NA()) -> 225000 | E50: =DataLink!F222 -> 6519 | F50: =IF(DataLink!F257>AreaSelection!$B$114, DataLink!E257, NA()) -> 217000 | G50: =DataLink!F257 -> 5326 | H50: =IF(DataLink!F292>AreaSelection!$B$114, DataLink!E292, NA()) -> 276781 | I50: =DataLink!F292 -> 1193 | J50: =IF(DataLink!F327>AreaSelection!$B$114, DataLink!E327, NA()) -> 248900 | K50: =DataLink!F327 -> 4707 | L50: =IF(DataLink!F362>AreaSelection!$B$114, DataLink!E362, NA()) -> 169916 | M50: =DataLink!F362 -> 1812
C51: =DataLink!B223 -> 2002 | D51: =IF(DataLink!F223>AreaSelection!$B$114, DataLink!E223, NA()) -> 203700 | E51: =DataLink!F223 -> 5953 | F51: =IF(DataLink!F258>AreaSelection!$B$114, DataLink!E258, NA()) -> 194000 | G51: =DataLink!F258 -> 4841 | H51: =IF(DataLink!F293>AreaSelection!$B$114, DataLink!E293, NA()) -> 271858 | I51: =DataLink!F293 -> 1112 | J51: =IF(DataLink!F328>AreaSelection!$B$114, DataLink!E328, NA()) -> 226000 | K51: =DataLink!F328 -> 4461 | L51: =IF(DataLink!F363>AreaSelection!$B$114, DataLink!E363, NA()) -> 150000 | M51: =DataLink!F363 -> 1492
C52: =DataLink!B224 -> 2001 | D52: =IF(DataLink!F224>AreaSelection!$B$114, DataLink!E224, NA()) -> 172000 | E52: =DataLink!F224 -> 5770 | F52: =IF(DataLink!F259>AreaSelection!$B$114, DataLink!E259, NA()) -> 161000 | G52: =DataLink!F259 -> 4812 | H52: =IF(DataLink!F294>AreaSelection!$B$114, DataLink!E294, NA()) -> 250540 | I52: =DataLink!F294 -> 958 | J52: =IF(DataLink!F329>AreaSelection!$B$114, DataLink!E329, NA()) -> 189900 | K52: =DataLink!F329 -> 4249 | L52: =IF(DataLink!F364>AreaSelection!$B$114, DataLink!E364, NA()) -> 123000 | M52: =DataLink!F364 -> 1521
C53: =DataLink!B225 -> 2000 | D53: =IF(DataLink!F225>AreaSelection!$B$114, DataLink!E225, NA()) -> 149900 | E53: =DataLink!F225 -> 6348 | F53: =IF(DataLink!F260>AreaSelection!$B$114, DataLink!E260, NA()) -> 139701 | G53: =DataLink!F260 -> 5217 | H53: =IF(DataLink!F295>AreaSelection!$B$114, DataLink!E295, NA()) -> 219287 | I53: =DataLink!F295 -> 1131 | J53: =IF(DataLink!F330>AreaSelection!$B$114, DataLink!E330, NA()) -> 164500 | K53: =DataLink!F330 -> 4865 | L53: =IF(DataLink!F365>AreaSelection!$B$114, DataLink!E365, NA()) -> 105000 | M53: =DataLink!F365 -> 1483
C54: =DataLink!B226 -> 1999 | D54: =IF(DataLink!F226>AreaSelection!$B$114, DataLink!E226, NA()) -> 134500 | E54: =DataLink!F226 -> 5810 | F54: =IF(DataLink!F261>AreaSelection!$B$114, DataLink!E261, NA()) -> 125000 | G54: =DataLink!F261 -> 4685 | H54: =IF(DataLink!F296>AreaSelection!$B$114, DataLink!E296, NA()) -> 186401 | I54: =DataLink!F296 -> 1125 | J54: =IF(DataLink!F331>AreaSelection!$B$114, DataLink!E331, NA()) -> 144020 | K54: =DataLink!F331 -> 4498 | L54: =IF(DataLink!F366>AreaSelection!$B$114, DataLink!E366, NA()) -> 94000 | M54: =DataLink!F366 -> 1312
C55: =DataLink!B227 -> 1998 | D55: =IF(DataLink!F227>AreaSelection!$B$114, DataLink!E227, NA()) -> 129900 | E55: =DataLink!F227 -> 3780 | F55: =IF(DataLink!F262>AreaSelection!$B$114, DataLink!E262, NA()) -> 122900 | G55: =DataLink!F262 -> 3084 | H55: =IF(DataLink!F297>AreaSelection!$B$114, DataLink!E297, NA()) -> 173456 | I55: =DataLink!F297 -> 696 | J55: =IF(DataLink!F332>AreaSelection!$B$114, DataLink!E332, NA()) -> 135000 | K55: =DataLink!F332 -> 3213 | L55: =IF(DataLink!F367>AreaSelection!$B$114, DataLink!E367, NA()) -> 91000 | M55: =DataLink!F367 -> 567
C56: =DataLink!B228 -> 1997 | D56: =IF(DataLink!F228>AreaSelection!$B$114, DataLink!E228, NA()) -> 115500 | E56: =DataLink!F228 -> 8484 | F56: =IF(DataLink!F263>AreaSelection!$B$114, DataLink!E263, NA()) -> 109700 | G56: =DataLink!F263 -> 7192 | H56: =IF(DataLink!F298>AreaSelection!$B$114, DataLink!E298, NA()) -> 161000 | I56: =DataLink!F298 -> 1292 | J56: =IF(DataLink!F333>AreaSelection!$B$114, DataLink!E333, NA()) -> 120000 | K56: =DataLink!F333 -> 7211 | L56: =IF(DataLink!F368>AreaSelection!$B$114, DataLink!E368, NA()) -> 82000 | M56: =DataLink!F368 -> 1273
C57: =DataLink!B229 -> 1996 | D57: =IF(DataLink!F229>AreaSelection!$B$114, DataLink!E229, NA()) -> 115000 | E57: =DataLink!F229 -> 4330 | F57: =IF(DataLink!F264>AreaSelection!$B$114, DataLink!E264, NA()) -> 101200 | G57: =DataLink!F264 -> 3554 | H57: =IF(DataLink!F299>AreaSelection!$B$114, DataLink!E299, NA()) -> 168400 | I57: =DataLink!F299 -> 776 | J57: =IF(DataLink!F334>AreaSelection!$B$114, DataLink!E334, NA()) -> 124500 | K57: =DataLink!F334 -> 3395 | L57: =IF(DataLink!F369>AreaSelection!$B$114, DataLink!E369, NA()) -> 71000 | M57: =DataLink!F369 -> 935
C58: =DataLink!B230 -> 1995 | D58: =IF(DataLink!F230>AreaSelection!$B$114, DataLink!E230, NA()) -> 112000 | E58: =DataLink!F230 -> 4777 | F58: =IF(DataLink!F265>AreaSelection!$B$114, DataLink!E265, NA()) -> 101000 | G58: =DataLink!F265 -> 3766 | H58: =IF(DataLink!F300>AreaSelection!$B$114, DataLink!E300, NA()) -> 155000 | I58: =DataLink!F300 -> 1011 | J58: =IF(DataLink!F335>AreaSelection!$B$114, DataLink!E335, NA()) -> 120000 | K58: =DataLink!F335 -> 3904 | L58: =IF(DataLink!F370>AreaSelection!$B$114, DataLink!E370, NA()) -> 68000 | M58: =DataLink!F370 -> 873
C59: =DataLink!B231 -> 1994 | D59: =IF(DataLink!F231>AreaSelection!$B$114, DataLink!E231, NA()) -> 108900 | E59: =DataLink!F231 -> 5618 | F59: =IF(DataLink!F266>AreaSelection!$B$114, DataLink!E266, NA()) -> 97900 | G59: =DataLink!F266 -> 4468 | H59: =IF(DataLink!F301>AreaSelection!$B$114, DataLink!E301, NA()) -> 154600 | I59: =DataLink!F301 -> 1150 | J59: =IF(DataLink!F336>AreaSelection!$B$114, DataLink!E336, NA()) -> 116000 | K59: =DataLink!F336 -> 4674 | L59: =IF(DataLink!F371>AreaSelection!$B$114, DataLink!E371, NA()) -> 66900 | M59: =DataLink!F371 -> 944
C60: =DataLink!B232 -> 1993 | D60: =IF(DataLink!F232>AreaSelection!$B$114, DataLink!E232, NA()) -> 109905 | E60: =DataLink!F232 -> 4810 | F60: =IF(DataLink!F267>AreaSelection!$B$114, DataLink!E267, NA()) -> 102000 | G60: =DataLink!F267 -> 3847 | H60: =IF(DataLink!F302>AreaSelection!$B$114, DataLink!E302, NA()) -> 144000 | I60: =DataLink!F302 -> 963 | J60: =IF(DataLink!F337>AreaSelection!$B$114, DataLink!E337, NA()) -> 117500 | K60: =DataLink!F337 -> 4033 | L60: =IF(DataLink!F372>AreaSelection!$B$114, DataLink!E372, NA()) -> 67000 | M60: =DataLink!F372 -> 777
C61: =DataLink!B233 -> 1992 | D61: =IF(DataLink!F233>AreaSelection!$B$114, DataLink!E233, NA()) -> 107524 | E61: =DataLink!F233 -> 3310 | F61: =IF(DataLink!F268>AreaSelection!$B$114, DataLink!E268, NA()) -> 100000 | G61: =DataLink!F268 -> 2632 | H61: =IF(DataLink!F303>AreaSelection!$B$114, DataLink!E303, NA()) -> 127619 | I61: =DataLink!F303 -> 678 | J61: =IF(DataLink!F338>AreaSelection!$B$114, DataLink!E338, NA()) -> 115905 | K61: =DataLink!F338 -> 2779 | L61: =IF(DataLink!F373>AreaSelection!$B$114, DataLink!E373, NA()) -> 68631 | M61: =DataLink!F373 -> 531
C62: =DataLink!B234 -> 1991 | D62: =IF(DataLink!F234>AreaSelection!$B$114, DataLink!E234, NA()) -> 113524 | E62: =DataLink!F234 -> 2359 | F62: =IF(DataLink!F269>AreaSelection!$B$114, DataLink!E269, NA()) -> 110000 | G62: =DataLink!F269 -> 1791 | H62: =IF(DataLink!F304>AreaSelection!$B$114, DataLink!E304, NA()) -> 119905 | I62: =DataLink!F304 -> 568 | J62: =IF(DataLink!F339>AreaSelection!$B$114, DataLink!E339, NA()) -> 119200 | K62: =DataLink!F339 -> 1916 | L62: =IF(DataLink!F374>AreaSelection!$B$114, DataLink!E374, NA()) -> 75048 | M62: =DataLink!F374 -> 443
C63: =DataLink!B235 -> 1990 | D63: =IF(DataLink!F235>AreaSelection!$B$114, DataLink!E235, NA()) -> 125048 | E63: =DataLink!F235 -> 2002 | F63: =IF(DataLink!F270>AreaSelection!$B$114, DataLink!E270, NA()) -> 124900 | G63: =DataLink!F270 -> 1442 | H63: =IF(DataLink!F305>AreaSelection!$B$114, DataLink!E305, NA()) -> 129714 | I63: =DataLink!F305 -> 560 | J63: =IF(DataLink!F340>AreaSelection!$B$114, DataLink!E340, NA()) -> 129900 | K63: =DataLink!F340 -> 1682 | L63: =IF(DataLink!F375>AreaSelection!$B$114, DataLink!E375, NA()) -> 101950 | M63: =DataLink!F375 -> 320
C65: Source: 1990-2014 - NH Dept. of Revenue, PA-34 Dataset, Compiled by Real Data Corp. Filtered and analyzed by New Hampshire Housing.
C66: =StateWideChartAndTable!$C$66 -> 2015 - The Warren Group. Filtered and analyzed by New Hampshire Housing.
C67: Note: Calculations based on a sample size of less than 50 are highly volatile and not considered valid.
C71: =H5 -> Hillsborough County
C72: Percent Change In Median Home Purchase Price
D74: All Homes | F74: Existing Homes | H74: New Homes | J74: Non-Condominiums | L74: Condominiums
C75: 2020 to 2023 | D75: =(D30-D33)/D33 -> 0.356466877 | F75: =(F30-F33)/F33 -> 0.3492063492 | H75: =(H30-H33)/H33 -> 0.6368221942 | J75: =(J30-J33)/J33 -> 0.3529411765 | L75: =(L30-L33)/L33 -> 0.4127659574
C76: Avg per Year | D76: =D75/3 -> 0.1188222923 | F76: =F75/3 -> 0.1164021164 | H76: =H75/3 -> 0.2122740647 | J76: =J75/3 -> 0.1176470588 | L76: =L75/3 -> 0.1375886525
C77: 2019 to 2023 | D77: =(D30-D34)/D34 -> 0.524822695 | F77: =(F30-F34)/F34 -> 0.5178571429 | H77: =(H30-H34)/H34 ->  | J77: =(J30-J34)/J34 -> 0.5081967213 | L77: =(L30-L34)/L34 -> 0.580952381
C78: Avg per Year | D78: =D77/5 -> 0.104964539 | F78: =F77/5 -> 0.1035714286 | H78: =H77/5 ->  | J78: =J77/5 -> 0.1016393443 | L78: =L77/5 -> 0.1161904762
C79: 2013 to 2023 | D79: =(D30-D40)/D40 -> 0.9111111111 | F79: =(F30-F40)/F40 -> 0.9318181818 | H79: =(H30-H40)/H40 -> 1.114006515 | J79: =(J30-J40)/J40 -> 0.9557823129 | L79: =(L30-L40)/L40 -> 0.8704225352
C80: Avg per Year | D80: =D79/10 -> 0.09111111111 | F80: =F79/10 -> 0.09318181818 | H80: =H79/10 -> 0.1114006515 | J80: =J79/10 -> 0.09557823129 | L80: =L79/10 -> 0.08704225352
C82: 2022 to 2023 | D82: =(D30-D31)/D31 -> 0.03614457831 | F82: =(F30-F31)/F31 -> 0.03658536585 | H82: =(H30-H31)/H31 -> 0.06045751634 | J82: =(J30-J31)/J31 -> 0.02222222222 | L82: =(L30-L31)/L31 -> 0.1066666667
C83: 2021 to 2022 | D83: 0.1146924523 | F83: =(F31-F32)/F32 -> 0.1081081081 | H83: =(H31-H32)/H32 -> 0.3232432432 | J83: =(J31-J32)/J32 -> 0.09756097561 | L83: =(L31-L32)/L32 -> 0.1152416357
C84: 2020 to 2021 | D84: 0.1744479495 | F84: =(F32-F33)/F33 -> 0.1746031746 | H84: =(H32-H33)/H33 -> 0.1664564943 | J84: =(J32-J33)/J33 -> 0.2058823529 | L84: =(L32-L33)/L33 -> 0.1446808511
C85: 2019 to 2020 | D85: 0.1241134752 | F85: =(F33-F34)/F34 -> 0.125 | H85: =(H33-H34)/H34 ->  | J85: =(J33-J34)/J34 -> 0.1147540984 | L85: =(L33-L34)/L34 -> 0.119047619
C86: 2018 to 2019 | D86: 0.0641509434 | F86: =(F34-F35)/F35 -> 0.06870229008 | H86: =(H34-H35)/H35 ->  | J86: =(J34-J35)/J35 -> 0.0701754386 | L86: =(L34-L35)/L35 -> 0.08303249097
C87: 2017 to 2018 | D87: 0.06 | F87: 0.06072874494 | H87: 0 | J87: 0.06343283582 | L87: 0.06538461538
C88: 2016 to 2017 | D88: 0.06382978723 | F88: 0.06221482542 | H88: 0.01123911211 | J88: 0.072 | L88: 0.05813953488
C89: 2015 to 2016 | D89: 0.04444444444 | F89: 0.03809375 | H89: 0.00565131393 | J89: 0.03092783505 | L89: 0.06832298137
C90: 2014 to 2015 | D90: =(D38-D39)/D39 -> 0.03798566196 | F90: 0.06161137441 | H90: 0.1367249858 | J90: 0.05450370924 | L90: 0.006463873573
C91: 2013 to 2014 | D91: -0.03659555556 | F91: -0.04090909091 | H91: 0.01411400651 | J91: -0.02225340136 | L91: -0.09878309859
C92: 2012 to 2013 | D92: 0.07193901858 | F92: 0.08356769589 | H92: 0.0902220928 | J92: 0.06957708049 | L92: 0.1378205128
C93: 2011 to 2012 | D93: -0.003796867584 | F93: -0.01440291262 | H93: -0.06135333333 | J93: -0.0004545454545 | L93: -0.07937444674
C94: 2010 to 2011 | D94: -0.06320581906 | F94: -0.05287356322 | H94: 0.05263157895 | J94: -0.0776957486 | L94: -0.03171428571
C95: 2009 to 2010 | D95: 0.02936384439 | F95: 0.02352941176 | H95: -0.03932368387 | J95: 0.0371 | L95: 0.04166666667
C96: 2008 to 2009 | D96: -0.1077991017 | F96: -0.09535972754 | H96: -0.08718153846 | J96: -0.1153846154 | L96: -0.1153238547
C97: 2007 to 2008 | D97: -0.0758490566 | F97: -0.07882352941 | H97: 0.006703093831 | J97: -0.08771929825 | L97: -0.03945371775
C98: 2006 to 2007 | D98: 0.01145038168 | F98: 0.009900990099 | H98: -0.0009345852237 | J98: 0 | L98: 0.04603174603
C99: 2005 to 2006 | D99: -0.007199696855 | F99: -0.003551696922 | H99: 0.01110805162 | J99: -0.02397260274 | L99: -0.01545065272
C100: 2004 to 2005 | D100: 0.05602240896 | F100: 0.05583333333 | H100: 0.03784577215 | J100: 0.06220443798 | L100: 0.03765405405
C101: 2003 to 2004 | D101: 0.1106666667 | F101: 0.1059907834 | H101: 0.1125546913 | J101: 0.1044596223 | L101: 0.08877327621
C102: 2002 to 2003 | D102: 0.1045655376 | F102: 0.118556701 | H102: 0.01810871852 | J102: 0.1013274336 | L102: 0.1327733333
C103: 2001 to 2002 | D103: 0.1843023256 | F103: 0.2049689441 | H103: 0.08508820947 | J103: 0.1901000527 | L103: 0.2195121951
C104: 2000 to 2001 | D104: 0.1474316211 | F104: 0.1524613281 | H104: 0.1425209885 | J104: 0.1544072948 | L104: 0.1714285714
C105: 1999 to 2000 | D105: 0.1144981413 | F105: 0.117608 | H105: 0.1764260921 | J105: 0.1422024719 | L105: 0.1170212766
C106: 1998 to 1999 | D106: 0.03541185527 | F106: 0.01708706265 | H106: 0.07462987732 | J106: 0.06681481481 | L106: 0.03296703297
C107: 1997 to 1998 | D107: 0.1246753247 | F107: 0.1203281677 | H107: 0.07736645963 | J107: 0.125 | L107: 0.1097560976
C108: 1996 to 1997 | D108: 0.004347826087 | F108: 0.08399209486 | H108: -0.04394299287 | J108: -0.03614457831 | L108: 0.1549295775
C109: 1995 to 1996 | D109: 0.02678571429 | F109: 0.00198019802 | H109: 0.0864516129 | J109: 0.0375 | L109: 0.04411764706
C110: 1994 to 1995 | D110: 0.02846648301 | F110: 0.03166496425 | H110: =(H58-H59)/H59 -> 0.002587322122 | J110: =(J58-J59)/J59 -> 0.03448275862 | L110: =(L58-L59)/L59 -> 0.01644245142
C111: 1993 to 1994 | D111: -0.009144260953 | F111: -0.04019607843 | H111: =(H59-H60)/H60 -> 0.07361111111 | J111: =(J59-J60)/J60 -> -0.01276595745 | L111: =(L59-L60)/L60 -> -0.001492537313
C112: 1992 to 1993 | D112: 0.02214389346 | F112: 0.02 | H112: =(H60-H61)/H61 -> 0.12835863 | J112: =(J60-J61)/J61 -> 0.01376127001 | L112: =(L60-L61)/L61 -> -0.02376477102
C113: 1991 to 1992 | D113: -0.05285226031 | F113: -0.09090909091 | H113: =(H61-H62)/H62 -> 0.06433426463 | J113: =(J61-J62)/J62 -> -0.02764261745 | L113: =(L61-L62)/L62 -> -0.08550527662
C114: 1990 to 1991 | D114: -0.09215661186 | F114: -0.1192954363 | H114: =(H62-H63)/H63 -> -0.07562021062 | J114: =(J62-J63)/J63 -> -0.08237105466 | L114: =(L62-L63)/L63 -> -0.2638744483

Sheet CountyFrequencyChart (hidden)
B2: Navigation | I2: Select Another County | M2: Select Another Period For Analysis
E3: OR | L3: OR
B5: =DataLink!A378 -> Hillsborough County
C7: Primary Home Purchase Price Frequency
C8: =DataLink!$A$378&", "&DataLink!$B$381 -> Hillsborough County, 2023
C42: Source: 1990-2014 - NH Dept. of Revenue, PA-34 Dataset, Compiled by Real Data Corp. Filtered and analyzed by New Hampshire Housing.
C43: =StateWideChartAndTable!$C$66 -> 2015 - The Warren Group. Filtered and analyzed by New Hampshire Housing.
C44: Note: Calculations based on a sample size of less than 50 are highly volatile and not considered valid.
C47: Primary Home Purchase Price Frequency
C48: =DataLink!$A$378&", "&DataLink!$B$381 -> Hillsborough County, 2023
C81: Source: 1990-2014 - NH Dept. of Revenue, PA-34 Dataset, Compiled by Real Data Corp. Filtered and analyzed by New Hampshire Housing.
C82: =C43 -> 2015 - The Warren Group. Filtered and analyzed by New Hampshire Housing.
C83: Note: Calculations based on a sample size of less than 50 are highly volatile and not considered valid.
C86: Primary Home Purchase Price Frequency
C87: =DataLink!$A$378&", "&DataLink!$B$381 -> Hillsborough County, 2023
C120: Source: 1990-2014 - NH Dept. of Revenue, PA-34 Dataset, Compiled by Real Data Corp. Filtered and analyzed by New Hampshire Housing.
C121: =C43 -> 2015 - The Warren Group. Filtered and analyzed by New Hampshire Housing.
C122: Note: Calculations based on a sample size of less than 50 are highly volatile and not considered valid.
A129: =DataLink!A377 -> Output for Freq Chart
A130: =DataLink!A378 -> Hillsborough County
E131: Price Distribution
A132: =DataLink!B380 -> Year | C132: =DataLink!C380 -> Area | D132: =DataLink!D380 -> UnitType | E132: =DataLink!F380 -> Sample | F132: =DataLink!I380 -> 30000 | G132: =DataLink!J380 -> 40000 | H132: =DataLink!K380 -> 50000 | I132: =DataLink!L380 -> 60000 | J132: =DataLink!M380 -> 70000 | K132: =DataLink!N380 -> 80000 | L132: =DataLink!O380 -> 90000 | M132: =DataLink!P380 -> 100000 | N132: =DataLink!Q380 -> 110000 | O132: =DataLink!R380 -> 120000 | P132: =DataLink!S380 -> 130000 | Q132: =DataLink!T380 -> 140000 | R132: =DataLink!U380 -> 150000 | S132: =DataLink!V380 -> 160000 | T132: =DataLink!W380 -> 170000 | U132: =DataLink!X380 -> 180000 | V132: =DataLink!Y380 -> 190000 | W132: =DataLink!Z380 -> 200000 | X132: =DataLink!AA380 -> 210000 | Y132: =DataLink!AB380 -> 220000 | Z132: =DataLink!AC380 -> 230000 | AA132: =DataLink!AD380 -> 240000 | AB132: =DataLink!AE380 -> 250000 | AC132: =DataLink!AF380 -> 260000 | AD132: =DataLink!AG380 -> 270000 | AE132: =DataLink!AH380 -> 280000 | AF132: =DataLink!AI380 -> 290000 | AG132: =DataLink!AJ380 -> 300000 | AH132: =DataLink!AK380 -> 310000 | AI132: =DataLink!AL380 -> 320000 | AJ132: =DataLink!AM380 -> 330000 | AK132: =DataLink!AN380 -> 340000 | AL132: =DataLink!AO380 -> 350000 | AM132: =DataLink!AP380 -> 360000 | AN132: =DataLink!AQ380 -> 370000 | AO132: =DataLink!AR380 -> 380000 | AP132: =DataLink!AS380 -> 390000 | AQ132: =DataLink!AT380 -> 400000 | AR132: =DataLink!AU380 -> 410000 | AS132: =DataLink!AV380 -> 420000 | AT132: =DataLink!AW380 -> 430000 | AU132: =DataLink!AX380 -> 440000 | AV132: =DataLink!AY380 -> 450000 | AW132: =DataLink!AZ380 -> 460000 | AX132: =DataLink!BA380 -> 470000 | AY132: =DataLink!BB380 -> 480000 | AZ132: =DataLink!BC380 -> 490000 | BA132: =DataLink!BD380 -> 500000 | BB132: =DataLink!BE380 -> 510000 | BC132: =DataLink!BF380 -> 520000 | BD132: =DataLink!BG380 -> 530000 | BE132: =DataLink!BH380 -> 540000
A133: =DataLink!B381 -> 2023 | C133: =DataLink!C381 -> Cnty 06 a | D133: =DataLink!D381 -> All Units | E133: =DataLink!F381 -> 6102 | F133: =DataLink!I381 -> 7 | G133: =DataLink!J381 -> 5 | H133: =DataLink!K381 -> 6 | I133: =DataLink!L381 -> 6 | J133: =DataLink!M381 -> 0 | K133: =DataLink!N381 -> 4 | L133: =DataLink!O381 -> 4 | M133: =DataLink!P381 -> 8 | N133: =DataLink!Q381 -> 14 | O133: =DataLink!R381 -> 3 | P133: =DataLink!S381 -> 18 | Q133: =DataLink!T381 -> 21 | R133: =DataLink!U381 -> 13 | S133: =DataLink!V381 -> 26 | T133: =DataLink!W381 -> 42 | U133: =DataLink!X381 -> 41 | V133: =DataLink!Y381 -> 41 | W133: =DataLink!Z381 -> 54 | X133: =DataLink!AA381 -> 46 | Y133: =DataLink!AB381 -> 62 | Z133: =DataLink!AC381 -> 76 | AA133: =DataLink!AD381 -> 91 | AB133: =DataLink!AE381 -> 67 | AC133: =DataLink!AF381 -> 61 | AD133: =DataLink!AG381 -> 78 | AE133: =DataLink!AH381 -> 80 | AF133: =DataLink!AI381 -> 69 | AG133: =DataLink!AJ381 -> 116 | AH133: =DataLink!AK381 -> 103 | AI133: =DataLink!AL381 -> 108 | AJ133: =DataLink!AM381 -> 158 | AK133: =DataLink!AN381 -> 123 | AL133: =DataLink!AO381 -> 183 | AM133: =DataLink!AP381 -> 168 | AN133: =DataLink!AQ381 -> 164 | AO133: =DataLink!AR381 -> 179 | AP133: =DataLink!AS381 -> 134 | AQ133: =DataLink!AT381 -> 195 | AR133: =DataLink!AU381 -> 165 | AS133: =DataLink!AV381 -> 165 | AT133: =DataLink!AW381 -> 201 | AU133: =DataLink!AX381 -> 169 | AV133: =DataLink!AY381 -> 182 | AW133: =DataLink!AZ381 -> 139 | AX133: =DataLink!BA381 -> 142 | AY133: =DataLink!BB381 -> 126 | AZ133: =DataLink!BC381 -> 112 | BA133: =DataLink!BD381 -> 135 | BB133: =DataLink!BE381 -> 104 | BC133: =DataLink!BF381 -> 104 | BD133: =DataLink!BG381 -> 163 | BE133: =DataLink!BH381 -> 1621
A134: =DataLink!B382 -> 2023 | C134: =DataLink!C382 -> Cnty 06 b | D134: =DataLink!D382 -> Existing | E134: =DataLink!F382 -> 5879 | F134: =DataLink!I382 -> 7 | G134: =DataLink!J382 -> 5 | H134: =DataLink!K382 -> 6 | I134: =DataLink!L382 -> 6 | J134: =DataLink!M382 -> 0 | K134: =DataLink!N382 -> 4 | L134: =DataLink!O382 -> 4 | M134: =DataLink!P382 -> 8 | N134: =DataLink!Q382 -> 14 | O134: =DataLink!R382 -> 3 | P134: =DataLink!S382 -> 18 | Q134: =DataLink!T382 -> 21 | R134: =DataLink!U382 -> 13 | S134: =DataLink!V382 -> 26 | T134: =DataLink!W382 -> 42 | U134: =DataLink!X382 -> 41 | V134: =DataLink!Y382 -> 41 | W134: =DataLink!Z382 -> 54 | X134: =DataLink!AA382 -> 46 | Y134: =DataLink!AB382 -> 62 | Z134: =DataLink!AC382 -> 76 | AA134: =DataLink!AD382 -> 91 | AB134: =DataLink!AE382 -> 67 | AC134: =DataLink!AF382 -> 61 | AD134: =DataLink!AG382 -> 78 | AE134: =DataLink!AH382 -> 80 | AF134: =DataLink!AI382 -> 68 | AG134: =DataLink!AJ382 -> 116 | AH134: =DataLink!AK382 -> 103 | AI134: =DataLink!AL382 -> 105 | AJ134: =DataLink!AM382 -> 158 | AK134: =DataLink!AN382 -> 123 | AL134: =DataLink!AO382 -> 180 | AM134: =DataLink!AP382 -> 168 | AN134: =DataLink!AQ382 -> 164 | AO134: =DataLink!AR382 -> 175 | AP134: =DataLink!AS382 -> 134 | AQ134: =DataLink!AT382 -> 194 | AR134: =DataLink!AU382 -> 162 | AS134: =DataLink!AV382 -> 158 | AT134: =DataLink!AW382 -> 200 | AU134: =DataLink!AX382 -> 167 | AV134: =DataLink!AY382 -> 180 | AW134: =DataLink!AZ382 -> 139 | AX134: =DataLink!BA382 -> 139 | AY134: =DataLink!BB382 -> 123 | AZ134: =DataLink!BC382 -> 102 | BA134: =DataLink!BD382 -> 134 | BB134: =DataLink!BE382 -> 103 | BC134: =DataLink!BF382 -> 101 | BD134: =DataLink!BG382 -> 157 | BE134: =DataLink!BH382 -> 1452
A135: =DataLink!B383 -> 2023 | C135: =DataLink!C383 -> Cnty 06 c | D135: =DataLink!D383 -> New | E135: =DataLink!F383 -> 223 | F135: =DataLink!I383 -> 0 | G135: =DataLink!J383 -> 0 | H135: =DataLink!K383 -> 0 | I135: =DataLink!L383 -> 0 | J135: =DataLink!M383 -> 0 | K135: =DataLink!N383 -> 0 | L135: =DataLink!O383 -> 0 | M135: =DataLink!P383 -> 0 | N135: =DataLink!Q383 -> 0 | O135: =DataLink!R383 -> 0 | P135: =DataLink!S383 -> 0 | Q135: =DataLink!T383 -> 0 | R135: =DataLink!U383 -> 0 | S135: =DataLink!V383 -> 0 | T135: =DataLink!W383 -> 0 | U135: =DataLink!X383 -> 0 | V135: =DataLink!Y383 -> 0 | W135: =DataLink!Z383 -> 0 | X135: =DataLink!AA383 -> 0 | Y135: =DataLink!AB383 -> 0 | Z135: =DataLink!AC383 -> 0 | AA135: =DataLink!AD383 -> 0 | AB135: =DataLink!AE383 -> 0 | AC135: =DataLink!AF383 -> 0 | AD135: =DataLink!AG383 -> 0 | AE135: =DataLink!AH383 -> 0 | AF135: =DataLink!AI383 -> 1 | AG135: =DataLink!AJ383 -> 0 | AH135: =DataLink!AK383 -> 0 | AI135: =DataLink!AL383 -> 3 | AJ135: =DataLink!AM383 -> 0 | AK135: =DataLink!AN383 -> 0 | AL135: =DataLink!AO383 -> 3 | AM135: =DataLink!AP383 -> 0 | AN135: =DataLink!AQ383 -> 0 | AO135: =DataLink!AR383 -> 4 | AP135: =DataLink!AS383 -> 0 | AQ135: =DataLink!AT383 -> 1 | AR135: =DataLink!AU383 -> 3 | AS135: =DataLink!AV383 -> 7 | AT135: =DataLink!AW383 -> 1 | AU135: =DataLink!AX383 -> 2 | AV135: =DataLink!AY383 -> 2 | AW135: =DataLink!AZ383 -> 0 | AX135: =DataLink!BA383 -> 3 | AY135: =DataLink!BB383 -> 3 | AZ135: =DataLink!BC383 -> 10 | BA135: =DataLink!BD383 -> 1 | BB135: =DataLink!BE383 -> 1 | BC135: =DataLink!BF383 -> 3 | BD135: =DataLink!BG383 -> 6 | BE135: =DataLink!BH383 -> 169
A136: =DataLink!B384 -> 2023 | C136: =DataLink!C384 -> Cnty 06 d | D136: =DataLink!D384 -> Non-Condo | E136: =DataLink!F384 -> 4469 | F136: =DataLink!I384 -> 7 | G136: =DataLink!J384 -> 5 | H136: =DataLink!K384 -> 6 | I136: =DataLink!L384 -> 3 | J136: =DataLink!M384 -> 0 | K136: =DataLink!N384 -> 4 | L136: =DataLink!O384 -> 4 | M136: =DataLink!P384 -> 5 | N136: =DataLink!Q384 -> 10 | O136: =DataLink!R384 -> 1 | P136: =DataLink!S384 -> 4 | Q136: =DataLink!T384 -> 9 | R136: =DataLink!U384 -> 3 | S136: =DataLink!V384 -> 4 | T136: =DataLink!W384 -> 18 | U136: =DataLink!X384 -> 10 | V136: =DataLink!Y384 -> 5 | W136: =DataLink!Z384 -> 20 | X136: =DataLink!AA384 -> 18 | Y136: =DataLink!AB384 -> 21 | Z136: =DataLink!AC384 -> 20 | AA136: =DataLink!AD384 -> 34 | AB136: =DataLink!AE384 -> 26 | AC136: =DataLink!AF384 -> 17 | AD136: =DataLink!AG384 -> 26 | AE136: =DataLink!AH384 -> 53 | AF136: =DataLink!AI384 -> 23 | AG136: =DataLink!AJ384 -> 61 | AH136: =DataLink!AK384 -> 55 | AI136: =DataLink!AL384 -> 47 | AJ136: =DataLink!AM384 -> 96 | AK136: =DataLink!AN384 -> 56 | AL136: =DataLink!AO384 -> 117 | AM136: =DataLink!AP384 -> 111 | AN136: =DataLink!AQ384 -> 118 | AO136: =DataLink!AR384 -> 135 | AP136: =DataLink!AS384 -> 105 | AQ136: =DataLink!AT384 -> 166 | AR136: =DataLink!AU384 -> 102 | AS136: =DataLink!AV384 -> 129 | AT136: =DataLink!AW384 -> 162 | AU136: =DataLink!AX384 -> 144 | AV136: =DataLink!AY384 -> 164 | AW136: =DataLink!AZ384 -> 130 | AX136: =DataLink!BA384 -> 130 | AY136: =DataLink!BB384 -> 113 | AZ136: =DataLink!BC384 -> 90 | BA136: =DataLink!BD384 -> 108 | BB136: =DataLink!BE384 -> 89 | BC136: =DataLink!BF384 -> 100 | BD136: =DataLink!BG384 -> 143 | BE136: =DataLink!BH384 -> 1442
A137: =DataLink!B385 -> 2023 | C137: =DataLink!C385 -> Cnty 06 e | D137: =DataLink!D385 -> Condo | E137: =DataLink!F385 -> 1633 | F137: =DataLink!I385 -> 0 | G137: =DataLink!J385 -> 0 | H137: =DataLink!K385 -> 0 | I137: =DataLink!L385 -> 3 | J137: =DataLink!M385 -> 0 | K137: =DataLink!N385 -> 0 | L137: =DataLink!O385 -> 0 | M137: =DataLink!P385 -> 3 | N137: =DataLink!Q385 -> 4 | O137: =DataLink!R385 -> 2 | P137: =DataLink!S385 -> 14 | Q137: =DataLink!T385 -> 12 | R137: =DataLink!U385 -> 10 | S137: =DataLink!V385 -> 22 | T137: =DataLink!W385 -> 24 | U137: =DataLink!X385 -> 31 | V137: =DataLink!Y385 -> 36 | W137: =DataLink!Z385 -> 34 | X137: =DataLink!AA385 -> 28 | Y137: =DataLink!AB385 -> 41 | Z137: =DataLink!AC385 -> 56 | AA137: =DataLink!AD385 -> 57 | AB137: =DataLink!AE385 -> 41 | AC137: =DataLink!AF385 -> 44 | AD137: =DataLink!AG385 -> 52 | AE137: =DataLink!AH385 -> 27 | AF137: =DataLink!AI385 -> 46 | AG137: =DataLink!AJ385 -> 55 | AH137: =DataLink!AK385 -> 48 | AI137: =DataLink!AL385 -> 61 | AJ137: =DataLink!AM385 -> 62 | AK137: =DataLink!AN385 -> 67 | AL137: =DataLink!AO385 -> 66 | AM137: =DataLink!AP385 -> 57 | AN137: =DataLink!AQ385 -> 46 | AO137: =DataLink!AR385 -> 44 | AP137: =DataLink!AS385 -> 29 | AQ137: =DataLink!AT385 -> 29 | AR137: =DataLink!AU385 -> 63 | AS137: =DataLink!AV385 -> 36 | AT137: =DataLink!AW385 -> 39 | AU137: =DataLink!AX385 -> 25 | AV137: =DataLink!AY385 -> 18 | AW137: =DataLink!AZ385 -> 9 | AX137: =DataLink!BA385 -> 12 | AY137: =DataLink!BB385 -> 13 | AZ137: =DataLink!BC385 -> 22 | BA137: =DataLink!BD385 -> 27 | BB137: =DataLink!BE385 -> 15 | BC137: =DataLink!BF385 -> 4 | BD137: =DataLink!BG385 -> 20 | BE137: =DataLink!BH385 -> 179

Sheet CountyComparison (hidden)
B2: Navigation
B6: Chart 1
B43: Table 1 - All Homes
E44: ='PP2023'!$D2 -> 2023 | G44: ='PP2022'!$D2 -> 2022 | I44: ='PP2021'!$D2 -> 2021 | K44: ='PP2020'!$D2 -> 2020 | M44: ='PP2019'!$D2 -> 2019 | O44: ='PP2018'!$D2 -> 2018 | Q44: ='PP2017'!$D2 -> 2017 | S44: ='PP2016'!$D2 -> 2016 | U44: ='PP2015'!D2 -> 2015 | W44: ='PP2014'!D2 -> 2014 | Y44: ='PP2013'!D2 -> 2013 | AA44: ='PP2012'!D2 -> 2012 | AC44: ='PP2011'!D2 -> 2011 | AE44: ='PP2010'!D2 -> 2010 | AG44: ='PP2009'!D2 -> 2009 | AI44: ='PP2008'!D2 -> 2008 | AK44: 2007 | AM44: 2006 | AO44: 2005 | AQ44: 2004 | AS44: 2003 | AU44: 2002 | AW44: 2001 | AY44: 2000
D45: Change Since 2013 | E45: Median | F45: % Chng Prior Yr | G45: Median | H45: % Chng Prior Yr | I45: Median | J45: % Chng Prior Yr | K45: Median | L45: % Chng Prior Yr | M45: Median | N45: % Chng Prior Yr | O45: Median | P45: % Chng Prior Yr | Q45: Median | R45: % Chng Prior Yr | S45: Median | T45: % Chng Prior Yr | U45: Median | V45: % Chng Prior Yr | W45: Median | X45: % Chng Prior Yr | Y45: Median | Z45: % Chng Prior Yr | AA45: Median | AB45: % Chng Prior Yr | AC45: Median | AD45: % Chng Prior Yr | AE45: Median | AF45: % Chng Prior Yr | AG45: Median | AH45: % Chng Prior Yr | AI45: Median | AJ45: % Chng Prior Yr | AK45: Median | AL45: % Chng Prior Yr | AM45: Median | AN45: % Chng Prior Yr | AO45: Median | AP45: % Chng Prior Yr | AQ45: Median | AR45: % Chng Prior Yr | AS45: Median | AT45: % Chng Prior Yr | AU45: Median | AV45: % Chng Prior Yr | AW45: Median | AX45: % Chng Prior Yr | AY45: Median
B46: Belknap Co. | D46: =(E46-Y46)/Y46 -> 1.31371412 | E46: =VLOOKUP(LookUpSheet!$B26,'PP2023'!$C$2:$CE$1515,8,FALSE) -> 399000 | F46: =(E46-G46)/G46 -> 0.05 | G46: =VLOOKUP(LookUpSheet!$B26,'PP2022'!$C$2:$CE$1515,8,FALSE) -> 380000 | H46: =(G46-I46)/I46 -> 0.2031674967 | I46: =VLOOKUP(LookUpSheet!$B26,'PP2021'!$C$2:$CE$1515,8,FALSE) -> 315833 | J46: =(I46-K46)/K46 -> 0.1784813433 | K46: =VLOOKUP(LookUpSheet!$B26,'PP2020'!$C$2:$CE$1515,8,FALSE) -> 268000 | L46: =(K46-M46)/M46 -> 0.1166666667 | M46: =VLOOKUP(LookUpSheet!$B26,'PP2019'!$C$2:$CE$1515,8,FALSE) -> 240000 | N46: =(M46-O46)/O46 -> 0.09124142352 | O46: =VLOOKUP(LookUpSheet!$B26,'PP2018'!$C$2:$CE$1515,8,FALSE) -> 219933 | P46: =(O46-Q46)/Q46 -> 0.06763592233 | Q46: =VLOOKUP(LookUpSheet!$B26,'PP2017'!$C$2:$CE$1515,8,FALSE) -> 206000 | R46: =(Q46-S46)/S46 -> 0.03 | S46: =VLOOKUP(LookUpSheet!$B26,'PP2016'!$C$2:$CE$1515,8,FALSE) -> 200000 | T46: =(S46-U46)/U46 -> 0.04529798832 | U46: =VLOOKUP(LookUpSheet!$B26,'PP2015'!$C$2:$CE$1515,8,FALSE) -> 191333 | V46: =(U46-W46)/W46 -> -0.01846788384 | W46: =VLOOKUP(LookUpSheet!$B26,'PP2014'!$C$2:$CE$1515,8,FALSE) -> 194933 | X46: =(W46-Y46)/Y46 -> 0.1303740215 | Y46: =VLOOKUP(LookUpSheet!$B26,'PP2013'!$C$2:$CE$1515,8,FALSE) -> 172450 | Z46: =(Y46-AA46)/AA46 -> 0.01441176471 | AA46: =VLOOKUP(LookUpSheet!$B26,'PP2012'!$C$2:$CE$1515,8,FALSE) -> 170000 | AB46: =(AA46-AC46)/AC46 -> 0 | AC46: =VLOOKUP(LookUpSheet!$B26,'PP2011'!$C$2:$CE$1515,8,FALSE) -> 170000 | AD46: =(AC46-AE46)/AE46 -> -0.02857142857 | AE46: =VLOOKUP(LookUpSheet!$B26,'PP2010'!$C$2:$CE$1515,8,FALSE) -> 175000 | AF46: =(AE46-AG46)/AG46 -> 0.02941176471 | AG46: =VLOOKUP(LookUpSheet!$B26,'PP2009'!$C$2:$CE$1515,8,FALSE) -> 170000 | AH46: =(AG46-AI46)/AI46 -> -0.2093023256 | AI46: =VLOOKUP(LookUpSheet!$B26,'PP2008'!$C$2:$CE$1515,8,FALSE) -> 215000 | AJ46: =(AI46-AK46)/AK46 -> -0.01826484018 | AK46: =VLOOKUP(LookUpSheet!$B26,'PP2007'!$C$2:$CE$1515,8,FALSE) -> 219000 | AL46: =(AK46-AM46)/AM46 -> -0.02623388173 | AM46: =VLOOKUP(LookUpSheet!$B26,'PP2006'!$C$2:$CE$1515,8,FALSE) -> 224900 | AN46: =(AM46-AO46)/AO46 -> 0.02227272727 | AO46: =VLOOKUP(LookUpSheet!$B26,'PP2005'!$C$2:$CE$1515,8,FALSE) -> 220000 | AP46: =(AO46-AQ46)/AQ46 -> 0.1340206186 | AQ46: =VLOOKUP(LookUpSheet!$B26,'PP2004'!$C$2:$CE$1516,8,FALSE) -> 194000 | AR46: =(AQ46-AS46)/AS46 -> 0.1085714286 | AS46: =VLOOKUP(LookUpSheet!$B26,'PP2003'!$C$2:$CE$1512,8,FALSE) -> 175000 | AT46: =(AS46-AU46)/AU46 -> 0.1686143573 | AU46: =VLOOKUP(LookUpSheet!$B26,'PP2002'!$C$2:$CE$1515,8,FALSE) -> 149750 | AV46: =(AU46-AW46)/AW46 -> 0.169921875 | AW46: =VLOOKUP(LookUpSheet!$B26,'PP2001'!$C$2:$CE$1515,8,FALSE) -> 128000 | AX46: =(AW46-AY46)/AY46 -> 0.1130434783 | AY46: =VLOOKUP(LookUpSheet!$B26,'PP2000'!$C$2:$CE$1516,8,FALSE) -> 115000
B47: Carroll Co. | D47: =(E47-Y47)/Y47 -> 1.333333333 | E47: =VLOOKUP(LookUpSheet!$B27,'PP2023'!$C$2:$CE$1515,8,FALSE) -> 420000 | F47: =(E47-G47)/G47 -> 0.1054580676 | G47: =VLOOKUP(LookUpSheet!$B27,'PP2022'!$C$2:$CE$1515,8,FALSE) -> 379933 | H47: =(G47-I47)/I47 -> 0.1548115502 | I47: =VLOOKUP(LookUpSheet!$B27,'PP2021'!$C$2:$CE$1515,8,FALSE) -> 329000 | J47: =(I47-K47)/K47 -> 0.2185185185 | K47: =VLOOKUP(LookUpSheet!$B27,'PP2020'!$C$2:$CE$1515,8,FALSE) -> 270000 | L47: =(K47-M47)/M47 -> 0.129707113 | M47: =VLOOKUP(LookUpSheet!$B27,'PP2019'!$C$2:$CE$1515,8,FALSE) -> 239000 | N47: =(M47-O47)/O47 -> 0.09633027523 | O47: =VLOOKUP(LookUpSheet!$B27,'PP2018'!$C$2:$CE$1515,8,FALSE) -> 218000 | P47: =(O47-Q47)/Q47 -> 0.004608294931 | Q47: =VLOOKUP(LookUpSheet!$B27,'PP2017'!$C$2:$CE$1515,8,FALSE) -> 217000 | R47: =(Q47-S47)/S47 -> 0.08790470556 | S47: =VLOOKUP(LookUpSheet!$B27,'PP2016'!$C$2:$CE$1515,8,FALSE) -> 199466 | T47: =(S47-U47)/U47 -> 0.002341708543 | U47: =VLOOKUP(LookUpSheet!$B27,'PP2015'!$C$2:$CE$1515,8,FALSE) -> 199000 | V47: =(U47-W47)/W47 -> 0.06702412869 | W47: =VLOOKUP(LookUpSheet!$B27,'PP2014'!$C$2:$CE$1515,8,FALSE) -> 186500 | X47: 0.03611111111 | Y47: =VLOOKUP(LookUpSheet!$B27,'PP2013'!$C$2:$CE$1515,8,FALSE) -> 180000 | Z47: 0.0650887574 | AA47: =VLOOKUP(LookUpSheet!$B27,'PP2012'!$C$2:$CE$1515,8,FALSE) -> 169000 | AB47: -0.028456453 | AC47: =VLOOKUP(LookUpSheet!$B27,'PP2011'!$C$2:$CE$1515,8,FALSE) -> 173950 | AD47: -0.03628808864 | AE47: =VLOOKUP(LookUpSheet!$B27,'PP2010'!$C$2:$CE$1515,8,FALSE) -> 180500 | AF47: 0.05710102489 | AG47: =VLOOKUP(LookUpSheet!$B27,'PP2009'!$C$2:$CE$1515,8,FALSE) -> 170750 | AH47: =(AG47-AI47)/AI47 -> -0.1964705882 | AI47: =VLOOKUP(LookUpSheet!$B27,'PP2008'!$C$2:$CE$1515,8,FALSE) -> 212500 | AJ47: =(AI47-AK47)/AK47 -> -0.03387133439 | AK47: =VLOOKUP(LookUpSheet!$B27,'PP2007'!$C$2:$CE$1515,8,FALSE) -> 219950 | AL47: =(AK47-AM47)/AM47 -> 0.02302325581 | AM47: =VLOOKUP(LookUpSheet!$B27,'PP2006'!$C$2:$CE$1515,8,FALSE) -> 215000 | AN47: =(AM47-AO47)/AO47 -> 0.02380952381 | AO47: =VLOOKUP(LookUpSheet!$B27,'PP2005'!$C$2:$CE$1515,8,FALSE) -> 210000 | AP47: 0.07142857143 | AQ47: =VLOOKUP(LookUpSheet!$B27,'PP2004'!$C$2:$CE$1516,8,FALSE) -> 196000 | AR47: 0.1842900302 | AS47: =VLOOKUP(LookUpSheet!$B27,'PP2003'!$C$2:$CE$1512,8,FALSE) -> 165500 | AT47: 0.157885163 | AU47: =VLOOKUP(LookUpSheet!$B27,'PP2002'!$C$2:$CE$1515,8,FALSE) -> 142933 | AV47: 0.1352899126 | AW47: =VLOOKUP(LookUpSheet!$B27,'PP2001'!$C$2:$CE$1515,8,FALSE) -> 125900 | AX47: 0.1455868972 | AY47: =VLOOKUP(LookUpSheet!$B27,'PP2000'!$C$2:$CE$1516,8,FALSE) -> 109900
B48: Cheshire Co. | D48: 0.8865853659 | E48: =VLOOKUP(LookUpSheet!$B28,'PP2023'!$C$2:$CE$1515,8,FALSE) -> 309400 | F48: =(E48-G48)/G48 -> 0.105 | G48: =VLOOKUP(LookUpSheet!$B28,'PP2022'!$C$2:$CE$1515,8,FALSE) -> 280000 | H48: =(G48-I48)/I48 -> 0.05660377358 | I48: =VLOOKUP(LookUpSheet!$B28,'PP2021'!$C$2:$CE$1515,8,FALSE) -> 265000 | J48: =(I48-K48)/K48 -> 0.1373390558 | K48: =VLOOKUP(LookUpSheet!$B28,'PP2020'!$C$2:$CE$1515,8,FALSE) -> 233000 | L48: =(K48-M48)/M48 -> 0.1661661662 | M48: =VLOOKUP(LookUpSheet!$B28,'PP2019'!$C$2:$CE$1515,8,FALSE) -> 199800 | N48: =(M48-O48)/O48 -> 0.1038674033 | O48: =VLOOKUP(LookUpSheet!$B28,'PP2018'!$C$2:$CE$1515,8,FALSE) -> 181000 | P48: =(O48-Q48)/Q48 -> 0.01117318436 | Q48: =VLOOKUP(LookUpSheet!$B28,'PP2017'!$C$2:$CE$1515,8,FALSE) -> 179000 | R48: =(Q48-S48)/S48 -> 0.05335632279 | S48: =VLOOKUP(LookUpSheet!$B28,'PP2016'!$C$2:$CE$1515,8,FALSE) -> 169933 | T48: =(S48-U48)/U48 -> 0.03660031842 | U48: =VLOOKUP(LookUpSheet!$B28,'PP2015'!$C$2:$CE$1515,8,FALSE) -> 163933 | V48: =(U48-W48)/W48 -> 0.02458125 | W48: =VLOOKUP(LookUpSheet!$B28,'PP2014'!$C$2:$CE$1515,8,FALSE) -> 160000 | X48: -0.0243902439 | Y48: =VLOOKUP(LookUpSheet!$B28,'PP2013'!$C$2:$CE$1515,8,FALSE) -> 164000 | Z48: -0.003039513678 | AA48: =VLOOKUP(LookUpSheet!$B28,'PP2012'!$C$2:$CE$1515,8,FALSE) -> 164500 | AB48: 0.03459119497 | AC48: =VLOOKUP(LookUpSheet!$B28,'PP2011'!$C$2:$CE$1515,8,FALSE) -> 159000 | AD48: -0.0421686747 | AE48: =VLOOKUP(LookUpSheet!$B28,'PP2010'!$C$2:$CE$1515,8,FALSE) -> 166000 | AF48: -0.02295467922 | AG48: =VLOOKUP(LookUpSheet!$B28,'PP2009'!$C$2:$CE$1515,8,FALSE) -> 169900 | AH48: =(AG48-AI48)/AI48 -> -0.1185473411 | AI48: =VLOOKUP(LookUpSheet!$B28,'PP2008'!$C$2:$CE$1515,8,FALSE) -> 192750 | AJ48: =(AI48-AK48)/AK48 -> -0.05975609756 | AK48: =VLOOKUP(LookUpSheet!$B28,'PP2007'!$C$2:$CE$1515,8,FALSE) -> 205000 | AL48: =(AK48-AM48)/AM48 -> 0.01990049751 | AM48: =VLOOKUP(LookUpSheet!$B28,'PP2006'!$C$2:$CE$1515,8,FALSE) -> 201000 | AN48: =(AM48-AO48)/AO48 -> 0.046875 | AO48: =VLOOKUP(LookUpSheet!$B28,'PP2005'!$C$2:$CE$1515,8,FALSE) -> 192000 | AP48: 0.08474576271 | AQ48: =VLOOKUP(LookUpSheet!$B28,'PP2004'!$C$2:$CE$1516,8,FALSE) -> 177000 | AR48: 0.1132075472 | AS48: =VLOOKUP(LookUpSheet!$B28,'PP2003'!$C$2:$CE$1512,8,FALSE) -> 159000 | AT48: 0.1365260901 | AU48: =VLOOKUP(LookUpSheet!$B28,'PP2002'!$C$2:$CE$1515,8,FALSE) -> 139900 | AV48: 0.1397148676 | AW48: =VLOOKUP(LookUpSheet!$B28,'PP2001'!$C$2:$CE$1515,8,FALSE) -> 122750 | AX48: 0.08502532462 | AY48: =VLOOKUP(LookUpSheet!$B28,'PP2000'!$C$2:$CE$1516,8,FALSE) -> 113131
B49: Coos Co. | D49: 1.432432432 | E49: =VLOOKUP(LookUpSheet!$B29,'PP2023'!$C$2:$CE$1515,8,FALSE) -> 216000 | F49: 0.1076923077 | G49: =VLOOKUP(LookUpSheet!$B29,'PP2022'!$C$2:$CE$1515,8,FALSE) -> 195000 | H49: 0.21875 | I49: =VLOOKUP(LookUpSheet!$B29,'PP2021'!$C$2:$CE$1515,8,FALSE) -> 160000 | J49: 0.1034482759 | K49: =VLOOKUP(LookUpSheet!$B29,'PP2020'!$C$2:$CE$1515,8,FALSE) -> 145000 | L49: 0.2083333333 | M49: =VLOOKUP(LookUpSheet!$B29,'PP2019'!$C$2:$CE$1515,8,FALSE) -> 120000 | N49: 0.09090909091 | O49: =VLOOKUP(LookUpSheet!$B29,'PP2018'!$C$2:$CE$1515,8,FALSE) -> 110000 | P49: 0.05735680025 | Q49: =VLOOKUP(LookUpSheet!$B29,'PP2017'!$C$2:$CE$1515,8,FALSE) -> 104033 | R49: 0.04033 | S49: =VLOOKUP(LookUpSheet!$B29,'PP2016'!$C$2:$CE$1515,8,FALSE) -> 100000 | T49: -0.04275075144 | U49: =VLOOKUP(LookUpSheet!$B29,'PP2015'!$C$2:$CE$1515,8,FALSE) -> 104466 | V49: -0.1191736931 | W49: =VLOOKUP(LookUpSheet!$B29,'PP2014'!$C$2:$CE$1515,8,FALSE) -> 118600 | X49: 0.3355855856 | Y49: =VLOOKUP(LookUpSheet!$B29,'PP2013'!$C$2:$CE$1515,8,FALSE) -> 88800 | Z49: -0.09387755102 | AA49: =VLOOKUP(LookUpSheet!$B29,'PP2012'!$C$2:$CE$1515,8,FALSE) -> 98000 | AB49: 0.05945945946 | AC49: =VLOOKUP(LookUpSheet!$B29,'PP2011'!$C$2:$CE$1515,8,FALSE) -> 92500 | AD49: -0.02631578947 | AE49: =VLOOKUP(LookUpSheet!$B29,'PP2010'!$C$2:$CE$1515,8,FALSE) -> 95000 | AF49: 0.1875 | AG49: =VLOOKUP(LookUpSheet!$B29,'PP2009'!$C$2:$CE$1515,8,FALSE) -> 80000 | AH49: =(AG49-AI49)/AI49 -> -0.3043478261 | AI49: =VLOOKUP(LookUpSheet!$B29,'PP2008'!$C$2:$CE$1515,8,FALSE) -> 115000 | AJ49: -0.09827260395 | AK49: =VLOOKUP(LookUpSheet!$B29,'PP2007'!$C$2:$CE$1515,8,FALSE) -> 127533 | AL49: 0.06366138449 | AM49: =VLOOKUP(LookUpSheet!$B29,'PP2006'!$C$2:$CE$1515,8,FALSE) -> 119900 | AN49: 0.1419047619 | AO49: =VLOOKUP(LookUpSheet!$B29,'PP2005'!$C$2:$CE$1515,8,FALSE) -> 105000 | AP49: 0.1140583554 | AQ49: =VLOOKUP(LookUpSheet!$B29,'PP2004'!$C$2:$CE$1516,8,FALSE) -> 94250 | AR49: 0.08333333333 | AS49: =VLOOKUP(LookUpSheet!$B29,'PP2003'!$C$2:$CE$1512,8,FALSE) -> 87000 | AT49: 0.16 | AU49: =VLOOKUP(LookUpSheet!$B29,'PP2002'!$C$2:$CE$1515,8,FALSE) -> 75000 | AV49: 0.1538461538 | AW49: =VLOOKUP(LookUpSheet!$B29,'PP2001'!$C$2:$CE$1515,8,FALSE) -> 65000 | AX49: -0.07076483202 | AY49: =VLOOKUP(LookUpSheet!$B29,'PP2000'!$C$2:$CE$1516,8,FALSE) -> 69950
B50: Grafton Co. | D50: 0.8684210526 | E50: =VLOOKUP(LookUpSheet!$B30,'PP2023'!$C$2:$CE$1515,8,FALSE) -> 355000 | F50: 0.08728943338 | G50: =VLOOKUP(LookUpSheet!$B30,'PP2022'!$C$2:$CE$1515,8,FALSE) -> 326500 | H50: 0.1872727273 | I50: =VLOOKUP(LookUpSheet!$B30,'PP2021'!$C$2:$CE$1515,8,FALSE) -> 275000 | J50: 0.1904761905 | K50: =VLOOKUP(LookUpSheet!$B30,'PP2020'!$C$2:$CE$1515,8,FALSE) -> 231000 | L50: 0.1130759927 | M50: =VLOOKUP(LookUpSheet!$B30,'PP2019'!$C$2:$CE$1515,8,FALSE) -> 207533 | N50: 0.037665 | O50: =VLOOKUP(LookUpSheet!$B30,'PP2018'!$C$2:$CE$1515,8,FALSE) -> 200000 | P50: 0.08108108108 | Q50: =VLOOKUP(LookUpSheet!$B30,'PP2017'!$C$2:$CE$1515,8,FALSE) -> 185000 | R50: -0.02597231655 | S50: =VLOOKUP(LookUpSheet!$B30,'PP2016'!$C$2:$CE$1515,8,FALSE) -> 189933 | T50: 0.05421111641 | U50: =VLOOKUP(LookUpSheet!$B30,'PP2015'!$C$2:$CE$1515,8,FALSE) -> 180166 | V50: 0.07241666667 | W50: =VLOOKUP(LookUpSheet!$B30,'PP2014'!$C$2:$CE$1515,8,FALSE) -> 168000 | X50: -0.1157894737 | Y50: =VLOOKUP(LookUpSheet!$B30,'PP2013'!$C$2:$CE$1515,8,FALSE) -> 190000 | Z50: 0.02702702703 | AA50: =VLOOKUP(LookUpSheet!$B30,'PP2012'!$C$2:$CE$1515,8,FALSE) -> 185000 | AB50: -0.02355089675 | AC50: =VLOOKUP(LookUpSheet!$B30,'PP2011'!$C$2:$CE$1515,8,FALSE) -> 189462 | AD50: 0.02411891892 | AE50: =VLOOKUP(LookUpSheet!$B30,'PP2010'!$C$2:$CE$1515,8,FALSE) -> 185000 | AF50: 0.01648351648 | AG50: =VLOOKUP(LookUpSheet!$B30,'PP2009'!$C$2:$CE$1515,8,FALSE) -> 182000 | AH50: -0.1435938941 | AI50: =VLOOKUP(LookUpSheet!$B30,'PP2008'!$C$2:$CE$1515,8,FALSE) -> 212516 | AJ50: -0.03838914027 | AK50: =VLOOKUP(LookUpSheet!$B30,'PP2007'!$C$2:$CE$1515,8,FALSE) -> 221000 | AL50: 0.04 | AM50: =VLOOKUP(LookUpSheet!$B30,'PP2006'!$C$2:$CE$1515,8,FALSE) -> 212500 | AN50: 0.07052896725 | AO50: =VLOOKUP(LookUpSheet!$B30,'PP2005'!$C$2:$CE$1515,8,FALSE) -> 198500 | AP50: 0.09668508287 | AQ50: =VLOOKUP(LookUpSheet!$B30,'PP2004'!$C$2:$CE$1516,8,FALSE) -> 181000 | AR50: 0.1830065359 | AS50: =VLOOKUP(LookUpSheet!$B30,'PP2003'!$C$2:$CE$1512,8,FALSE) -> 153000 | AT50: 0.1778290993 | AU50: =VLOOKUP(LookUpSheet!$B30,'PP2002'!$C$2:$CE$1515,8,FALSE) -> 129900 | AV50: 0.1008474576 | AW50: =VLOOKUP(LookUpSheet!$B30,'PP2001'!$C$2:$CE$1515,8,FALSE) -> 118000 | AX50: 0.1346153846 | AY50: =VLOOKUP(LookUpSheet!$B30,'PP2000'!$C$2:$CE$1516,8,FALSE) -> 104000
B51: Hillsborough Co. | D51: 0.9111111111 | E51: =VLOOKUP(LookUpSheet!$B31,'PP2023'!$C$2:$CE$1515,8,FALSE) -> 430000 | F51: 0.03614457831 | G51: =VLOOKUP(LookUpSheet!$B31,'PP2022'!$C$2:$CE$1515,8,FALSE) -> 415000 | H51: 0.11479426 | I51: =VLOOKUP(LookUpSheet!$B31,'PP2021'!$C$2:$CE$1515,8,FALSE) -> 372266 | J51: 0.174340694 | K51: =VLOOKUP(LookUpSheet!$B31,'PP2020'!$C$2:$CE$1515,8,FALSE) -> 317000 | L51: 0.1241134752 | M51: =VLOOKUP(LookUpSheet!$B31,'PP2019'!$C$2:$CE$1515,8,FALSE) -> 282000 | N51: 0.0641509434 | O51: =VLOOKUP(LookUpSheet!$B31,'PP2018'!$C$2:$CE$1515,8,FALSE) -> 265000 | P51: 0.06 | Q51: =VLOOKUP(LookUpSheet!$B31,'PP2017'!$C$2:$CE$1515,8,FALSE) -> 250000 | R51: 0.06382978723 | S51: =VLOOKUP(LookUpSheet!$B31,'PP2016'!$C$2:$CE$1515,8,FALSE) -> 235000 | T51: 0.04444444444 | U51: =VLOOKUP(LookUpSheet!$B31,'PP2015'!$C$2:$CE$1515,8,FALSE) -> 225000 | V51: 0.03798566196 | W51: =VLOOKUP(LookUpSheet!$B31,'PP2014'!$C$2:$CE$1515,8,FALSE) -> 216766 | X51: -0.03659555556 | Y51: =VLOOKUP(LookUpSheet!$B31,'PP2013'!$C$2:$CE$1515,8,FALSE) -> 225000 | Z51: 0.07193901858 | AA51: =VLOOKUP(LookUpSheet!$B31,'PP2012'!$C$2:$CE$1515,8,FALSE) -> 209900 | AB51: -0.003796867584 | AC51: =VLOOKUP(LookUpSheet!$B31,'PP2011'!$C$2:$CE$1515,8,FALSE) -> 210700 | AD51: -0.06320581906 | AE51: =VLOOKUP(LookUpSheet!$B31,'PP2010'!$C$2:$CE$1515,8,FALSE) -> 224916 | AF51: 0.02936384439 | AG51: =VLOOKUP(LookUpSheet!$B31,'PP2009'!$C$2:$CE$1515,8,FALSE) -> 218500 | AH51: -0.1077991017 | AI51: =VLOOKUP(LookUpSheet!$B31,'PP2008'!$C$2:$CE$1515,8,FALSE) -> 244900 | AJ51: -0.0758490566 | AK51: =VLOOKUP(LookUpSheet!$B31,'PP2007'!$C$2:$CE$1515,8,FALSE) -> 265000 | AL51: 0.01145038168 | AM51: =VLOOKUP(LookUpSheet!$B31,'PP2006'!$C$2:$CE$1515,8,FALSE) -> 262000 | AN51: -0.007199696855 | AO51: =VLOOKUP(LookUpSheet!$B31,'PP2005'!$C$2:$CE$1515,8,FALSE) -> 263900 | AP51: 0.05602240896 | AQ51: =VLOOKUP(LookUpSheet!$B31,'PP2004'!$C$2:$CE$1516,8,FALSE) -> 249900 | AR51: 0.1106666667 | AS51: =VLOOKUP(LookUpSheet!$B31,'PP2003'!$C$2:$CE$1512,8,FALSE) -> 225000 | AT51: 0.1045655376 | AU51: =VLOOKUP(LookUpSheet!$B31,'PP2002'!$C$2:$CE$1515,8,FALSE) -> 203700 | AV51: 0.1843023256 | AW51: =VLOOKUP(LookUpSheet!$B31,'PP2001'!$C$2:$CE$1515,8,FALSE) -> 172000 | AX51: 0.1474316211 | AY51: =VLOOKUP(LookUpSheet!$B31,'PP2000'!$C$2:$CE$1516,8,FALSE) -> 149900
B52: Merrimack Co. | D52: 0.9259259259 | E52: =VLOOKUP(LookUpSheet!$B32,'PP2023'!$C$2:$CE$1515,8,FALSE) -> 390000 | F52: 0.06849315068 | G52: =VLOOKUP(LookUpSheet!$B32,'PP2022'!$C$2:$CE$1515,8,FALSE) -> 365000 | H52: 0.1162079511 | I52: =VLOOKUP(LookUpSheet!$B32,'PP2021'!$C$2:$CE$1515,8,FALSE) -> 327000 | J52: 0.1657754011 | K52: =VLOOKUP(LookUpSheet!$B32,'PP2020'!$C$2:$CE$1515,8,FALSE) -> 280500 | L52: 0.1224489796 | M52: =VLOOKUP(LookUpSheet!$B32,'PP2019'!$C$2:$CE$1515,8,FALSE) -> 249900 | N52: 0.04125 | O52: =VLOOKUP(LookUpSheet!$B32,'PP2018'!$C$2:$CE$1515,8,FALSE) -> 240000 | P52: 0.05263157895 | Q52: =VLOOKUP(LookUpSheet!$B32,'PP2017'!$C$2:$CE$1515,8,FALSE) -> 228000 | R52: 0.08571428571 | S52: =VLOOKUP(LookUpSheet!$B32,'PP2016'!$C$2:$CE$1515,8,FALSE) -> 210000 | T52: 0.05210420842 | U52: =VLOOKUP(LookUpSheet!$B32,'PP2015'!$C$2:$CE$1515,8,FALSE) -> 199600 | V52: -0.009591481296 | W52: =VLOOKUP(LookUpSheet!$B32,'PP2014'!$C$2:$CE$1515,8,FALSE) -> 201533 | X52: -0.004775308642 | Y52: =VLOOKUP(LookUpSheet!$B32,'PP2013'!$C$2:$CE$1515,8,FALSE) -> 202500 | Z52: 0.09459459459 | AA52: =VLOOKUP(LookUpSheet!$B32,'PP2012'!$C$2:$CE$1515,8,FALSE) -> 185000 | AB52: 0.0139764319 | AC52: =VLOOKUP(LookUpSheet!$B32,'PP2011'!$C$2:$CE$1515,8,FALSE) -> 182450 | AD52: -0.06435897436 | AE52: =VLOOKUP(LookUpSheet!$B32,'PP2010'!$C$2:$CE$1515,8,FALSE) -> 195000 | AF52: -0.02475618905 | AG52: =VLOOKUP(LookUpSheet!$B32,'PP2009'!$C$2:$CE$1515,8,FALSE) -> 199950 | AH52: -0.1381465517 | AI52: =VLOOKUP(LookUpSheet!$B32,'PP2008'!$C$2:$CE$1515,8,FALSE) -> 232000 | AJ52: -0.02521008403 | AK52: =VLOOKUP(LookUpSheet!$B32,'PP2007'!$C$2:$CE$1515,8,FALSE) -> 238000 | AL52: -0.003416856492 | AM52: =VLOOKUP(LookUpSheet!$B32,'PP2006'!$C$2:$CE$1515,8,FALSE) -> 238816 | AN52: 0.0166709238 | AO52: =VLOOKUP(LookUpSheet!$B32,'PP2005'!$C$2:$CE$1515,8,FALSE) -> 234900 | AP52: 0.05810810811 | AQ52: =VLOOKUP(LookUpSheet!$B32,'PP2004'!$C$2:$CE$1516,8,FALSE) -> 222000 | AR52: 0.1384615385 | AS52: =VLOOKUP(LookUpSheet!$B32,'PP2003'!$C$2:$CE$1512,8,FALSE) -> 195000 | AT52: 0.1304347826 | AU52: =VLOOKUP(LookUpSheet!$B32,'PP2002'!$C$2:$CE$1515,8,FALSE) -> 172500 | AV52: 0.1896551724 | AW52: =VLOOKUP(LookUpSheet!$B32,'PP2001'!$C$2:$CE$1515,8,FALSE) -> 145000 | AX52: 0.116243264 | AY52: =VLOOKUP(LookUpSheet!$B32,'PP2000'!$C$2:$CE$1516,8,FALSE) -> 129900
B53: Rockingham Co. | D53: 0.970260223 | E53: =VLOOKUP(LookUpSheet!$B33,'PP2023'!$C$2:$CE$1515,8,FALSE) -> 530000 | F53: 0.05732285852 | G53: =VLOOKUP(LookUpSheet!$B33,'PP2022'!$C$2:$CE$1515,8,FALSE) -> 501266 | H53: 0.1140903201 | I53: =VLOOKUP(LookUpSheet!$B33,'PP2021'!$C$2:$CE$1515,8,FALSE) -> 449933 | J53: 0.1390708861 | K53: =VLOOKUP(LookUpSheet!$B33,'PP2020'!$C$2:$CE$1515,8,FALSE) -> 395000 | L53: 0.1318051576 | M53: =VLOOKUP(LookUpSheet!$B33,'PP2019'!$C$2:$CE$1515,8,FALSE) -> 349000 | N53: 0.05757575758 | O53: =VLOOKUP(LookUpSheet!$B33,'PP2018'!$C$2:$CE$1515,8,FALSE) -> 330000 | P53: 0.05588849817 | Q53: =VLOOKUP(LookUpSheet!$B33,'PP2017'!$C$2:$CE$1515,8,FALSE) -> 312533 | R53: 0.06303741497 | S53: =VLOOKUP(LookUpSheet!$B33,'PP2016'!$C$2:$CE$1515,8,FALSE) -> 294000 | T53: 0.06909090909 | U53: =VLOOKUP(LookUpSheet!$B33,'PP2015'!$C$2:$CE$1515,8,FALSE) -> 275000 | V53: 0.02611940299 | W53: =VLOOKUP(LookUpSheet!$B33,'PP2014'!$C$2:$CE$1515,8,FALSE) -> 268000 | X53: -0.003717472119 | Y53: =VLOOKUP(LookUpSheet!$B33,'PP2013'!$C$2:$CE$1515,8,FALSE) -> 269000 | Z53: 0.05490196078 | AA53: =VLOOKUP(LookUpSheet!$B33,'PP2012'!$C$2:$CE$1515,8,FALSE) -> 255000 | AB53: 0.02 | AC53: =VLOOKUP(LookUpSheet!$B33,'PP2011'!$C$2:$CE$1515,8,FALSE) -> 250000 | AD53: -0.03474903475 | AE53: =VLOOKUP(LookUpSheet!$B33,'PP2010'!$C$2:$CE$1515,8,FALSE) -> 259000 | AF53: 0.04858299595 | AG53: =VLOOKUP(LookUpSheet!$B33,'PP2009'!$C$2:$CE$1515,8,FALSE) -> 247000 | AH53: -0.1333333333 | AI53: =VLOOKUP(LookUpSheet!$B33,'PP2008'!$C$2:$CE$1515,8,FALSE) -> 285000 | AJ53: -0.05 | AK53: =VLOOKUP(LookUpSheet!$B33,'PP2007'!$C$2:$CE$1515,8,FALSE) -> 300000 | AL53: -0.01234567901 | AM53: =VLOOKUP(LookUpSheet!$B33,'PP2006'!$C$2:$CE$1515,8,FALSE) -> 303750 | AN53: -0.01058631922 | AO53: =VLOOKUP(LookUpSheet!$B33,'PP2005'!$C$2:$CE$1515,8,FALSE) -> 307000 | AP53: 0.07757107757 | AQ53: =VLOOKUP(LookUpSheet!$B33,'PP2004'!$C$2:$CE$1516,8,FALSE) -> 284900 | AR53: 0.07509433962 | AS53: =VLOOKUP(LookUpSheet!$B33,'PP2003'!$C$2:$CE$1512,8,FALSE) -> 265000 | AT53: 0.08207431605 | AU53: =VLOOKUP(LookUpSheet!$B33,'PP2002'!$C$2:$CE$1515,8,FALSE) -> 244900 | AV53: 0.1667460696 | AW53: =VLOOKUP(LookUpSheet!$B33,'PP2001'!$C$2:$CE$1515,8,FALSE) -> 209900 | AX53: 0.1603095633 | AY53: =VLOOKUP(LookUpSheet!$B33,'PP2000'!$C$2:$CE$1516,8,FALSE) -> 180900
B54: Strafford Co. | D54: 0.95 | E54: =VLOOKUP(LookUpSheet!$B34,'PP2023'!$C$2:$CE$1515,8,FALSE) -> 390000 | F54: 0.06849315068 | G54: =VLOOKUP(LookUpSheet!$B34,'PP2022'!$C$2:$CE$1515,8,FALSE) -> 365000 | H54: 0.140625 | I54: =VLOOKUP(LookUpSheet!$B34,'PP2021'!$C$2:$CE$1515,8,FALSE) -> 320000 | J54: 0.1246498649 | K54: =VLOOKUP(LookUpSheet!$B34,'PP2020'!$C$2:$CE$1515,8,FALSE) -> 284533 | L54: 0.1158156863 | M54: =VLOOKUP(LookUpSheet!$B34,'PP2019'!$C$2:$CE$1515,8,FALSE) -> 255000 | N54: 0.04110103579 | O54: =VLOOKUP(LookUpSheet!$B34,'PP2018'!$C$2:$CE$1515,8,FALSE) -> 244933 | P54: 0.06957641921 | Q54: =VLOOKUP(LookUpSheet!$B34,'PP2017'!$C$2:$CE$1515,8,FALSE) -> 229000 | R54: 0.08274231678 | S54: =VLOOKUP(LookUpSheet!$B34,'PP2016'!$C$2:$CE$1515,8,FALSE) -> 211500 | T54: 0.03170731707 | U54: =VLOOKUP(LookUpSheet!$B34,'PP2015'!$C$2:$CE$1515,8,FALSE) -> 205000 | V54: -0.02380952381 | W54: =VLOOKUP(LookUpSheet!$B34,'PP2014'!$C$2:$CE$1515,8,FALSE) -> 210000 | X54: 0.05 | Y54: =VLOOKUP(LookUpSheet!$B34,'PP2013'!$C$2:$CE$1515,8,FALSE) -> 200000 | Z54: 0.0643959553 | AA54: =VLOOKUP(LookUpSheet!$B34,'PP2012'!$C$2:$CE$1515,8,FALSE) -> 187900 | AB54: 0.008859060403 | AC54: =VLOOKUP(LookUpSheet!$B34,'PP2011'!$C$2:$CE$1515,8,FALSE) -> 186250 | AD54: -0.04487179487 | AE54: =VLOOKUP(LookUpSheet!$B34,'PP2010'!$C$2:$CE$1515,8,FALSE) -> 195000 | AF54: 0.0003437078381 | AG54: =VLOOKUP(LookUpSheet!$B34,'PP2009'!$C$2:$CE$1515,8,FALSE) -> 194933 | AH54: -0.1355521064 | AI54: =VLOOKUP(LookUpSheet!$B34,'PP2008'!$C$2:$CE$1515,8,FALSE) -> 225500 | AJ54: -0.04042553191 | AK54: =VLOOKUP(LookUpSheet!$B34,'PP2007'!$C$2:$CE$1515,8,FALSE) -> 235000 | AL54: 0.02218355807 | AM54: =VLOOKUP(LookUpSheet!$B34,'PP2006'!$C$2:$CE$1515,8,FALSE) -> 229900 | AN54: -0.02170212766 | AO54: =VLOOKUP(LookUpSheet!$B34,'PP2005'!$C$2:$CE$1515,8,FALSE) -> 235000 | AP54: 0.06818181818 | AQ54: =VLOOKUP(LookUpSheet!$B34,'PP2004'!$C$2:$CE$1516,8,FALSE) -> 220000 | AR54: 0.1027568922 | AS54: =VLOOKUP(LookUpSheet!$B34,'PP2003'!$C$2:$CE$1512,8,FALSE) -> 199500 | AT54: 0.14 | AU54: =VLOOKUP(LookUpSheet!$B34,'PP2002'!$C$2:$CE$1515,8,FALSE) -> 175000 | AV54: 0.1217948718 | AW54: =VLOOKUP(LookUpSheet!$B34,'PP2001'!$C$2:$CE$1515,8,FALSE) -> 156000 | AX54: 0.2140077821 | AY54: =VLOOKUP(LookUpSheet!$B34,'PP2000'!$C$2:$CE$1516,8,FALSE) -> 128500
B55: Sullivan Co. | D55: 1.02020202 | E55: =VLOOKUP(LookUpSheet!$B35,'PP2023'!$C$2:$CE$1515,8,FALSE) -> 300000 | F55: 0.09090909091 | G55: =VLOOKUP(LookUpSheet!$B35,'PP2022'!$C$2:$CE$1515,8,FALSE) -> 275000 | H55: 0.1554621849 | I55: =VLOOKUP(LookUpSheet!$B35,'PP2021'!$C$2:$CE$1515,8,FALSE) -> 238000 | J55: 0.1185997763 | K55: =VLOOKUP(LookUpSheet!$B35,'PP2020'!$C$2:$CE$1515,8,FALSE) -> 212766 | L55: 0.2118861283 | M55: =VLOOKUP(LookUpSheet!$B35,'PP2019'!$C$2:$CE$1515,8,FALSE) -> 175566 | N55: 0.02073255814 | O55: =VLOOKUP(LookUpSheet!$B35,'PP2018'!$C$2:$CE$1515,8,FALSE) -> 172000 | P55: 0.08267344806 | Q55: =VLOOKUP(LookUpSheet!$B35,'PP2017'!$C$2:$CE$1515,8,FALSE) -> 158866 | R55: -0.0008427672956 | S55: =VLOOKUP(LookUpSheet!$B35,'PP2016'!$C$2:$CE$1515,8,FALSE) -> 159000 | T55: 0.0127388535 | U55: =VLOOKUP(LookUpSheet!$B35,'PP2015'!$C$2:$CE$1515,8,FALSE) -> 157000 | V55: 0.08650519031 | W55: =VLOOKUP(LookUpSheet!$B35,'PP2014'!$C$2:$CE$1515,8,FALSE) -> 144500 | X55: -0.02693602694 | Y55: =VLOOKUP(LookUpSheet!$B35,'PP2013'!$C$2:$CE$1515,8,FALSE) -> 148500 | Z55: -0.06456692913 | AA55: =VLOOKUP(LookUpSheet!$B35,'PP2012'!$C$2:$CE$1515,8,FALSE) -> 158750 | AB55: 0.05903935957 | AC55: =VLOOKUP(LookUpSheet!$B35,'PP2011'!$C$2:$CE$1515,8,FALSE) -> 149900 | AD55: -0.02345276873 | AE55: =VLOOKUP(LookUpSheet!$B35,'PP2010'!$C$2:$CE$1515,8,FALSE) -> 153500 | AF55: 0.03020134228 | AG55: =VLOOKUP(LookUpSheet!$B35,'PP2009'!$C$2:$CE$1515,8,FALSE) -> 149000 | AH55: -0.1945945946 | AI55: =VLOOKUP(LookUpSheet!$B35,'PP2008'!$C$2:$CE$1515,8,FALSE) -> 185000 | AJ55: -0.02631578947 | AK55: =VLOOKUP(LookUpSheet!$B35,'PP2007'!$C$2:$CE$1515,8,FALSE) -> 190000 | AL55: 0.03683492497 | AM55: =VLOOKUP(LookUpSheet!$B35,'PP2006'!$C$2:$CE$1515,8,FALSE) -> 183250 | AN55: 0.07794117647 | AO55: =VLOOKUP(LookUpSheet!$B35,'PP2005'!$C$2:$CE$1515,8,FALSE) -> 170000 | AP55: 0.156462585 | AQ55: =VLOOKUP(LookUpSheet!$B35,'PP2004'!$C$2:$CE$1516,8,FALSE) -> 147000 | AR55: 0.09701492537 | AS55: =VLOOKUP(LookUpSheet!$B35,'PP2003'!$C$2:$CE$1512,8,FALSE) -> 134000 | AT55: 0.1166666667 | AU55: =VLOOKUP(LookUpSheet!$B35,'PP2002'!$C$2:$CE$1515,8,FALSE) -> 120000 | AV55: 0.1214953271 | AW55: =VLOOKUP(LookUpSheet!$B35,'PP2001'!$C$2:$CE$1515,8,FALSE) -> 107000 | AX55: 0.1888888889 | AY55: =VLOOKUP(LookUpSheet!$B35,'PP2000'!$C$2:$CE$1516,8,FALSE) -> 90000
B57: New Hampshire Statewide | D57: =(E57-Y57)/Y57 -> 0.9 | E57: =VLOOKUP(LookUpSheet!$B20,'PP2023'!$C$2:$CE$1515,8,FALSE) -> 418000 | F57: =(E57-G57)/G57 -> 0.045 | G57: =VLOOKUP(LookUpSheet!$B20,'PP2022'!$C$2:$CE$1515,8,FALSE) -> 400000 | H57: =(G57-I57)/I57 -> 0.1428571429 | I57: =VLOOKUP(LookUpSheet!$B20,'PP2021'!$C$2:$CE$1515,8,FALSE) -> 350000 | J57: =(I57-K57)/K57 -> 0.1576639004 | K57: =VLOOKUP(LookUpSheet!$B20,'PP2020'!$C$2:$CE$1515,8,FALSE) -> 302333 | L57: =(K57-M57)/M57 -> 0.1197518519 | M57: =VLOOKUP(LookUpSheet!$B20,'PP2019'!$C$2:$CE$1515,8,FALSE) -> 270000 | N57: =(M57-O57)/O57 -> 0.06299212598 | O57: =VLOOKUP(LookUpSheet!$B20,'PP2018'!$C$2:$CE$1515,8,FALSE) -> 254000 | P57: =(O57-Q57)/Q57 -> 0.05833333333 | Q57: =VLOOKUP(LookUpSheet!$B20,'PP2017'!$C$2:$CE$1515,8,FALSE) -> 240000 | R57: =(Q57-S57)/S57 -> 0.04347826087 | S57: =VLOOKUP(LookUpSheet!$B20,'PP2016'!$C$2:$CE$1515,8,FALSE) -> 230000 | T57: =(S57-U57)/U57 -> 0.0407239819 | U57: =VLOOKUP(LookUpSheet!$B20,'PP2015'!$C$2:$CE$1515,8,FALSE) -> 221000 | V57: =(U57-W57)/W57 -> 0.009132420091 | W57: =VLOOKUP(LookUpSheet!$B20,'PP2014'!$C$2:$CE$1515,8,FALSE) -> 219000 | X57: =(W57-Y57)/Y57 -> -0.004545454545 | Y57: =VLOOKUP(LookUpSheet!$B20,'PP2013'!$C$2:$CE$1515,8,FALSE) -> 220000 | Z57: =(Y57-AA57)/AA57 -> 0.07317073171 | AA57: =VLOOKUP(LookUpSheet!$B20,'PP2012'!$C$2:$CE$1515,8,FALSE) -> 205000 | AB57: =(AA57-AC57)/AC57 -> -0.009661835749 | AC57: =VLOOKUP(LookUpSheet!$B20,'PP2011'!$C$2:$CE$1515,8,FALSE) -> 207000 | AD57: =(AC57-AE57)/AE57 -> -0.03720930233 | AE57: =VLOOKUP(LookUpSheet!$B20,'PP2010'!$C$2:$CE$1515,8,FALSE) -> 215000 | AF57: =(AE57-AG57)/AG57 -> 0.02380952381 | AG57: =VLOOKUP(LookUpSheet!$B20,'PP2009'!$C$2:$CE$1515,8,FALSE) -> 210000 | AH57: =(AG57-AI57)/AI57 -> -0.125 | AI57: =VLOOKUP(LookUpSheet!$B20,'PP2008'!$C$2:$CE$1515,8,FALSE) -> 240000 | AJ57: =(AI57-AK57)/AK57 -> -0.0495049505 | AK57: =VLOOKUP(LookUpSheet!$B20,'PP2007'!$C$2:$CE$1515,8,FALSE) -> 252500 | AL57: =(AK57-AM57)/AM57 -> 0.01040416166 | AM57: =VLOOKUP(LookUpSheet!$B20,'PP2006'!$C$2:$CE$1515,8,FALSE) -> 249900 | AN57: =(AM57-AO57)/AO57 -> -0.0004 | AO57: =VLOOKUP(LookUpSheet!$B20,'PP2005'!$C$2:$CE$1515,8,FALSE) -> 250000 | AP57: =(AO57-AQ57)/AQ57 -> 0.05042016807 | AQ57: =VLOOKUP(LookUpSheet!$B20,'PP2004'!$C$2:$CE$1516,8,FALSE) -> 238000 | AR57: =(AQ57-AS57)/AS57 -> 0.1069767442 | AS57: =VLOOKUP(LookUpSheet!$B20,'PP2003'!$C$2:$CE$1512,8,FALSE) -> 215000 | AT57: =(AS57-AU57)/AU57 -> 0.1321748289 | AU57: =VLOOKUP(LookUpSheet!$B20,'PP2002'!$C$2:$CE$1515,8,FALSE) -> 189900 | AV57: =(AU57-AW57)/AW57 -> 0.1722222222 | AW57: =VLOOKUP(LookUpSheet!$B20,'PP2001'!$C$2:$CE$1515,8,FALSE) -> 162000 | AX57: =(AW57-AY57)/AY57 -> 0.1328671329 | AY57: =VLOOKUP(LookUpSheet!$B20,'PP2000'!$C$2:$CE$1516,8,FALSE) -> 143000
D58: Source: 1990-2014 - NH Dept. of Revenue, PA-34 Dataset, Compiled by Real Data Corp. Filtered and analyzed by New Hampshire Housine.
D59: =StateWideChartAndTable!$C$66 -> 2015 - The Warren Group. Filtered and analyzed by New Hampshire Housing.
D60: Note: Calculations based on a sample size of less than 50 are hiehly volatile and not considered valid.
B89: Table 2 - Existing Homes
E90: =E44 -> 2023 | G90: =G44 -> 2022 | I90: =I44 -> 2021 | K90: =K44 -> 2020 | M90: =M44 -> 2019 | O90: =O44 -> 2018 | Q90: =Q44 -> 2017 | S90: =S44 -> 2016 | U90: =U44 -> 2015 | W90: =W44 -> 2014 | Y90: =Y44 -> 2013 | AA90: =AA44 -> 2012 | AC90: =AC44 -> 2011 | AE90: 2010 | AG90: 2009 | AI90: 2008 | AK90: 2007 | AM90: 2006 | AO90: 2005 | AQ90: 2004 | AS90: 2003 | AU90: 2002 | AW90: 2001 | AY90: 2000
D91: =D45 -> Change Since 2013 | E91: Median | F91: % Chng Prior Yr | G91: Median | H91: % Chng Prior Yr | I91: Median | J91: % Chng Prior Yr | K91: Median | L91: % Chng Prior Yr | M91: Median | N91: % Chng Prior Yr | O91: Median | P91: % Chng Prior Yr | Q91: Median | R91: % Chng Prior Yr | S91: Median | T91: % Chng Prior Yr | U91: Median | V91: % Chng Prior Yr | W91: Median | X91: % Chng Prior Yr | Y91: Median | Z91: % Chng Prior Yr | AA91: Median | AB91: % Chng Prior Yr | AC91: Median | AD91: % Chng Prior Yr | AE91: Median | AF91: % Chng Prior Yr | AG91: Median | AH91: % Chng Prior Yr | AI91: Median | AJ91: % Chng Prior Yr | AK91: Median | AL91: % Chng Prior Yr | AM91: Median | AN91: % Chng Prior Yr | AO91: Median | AP91: % Chng Prior Yr | AQ91: Median | AR91: % Chng Prior Yr | AS91: Median | AT91: % Chng Prior Yr | AU91: Median | AV91: % Chng Prior Yr | AW91: Median | AX91: % Chng Prior Yr | AY91: Median
B92: Belknap County | D92: =(E92-Y92)/Y92 -> 1.23266745 | E92: =VLOOKUP(LookUpSheet!$C26,'PP2023'!$C$2:$CE$1515,8,FALSE) -> 380000 | F92: =(E92-G92)/G92 -> 0.01333333333 | G92: =VLOOKUP(LookUpSheet!$C26,'PP2022'!$C$2:$CE$1515,8,FALSE) -> 375000 | H92: =(G92-I92)/I92 -> 0.1904761905 | I92: =VLOOKUP(LookUpSheet!$C26,'PP2021'!$C$2:$CE$1515,8,FALSE) -> 315000 | J92: =(I92-K92)/K92 -> 0.1886792453 | K92: =VLOOKUP(LookUpSheet!$C26,'PP2020'!$C$2:$CE$1515,8,FALSE) -> 265000 | L92: =(K92-M92)/M92 -> 0.1043231124 | M92: =VLOOKUP(LookUpSheet!$C26,'PP2019'!$C$2:$CE$1515,8,FALSE) -> 239966 | N92: =(M92-O92)/O92 -> 0.1031245834 | O92: =VLOOKUP(LookUpSheet!$C26,'PP2018'!$C$2:$CE$1515,8,FALSE) -> 217533 | P92: =(O92-Q92)/Q92 -> 0.06113658537 | Q92: =VLOOKUP(LookUpSheet!$C26,'PP2017'!$C$2:$CE$1515,8,FALSE) -> 205000 | R92: =(Q92-S92)/S92 -> 0.03015075377 | S92: =VLOOKUP(LookUpSheet!$C26,'PP2016'!$C$2:$CE$1515,8,FALSE) -> 199000 | T92: =(S92-U92)/U92 -> 0.04736842105 | U92: =VLOOKUP(LookUpSheet!$C26,'PP2015'!$C$2:$CE$1515,8,FALSE) -> 190000 | V92: =(U92-W92)/W92 -> -0.005235602094 | W92: =VLOOKUP(LookUpSheet!$C26,'PP2014'!$C$2:$CE$1515,8,FALSE) -> 191000 | X92: =(W92-Y92)/Y92 -> 0.1222091657 | Y92: =VLOOKUP(LookUpSheet!$C26,'PP2013'!$C$2:$CE$1515,8,FALSE) -> 170200 | Z92: =(Y92-AA92)/AA92 -> 0.02689722581 | AA92: =VLOOKUP(LookUpSheet!$C26,'PP2012'!$C$2:$CE$1515,8,FALSE) -> 165742 | AB92: =(AA92-AC92)/AC92 -> -0.001554216867 | AC92: =VLOOKUP(LookUpSheet!$C26,'PP2011'!$C$2:$CE$1515,8,FALSE) -> 166000 | AD92: =(AC92-AE92)/AE92 -> -0.04487917146 | AE92: =VLOOKUP(LookUpSheet!$C26,'PP2010'!$C$2:$CE$1515,8,FALSE) -> 173800 | AF92: =(AE92-AG92)/AG92 -> 0.05333333333 | AG92: =VLOOKUP(LookUpSheet!$C26,'PP2009'!$C$2:$CE$1515,8,FALSE) -> 165000 | AH92: =(AG92-AI92)/AI92 -> -0.2142857143 | AI92: =VLOOKUP(LookUpSheet!$C26,'PP2008'!$C$2:$CE$1515,8,FALSE) -> 210000 | AJ92: =(AI92-AK92)/AK92 -> 0 | AK92: =VLOOKUP(LookUpSheet!$C26,'PP2007'!$C$2:$CE$1515,8,FALSE) -> 210000 | AL92: =(AK92-AM92)/AM92 -> -0.02325581395 | AM92: =VLOOKUP(LookUpSheet!$C26,'PP2006'!$C$2:$CE$1515,8,FALSE) -> 215000 | AN92: =(AM92-AO92)/AO92 -> 0.02380952381 | AO92: =VLOOKUP(LookUpSheet!$C26,'PP2005'!$C$2:$CE$1515,8,FALSE) -> 210000 | AP92: =(AO92-AQ92)/AQ92 -> 0.1351351351 | AQ92: =VLOOKUP(LookUpSheet!$C26,'PP2004'!$C$2:$CE$1516,8,FALSE) -> 185000 | AR92: =(AQ92-AS92)/AS92 -> 0.08823529412 | AS92: =VLOOKUP(LookUpSheet!$C26,'PP2003'!$C$2:$CE$1512,8,FALSE) -> 170000 | AT92: =(AS92-AU92)/AU92 -> 0.1724137931 | AU92: =VLOOKUP(LookUpSheet!$C26,'PP2002'!$C$2:$CE$1515,8,FALSE) -> 145000 | AV92: =(AU92-AW92)/AW92 -> 0.16 | AW92: =VLOOKUP(LookUpSheet!$C26,'PP2001'!$C$2:$CE$1515,8,FALSE) -> 125000 | AX92: =(AW92-AY92)/AY92 -> 0.09170305677 | AY92: =VLOOKUP(LookUpSheet!$C26,'PP2000'!$C$2:$CE$1516,8,FALSE) -> 114500
B93: Carroll County | D93: =(E93-Y93)/Y93 -> 1.306196166 | E93: =VLOOKUP(LookUpSheet!$C27,'PP2023'!$C$2:$CE$1515,8,FALSE) -> 415000 | F93: =(E93-G93)/G93 -> 0.1037234043 | G93: =VLOOKUP(LookUpSheet!$C27,'PP2022'!$C$2:$CE$1515,8,FALSE) -> 376000 | H93: =(G93-I93)/I93 -> 0.1463414634 | I93: =VLOOKUP(LookUpSheet!$C27,'PP2021'!$C$2:$CE$1515,8,FALSE) -> 328000 | J93: =(I93-K93)/K93 -> 0.224950143 | K93: =VLOOKUP(LookUpSheet!$C27,'PP2020'!$C$2:$CE$1515,8,FALSE) -> 267766 | L93: =(K93-M93)/M93 -> 0.1203598326 | M93: =VLOOKUP(LookUpSheet!$C27,'PP2019'!$C$2:$CE$1515,8,FALSE) -> 239000 | N93: =(M93-O93)/O93 -> 0.111627907 | O93: =VLOOKUP(LookUpSheet!$C27,'PP2018'!$C$2:$CE$1515,8,FALSE) -> 215000 | P93: =(O93-Q93)/Q93 -> 0 | Q93: =VLOOKUP(LookUpSheet!$C27,'PP2017'!$C$2:$CE$1515,8,FALSE) -> 215000 | R93: =(Q93-S93)/S93 -> 0.08040201005 | S93: =VLOOKUP(LookUpSheet!$C27,'PP2016'!$C$2:$CE$1515,8,FALSE) -> 199000 | T93: =(S93-U93)/U93 -> 0.0005027652086 | U93: =VLOOKUP(LookUpSheet!$C27,'PP2015'!$C$2:$CE$1515,8,FALSE) -> 198900 | V93: =(U93-W93)/W93 -> 0.06935483871 | W93: =VLOOKUP(LookUpSheet!$C27,'PP2014'!$C$2:$CE$1515,8,FALSE) -> 186000 | X93: 0.03362045013 | Y93: =VLOOKUP(LookUpSheet!$C27,'PP2013'!$C$2:$CE$1515,8,FALSE) -> 179950 | Z93: 0.07432835821 | AA93: =VLOOKUP(LookUpSheet!$C27,'PP2012'!$C$2:$CE$1515,8,FALSE) -> 167500 | AB93: -0.01759530792 | AC93: =VLOOKUP(LookUpSheet!$C27,'PP2011'!$C$2:$CE$1515,8,FALSE) -> 170500 | AD93: -0.05277777778 | AE93: =VLOOKUP(LookUpSheet!$C27,'PP2010'!$C$2:$CE$1515,8,FALSE) -> 180000 | AF93: 0.07441518984 | AG93: =VLOOKUP(LookUpSheet!$C27,'PP2009'!$C$2:$CE$1515,8,FALSE) -> 167533 | AH93: -0.1747142857 | AI93: =VLOOKUP(LookUpSheet!$C27,'PP2008'!$C$2:$CE$1515,8,FALSE) -> 203000 | AJ93: -0.06880733945 | AK93: =VLOOKUP(LookUpSheet!$C27,'PP2007'!$C$2:$CE$1515,8,FALSE) -> 218000 | AL93: 0.0380952381 | AM93: =VLOOKUP(LookUpSheet!$C27,'PP2006'!$C$2:$CE$1515,8,FALSE) -> 210000 | AN93: 0.0243902439 | AO93: =VLOOKUP(LookUpSheet!$C27,'PP2005'!$C$2:$CE$1515,8,FALSE) -> 205000 | AP93: 0.06770833333 | AQ93: =VLOOKUP(LookUpSheet!$C27,'PP2004'!$C$2:$CE$1516,8,FALSE) -> 192000 | AR93: 0.1833590139 | AS93: =VLOOKUP(LookUpSheet!$C27,'PP2003'!$C$2:$CE$1512,8,FALSE) -> 162250 | AT93: 0.1594834671 | AU93: =VLOOKUP(LookUpSheet!$C27,'PP2002'!$C$2:$CE$1515,8,FALSE) -> 139933 | AV93: 0.1469918033 | AW93: =VLOOKUP(LookUpSheet!$C27,'PP2001'!$C$2:$CE$1515,8,FALSE) -> 122000 | AX93: 0.119266055 | AY93: =VLOOKUP(LookUpSheet!$C27,'PP2000'!$C$2:$CE$1516,8,FALSE) -> 109000
B94: Cheshire County | D94: 0.8597560976 | E94: =VLOOKUP(LookUpSheet!$C28,'PP2023'!$C$2:$CE$1515,8,FALSE) -> 305000 | F94: =(E94-G94)/G94 -> 0.08928571429 | G94: =VLOOKUP(LookUpSheet!$C28,'PP2022'!$C$2:$CE$1515,8,FALSE) -> 280000 | H94: =(G94-I94)/I94 -> 0.05660377358 | I94: =VLOOKUP(LookUpSheet!$C28,'PP2021'!$C$2:$CE$1515,8,FALSE) -> 265000 | J94: =(I94-K94)/K94 -> 0.1422413793 | K94: =VLOOKUP(LookUpSheet!$C28,'PP2020'!$C$2:$CE$1515,8,FALSE) -> 232000 | L94: =(K94-M94)/M94 -> 0.1658291457 | M94: =VLOOKUP(LookUpSheet!$C28,'PP2019'!$C$2:$CE$1515,8,FALSE) -> 199000 | N94: =(M94-O94)/O94 -> 0.09944751381 | O94: =VLOOKUP(LookUpSheet!$C28,'PP2018'!$C$2:$CE$1515,8,FALSE) -> 181000 | P94: =(O94-Q94)/Q94 -> 0.01709392104 | Q94: =VLOOKUP(LookUpSheet!$C28,'PP2017'!$C$2:$CE$1515,8,FALSE) -> 177958 | R94: =(Q94-S94)/S94 -> 0.04742789876 | S94: =VLOOKUP(LookUpSheet!$C28,'PP2016'!$C$2:$CE$1515,8,FALSE) -> 169900 | T94: =(S94-U94)/U94 -> 0.03893403778 | U94: =VLOOKUP(LookUpSheet!$C28,'PP2015'!$C$2:$CE$1515,8,FALSE) -> 163533 | V94: =(U94-W94)/W94 -> 0.02208125 | W94: =VLOOKUP(LookUpSheet!$C28,'PP2014'!$C$2:$CE$1515,8,FALSE) -> 160000 | X94: -0.0243902439 | Y94: =VLOOKUP(LookUpSheet!$C28,'PP2013'!$C$2:$CE$1515,8,FALSE) -> 164000 | Z94: 0.01547987616 | AA94: =VLOOKUP(LookUpSheet!$C28,'PP2012'!$C$2:$CE$1515,8,FALSE) -> 161500 | AB94: 0.02931803697 | AC94: =VLOOKUP(LookUpSheet!$C28,'PP2011'!$C$2:$CE$1515,8,FALSE) -> 156900 | AD94: -0.03446153846 | AE94: =VLOOKUP(LookUpSheet!$C28,'PP2010'!$C$2:$CE$1515,8,FALSE) -> 162500 | AF94: -0.02694610778 | AG94: =VLOOKUP(LookUpSheet!$C28,'PP2009'!$C$2:$CE$1515,8,FALSE) -> 167000 | AH94: -0.1210526316 | AI94: =VLOOKUP(LookUpSheet!$C28,'PP2008'!$C$2:$CE$1515,8,FALSE) -> 190000 | AJ94: -0.07317073171 | AK94: =VLOOKUP(LookUpSheet!$C28,'PP2007'!$C$2:$CE$1515,8,FALSE) -> 205000 | AL94: 0.03015075377 | AM94: =VLOOKUP(LookUpSheet!$C28,'PP2006'!$C$2:$CE$1515,8,FALSE) -> 199000 | AN94: 0.05291005291 | AO94: =VLOOKUP(LookUpSheet!$C28,'PP2005'!$C$2:$CE$1515,8,FALSE) -> 189000 | AP94: 0.08464849354 | AQ94: =VLOOKUP(LookUpSheet!$C28,'PP2004'!$C$2:$CE$1516,8,FALSE) -> 174250 | AR94: 0.1392611965 | AS94: =VLOOKUP(LookUpSheet!$C28,'PP2003'!$C$2:$CE$1512,8,FALSE) -> 152950 | AT94: 0.132962963 | AU94: =VLOOKUP(LookUpSheet!$C28,'PP2002'!$C$2:$CE$1515,8,FALSE) -> 135000 | AV94: 0.125 | AW94: =VLOOKUP(LookUpSheet!$C28,'PP2001'!$C$2:$CE$1515,8,FALSE) -> 120000 | AX94: 0.06524633822 | AY94: =VLOOKUP(LookUpSheet!$C28,'PP2000'!$C$2:$CE$1516,8,FALSE) -> 112650
B95: Coos County | D95: 1.457240593 | E95: =VLOOKUP(LookUpSheet!$C29,'PP2023'!$C$2:$CE$1515,8,FALSE) -> 215500 | F95: =(E95-G95)/G95 -> 0.1342105263 | G95: =VLOOKUP(LookUpSheet!$C29,'PP2022'!$C$2:$CE$1515,8,FALSE) -> 190000 | H95: =(G95-I95)/I95 -> 0.1875 | I95: =VLOOKUP(LookUpSheet!$C29,'PP2021'!$C$2:$CE$1515,8,FALSE) -> 160000 | J95: =(I95-K95)/K95 -> 0.1034482759 | K95: =VLOOKUP(LookUpSheet!$C29,'PP2020'!$C$2:$CE$1515,8,FALSE) -> 145000 | L95: =(K95-M95)/M95 -> 0.2083333333 | M95: =VLOOKUP(LookUpSheet!$C29,'PP2019'!$C$2:$CE$1515,8,FALSE) -> 120000 | N95: =(M95-O95)/O95 -> 0.09090909091 | O95: =VLOOKUP(LookUpSheet!$C29,'PP2018'!$C$2:$CE$1515,8,FALSE) -> 110000 | P95: =(O95-Q95)/Q95 -> 0.05229927391 | Q95: =VLOOKUP(LookUpSheet!$C29,'PP2017'!$C$2:$CE$1515,8,FALSE) -> 104533 | R95: =(Q95-S95)/S95 -> 0.04637637638 | S95: =VLOOKUP(LookUpSheet!$C29,'PP2016'!$C$2:$CE$1515,8,FALSE) -> 99900 | T95: =(S95-U95)/U95 -> -0.04310344828 | U95: =VLOOKUP(LookUpSheet!$C29,'PP2015'!$C$2:$CE$1515,8,FALSE) -> 104400 | V95: =(U95-W95)/W95 -> -0.1197301855 | W95: =VLOOKUP(LookUpSheet!$C29,'PP2014'!$C$2:$CE$1515,8,FALSE) -> 118600 | X95: 0.3523375143 | Y95: =VLOOKUP(LookUpSheet!$C29,'PP2013'!$C$2:$CE$1515,8,FALSE) -> 87700 | Z95: -0.1051020408 | AA95: =VLOOKUP(LookUpSheet!$C29,'PP2012'!$C$2:$CE$1515,8,FALSE) -> 98000 | AB95: 0.08888888889 | AC95: =VLOOKUP(LookUpSheet!$C29,'PP2011'!$C$2:$CE$1515,8,FALSE) -> 90000 | AD95: -0.04761904762 | AE95: =VLOOKUP(LookUpSheet!$C29,'PP2010'!$C$2:$CE$1515,8,FALSE) -> 94500 | AF95: 0.1849529781 | AG95: =VLOOKUP(LookUpSheet!$C29,'PP2009'!$C$2:$CE$1515,8,FALSE) -> 79750 | AH95: -0.3065217391 | AI95: =VLOOKUP(LookUpSheet!$C29,'PP2008'!$C$2:$CE$1515,8,FALSE) -> 115000 | AJ95: -0.08 | AK95: =VLOOKUP(LookUpSheet!$C29,'PP2007'!$C$2:$CE$1515,8,FALSE) -> 125000 | AL95: 0.08695652174 | AM95: =VLOOKUP(LookUpSheet!$C29,'PP2006'!$C$2:$CE$1515,8,FALSE) -> 115000 | AN95: 0.09523809524 | AO95: =VLOOKUP(LookUpSheet!$C29,'PP2005'!$C$2:$CE$1515,8,FALSE) -> 105000 | AP95: 0.1602209945 | AQ95: =VLOOKUP(LookUpSheet!$C29,'PP2004'!$C$2:$CE$1516,8,FALSE) -> 90500 | AR95: 0.06470588235 | AS95: =VLOOKUP(LookUpSheet!$C29,'PP2003'!$C$2:$CE$1512,8,FALSE) -> 85000 | AT95: 0.1401743796 | AU95: =VLOOKUP(LookUpSheet!$C29,'PP2002'!$C$2:$CE$1515,8,FALSE) -> 74550 | AV95: 0.1469230769 | AW95: =VLOOKUP(LookUpSheet!$C29,'PP2001'!$C$2:$CE$1515,8,FALSE) -> 65000 | AX95: -0.04901243599 | AY95: =VLOOKUP(LookUpSheet!$C29,'PP2000'!$C$2:$CE$1516,8,FALSE) -> 68350
B96: Grafton County | D96: 0.8918918919 | E96: =VLOOKUP(LookUpSheet!$C30,'PP2023'!$C$2:$CE$1515,8,FALSE) -> 350000 | F96: 0.07692307692 | G96: =VLOOKUP(LookUpSheet!$C30,'PP2022'!$C$2:$CE$1515,8,FALSE) -> 325000 | H96: 0.1818181818 | I96: =VLOOKUP(LookUpSheet!$C30,'PP2021'!$C$2:$CE$1515,8,FALSE) -> 275000 | J96: 0.1956521739 | K96: =VLOOKUP(LookUpSheet!$C30,'PP2020'!$C$2:$CE$1515,8,FALSE) -> 230000 | L96: 0.1106282293 | M96: =VLOOKUP(LookUpSheet!$C30,'PP2019'!$C$2:$CE$1515,8,FALSE) -> 207090 | N96: 0.05121827411 | O96: =VLOOKUP(LookUpSheet!$C30,'PP2018'!$C$2:$CE$1515,8,FALSE) -> 197000 | P96: 0.08520213956 | Q96: =VLOOKUP(LookUpSheet!$C30,'PP2017'!$C$2:$CE$1515,8,FALSE) -> 181533 | R96: -0.03950793651 | S96: =VLOOKUP(LookUpSheet!$C30,'PP2016'!$C$2:$CE$1515,8,FALSE) -> 189000 | T96: 0.05 | U96: =VLOOKUP(LookUpSheet!$C30,'PP2015'!$C$2:$CE$1515,8,FALSE) -> 180000 | V96: 0.0904662955 | W96: =VLOOKUP(LookUpSheet!$C30,'PP2014'!$C$2:$CE$1515,8,FALSE) -> 165067 | X96: -0.1077459459 | Y96: =VLOOKUP(LookUpSheet!$C30,'PP2013'!$C$2:$CE$1515,8,FALSE) -> 185000 | Z96: 0.02777777778 | AA96: =VLOOKUP(LookUpSheet!$C30,'PP2012'!$C$2:$CE$1515,8,FALSE) -> 180000 | AB96: -0.02702702703 | AC96: =VLOOKUP(LookUpSheet!$C30,'PP2011'!$C$2:$CE$1515,8,FALSE) -> 185000 | AD96: 0.006802721088 | AE96: =VLOOKUP(LookUpSheet!$C30,'PP2010'!$C$2:$CE$1515,8,FALSE) -> 183750 | AF96: 0.05603448276 | AG96: =VLOOKUP(LookUpSheet!$C30,'PP2009'!$C$2:$CE$1515,8,FALSE) -> 174000 | AH96: -0.1654676259 | AI96: =VLOOKUP(LookUpSheet!$C30,'PP2008'!$C$2:$CE$1515,8,FALSE) -> 208500 | AJ96: -0.05227272727 | AK96: =VLOOKUP(LookUpSheet!$C30,'PP2007'!$C$2:$CE$1515,8,FALSE) -> 220000 | AL96: 0.05769230769 | AM96: =VLOOKUP(LookUpSheet!$C30,'PP2006'!$C$2:$CE$1515,8,FALSE) -> 208000 | AN96: 0.08192457737 | AO96: =VLOOKUP(LookUpSheet!$C30,'PP2005'!$C$2:$CE$1515,8,FALSE) -> 192250 | AP96: 0.07703081232 | AQ96: =VLOOKUP(LookUpSheet!$C30,'PP2004'!$C$2:$CE$1516,8,FALSE) -> 178500 | AR96: 0.19 | AS96: =VLOOKUP(LookUpSheet!$C30,'PP2003'!$C$2:$CE$1512,8,FALSE) -> 150000 | AT96: 0.185770751 | AU96: =VLOOKUP(LookUpSheet!$C30,'PP2002'!$C$2:$CE$1515,8,FALSE) -> 126500 | AV96: 0.09051724138 | AW96: =VLOOKUP(LookUpSheet!$C30,'PP2001'!$C$2:$CE$1515,8,FALSE) -> 116000 | AX96: 0.1258310283 | AY96: =VLOOKUP(LookUpSheet!$C30,'PP2000'!$C$2:$CE$1516,8,FALSE) -> 103035
B97: Hillsborough County | D97: 0.9318181818 | E97: =VLOOKUP(LookUpSheet!$C31,'PP2023'!$C$2:$CE$1515,8,FALSE) -> 425000 | F97: 0.03658536585 | G97: =VLOOKUP(LookUpSheet!$C31,'PP2022'!$C$2:$CE$1515,8,FALSE) -> 410000 | H97: 0.1081081081 | I97: =VLOOKUP(LookUpSheet!$C31,'PP2021'!$C$2:$CE$1515,8,FALSE) -> 370000 | J97: 0.1746031746 | K97: =VLOOKUP(LookUpSheet!$C31,'PP2020'!$C$2:$CE$1515,8,FALSE) -> 315000 | L97: 0.125 | M97: =VLOOKUP(LookUpSheet!$C31,'PP2019'!$C$2:$CE$1515,8,FALSE) -> 280000 | N97: 0.06870229008 | O97: =VLOOKUP(LookUpSheet!$C31,'PP2018'!$C$2:$CE$1515,8,FALSE) -> 262000 | P97: 0.06072874494 | Q97: =VLOOKUP(LookUpSheet!$C31,'PP2017'!$C$2:$CE$1515,8,FALSE) -> 247000 | R97: 0.06221482542 | S97: =VLOOKUP(LookUpSheet!$C31,'PP2016'!$C$2:$CE$1515,8,FALSE) -> 232533 | T97: 0.03809375 | U97: =VLOOKUP(LookUpSheet!$C31,'PP2015'!$C$2:$CE$1515,8,FALSE) -> 224000 | V97: 0.06161137441 | W97: =VLOOKUP(LookUpSheet!$C31,'PP2014'!$C$2:$CE$1515,8,FALSE) -> 211000 | X97: -0.04090909091 | Y97: =VLOOKUP(LookUpSheet!$C31,'PP2013'!$C$2:$CE$1515,8,FALSE) -> 220000 | Z97: 0.08356769589 | AA97: =VLOOKUP(LookUpSheet!$C31,'PP2012'!$C$2:$CE$1515,8,FALSE) -> 203033 | AB97: -0.01440291262 | AC97: =VLOOKUP(LookUpSheet!$C31,'PP2011'!$C$2:$CE$1515,8,FALSE) -> 206000 | AD97: -0.05287356322 | AE97: =VLOOKUP(LookUpSheet!$C31,'PP2010'!$C$2:$CE$1515,8,FALSE) -> 217500 | AF97: 0.02352941176 | AG97: =VLOOKUP(LookUpSheet!$C31,'PP2009'!$C$2:$CE$1515,8,FALSE) -> 212500 | AH97: -0.09535972754 | AI97: =VLOOKUP(LookUpSheet!$C31,'PP2008'!$C$2:$CE$1515,8,FALSE) -> 234900 | AJ97: -0.07882352941 | AK97: =VLOOKUP(LookUpSheet!$C31,'PP2007'!$C$2:$CE$1515,8,FALSE) -> 255000 | AL97: 0.009900990099 | AM97: =VLOOKUP(LookUpSheet!$C31,'PP2006'!$C$2:$CE$1515,8,FALSE) -> 252500 | AN97: -0.003551696922 | AO97: =VLOOKUP(LookUpSheet!$C31,'PP2005'!$C$2:$CE$1515,8,FALSE) -> 253400 | AP97: 0.05583333333 | AQ97: =VLOOKUP(LookUpSheet!$C31,'PP2004'!$C$2:$CE$1516,8,FALSE) -> 240000 | AR97: 0.1059907834 | AS97: =VLOOKUP(LookUpSheet!$C31,'PP2003'!$C$2:$CE$1512,8,FALSE) -> 217000 | AT97: 0.118556701 | AU97: =VLOOKUP(LookUpSheet!$C31,'PP2002'!$C$2:$CE$1515,8,FALSE) -> 194000 | AV97: 0.2049689441 | AW97: =VLOOKUP(LookUpSheet!$C31,'PP2001'!$C$2:$CE$1515,8,FALSE) -> 161000 | AX97: 0.1524613281 | AY97: =VLOOKUP(LookUpSheet!$C31,'PP2000'!$C$2:$CE$1516,8,FALSE) -> 139701
B98: Merrimack County | D98: 0.9346733668 | E98: =VLOOKUP(LookUpSheet!$C32,'PP2023'!$C$2:$CE$1515,8,FALSE) -> 385000 | F98: 0.0635359116 | G98: =VLOOKUP(LookUpSheet!$C32,'PP2022'!$C$2:$CE$1515,8,FALSE) -> 362000 | H98: 0.1138461538 | I98: =VLOOKUP(LookUpSheet!$C32,'PP2021'!$C$2:$CE$1515,8,FALSE) -> 325000 | J98: 0.1607142857 | K98: =VLOOKUP(LookUpSheet!$C32,'PP2020'!$C$2:$CE$1515,8,FALSE) -> 280000 | L98: 0.1290322581 | M98: =VLOOKUP(LookUpSheet!$C32,'PP2019'!$C$2:$CE$1515,8,FALSE) -> 248000 | N98: 0.03362188611 | O98: =VLOOKUP(LookUpSheet!$C32,'PP2018'!$C$2:$CE$1515,8,FALSE) -> 239933 | P98: 0.06636888889 | Q98: =VLOOKUP(LookUpSheet!$C32,'PP2017'!$C$2:$CE$1515,8,FALSE) -> 225000 | R98: 0.08173076923 | S98: =VLOOKUP(LookUpSheet!$C32,'PP2016'!$C$2:$CE$1515,8,FALSE) -> 208000 | T98: 0.05583756345 | U98: =VLOOKUP(LookUpSheet!$C32,'PP2015'!$C$2:$CE$1515,8,FALSE) -> 197000 | V98: -0.01005025126 | W98: =VLOOKUP(LookUpSheet!$C32,'PP2014'!$C$2:$CE$1515,8,FALSE) -> 199000 | X98: 0 | Y98: =VLOOKUP(LookUpSheet!$C32,'PP2013'!$C$2:$CE$1515,8,FALSE) -> 199000 | Z98: 0.0886214442 | AA98: =VLOOKUP(LookUpSheet!$C32,'PP2012'!$C$2:$CE$1515,8,FALSE) -> 182800 | AB98: 0.04457142857 | AC98: =VLOOKUP(LookUpSheet!$C32,'PP2011'!$C$2:$CE$1515,8,FALSE) -> 175000 | AD98: -0.07407407407 | AE98: =VLOOKUP(LookUpSheet!$C32,'PP2010'!$C$2:$CE$1515,8,FALSE) -> 189000 | AF98: -0.03076923077 | AG98: =VLOOKUP(LookUpSheet!$C32,'PP2009'!$C$2:$CE$1515,8,FALSE) -> 195000 | AH98: -0.1367861886 | AI98: =VLOOKUP(LookUpSheet!$C32,'PP2008'!$C$2:$CE$1515,8,FALSE) -> 225900 | AJ98: -0.01782608696 | AK98: =VLOOKUP(LookUpSheet!$C32,'PP2007'!$C$2:$CE$1515,8,FALSE) -> 230000 | AL98: -0.003250270856 | AM98: =VLOOKUP(LookUpSheet!$C32,'PP2006'!$C$2:$CE$1515,8,FALSE) -> 230750 | AN98: 0.02124363797 | AO98: =VLOOKUP(LookUpSheet!$C32,'PP2005'!$C$2:$CE$1515,8,FALSE) -> 225950 | AP98: 0.06580188679 | AQ98: =VLOOKUP(LookUpSheet!$C32,'PP2004'!$C$2:$CE$1516,8,FALSE) -> 212000 | AR98: 0.1397849462 | AS98: =VLOOKUP(LookUpSheet!$C32,'PP2003'!$C$2:$CE$1512,8,FALSE) -> 186000 | AT98: 0.1272727273 | AU98: =VLOOKUP(LookUpSheet!$C32,'PP2002'!$C$2:$CE$1515,8,FALSE) -> 165000 | AV98: 0.1879049676 | AW98: =VLOOKUP(LookUpSheet!$C32,'PP2001'!$C$2:$CE$1515,8,FALSE) -> 138900 | AX98: 0.1112 | AY98: =VLOOKUP(LookUpSheet!$C32,'PP2000'!$C$2:$CE$1516,8,FALSE) -> 125000
B99: Rockingham County | D99: 0.9712807692 | E99: =VLOOKUP(LookUpSheet!$C33,'PP2023'!$C$2:$CE$1515,8,FALSE) -> 512533 | F99: 0.025066 | G99: =VLOOKUP(LookUpSheet!$C33,'PP2022'!$C$2:$CE$1515,8,FALSE) -> 500000 | H99: 0.1363636364 | I99: =VLOOKUP(LookUpSheet!$C33,'PP2021'!$C$2:$CE$1515,8,FALSE) -> 440000 | J99: 0.1282051282 | K99: =VLOOKUP(LookUpSheet!$C33,'PP2020'!$C$2:$CE$1515,8,FALSE) -> 390000 | L99: 0.1239193084 | M99: =VLOOKUP(LookUpSheet!$C33,'PP2019'!$C$2:$CE$1515,8,FALSE) -> 347000 | N99: 0.06769230769 | O99: =VLOOKUP(LookUpSheet!$C33,'PP2018'!$C$2:$CE$1515,8,FALSE) -> 325000 | P99: 0.06557377049 | Q99: =VLOOKUP(LookUpSheet!$C33,'PP2017'!$C$2:$CE$1515,8,FALSE) -> 305000 | R99: 0.06643356643 | S99: =VLOOKUP(LookUpSheet!$C33,'PP2016'!$C$2:$CE$1515,8,FALSE) -> 286000 | T99: 0.05147058824 | U99: =VLOOKUP(LookUpSheet!$C33,'PP2015'!$C$2:$CE$1515,8,FALSE) -> 272000 | V99: 0.06666666667 | W99: =VLOOKUP(LookUpSheet!$C33,'PP2014'!$C$2:$CE$1515,8,FALSE) -> 255000 | X99: -0.01923076923 | Y99: =VLOOKUP(LookUpSheet!$C33,'PP2013'!$C$2:$CE$1515,8,FALSE) -> 260000 | Z99: 0.04859850776 | AA99: =VLOOKUP(LookUpSheet!$C33,'PP2012'!$C$2:$CE$1515,8,FALSE) -> 247950 | AB99: 0.01204081633 | AC99: =VLOOKUP(LookUpSheet!$C33,'PP2011'!$C$2:$CE$1515,8,FALSE) -> 245000 | AD99: -0.02 | AE99: =VLOOKUP(LookUpSheet!$C33,'PP2010'!$C$2:$CE$1515,8,FALSE) -> 250000 | AF99: 0.04166666667 | AG99: =VLOOKUP(LookUpSheet!$C33,'PP2009'!$C$2:$CE$1515,8,FALSE) -> 240000 | AH99: -0.1272727273 | AI99: =VLOOKUP(LookUpSheet!$C33,'PP2008'!$C$2:$CE$1515,8,FALSE) -> 275000 | AJ99: -0.05172413793 | AK99: =VLOOKUP(LookUpSheet!$C33,'PP2007'!$C$2:$CE$1515,8,FALSE) -> 290000 | AL99: 0 | AM99: =VLOOKUP(LookUpSheet!$C33,'PP2006'!$C$2:$CE$1515,8,FALSE) -> 290000 | AN99: -0.01694915254 | AO99: =VLOOKUP(LookUpSheet!$C33,'PP2005'!$C$2:$CE$1515,8,FALSE) -> 295000 | AP99: 0.07272727273 | AQ99: =VLOOKUP(LookUpSheet!$C33,'PP2004'!$C$2:$CE$1516,8,FALSE) -> 275000 | AR99: 0.08695652174 | AS99: =VLOOKUP(LookUpSheet!$C33,'PP2003'!$C$2:$CE$1512,8,FALSE) -> 253000 | AT99: 0.09523809524 | AU99: =VLOOKUP(LookUpSheet!$C33,'PP2002'!$C$2:$CE$1515,8,FALSE) -> 231000 | AV99: 0.2157894737 | AW99: =VLOOKUP(LookUpSheet!$C33,'PP2001'!$C$2:$CE$1515,8,FALSE) -> 190000 | AX99: 0.1363636364 | AY99: =VLOOKUP(LookUpSheet!$C33,'PP2000'!$C$2:$CE$1516,8,FALSE) -> 167200
B100: Strafford County | D100: 0.9487179487 | E100: =VLOOKUP(LookUpSheet!$C34,'PP2023'!$C$2:$CE$1515,8,FALSE) -> 380000 | F100: 0.05263157895 | G100: =VLOOKUP(LookUpSheet!$C34,'PP2022'!$C$2:$CE$1515,8,FALSE) -> 361000 | H100: 0.146031746 | I100: =VLOOKUP(LookUpSheet!$C34,'PP2021'!$C$2:$CE$1515,8,FALSE) -> 315000 | J100: 0.125 | K100: =VLOOKUP(LookUpSheet!$C34,'PP2020'!$C$2:$CE$1515,8,FALSE) -> 280000 | L100: 0.102653062 | M100: =VLOOKUP(LookUpSheet!$C34,'PP2019'!$C$2:$CE$1515,8,FALSE) -> 253933 | N100: 0.05805416667 | O100: =VLOOKUP(LookUpSheet!$C34,'PP2018'!$C$2:$CE$1515,8,FALSE) -> 240000 | P100: 0.06666666667 | Q100: =VLOOKUP(LookUpSheet!$C34,'PP2017'!$C$2:$CE$1515,8,FALSE) -> 225000 | R100: 0.07177051726 | S100: =VLOOKUP(LookUpSheet!$C34,'PP2016'!$C$2:$CE$1515,8,FALSE) -> 209933 | T100: 0.049665 | U100: =VLOOKUP(LookUpSheet!$C34,'PP2015'!$C$2:$CE$1515,8,FALSE) -> 200000 | V100: -0.01477832512 | W100: =VLOOKUP(LookUpSheet!$C34,'PP2014'!$C$2:$CE$1515,8,FALSE) -> 203000 | X100: 0.04102564103 | Y100: =VLOOKUP(LookUpSheet!$C34,'PP2013'!$C$2:$CE$1515,8,FALSE) -> 195000 | Z100: 0.0985915493 | AA100: =VLOOKUP(LookUpSheet!$C34,'PP2012'!$C$2:$CE$1515,8,FALSE) -> 177500 | AB100: -0.01388888889 | AC100: =VLOOKUP(LookUpSheet!$C34,'PP2011'!$C$2:$CE$1515,8,FALSE) -> 180000 | AD100: -0.0243902439 | AE100: =VLOOKUP(LookUpSheet!$C34,'PP2010'!$C$2:$CE$1515,8,FALSE) -> 184500 | AF100: -0.002702702703 | AG100: =VLOOKUP(LookUpSheet!$C34,'PP2009'!$C$2:$CE$1515,8,FALSE) -> 185000 | AH100: -0.1441128846 | AI100: =VLOOKUP(LookUpSheet!$C34,'PP2008'!$C$2:$CE$1515,8,FALSE) -> 216150 | AJ100: -0.05611353712 | AK100: =VLOOKUP(LookUpSheet!$C34,'PP2007'!$C$2:$CE$1515,8,FALSE) -> 229000 | AL100: 0.03153153153 | AM100: =VLOOKUP(LookUpSheet!$C34,'PP2006'!$C$2:$CE$1515,8,FALSE) -> 222000 | AN100: -0.03056768559 | AO100: =VLOOKUP(LookUpSheet!$C34,'PP2005'!$C$2:$CE$1515,8,FALSE) -> 229000 | AP100: 0.06511627907 | AQ100: =VLOOKUP(LookUpSheet!$C34,'PP2004'!$C$2:$CE$1516,8,FALSE) -> 215000 | AR100: 0.1321748289 | AS100: =VLOOKUP(LookUpSheet!$C34,'PP2003'!$C$2:$CE$1512,8,FALSE) -> 189900 | AT100: 0.1439759036 | AU100: =VLOOKUP(LookUpSheet!$C34,'PP2002'!$C$2:$CE$1515,8,FALSE) -> 166000 | AV100: 0.1377655929 | AW100: =VLOOKUP(LookUpSheet!$C34,'PP2001'!$C$2:$CE$1515,8,FALSE) -> 145900 | AX100: 0.1813765182 | AY100: =VLOOKUP(LookUpSheet!$C34,'PP2000'!$C$2:$CE$1516,8,FALSE) -> 123500
B101: Sullivan County | D101: 1.068965517 | E101: =VLOOKUP(LookUpSheet!$C35,'PP2023'!$C$2:$CE$1515,8,FALSE) -> 300000 | F101: 0.09090909091 | G101: =VLOOKUP(LookUpSheet!$C35,'PP2022'!$C$2:$CE$1515,8,FALSE) -> 275000 | H101: 0.170212766 | I101: =VLOOKUP(LookUpSheet!$C35,'PP2021'!$C$2:$CE$1515,8,FALSE) -> 235000 | J101: 0.1057106426 | K101: =VLOOKUP(LookUpSheet!$C35,'PP2020'!$C$2:$CE$1515,8,FALSE) -> 212533 | L101: 0.2144742857 | M101: =VLOOKUP(LookUpSheet!$C35,'PP2019'!$C$2:$CE$1515,8,FALSE) -> 175000 | N101: 0.02941176471 | O101: =VLOOKUP(LookUpSheet!$C35,'PP2018'!$C$2:$CE$1515,8,FALSE) -> 170000 | P101: 0.07913897406 | Q101: =VLOOKUP(LookUpSheet!$C35,'PP2017'!$C$2:$CE$1515,8,FALSE) -> 157533 | R101: -0.002955696203 | S101: =VLOOKUP(LookUpSheet!$C35,'PP2016'!$C$2:$CE$1515,8,FALSE) -> 158000 | T101: 0.006369426752 | U101: =VLOOKUP(LookUpSheet!$C35,'PP2015'!$C$2:$CE$1515,8,FALSE) -> 157000 | V101: 0.08275862069 | W101: =VLOOKUP(LookUpSheet!$C35,'PP2014'!$C$2:$CE$1515,8,FALSE) -> 145000 | X101: 0 | Y101: =VLOOKUP(LookUpSheet!$C35,'PP2013'!$C$2:$CE$1515,8,FALSE) -> 145000 | Z101: -0.06451612903 | AA101: =VLOOKUP(LookUpSheet!$C35,'PP2012'!$C$2:$CE$1515,8,FALSE) -> 155000 | AB101: 0.05442176871 | AC101: =VLOOKUP(LookUpSheet!$C35,'PP2011'!$C$2:$CE$1515,8,FALSE) -> 147000 | AD101: -0.04234527687 | AE101: =VLOOKUP(LookUpSheet!$C35,'PP2010'!$C$2:$CE$1515,8,FALSE) -> 153500 | AF101: 0.05209047293 | AG101: =VLOOKUP(LookUpSheet!$C35,'PP2009'!$C$2:$CE$1515,8,FALSE) -> 145900 | AH101: -0.2092140921 | AI101: =VLOOKUP(LookUpSheet!$C35,'PP2008'!$C$2:$CE$1515,8,FALSE) -> 184500 | AJ101: -0.02380952381 | AK101: =VLOOKUP(LookUpSheet!$C35,'PP2007'!$C$2:$CE$1515,8,FALSE) -> 189000 | AL101: 0.05058365759 | AM101: =VLOOKUP(LookUpSheet!$C35,'PP2006'!$C$2:$CE$1515,8,FALSE) -> 179900 | AN101: 0.0903030303 | AO101: =VLOOKUP(LookUpSheet!$C35,'PP2005'!$C$2:$CE$1515,8,FALSE) -> 165000 | AP101: 0.161971831 | AQ101: =VLOOKUP(LookUpSheet!$C35,'PP2004'!$C$2:$CE$1516,8,FALSE) -> 142000 | AR101: 0.07779886148 | AS101: =VLOOKUP(LookUpSheet!$C35,'PP2003'!$C$2:$CE$1512,8,FALSE) -> 131750 | AT101: 0.1260683761 | AU101: =VLOOKUP(LookUpSheet!$C35,'PP2002'!$C$2:$CE$1515,8,FALSE) -> 117000 | AV101: 0.0944808232 | AW101: =VLOOKUP(LookUpSheet!$C35,'PP2001'!$C$2:$CE$1515,8,FALSE) -> 106900 | AX101: 0.1877777778 | AY101: =VLOOKUP(LookUpSheet!$C35,'PP2000'!$C$2:$CE$1516,8,FALSE) -> 90000
B103: New Hampshire Statewide | D103: =(E103-Y103)/Y103 -> 0.9069767442 | E103: =VLOOKUP(LookUpSheet!$C20,'PP2023'!$C$2:$CE$1515,8,FALSE) -> 410000 | F103: =(E103-G103)/G103 -> 0.03535353535 | G103: =VLOOKUP(LookUpSheet!$C20,'PP2022'!$C$2:$CE$1515,8,FALSE) -> 396000 | H103: =(G103-I103)/I103 -> 0.1314285714 | I103: =VLOOKUP(LookUpSheet!$C20,'PP2021'!$C$2:$CE$1515,8,FALSE) -> 350000 | J103: =(I103-K103)/K103 -> 0.1666666667 | K103: =VLOOKUP(LookUpSheet!$C20,'PP2020'!$C$2:$CE$1515,8,FALSE) -> 300000 | L103: =(K103-M103)/M103 -> 0.1113868997 | M103: =VLOOKUP(LookUpSheet!$C20,'PP2019'!$C$2:$CE$1515,8,FALSE) -> 269933 | N103: =(M103-O103)/O103 -> 0.079732 | O103: =VLOOKUP(LookUpSheet!$C20,'PP2018'!$C$2:$CE$1515,8,FALSE) -> 250000 | P103: =(O103-Q103)/Q103 -> 0.05071595785 | Q103: =VLOOKUP(LookUpSheet!$C20,'PP2017'!$C$2:$CE$1515,8,FALSE) -> 237933 | R103: =(Q103-S103)/S103 -> 0.05748 | S103: =VLOOKUP(LookUpSheet!$C20,'PP2016'!$C$2:$CE$1515,8,FALSE) -> 225000 | T103: =(S103-U103)/U103 -> 0.02303883455 | U103: =VLOOKUP(LookUpSheet!$C20,'PP2015'!$C$2:$CE$1515,8,FALSE) -> 219933 | V103: =(U103-W103)/W103 -> 0.02997194813 | W103: =VLOOKUP(LookUpSheet!$C20,'PP2014'!$C$2:$CE$1515,8,FALSE) -> 213533 | X103: =(W103-Y103)/Y103 -> -0.006823255814 | Y103: =VLOOKUP(LookUpSheet!$C20,'PP2013'!$C$2:$CE$1515,8,FALSE) -> 215000 | Z103: =(Y103-AA103)/AA103 -> 0.08040201005 | AA103: =VLOOKUP(LookUpSheet!$C20,'PP2012'!$C$2:$CE$1515,8,FALSE) -> 199000 | AB103: =(AA103-AC103)/AC103 -> -0.005 | AC103: =VLOOKUP(LookUpSheet!$C20,'PP2011'!$C$2:$CE$1515,8,FALSE) -> 200000 | AD103: =(AC103-AE103)/AE103 -> -0.0243902439 | AE103: =VLOOKUP(LookUpSheet!$C20,'PP2010'!$C$2:$CE$1515,8,FALSE) -> 205000 | AF103: =(AE103-AG103)/AG103 -> 0.025 | AG103: =VLOOKUP(LookUpSheet!$C20,'PP2009'!$C$2:$CE$1515,8,FALSE) -> 200000 | AH103: =(AG103-AI103)/AI103 -> -0.1377452037 | AI103: =VLOOKUP(LookUpSheet!$C20,'PP2008'!$C$2:$CE$1515,8,FALSE) -> 231950 | AJ103: =(AI103-AK103)/AK103 -> -0.05326530612 | AK103: =VLOOKUP(LookUpSheet!$C20,'PP2007'!$C$2:$CE$1515,8,FALSE) -> 245000 | AL103: =(AK103-AM103)/AM103 -> 0.02083333333 | AM103: =VLOOKUP(LookUpSheet!$C20,'PP2006'!$C$2:$CE$1515,8,FALSE) -> 240000 | AN103: =(AM103-AO103)/AO103 -> 0 | AO103: =VLOOKUP(LookUpSheet!$C20,'PP2005'!$C$2:$CE$1515,8,FALSE) -> 240000 | AP103: =(AO103-AQ103)/AQ103 -> 0.0480349345 | AQ103: =VLOOKUP(LookUpSheet!$C20,'PP2004'!$C$2:$CE$1516,8,FALSE) -> 229000 | AR103: =(AQ103-AS103)/AS103 -> 0.1350681537 | AS103: =VLOOKUP(LookUpSheet!$C20,'PP2003'!$C$2:$CE$1512,8,FALSE) -> 201750 | AT103: =(AS103-AU103)/AU103 -> 0.1214563646 | AU103: =VLOOKUP(LookUpSheet!$C20,'PP2002'!$C$2:$CE$1515,8,FALSE) -> 179900 | AV103: =(AU103-AW103)/AW103 -> 0.1993333333 | AW103: =VLOOKUP(LookUpSheet!$C20,'PP2001'!$C$2:$CE$1515,8,FALSE) -> 150000 | AX103: =(AW103-AY103)/AY103 -> 0.1202389843 | AY103: =VLOOKUP(LookUpSheet!$C20,'PP2000'!$C$2:$CE$1516,8,FALSE) -> 133900
D104: Source: 1990-2014 - NH Dept. of Revenue, PA-34 Dataset, Compiled by Real Data Corp. Filtered and analyzed by New Hampshire Housine.
D105: =StateWideChartAndTable!$C$66 -> 2015 - The Warren Group. Filtered and analyzed by New Hampshire Housing.
D106: Note: Calculations based on a sample size of less than 50 are hiehly volatile and not considered valid.
B131: Table 3 - New Homes
E132: =E90 -> 2023 | G132: =G90 -> 2022 | I132: =I90 -> 2021 | K132: =K90 -> 2020 | M132: =M90 -> 2019 | O132: =O90 -> 2018 | Q132: =Q90 -> 2017 | S132: =S90 -> 2016 | U132: =U90 -> 2015 | W132: =W90 -> 2014 | Y132: =Y90 -> 2013 | AA132: =AA90 -> 2012 | AC132: =AC90 -> 2011 | AE132: 2010 | AG132: 2009 | AI132: 2008 | AK132: 2007 | AM132: 2006 | AO132: 2005 | AQ132: 2004 | AS132: 2003 | AU132: 2002 | AW132: 2001 | AY132: 2000
D133: =D45 -> Change Since 2013 | E133: Median | F133: % Chng Prior Yr | G133: Median | H133: % Chng Prior Yr | I133: Median | J133: % Chng Prior Yr | K133: Median | L133: % Chng Prior Yr | M133: Median | N133: % Chng Prior Yr | O133: Median | P133: % Chng Prior Yr | Q133: Median | R133: % Chng Prior Yr | S133: Median | T133: % Chng Prior Yr | U133: Median | V133: % Chng Prior Yr | W133: Median | X133: % Chng Prior Yr | Y133: Median | Z133: % Chng Prior Yr | AA133: Median | AB133: % Chng Prior Yr | AC133: Median | AD133: % Chng Prior Yr | AE133: Median | AF133: % Chng Prior Yr | AG133: Median | AH133: % Chng Prior Yr | AI133: Median | AJ133: % Chng Prior Yr | AK133: Median | AL133: % Chng Prior Yr | AM133: Median | AN133: % Chng Prior Yr | AO133: Median | AP133: % Chng Prior Yr | AQ133: Median | AR133: % Chng Prior Yr | AS133: Median | AT133: % Chng Prior Yr | AU133: Median | AV133: % Chng Prior Yr | AW133: Median | AX133: % Chng Prior Yr | AY133: Median
B134: Belknap County | D134: =(E134-Y134)/Y134 -> 1.918660287 | E134: =VLOOKUP(LookUpSheet!$D26,'PP2023'!$C$2:$CE$1515,8,FALSE) -> 671000 | F134: =(E134-G134)/G134 -> 0.3693877551 | G134: =VLOOKUP(LookUpSheet!$D26,'PP2022'!$C$2:$CE$1515,8,FALSE) -> 490000 | H134: =(G134-I134)/I134 -> 0.00671209883 | I134: =VLOOKUP(LookUpSheet!$D26,'PP2021'!$C$2:$CE$1515,8,FALSE) -> 486733 | J134: =(I134-K134)/K134 -> 0.2981866093 | K134: =VLOOKUP(LookUpSheet!$D26,'PP2020'!$C$2:$CE$1515,8,FALSE) -> 374933 | L134: =(K134-M134)/M134 -> 0.1881888766 | M134: =VLOOKUP(LookUpSheet!$D26,'PP2019'!$C$2:$CE$1515,8,FALSE) -> 315550 | N134: =(M134-O134)/O134 -> 0.1269642857 | O134: =VLOOKUP(LookUpSheet!$D26,'PP2018'!$C$2:$CE$1515,8,FALSE) -> 280000 | P134: =(O134-Q134)/Q134 -> -0.01696783729 | Q134: =VLOOKUP(LookUpSheet!$D26,'PP2017'!$C$2:$CE$1515,8,FALSE) -> 284833 | R134: =(Q134-S134)/S134 -> -0.4348551587 | S134: =VLOOKUP(LookUpSheet!$D26,'PP2016'!$C$2:$CE$1515,8,FALSE) -> 504000 | T134: =(S134-U134)/U134 -> 0.7000263099 | U134: =VLOOKUP(LookUpSheet!$D26,'PP2015'!$C$2:$CE$1515,8,FALSE) -> 296466 | V134: =(U134-W134)/W134 -> 0.1775458164 | W134: =VLOOKUP(LookUpSheet!$D26,'PP2014'!$C$2:$CE$1515,8,FALSE) -> 251766 | X134: =(W134-Y134)/Y134 -> 0.09511091779 | Y134: =VLOOKUP(LookUpSheet!$D26,'PP2013'!$C$2:$CE$1515,8,FALSE) -> 229900 | Z134: =(Y134-AA134)/AA134 -> -0.153300801 | AA134: =VLOOKUP(LookUpSheet!$D26,'PP2012'!$C$2:$CE$1515,8,FALSE) -> 271525 | AB134: 0.2592463768 | AC134: =VLOOKUP(LookUpSheet!$D26,'PP2011'!$C$2:$CE$1515,8,FALSE) -> 215625 | AD134: =(AC134-AE134)/AE134 -> 0.04927007299 | AE134: =VLOOKUP(LookUpSheet!$D26,'PP2010'!$C$2:$CE$1515,8,FALSE) -> 205500 | AF134: =(AE134-AG134)/AG134 -> -0.1465237977 | AG134: =VLOOKUP(LookUpSheet!$D26,'PP2009'!$C$2:$CE$1515,8,FALSE) -> 240780 | AH134: -0.03688 | AI134: =VLOOKUP(LookUpSheet!$D26,'PP2008'!$C$2:$CE$1515,8,FALSE) -> 250000 | AJ134: =(AI134-AK134)/AK134 -> -0.03809157368 | AK134: =VLOOKUP(LookUpSheet!$D26,'PP2007'!$C$2:$CE$1515,8,FALSE) -> 259900 | AL134: =(AK134-AM134)/AM134 -> -0.1219594595 | AM134: =VLOOKUP(LookUpSheet!$D26,'PP2006'!$C$2:$CE$1515,8,FALSE) -> 296000 | AN134: 0.002625116437 | AO134: =VLOOKUP(LookUpSheet!$D26,'PP2005'!$C$2:$CE$1515,8,FALSE) -> 295225 | AP134: 0.1839546029 | AQ134: =VLOOKUP(LookUpSheet!$D26,'PP2004'!$C$2:$CE$1516,8,FALSE) -> 249355 | AR134: =(AQ134-AS134)/AS134 -> 0.1876875447 | AS134: =VLOOKUP(LookUpSheet!$D26,'PP2003'!$C$2:$CE$1512,8,FALSE) -> 209950 | AT134: =(AS134-AU134)/AU134 -> 0.2801829268 | AU134: =VLOOKUP(LookUpSheet!$D26,'PP2002'!$C$2:$CE$1515,8,FALSE) -> 164000 | AV134: =(AU134-AW134)/AW134 -> 0.2103321033 | AW134: =VLOOKUP(LookUpSheet!$D26,'PP2001'!$C$2:$CE$1515,8,FALSE) -> 135500 | AX134: =(AW134-AY134)/AY134 -> -0.04635220923 | AY134: =VLOOKUP(LookUpSheet!$D26,'PP2000'!$C$2:$CE$1516,8,FALSE) -> 142086
B135: Carroll County | D135: =(E135-Y135)/Y135 -> 2.114499871 | E135: =VLOOKUP(LookUpSheet!$D27,'PP2023'!$C$2:$CE$1515,8,FALSE) -> 602500 | F135: =(E135-G135)/G135 -> 0.3693181818 | G135: =VLOOKUP(LookUpSheet!$D27,'PP2022'!$C$2:$CE$1515,8,FALSE) -> 440000 | H135: =(G135-I135)/I135 -> 0.2754880191 | I135: =VLOOKUP(LookUpSheet!$D27,'PP2021'!$C$2:$CE$1515,8,FALSE) -> 344966 | J135: =(I135-K135)/K135 -> -0.3599888683 | K135: =VLOOKUP(LookUpSheet!$D27,'PP2020'!$C$2:$CE$1515,8,FALSE) -> 539000 | L135: =(K135-M135)/M135 -> 0.5901299835 | M135: =VLOOKUP(LookUpSheet!$D27,'PP2019'!$C$2:$CE$1515,8,FALSE) -> 338966 | N135: =(M135-O135)/O135 -> -0.1308564103 | O135: =VLOOKUP(LookUpSheet!$D27,'PP2018'!$C$2:$CE$1515,8,FALSE) -> 390000 | P135: =(O135-Q135)/Q135 -> 0.214953271 | Q135: =VLOOKUP(LookUpSheet!$D27,'PP2017'!$C$2:$CE$1515,8,FALSE) -> 321000 | R135: =(Q135-S135)/S135 -> 0.1661447473 | S135: =VLOOKUP(LookUpSheet!$D27,'PP2016'!$C$2:$CE$1515,8,FALSE) -> 275266 | T135: =(S135-U135)/U135 -> 0.05871538462 | U135: =VLOOKUP(LookUpSheet!$D27,'PP2015'!$C$2:$CE$1515,8,FALSE) -> 260000 | V135: =(U135-W135)/W135 -> 0.3684210526 | W135: =VLOOKUP(LookUpSheet!$D27,'PP2014'!$C$2:$CE$1515,8,FALSE) -> 190000 | X135: -0.01783406565 | Y135: =VLOOKUP(LookUpSheet!$D27,'PP2013'!$C$2:$CE$1515,8,FALSE) -> 193450 | Z135: -0.02066996401 | AA135: =VLOOKUP(LookUpSheet!$D27,'PP2012'!$C$2:$CE$1515,8,FALSE) -> 197533 | AB135: -0.2402576923 | AC135: =VLOOKUP(LookUpSheet!$D27,'PP2011'!$C$2:$CE$1515,8,FALSE) -> 260000 | AD135: 0.1499336577 | AE135: =VLOOKUP(LookUpSheet!$D27,'PP2010'!$C$2:$CE$1515,8,FALSE) -> 226100 | AF135: -0.07714285714 | AG135: =VLOOKUP(LookUpSheet!$D27,'PP2009'!$C$2:$CE$1515,8,FALSE) -> 245000 | AH135: 0.0548977395 | AI135: =VLOOKUP(LookUpSheet!$D27,'PP2008'!$C$2:$CE$1515,8,FALSE) -> 232250 | AJ135: 0.01000217439 | AK135: =VLOOKUP(LookUpSheet!$D27,'PP2007'!$C$2:$CE$1515,8,FALSE) -> 229950 | AL135: -0.02535889426 | AM135: =VLOOKUP(LookUpSheet!$D27,'PP2006'!$C$2:$CE$1515,8,FALSE) -> 235933 | AN135: 0.06395941375 | AO135: =VLOOKUP(LookUpSheet!$D27,'PP2005'!$C$2:$CE$1515,8,FALSE) -> 221750 | AP135: 0.008412914961 | AQ135: =VLOOKUP(LookUpSheet!$D27,'PP2004'!$C$2:$CE$1516,8,FALSE) -> 219900 | AR135: 0.2533485323 | AS135: =VLOOKUP(LookUpSheet!$D27,'PP2003'!$C$2:$CE$1512,8,FALSE) -> 175450 | AT135: 0.002571428571 | AU135: =VLOOKUP(LookUpSheet!$D27,'PP2002'!$C$2:$CE$1515,8,FALSE) -> 175000 | AV135: 0.1744966443 | AW135: =VLOOKUP(LookUpSheet!$D27,'PP2001'!$C$2:$CE$1515,8,FALSE) -> 149000 | AX135: 0.2016129032 | AY135: =VLOOKUP(LookUpSheet!$D27,'PP2000'!$C$2:$CE$1516,8,FALSE) -> 124000
B136: Cheshire County | D136: 3.592995169 | E136: =VLOOKUP(LookUpSheet!$D28,'PP2023'!$C$2:$CE$1515,8,FALSE) -> 760600 | F136: 0.5365656566 | G136: =VLOOKUP(LookUpSheet!$D28,'PP2022'!$C$2:$CE$1515,8,FALSE) -> 495000 | H136: 0.3943661972 | I136: =VLOOKUP(LookUpSheet!$D28,'PP2021'!$C$2:$CE$1515,8,FALSE) -> 355000 | J136: 0.2033898305 | K136: =VLOOKUP(LookUpSheet!$D28,'PP2020'!$C$2:$CE$1515,8,FALSE) -> 295000 | L136: -0.05901116427 | M136: =VLOOKUP(LookUpSheet!$D28,'PP2019'!$C$2:$CE$1515,8,FALSE) -> 313500 | N136: 0.9391832544 | O136: =VLOOKUP(LookUpSheet!$D28,'PP2018'!$C$2:$CE$1515,8,FALSE) -> 161666 | P136: -0.2315012882 | Q136: =VLOOKUP(LookUpSheet!$D28,'PP2017'!$C$2:$CE$1515,8,FALSE) -> 210366 | R136: 0.02885565326 | S136: =VLOOKUP(LookUpSheet!$D28,'PP2016'!$C$2:$CE$1515,8,FALSE) -> 204466 | T136: 0.05123907455 | U136: =VLOOKUP(LookUpSheet!$D28,'PP2015'!$C$2:$CE$1515,8,FALSE) -> 194500 | V136: 0.384341637 | W136: =VLOOKUP(LookUpSheet!$D28,'PP2014'!$C$2:$CE$1515,8,FALSE) -> 140500 | X136: -0.1515700483 | Y136: =VLOOKUP(LookUpSheet!$D28,'PP2013'!$C$2:$CE$1515,8,FALSE) -> 165600 | Z136: -0.2329782307 | AA136: =VLOOKUP(LookUpSheet!$D28,'PP2012'!$C$2:$CE$1515,8,FALSE) -> 215900 | AB136: 0.239380023 | AC136: =VLOOKUP(LookUpSheet!$D28,'PP2011'!$C$2:$CE$1515,8,FALSE) -> 174200 | AD136: -0.06595174263 | AE136: =VLOOKUP(LookUpSheet!$D28,'PP2010'!$C$2:$CE$1515,8,FALSE) -> 186500 | AF136: -0.01790416008 | AG136: =VLOOKUP(LookUpSheet!$D28,'PP2009'!$C$2:$CE$1515,8,FALSE) -> 189900 | AH136: -0.05018181091 | AI136: =VLOOKUP(LookUpSheet!$D28,'PP2008'!$C$2:$CE$1515,8,FALSE) -> 199933 | AJ136: -0.09306872307 | AK136: =VLOOKUP(LookUpSheet!$D28,'PP2007'!$C$2:$CE$1515,8,FALSE) -> 220450 | AL136: -0.08120183551 | AM136: =VLOOKUP(LookUpSheet!$D28,'PP2006'!$C$2:$CE$1515,8,FALSE) -> 239933 | AN136: 0.02142613878 | AO136: =VLOOKUP(LookUpSheet!$D28,'PP2005'!$C$2:$CE$1515,8,FALSE) -> 234900 | AP136: 0.03343598768 | AQ136: =VLOOKUP(LookUpSheet!$D28,'PP2004'!$C$2:$CE$1516,8,FALSE) -> 227300 | AR136: 0.2044553721 | AS136: =VLOOKUP(LookUpSheet!$D28,'PP2003'!$C$2:$CE$1512,8,FALSE) -> 188716 | AT136: 0.05457390332 | AU136: =VLOOKUP(LookUpSheet!$D28,'PP2002'!$C$2:$CE$1515,8,FALSE) -> 178950 | AV136: 0.2010067114 | AW136: =VLOOKUP(LookUpSheet!$D28,'PP2001'!$C$2:$CE$1515,8,FALSE) -> 149000 | AX136: 0.2123677787 | AY136: =VLOOKUP(LookUpSheet!$D28,'PP2000'!$C$2:$CE$1516,8,FALSE) -> 122900
B137: Coos County | D137: 3.115226337 | E137: =VLOOKUP(LookUpSheet!$D29,'PP2023'!$C$2:$CE$1515,8,FALSE) -> 500000 | F137: -0.25980755 | G137: =VLOOKUP(LookUpSheet!$D29,'PP2022'!$C$2:$CE$1515,8,FALSE) -> 675500 | H137: 2.026433692 | I137: =VLOOKUP(LookUpSheet!$D29,'PP2021'!$C$2:$CE$1515,8,FALSE) -> 223200 | J137: -0.07743052829 | K137: =VLOOKUP(LookUpSheet!$D29,'PP2020'!$C$2:$CE$1515,8,FALSE) -> 241933 | M137: =VLOOKUP(LookUpSheet!$D29,'PP2019'!$C$2:$CE$1515,8,FALSE) ->  | O137: =VLOOKUP(LookUpSheet!$D29,'PP2018'!$C$2:$CE$1515,8,FALSE) -> 165000 | P137: 0.9023900937 | Q137: =VLOOKUP(LookUpSheet!$D29,'PP2017'!$C$2:$CE$1515,8,FALSE) -> 86733 | R137: -0.7399310345 | S137: =VLOOKUP(LookUpSheet!$D29,'PP2016'!$C$2:$CE$1515,8,FALSE) -> 333500 | T137: 1.802521008 | U137: =VLOOKUP(LookUpSheet!$D29,'PP2015'!$C$2:$CE$1515,8,FALSE) -> 119000 | V137: 0.06472451372 | W137: =VLOOKUP(LookUpSheet!$D29,'PP2014'!$C$2:$CE$1515,8,FALSE) -> 111766 | X137: -0.08011522634 | Y137: =VLOOKUP(LookUpSheet!$D29,'PP2013'!$C$2:$CE$1515,8,FALSE) -> 121500 | AA137: =VLOOKUP(LookUpSheet!$D29,'PP2012'!$C$2:$CE$1515,8,FALSE) ->  | AC137: =VLOOKUP(LookUpSheet!$D29,'PP2011'!$C$2:$CE$1515,8,FALSE) -> 137500 | AD137: -0.6632996633 | AE137: =VLOOKUP(LookUpSheet!$D29,'PP2010'!$C$2:$CE$1515,8,FALSE) -> 408375 | AF137: 0.6466733871 | AG137: =VLOOKUP(LookUpSheet!$D29,'PP2009'!$C$2:$CE$1515,8,FALSE) -> 248000 | AH137: 0.6533333333 | AI137: =VLOOKUP(LookUpSheet!$D29,'PP2008'!$C$2:$CE$1515,8,FALSE) -> 150000 | AJ137: -0.2307495064 | AK137: =VLOOKUP(LookUpSheet!$D29,'PP2007'!$C$2:$CE$1515,8,FALSE) -> 194995 | AL137: -0.1294866071 | AM137: =VLOOKUP(LookUpSheet!$D29,'PP2006'!$C$2:$CE$1515,8,FALSE) -> 224000 | AN137: 0.8666666667 | AO137: =VLOOKUP(LookUpSheet!$D29,'PP2005'!$C$2:$CE$1515,8,FALSE) -> 120000 | AP137: -0.3254637437 | AQ137: =VLOOKUP(LookUpSheet!$D29,'PP2004'!$C$2:$CE$1516,8,FALSE) -> 177900 | AR137: 0.1939597315 | AS137: =VLOOKUP(LookUpSheet!$D29,'PP2003'!$C$2:$CE$1512,8,FALSE) -> 149000 | AT137: -0.01324503311 | AU137: =VLOOKUP(LookUpSheet!$D29,'PP2002'!$C$2:$CE$1515,8,FALSE) -> 151000 | AV137: 0.8875 | AW137: =VLOOKUP(LookUpSheet!$D29,'PP2001'!$C$2:$CE$1515,8,FALSE) -> 80000 | AX137: -0.1111111111 | AY137: =VLOOKUP(LookUpSheet!$D29,'PP2000'!$C$2:$CE$1516,8,FALSE) -> 90000
B138: Grafton County | D138: 2.027777147 | E138: =VLOOKUP(LookUpSheet!$D30,'PP2023'!$C$2:$CE$1515,8,FALSE) -> 799533 | F138: 0.7600546816 | G138: =VLOOKUP(LookUpSheet!$D30,'PP2022'!$C$2:$CE$1515,8,FALSE) -> 454266 | H138: 0.2942051282 | I138: =VLOOKUP(LookUpSheet!$D30,'PP2021'!$C$2:$CE$1515,8,FALSE) -> 351000 | J138: -0.0487804878 | K138: =VLOOKUP(LookUpSheet!$D30,'PP2020'!$C$2:$CE$1515,8,FALSE) -> 369000 | L138: -0.08322981366 | M138: =VLOOKUP(LookUpSheet!$D30,'PP2019'!$C$2:$CE$1515,8,FALSE) -> 402500 | N138: 0.07908847185 | O138: =VLOOKUP(LookUpSheet!$D30,'PP2018'!$C$2:$CE$1515,8,FALSE) -> 373000 | P138: 0.002688172043 | Q138: =VLOOKUP(LookUpSheet!$D30,'PP2017'!$C$2:$CE$1515,8,FALSE) -> 372000 | R138: 0.06285714286 | S138: =VLOOKUP(LookUpSheet!$D30,'PP2016'!$C$2:$CE$1515,8,FALSE) -> 350000 | T138: 0.5418502203 | U138: =VLOOKUP(LookUpSheet!$D30,'PP2015'!$C$2:$CE$1515,8,FALSE) -> 227000 | V138: -0.1446872645 | W138: =VLOOKUP(LookUpSheet!$D30,'PP2014'!$C$2:$CE$1515,8,FALSE) -> 265400 | X138: 0.005051767361 | Y138: =VLOOKUP(LookUpSheet!$D30,'PP2013'!$C$2:$CE$1515,8,FALSE) -> 264066 | Z138: 0.07782040816 | AA138: =VLOOKUP(LookUpSheet!$D30,'PP2012'!$C$2:$CE$1515,8,FALSE) -> 245000 | AB138: 0.05687269214 | AC138: =VLOOKUP(LookUpSheet!$D30,'PP2011'!$C$2:$CE$1515,8,FALSE) -> 231816 | AD138: 0.05852054795 | AE138: =VLOOKUP(LookUpSheet!$D30,'PP2010'!$C$2:$CE$1515,8,FALSE) -> 219000 | AF138: -0.124 | AG138: =VLOOKUP(LookUpSheet!$D30,'PP2009'!$C$2:$CE$1515,8,FALSE) -> 250000 | AH138: 0.08695652174 | AI138: =VLOOKUP(LookUpSheet!$D30,'PP2008'!$C$2:$CE$1515,8,FALSE) -> 230000 | AJ138: -0.04182636227 | AK138: =VLOOKUP(LookUpSheet!$D30,'PP2007'!$C$2:$CE$1515,8,FALSE) -> 240040 | AL138: 0.02727825186 | AM138: =VLOOKUP(LookUpSheet!$D30,'PP2006'!$C$2:$CE$1515,8,FALSE) -> 233666 | AN138: -0.1024548761 | AO138: =VLOOKUP(LookUpSheet!$D30,'PP2005'!$C$2:$CE$1515,8,FALSE) -> 260339 | AP138: 0.2208273935 | AQ138: =VLOOKUP(LookUpSheet!$D30,'PP2004'!$C$2:$CE$1516,8,FALSE) -> 213248 | AR138: 0.1282962963 | AS138: =VLOOKUP(LookUpSheet!$D30,'PP2003'!$C$2:$CE$1512,8,FALSE) -> 189000 | AT138: 0.1183431953 | AU138: =VLOOKUP(LookUpSheet!$D30,'PP2002'!$C$2:$CE$1515,8,FALSE) -> 169000 | AV138: -0.03428571429 | AW138: =VLOOKUP(LookUpSheet!$D30,'PP2001'!$C$2:$CE$1515,8,FALSE) -> 175000 | AX138: 0.4344262295 | AY138: =VLOOKUP(LookUpSheet!$D30,'PP2000'!$C$2:$CE$1516,8,FALSE) -> 122000
B139: Hillsborough County | D139: 1.114006515 | E139: =VLOOKUP(LookUpSheet!$D31,'PP2023'!$C$2:$CE$1515,8,FALSE) -> 649000 | F139: 0.06045751634 | G139: =VLOOKUP(LookUpSheet!$D31,'PP2022'!$C$2:$CE$1515,8,FALSE) -> 612000 | H139: 0.3232432432 | I139: =VLOOKUP(LookUpSheet!$D31,'PP2021'!$C$2:$CE$1515,8,FALSE) -> 462500 | J139: 0.1664564943 | K139: =VLOOKUP(LookUpSheet!$D31,'PP2020'!$C$2:$CE$1515,8,FALSE) -> 396500 | L139: -0.05595238095 | M139: =VLOOKUP(LookUpSheet!$D31,'PP2019'!$C$2:$CE$1515,8,FALSE) -> 420000 | N139: 0.1668838367 | O139: =VLOOKUP(LookUpSheet!$D31,'PP2018'!$C$2:$CE$1515,8,FALSE) -> 359933 | P139: 0 | Q139: =VLOOKUP(LookUpSheet!$D31,'PP2017'!$C$2:$CE$1515,8,FALSE) -> 359933 | R139: 0.01123807009 | S139: =VLOOKUP(LookUpSheet!$D31,'PP2016'!$C$2:$CE$1515,8,FALSE) -> 355933 | T139: 0.005841194124 | U139: =VLOOKUP(LookUpSheet!$D31,'PP2015'!$C$2:$CE$1515,8,FALSE) -> 353866 | V139: 0.136615778 | W139: =VLOOKUP(LookUpSheet!$D31,'PP2014'!$C$2:$CE$1515,8,FALSE) -> 311333 | X139: 0.01411400651 | Y139: =VLOOKUP(LookUpSheet!$D31,'PP2013'!$C$2:$CE$1515,8,FALSE) -> 307000 | Z139: 0.0902220928 | AA139: =VLOOKUP(LookUpSheet!$D31,'PP2012'!$C$2:$CE$1515,8,FALSE) -> 281594 | AB139: -0.06135333333 | AC139: =VLOOKUP(LookUpSheet!$D31,'PP2011'!$C$2:$CE$1515,8,FALSE) -> 300000 | AD139: 0.05263157895 | AE139: =VLOOKUP(LookUpSheet!$D31,'PP2010'!$C$2:$CE$1515,8,FALSE) -> 285000 | AF139: -0.03932368387 | AG139: =VLOOKUP(LookUpSheet!$D31,'PP2009'!$C$2:$CE$1515,8,FALSE) -> 296666 | AH139: -0.08718153846 | AI139: =VLOOKUP(LookUpSheet!$D31,'PP2008'!$C$2:$CE$1515,8,FALSE) -> 325000 | AJ139: 0.006703093831 | AK139: =VLOOKUP(LookUpSheet!$D31,'PP2007'!$C$2:$CE$1515,8,FALSE) -> 322836 | AL139: -0.0009345852237 | AM139: =VLOOKUP(LookUpSheet!$D31,'PP2006'!$C$2:$CE$1515,8,FALSE) -> 323138 | AN139: 0.01110805162 | AO139: =VLOOKUP(LookUpSheet!$D31,'PP2005'!$C$2:$CE$1515,8,FALSE) -> 319588 | AP139: 0.03784577215 | AQ139: =VLOOKUP(LookUpSheet!$D31,'PP2004'!$C$2:$CE$1516,8,FALSE) -> 307934 | AR139: 0.1125546913 | AS139: =VLOOKUP(LookUpSheet!$D31,'PP2003'!$C$2:$CE$1512,8,FALSE) -> 276781 | AT139: 0.01810871852 | AU139: =VLOOKUP(LookUpSheet!$D31,'PP2002'!$C$2:$CE$1515,8,FALSE) -> 271858 | AV139: 0.08508820947 | AW139: =VLOOKUP(LookUpSheet!$D31,'PP2001'!$C$2:$CE$1515,8,FALSE) -> 250540 | AX139: 0.1425209885 | AY139: =VLOOKUP(LookUpSheet!$D31,'PP2000'!$C$2:$CE$1516,8,FALSE) -> 219287
B140: Merrimack County | D140: 1.634132 | E140: =VLOOKUP(LookUpSheet!$D32,'PP2023'!$C$2:$CE$1515,8,FALSE) -> 658533 | F140: 0.3377584477 | G140: =VLOOKUP(LookUpSheet!$D32,'PP2022'!$C$2:$CE$1515,8,FALSE) -> 492266 | H140: 0.02129875519 | I140: =VLOOKUP(LookUpSheet!$D32,'PP2021'!$C$2:$CE$1515,8,FALSE) -> 482000 | J140: 0.4833827281 | K140: =VLOOKUP(LookUpSheet!$D32,'PP2020'!$C$2:$CE$1515,8,FALSE) -> 324933 | L140: -0.1032199662 | M140: =VLOOKUP(LookUpSheet!$D32,'PP2019'!$C$2:$CE$1515,8,FALSE) -> 362333 | N140: 0.08836162876 | O140: =VLOOKUP(LookUpSheet!$D32,'PP2018'!$C$2:$CE$1515,8,FALSE) -> 332916 | P140: 0.008836363636 | Q140: =VLOOKUP(LookUpSheet!$D32,'PP2017'!$C$2:$CE$1515,8,FALSE) -> 330000 | R140: 0.06796116505 | S140: =VLOOKUP(LookUpSheet!$D32,'PP2016'!$C$2:$CE$1515,8,FALSE) -> 309000 | T140: 0.1752043296 | U140: =VLOOKUP(LookUpSheet!$D32,'PP2015'!$C$2:$CE$1515,8,FALSE) -> 262933 | V140: 0.01912015504 | W140: =VLOOKUP(LookUpSheet!$D32,'PP2014'!$C$2:$CE$1515,8,FALSE) -> 258000 | X140: 0.032 | Y140: =VLOOKUP(LookUpSheet!$D32,'PP2013'!$C$2:$CE$1515,8,FALSE) -> 250000 | Z140: 0.0372152844 | AA140: =VLOOKUP(LookUpSheet!$D32,'PP2012'!$C$2:$CE$1515,8,FALSE) -> 241030 | AB140: -0.03549419768 | AC140: =VLOOKUP(LookUpSheet!$D32,'PP2011'!$C$2:$CE$1515,8,FALSE) -> 249900 | AD140: -0.02762645914 | AE140: =VLOOKUP(LookUpSheet!$D32,'PP2010'!$C$2:$CE$1515,8,FALSE) -> 257000 | AF140: -0.001941747573 | AG140: =VLOOKUP(LookUpSheet!$D32,'PP2009'!$C$2:$CE$1515,8,FALSE) -> 257500 | AH140: -0.0660137831 | AI140: =VLOOKUP(LookUpSheet!$D32,'PP2008'!$C$2:$CE$1515,8,FALSE) -> 275700 | AJ140: 0.002144596707 | AK140: =VLOOKUP(LookUpSheet!$D32,'PP2007'!$C$2:$CE$1515,8,FALSE) -> 275110 | AL140: 0.0004 | AM140: =VLOOKUP(LookUpSheet!$D32,'PP2006'!$C$2:$CE$1515,8,FALSE) -> 275000 | AN140: -0.003623188406 | AO140: =VLOOKUP(LookUpSheet!$D32,'PP2005'!$C$2:$CE$1515,8,FALSE) -> 276000 | AP140: 0.104 | AQ140: =VLOOKUP(LookUpSheet!$D32,'PP2004'!$C$2:$CE$1516,8,FALSE) -> 250000 | AR140: 0.01860377943 | AS140: =VLOOKUP(LookUpSheet!$D32,'PP2003'!$C$2:$CE$1512,8,FALSE) -> 245434 | AT140: 0.09081777778 | AU140: =VLOOKUP(LookUpSheet!$D32,'PP2002'!$C$2:$CE$1515,8,FALSE) -> 225000 | AV140: 0.1181957787 | AW140: =VLOOKUP(LookUpSheet!$D32,'PP2001'!$C$2:$CE$1515,8,FALSE) -> 201217 | AX140: 0.1739888912 | AY140: =VLOOKUP(LookUpSheet!$D32,'PP2000'!$C$2:$CE$1516,8,FALSE) -> 171396
B141: Rockingham County | D141: 0.984375 | E141: =VLOOKUP(LookUpSheet!$D33,'PP2023'!$C$2:$CE$1515,8,FALSE) -> 635000 | F141: -0.04511278195 | G141: =VLOOKUP(LookUpSheet!$D33,'PP2022'!$C$2:$CE$1515,8,FALSE) -> 665000 | H141: 0.1875 | I141: =VLOOKUP(LookUpSheet!$D33,'PP2021'!$C$2:$CE$1515,8,FALSE) -> 560000 | J141: 0.1702432225 | K141: =VLOOKUP(LookUpSheet!$D33,'PP2020'!$C$2:$CE$1515,8,FALSE) -> 478533 | L141: -0.005335689046 | M141: =VLOOKUP(LookUpSheet!$D33,'PP2019'!$C$2:$CE$1515,8,FALSE) -> 481100 | N141: 0.1266978923 | O141: =VLOOKUP(LookUpSheet!$D33,'PP2018'!$C$2:$CE$1515,8,FALSE) -> 427000 | P141: 0.05224248398 | Q141: =VLOOKUP(LookUpSheet!$D33,'PP2017'!$C$2:$CE$1515,8,FALSE) -> 405800 | R141: 0.06789473684 | S141: =VLOOKUP(LookUpSheet!$D33,'PP2016'!$C$2:$CE$1515,8,FALSE) -> 380000 | T141: 0.09258194365 | U141: =VLOOKUP(LookUpSheet!$D33,'PP2015'!$C$2:$CE$1515,8,FALSE) -> 347800 | V141: -0.03011712214 | W141: =VLOOKUP(LookUpSheet!$D33,'PP2014'!$C$2:$CE$1515,8,FALSE) -> 358600 | X141: 0.120625 | Y141: =VLOOKUP(LookUpSheet!$D33,'PP2013'!$C$2:$CE$1515,8,FALSE) -> 320000 | Z141: 0.06678756926 | AA141: =VLOOKUP(LookUpSheet!$D33,'PP2012'!$C$2:$CE$1515,8,FALSE) -> 299966 | AB141: 0.05377311099 | AC141: =VLOOKUP(LookUpSheet!$D33,'PP2011'!$C$2:$CE$1515,8,FALSE) -> 284659 | AD141: -0.03361612705 | AE141: =VLOOKUP(LookUpSheet!$D33,'PP2010'!$C$2:$CE$1515,8,FALSE) -> 294561 | AF141: 0.03173730298 | AG141: =VLOOKUP(LookUpSheet!$D33,'PP2009'!$C$2:$CE$1515,8,FALSE) -> 285500 | AH141: -0.1519885942 | AI141: =VLOOKUP(LookUpSheet!$D33,'PP2008'!$C$2:$CE$1515,8,FALSE) -> 336670 | AJ141: -0.00540620384 | AK141: =VLOOKUP(LookUpSheet!$D33,'PP2007'!$C$2:$CE$1515,8,FALSE) -> 338500 | AL141: -0.03871275544 | AM141: =VLOOKUP(LookUpSheet!$D33,'PP2006'!$C$2:$CE$1515,8,FALSE) -> 352132 | AN141: 0.05145416542 | AO141: =VLOOKUP(LookUpSheet!$D33,'PP2005'!$C$2:$CE$1515,8,FALSE) -> 334900 | AP141: 0.04541580953 | AQ141: =VLOOKUP(LookUpSheet!$D33,'PP2004'!$C$2:$CE$1516,8,FALSE) -> 320351 | AR141: -0.03784051659 | AS141: =VLOOKUP(LookUpSheet!$D33,'PP2003'!$C$2:$CE$1512,8,FALSE) -> 332950 | AT141: 0.1099591287 | AU141: =VLOOKUP(LookUpSheet!$D33,'PP2002'!$C$2:$CE$1515,8,FALSE) -> 299966 | AV141: 0.08268695611 | AW141: =VLOOKUP(LookUpSheet!$D33,'PP2001'!$C$2:$CE$1515,8,FALSE) -> 277057 | AX141: 0.145033972 | AY141: =VLOOKUP(LookUpSheet!$D33,'PP2000'!$C$2:$CE$1516,8,FALSE) -> 241964
B142: Strafford County | D142: 0.9767149918 | E142: =VLOOKUP(LookUpSheet!$D34,'PP2023'!$C$2:$CE$1515,8,FALSE) -> 599933 | F142: 0.06371099291 | G142: =VLOOKUP(LookUpSheet!$D34,'PP2022'!$C$2:$CE$1515,8,FALSE) -> 564000 | H142: 0.3413688622 | I142: =VLOOKUP(LookUpSheet!$D34,'PP2021'!$C$2:$CE$1515,8,FALSE) -> 420466 | J142: 0.08854002164 | K142: =VLOOKUP(LookUpSheet!$D34,'PP2020'!$C$2:$CE$1515,8,FALSE) -> 386266 | L142: 0.05845730586 | M142: =VLOOKUP(LookUpSheet!$D34,'PP2019'!$C$2:$CE$1515,8,FALSE) -> 364933 | N142: 0.03527092199 | O142: =VLOOKUP(LookUpSheet!$D34,'PP2018'!$C$2:$CE$1515,8,FALSE) -> 352500 | P142: -0.01536312849 | Q142: =VLOOKUP(LookUpSheet!$D34,'PP2017'!$C$2:$CE$1515,8,FALSE) -> 358000 | R142: 0.005996639184 | S142: =VLOOKUP(LookUpSheet!$D34,'PP2016'!$C$2:$CE$1515,8,FALSE) -> 355866 | T142: 0.03610255455 | U142: =VLOOKUP(LookUpSheet!$D34,'PP2015'!$C$2:$CE$1515,8,FALSE) -> 343466 | V142: 0.08600355397 | W142: =VLOOKUP(LookUpSheet!$D34,'PP2014'!$C$2:$CE$1515,8,FALSE) -> 316266 | X142: 0.04206260297 | Y142: =VLOOKUP(LookUpSheet!$D34,'PP2013'!$C$2:$CE$1515,8,FALSE) -> 303500 | Z142: 0.04223901099 | AA142: =VLOOKUP(LookUpSheet!$D34,'PP2012'!$C$2:$CE$1515,8,FALSE) -> 291200 | AB142: 0.1652661064 | AC142: =VLOOKUP(LookUpSheet!$D34,'PP2011'!$C$2:$CE$1515,8,FALSE) -> 249900 | AD142: 0 | AE142: =VLOOKUP(LookUpSheet!$D34,'PP2010'!$C$2:$CE$1515,8,FALSE) -> 249900 | AF142: 0.06431005111 | AG142: =VLOOKUP(LookUpSheet!$D34,'PP2009'!$C$2:$CE$1515,8,FALSE) -> 234800 | AH142: -0.096575606 | AI142: =VLOOKUP(LookUpSheet!$D34,'PP2008'!$C$2:$CE$1515,8,FALSE) -> 259900 | AJ142: -0.009527439024 | AK142: =VLOOKUP(LookUpSheet!$D34,'PP2007'!$C$2:$CE$1515,8,FALSE) -> 262400 | AL142: -0.04581818182 | AM142: =VLOOKUP(LookUpSheet!$D34,'PP2006'!$C$2:$CE$1515,8,FALSE) -> 275000 | AN142: 0.0003637686431 | AO142: =VLOOKUP(LookUpSheet!$D34,'PP2005'!$C$2:$CE$1515,8,FALSE) -> 274900 | AP142: 0.04923664122 | AQ142: =VLOOKUP(LookUpSheet!$D34,'PP2004'!$C$2:$CE$1516,8,FALSE) -> 262000 | AR142: 0.08241651553 | AS142: =VLOOKUP(LookUpSheet!$D34,'PP2003'!$C$2:$CE$1512,8,FALSE) -> 242051 | AT142: 0.03000425532 | AU142: =VLOOKUP(LookUpSheet!$D34,'PP2002'!$C$2:$CE$1515,8,FALSE) -> 235000 | AV142: -0.001478661387 | AW142: =VLOOKUP(LookUpSheet!$D34,'PP2001'!$C$2:$CE$1515,8,FALSE) -> 235348 | AX142: 0.2084621309 | AY142: =VLOOKUP(LookUpSheet!$D34,'PP2000'!$C$2:$CE$1516,8,FALSE) -> 194750
B143: Sullivan County | E143: =VLOOKUP(LookUpSheet!$D35,'PP2023'!$C$2:$CE$1515,8,FALSE) ->  | G143: =VLOOKUP(LookUpSheet!$D35,'PP2022'!$C$2:$CE$1515,8,FALSE) -> 727500 | H143: 0.3090041492 | I143: =VLOOKUP(LookUpSheet!$D35,'PP2021'!$C$2:$CE$1515,8,FALSE) -> 555766 | J143: -0.176642963 | K143: =VLOOKUP(LookUpSheet!$D35,'PP2020'!$C$2:$CE$1515,8,FALSE) -> 675000 | L143: -0.6351351351 | M143: =VLOOKUP(LookUpSheet!$D35,'PP2019'!$C$2:$CE$1515,8,FALSE) -> 1850000 | N143: 4.632241998 | O143: =VLOOKUP(LookUpSheet!$D35,'PP2018'!$C$2:$CE$1515,8,FALSE) -> 328466 | P143: 0.05266430153 | Q143: =VLOOKUP(LookUpSheet!$D35,'PP2017'!$C$2:$CE$1515,8,FALSE) -> 312033 | R143: -0.1508520516 | S143: =VLOOKUP(LookUpSheet!$D35,'PP2016'!$C$2:$CE$1515,8,FALSE) -> 367466 | T143: 0.7712107044 | U143: =VLOOKUP(LookUpSheet!$D35,'PP2015'!$C$2:$CE$1515,8,FALSE) -> 207466 | V143: 0.5311143911 | W143: =VLOOKUP(LookUpSheet!$D35,'PP2014'!$C$2:$CE$1515,8,FALSE) -> 135500 | X143: -0.2410366711 | Y143: =VLOOKUP(LookUpSheet!$D35,'PP2013'!$C$2:$CE$1515,8,FALSE) -> 178533 | Z143: -0.1498428571 | AA143: =VLOOKUP(LookUpSheet!$D35,'PP2012'!$C$2:$CE$1515,8,FALSE) -> 210000 | AB143: 0.03703703704 | AC143: =VLOOKUP(LookUpSheet!$D35,'PP2011'!$C$2:$CE$1515,8,FALSE) -> 202500 | AD143: 0.06132075472 | AE143: =VLOOKUP(LookUpSheet!$D35,'PP2010'!$C$2:$CE$1515,8,FALSE) -> 190800 | AF143: -0.108411215 | AG143: =VLOOKUP(LookUpSheet!$D35,'PP2009'!$C$2:$CE$1515,8,FALSE) -> 214000 | AH143: -0.05638330239 | AI143: =VLOOKUP(LookUpSheet!$D35,'PP2008'!$C$2:$CE$1515,8,FALSE) -> 226787 | AJ143: -0.1000515873 | AK143: =VLOOKUP(LookUpSheet!$D35,'PP2007'!$C$2:$CE$1515,8,FALSE) -> 252000 | AL143: 0.12 | AM143: =VLOOKUP(LookUpSheet!$D35,'PP2006'!$C$2:$CE$1515,8,FALSE) -> 225000 | AN143: 0.1166253102 | AO143: =VLOOKUP(LookUpSheet!$D35,'PP2005'!$C$2:$CE$1515,8,FALSE) -> 201500 | AP143: 0.02284263959 | AQ143: =VLOOKUP(LookUpSheet!$D35,'PP2004'!$C$2:$CE$1516,8,FALSE) -> 197000 | AR143: -0.00431631405 | AS143: =VLOOKUP(LookUpSheet!$D35,'PP2003'!$C$2:$CE$1512,8,FALSE) -> 197854 | AT143: 0.06107279611 | AU143: =VLOOKUP(LookUpSheet!$D35,'PP2002'!$C$2:$CE$1515,8,FALSE) -> 186466 | AV143: 0.491728 | AW143: =VLOOKUP(LookUpSheet!$D35,'PP2001'!$C$2:$CE$1515,8,FALSE) -> 125000 | AX143: 0.2886597938 | AY143: =VLOOKUP(LookUpSheet!$D35,'PP2000'!$C$2:$CE$1516,8,FALSE) -> 97000
B145: New Hampshire Statewide | D145: =(E145-Y145)/Y145 -> 1.162261626 | E145: =VLOOKUP(LookUpSheet!$D20,'PP2023'!$C$2:$CE$1515,8,FALSE) -> 646300 | F145: =(E145-G145)/G145 -> 0.04241935484 | G145: =VLOOKUP(LookUpSheet!$D20,'PP2022'!$C$2:$CE$1515,8,FALSE) -> 620000 | H145: =(G145-I145)/I145 -> 0.24 | I145: =VLOOKUP(LookUpSheet!$D20,'PP2021'!$C$2:$CE$1515,8,FALSE) -> 500000 | J145: =(I145-K145)/K145 -> 0.1766560846 | K145: =VLOOKUP(LookUpSheet!$D20,'PP2020'!$C$2:$CE$1515,8,FALSE) -> 424933 | L145: =(K145-M145)/M145 -> 0.03642195122 | M145: =VLOOKUP(LookUpSheet!$D20,'PP2019'!$C$2:$CE$1515,8,FALSE) -> 410000 | N145: =(M145-O145)/O145 -> 0.09547754805 | O145: =VLOOKUP(LookUpSheet!$D20,'PP2018'!$C$2:$CE$1515,8,FALSE) -> 374266 | P145: =(O145-Q145)/Q145 -> 0.02267970249 | Q145: =VLOOKUP(LookUpSheet!$D20,'PP2017'!$C$2:$CE$1515,8,FALSE) -> 365966 | R145: =(Q145-S145)/S145 -> 0.01244930367 | S145: =VLOOKUP(LookUpSheet!$D20,'PP2016'!$C$2:$CE$1515,8,FALSE) -> 361466 | T145: =(S145-U145)/U145 -> 0.07196322657 | U145: =VLOOKUP(LookUpSheet!$D20,'PP2015'!$C$2:$CE$1515,8,FALSE) -> 337200 | V145: =(U145-W145)/W145 -> 0.07047619048 | W145: =VLOOKUP(LookUpSheet!$D20,'PP2014'!$C$2:$CE$1515,8,FALSE) -> 315000 | X145: =(W145-Y145)/Y145 -> 0.05386416862 | Y145: =VLOOKUP(LookUpSheet!$D20,'PP2013'!$C$2:$CE$1515,8,FALSE) -> 298900 | Z145: =(Y145-AA145)/AA145 -> 0.0675 | AA145: =VLOOKUP(LookUpSheet!$D20,'PP2012'!$C$2:$CE$1515,8,FALSE) -> 280000 | AB145: =(AA145-AC145)/AC145 -> 0.04672897196 | AC145: =VLOOKUP(LookUpSheet!$D20,'PP2011'!$C$2:$CE$1515,8,FALSE) -> 267500 | AD145: =(AC145-AE145)/AE145 -> -0.01255075674 | AE145: =VLOOKUP(LookUpSheet!$D20,'PP2010'!$C$2:$CE$1515,8,FALSE) -> 270900 | AF145: =(AE145-AG145)/AG145 -> 0.002999000333 | AG145: =VLOOKUP(LookUpSheet!$D20,'PP2009'!$C$2:$CE$1515,8,FALSE) -> 270090 | AH145: =(AG145-AI145)/AI145 -> -0.08444067797 | AI145: =VLOOKUP(LookUpSheet!$D20,'PP2008'!$C$2:$CE$1515,8,FALSE) -> 295000 | AJ145: =(AI145-AK145)/AK145 -> -0.01666666667 | AK145: =VLOOKUP(LookUpSheet!$D20,'PP2007'!$C$2:$CE$1515,8,FALSE) -> 300000 | AL145: =(AK145-AM145)/AM145 -> -0.04 | AM145: =VLOOKUP(LookUpSheet!$D20,'PP2006'!$C$2:$CE$1515,8,FALSE) -> 312500 | AN145: =(AM145-AO145)/AO145 -> 0.04189935752 | AO145: =VLOOKUP(LookUpSheet!$D20,'PP2005'!$C$2:$CE$1515,8,FALSE) -> 299933 | AP145: =(AO145-AQ145)/AQ145 -> 0.05526607441 | AQ145: =VLOOKUP(LookUpSheet!$D20,'PP2004'!$C$2:$CE$1516,8,FALSE) -> 284225 | AR145: =(AQ145-AS145)/AS145 -> 0.06252336449 | AS145: =VLOOKUP(LookUpSheet!$D20,'PP2003'!$C$2:$CE$1512,8,FALSE) -> 267500 | AT145: =(AS145-AU145)/AU145 -> 0.02924201616 | AU145: =VLOOKUP(LookUpSheet!$D20,'PP2002'!$C$2:$CE$1515,8,FALSE) -> 259900 | AV145: =(AU145-AW145)/AW145 -> 0.07160675042 | AW145: =VLOOKUP(LookUpSheet!$D20,'PP2001'!$C$2:$CE$1515,8,FALSE) -> 242533 | AX145: =(AW145-AY145)/AY145 -> 0.1285853886 | AY145: =VLOOKUP(LookUpSheet!$D20,'PP2000'!$C$2:$CE$1516,8,FALSE) -> 214900
D146: Source: 1990-2014 - NH Dept. of Revenue, PA-34 Dataset, Compiled by Real Data Corp. Filtered and analyzed by New Hampshire Housine.
D147: =StateWideChartAndTable!$C$66 -> 2015 - The Warren Group. Filtered and analyzed by New Hampshire Housing.
D148: Note: Calculations based on a sample size of less than 50 are hiehly volatile and not considered valid.

Sheet CountyComparison2 (hidden)
C66: Source: 1990-2014 - NH Dept. of Revenue, PA-34 Dataset, Compiled by Real Data Corp. Filtered and analyzed by New Hampshire Housing.
C67: =StateWideChartAndTable!$C$66 -> 2015 - The Warren Group. Filtered and analyzed by New Hampshire Housing.
C68: Note: Calculations based on a sample size of less than 50 are highly volatile and not considered valid.
C71: Table 1 - All Homes
F72: ='PP2021'!$D30 -> 2021 | H72: ='PP2020'!$D30 -> 2020 | J72: ='PP2019'!$D30 -> 2019 | L72: 2018 | N72: 2017 | P72: 2016 | R72: 2015 | T72: 2014 | V72: 2013 | X72: 2012 | Z72: 2011 | AB72: 2010
E73: Change Since 2010 | F73: Count | G73: % of Total | H73: Count | I73: % of Total | J73: Count | K73: % of Total | L73: Count | M73: % of Total | N73: Median | O73: % of Total | P73: Median | Q73: % of Total | R73: Count | S73: % of Total | T73: Count | U73: % of Total | V73: Count | W73: % of Total | X73: Count | Y73: % of Total | Z73: Count | AA73: % of Total | AB73: Median
C74: Belknap | E74: =(F74-AB74)/AB74 -> 1.694736842 | F74: =VLOOKUP(LookUpSheet!$B26,'PP2021'!$C$2:$CE$1515,5,FALSE) -> 1280 | G74: =F74/$J$85 -> 0.05694963517 | H74: =VLOOKUP(LookUpSheet!$B26,'PP2020'!$C$2:$CE$1515,5,FALSE) -> 1349 | I74: =H74/$J$85 -> 0.06001957644 | J74: =VLOOKUP(LookUpSheet!$B26,'PP2019'!$C$2:$CE$1515,5,FALSE) -> 1425 | K74: =J74/$J$85 -> 0.06340096103 | L74: =VLOOKUP(LookUpSheet!$B26,'PP2018'!$C$2:$CE$1515,5,FALSE) -> 1471 | M74: =L74/$L$85 -> 0.06542721167 | N74: =VLOOKUP(LookUpSheet!$B26,'PP2017'!$C$2:$CE$1515,5,FALSE) -> 1567 | O74: =N74/$N$85 -> 0.06293678207 | P74: =VLOOKUP(LookUpSheet!$B26,'PP2016'!$C$2:$CE$1515,5,FALSE) -> 1470 | Q74: =P74/P85 -> 0.06429321204 | R74: =VLOOKUP(LookUpSheet!$B26,'PP2015'!$C$2:$CE$1515,5,FALSE) -> 1263 | S74: =R74/R85 -> 0.06222594472 | T74: =VLOOKUP(LookUpSheet!$B26,'PP2014'!$C$2:$CE$1516,5,FALSE) -> 693 | U74: =T74/T85 -> 0.0663538874 | V74: =VLOOKUP(LookUpSheet!$B26,'PP2013'!$C$2:$CE$1512,5,FALSE) -> 622 | W74: =V74/V85 -> 0.04692568842 | X74: =VLOOKUP(LookUpSheet!$B26,'PP2012'!$C$2:$CE$1515,5,FALSE) -> 519 | Y74: =X74/X85 -> 0.04438932603 | Z74: =VLOOKUP(LookUpSheet!$B26,'PP2011'!$C$2:$CE$1515,5,FALSE) -> 443 | AA74: =Z74/Z85 -> 0.04500660368 | AB74: =VLOOKUP(LookUpSheet!$B26,'PP2010'!$C$2:$CE$1516,5,FALSE) -> 475
C75: Carroll | E75: =(F75-AB75)/AB75 -> 1.96961326 | F75: =VLOOKUP(LookUpSheet!$B27,'PP2021'!$C$2:$CE$1515,5,FALSE) -> 1075 | G75: 0.04782879516 | H75: =VLOOKUP(LookUpSheet!$B27,'PP2020'!$C$2:$CE$1515,5,FALSE) -> 1106 | I75: 0.04920804414 | J75: =VLOOKUP(LookUpSheet!$B27,'PP2019'!$C$2:$CE$1515,5,FALSE) -> 1123 | K75: 0.04996440648 | L75: =VLOOKUP(LookUpSheet!$B27,'PP2018'!$C$2:$CE$1515,5,FALSE) -> 1238 | M75: 0.055063826 | N75: =VLOOKUP(LookUpSheet!$B27,'PP2017'!$C$2:$CE$1515,5,FALSE) -> 1506 | O75: 0.06048678609 | P75: =VLOOKUP(LookUpSheet!$B27,'PP2016'!$C$2:$CE$1515,5,FALSE) -> 1422 | Q75: =P75/$P$85 -> 0.06219384185 | R75: =VLOOKUP(LookUpSheet!$B27,'PP2015'!$C$2:$CE$1515,5,FALSE) -> 1217 | S75: =R75/$R$85 -> 0.05995959994 | T75: =VLOOKUP(LookUpSheet!$B27,'PP2014'!$C$2:$CE$1516,5,FALSE) -> 378 | U75: =T75/$T$85 -> 0.03619302949 | V75: =VLOOKUP(LookUpSheet!$B27,'PP2013'!$C$2:$CE$1512,5,FALSE) -> 480 | W75: =V75/$V$85 -> 0.03621274991 | X75: =VLOOKUP(LookUpSheet!$B27,'PP2012'!$C$2:$CE$1515,5,FALSE) -> 422 | Y75: =X75/$X$85 -> 0.03609305508 | Z75: =VLOOKUP(LookUpSheet!$B27,'PP2011'!$C$2:$CE$1515,5,FALSE) -> 322 | AA75: =Z75/$Z$85 -> 0.03271360358 | AB75: =VLOOKUP(LookUpSheet!$B27,'PP2010'!$C$2:$CE$1516,5,FALSE) -> 362
C76: Cheshire | E76: 1.206049149 | F76: =VLOOKUP(LookUpSheet!$B28,'PP2021'!$C$2:$CE$1515,5,FALSE) -> 1167 | G76: 0.05192205019 | H76: =VLOOKUP(LookUpSheet!$B28,'PP2020'!$C$2:$CE$1515,5,FALSE) -> 998 | I76: 0.04440291867 | J76: =VLOOKUP(LookUpSheet!$B28,'PP2019'!$C$2:$CE$1515,5,FALSE) -> 1139 | K76: 0.05067627692 | L76: =VLOOKUP(LookUpSheet!$B28,'PP2018'!$C$2:$CE$1515,5,FALSE) -> 1123 | M76: 0.04994885024 | N76: =VLOOKUP(LookUpSheet!$B28,'PP2017'!$C$2:$CE$1515,5,FALSE) -> 1168 | O76: 0.04691139851 | P76: =VLOOKUP(LookUpSheet!$B28,'PP2016'!$C$2:$CE$1515,5,FALSE) -> 967 | Q76: 0.04229356193 | R76: =VLOOKUP(LookUpSheet!$B28,'PP2015'!$C$2:$CE$1515,5,FALSE) -> 907 | S76: 0.04468640686 | T76: =VLOOKUP(LookUpSheet!$B28,'PP2014'!$C$2:$CE$1516,5,FALSE) -> 318 | U76: 0.03044810417 | V76: =VLOOKUP(LookUpSheet!$B28,'PP2013'!$C$2:$CE$1512,5,FALSE) -> 711 | W76: 0.0536401358 | X76: =VLOOKUP(LookUpSheet!$B28,'PP2012'!$C$2:$CE$1515,5,FALSE) -> 613 | Y76: 0.05242901129 | Z76: =VLOOKUP(LookUpSheet!$B28,'PP2011'!$C$2:$CE$1515,5,FALSE) -> 507 | AA76: 0.05150868638 | AB76: =VLOOKUP(LookUpSheet!$B28,'PP2010'!$C$2:$CE$1516,5,FALSE) -> 529
C77: Coos | E77: 2.262295082 | F77: =VLOOKUP(LookUpSheet!$B29,'PP2021'!$C$2:$CE$1515,5,FALSE) -> 597 | G77: 0.02656166578 | H77: =VLOOKUP(LookUpSheet!$B29,'PP2020'!$C$2:$CE$1515,5,FALSE) -> 459 | I77: 0.02042178324 | J77: =VLOOKUP(LookUpSheet!$B29,'PP2019'!$C$2:$CE$1515,5,FALSE) -> 494 | K77: 0.02197899982 | L77: =VLOOKUP(LookUpSheet!$B29,'PP2018'!$C$2:$CE$1515,5,FALSE) -> 557 | M77: 0.0247742739 | N77: =VLOOKUP(LookUpSheet!$B29,'PP2017'!$C$2:$CE$1515,5,FALSE) -> 548 | O77: 0.02200979998 | P77: =VLOOKUP(LookUpSheet!$B29,'PP2016'!$C$2:$CE$1515,5,FALSE) -> 477 | Q77: 0.02086249125 | R77: =VLOOKUP(LookUpSheet!$B29,'PP2015'!$C$2:$CE$1515,5,FALSE) -> 432 | S77: 0.02128393359 | T77: =VLOOKUP(LookUpSheet!$B29,'PP2014'!$C$2:$CE$1516,5,FALSE) -> 124 | U77: 0.01187284565 | V77: =VLOOKUP(LookUpSheet!$B29,'PP2013'!$C$2:$CE$1512,5,FALSE) -> 210 | W77: 0.01584307808 | X77: =VLOOKUP(LookUpSheet!$B29,'PP2012'!$C$2:$CE$1515,5,FALSE) -> 231 | Y77: 0.01975709887 | Z77: =VLOOKUP(LookUpSheet!$B29,'PP2011'!$C$2:$CE$1515,5,FALSE) -> 142 | AA77: 0.01442649599 | AB77: =VLOOKUP(LookUpSheet!$B29,'PP2010'!$C$2:$CE$1516,5,FALSE) -> 183
C78: Grafton | E78: 1.627712855 | F78: =VLOOKUP(LookUpSheet!$B30,'PP2021'!$C$2:$CE$1515,5,FALSE) -> 1574 | G78: 0.07003025449 | H78: =VLOOKUP(LookUpSheet!$B30,'PP2020'!$C$2:$CE$1515,5,FALSE) -> 1660 | I78: 0.07385655811 | J78: =VLOOKUP(LookUpSheet!$B30,'PP2019'!$C$2:$CE$1515,5,FALSE) -> 1705 | K78: 0.07585869372 | L78: =VLOOKUP(LookUpSheet!$B30,'PP2018'!$C$2:$CE$1515,5,FALSE) -> 1768 | M78: 0.07863719255 | N78: =VLOOKUP(LookUpSheet!$B30,'PP2017'!$C$2:$CE$1515,5,FALSE) -> 1801 | O78: 0.07233512732 | P78: =VLOOKUP(LookUpSheet!$B30,'PP2016'!$C$2:$CE$1515,5,FALSE) -> 1597 | Q78: 0.06984779566 | R78: =VLOOKUP(LookUpSheet!$B30,'PP2015'!$C$2:$CE$1515,5,FALSE) -> 1448 | S78: 0.07134059221 | T78: =VLOOKUP(LookUpSheet!$B30,'PP2014'!$C$2:$CE$1516,5,FALSE) -> 541 | U78: 0.0518000766 | V78: =VLOOKUP(LookUpSheet!$B30,'PP2013'!$C$2:$CE$1512,5,FALSE) -> 711 | W78: 0.0536401358 | X78: =VLOOKUP(LookUpSheet!$B30,'PP2012'!$C$2:$CE$1515,5,FALSE) -> 634 | Y78: 0.05422511119 | Z78: =VLOOKUP(LookUpSheet!$B30,'PP2011'!$C$2:$CE$1515,5,FALSE) -> 560 | AA78: 0.05689322361 | AB78: =VLOOKUP(LookUpSheet!$B30,'PP2010'!$C$2:$CE$1516,5,FALSE) -> 599
C79: Hillsborough | E79: 0.5189873418 | F79: =VLOOKUP(LookUpSheet!$B31,'PP2021'!$C$2:$CE$1515,5,FALSE) -> 4800 | G79: 0.2135611319 | H79: =VLOOKUP(LookUpSheet!$B31,'PP2020'!$C$2:$CE$1515,5,FALSE) -> 5408 | I79: 0.2406122086 | J79: =VLOOKUP(LookUpSheet!$B31,'PP2019'!$C$2:$CE$1515,5,FALSE) -> 6385 | K79: 0.2840807973 | L79: =VLOOKUP(LookUpSheet!$B31,'PP2018'!$C$2:$CE$1515,5,FALSE) -> 6368 | M79: 0.2832362229 | N79: =VLOOKUP(LookUpSheet!$B31,'PP2017'!$C$2:$CE$1515,5,FALSE) -> 7116 | O79: 0.2858060888 | P79: =VLOOKUP(LookUpSheet!$B31,'PP2016'!$C$2:$CE$1515,5,FALSE) -> 6725 | Q79: 0.2941305108 | R79: =VLOOKUP(LookUpSheet!$B31,'PP2015'!$C$2:$CE$1515,5,FALSE) -> 5828 | S79: 0.28713603 | T79: =VLOOKUP(LookUpSheet!$B31,'PP2014'!$C$2:$CE$1516,5,FALSE) -> 3368 | U79: 0.3224818077 | V79: =VLOOKUP(LookUpSheet!$B31,'PP2013'!$C$2:$CE$1512,5,FALSE) -> 4043 | W79: 0.3050169747 | X79: =VLOOKUP(LookUpSheet!$B31,'PP2012'!$C$2:$CE$1515,5,FALSE) -> 3633 | Y79: 0.3107252822 | Z79: =VLOOKUP(LookUpSheet!$B31,'PP2011'!$C$2:$CE$1515,5,FALSE) -> 3056 | AA79: 0.3104744488 | AB79: =VLOOKUP(LookUpSheet!$B31,'PP2010'!$C$2:$CE$1516,5,FALSE) -> 3160
C80: Merrimack | E80: 1.004397537 | F80: =VLOOKUP(LookUpSheet!$B32,'PP2021'!$C$2:$CE$1515,5,FALSE) -> 2279 | G80: 0.1013970457 | H80: =VLOOKUP(LookUpSheet!$B32,'PP2020'!$C$2:$CE$1515,5,FALSE) -> 2214 | I80: 0.09850507208 | J80: =VLOOKUP(LookUpSheet!$B32,'PP2019'!$C$2:$CE$1515,5,FALSE) -> 2413 | K80: 0.1073589607 | L80: =VLOOKUP(LookUpSheet!$B32,'PP2018'!$C$2:$CE$1515,5,FALSE) -> 2353 | M80: 0.1046568518 | N80: =VLOOKUP(LookUpSheet!$B32,'PP2017'!$C$2:$CE$1515,5,FALSE) -> 2581 | O80: 0.1036629448 | P80: =VLOOKUP(LookUpSheet!$B32,'PP2016'!$C$2:$CE$1515,5,FALSE) -> 1926 | Q80: 0.08423722883 | R80: =VLOOKUP(LookUpSheet!$B32,'PP2015'!$C$2:$CE$1515,5,FALSE) -> 1790 | S80: 0.08819037296 | T80: =VLOOKUP(LookUpSheet!$B32,'PP2014'!$C$2:$CE$1516,5,FALSE) -> 1171 | U80: 0.1121217924 | V80: =VLOOKUP(LookUpSheet!$B32,'PP2013'!$C$2:$CE$1512,5,FALSE) -> 1431 | W80: 0.1079592607 | X80: =VLOOKUP(LookUpSheet!$B32,'PP2012'!$C$2:$CE$1515,5,FALSE) -> 1242 | Y80: 0.1062264796 | Z80: =VLOOKUP(LookUpSheet!$B32,'PP2011'!$C$2:$CE$1515,5,FALSE) -> 1058 | AA80: 0.1074875546 | AB80: =VLOOKUP(LookUpSheet!$B32,'PP2010'!$C$2:$CE$1516,5,FALSE) -> 1137
C81: Rockingham | E81: 0.9482425647 | F81: =VLOOKUP(LookUpSheet!$B33,'PP2021'!$C$2:$CE$1515,5,FALSE) -> 5044 | G81: 0.2244171561 | H81: =VLOOKUP(LookUpSheet!$B33,'PP2020'!$C$2:$CE$1515,5,FALSE) -> 4704 | I81: 0.2092899092 | J81: =VLOOKUP(LookUpSheet!$B33,'PP2019'!$C$2:$CE$1515,5,FALSE) -> 5294 | K81: 0.2355401317 | L81: =VLOOKUP(LookUpSheet!$B33,'PP2018'!$C$2:$CE$1515,5,FALSE) -> 5005 | M81: 0.2226126407 | N81: =VLOOKUP(LookUpSheet!$B33,'PP2017'!$C$2:$CE$1515,5,FALSE) -> 5889 | O81: 0.2365250221 | P81: =VLOOKUP(LookUpSheet!$B33,'PP2016'!$C$2:$CE$1515,5,FALSE) -> 5761 | Q81: 0.2519681596 | R81: =VLOOKUP(LookUpSheet!$B33,'PP2015'!$C$2:$CE$1515,5,FALSE) -> 5281 | S81: 0.2601862344 | T81: =VLOOKUP(LookUpSheet!$B33,'PP2014'!$C$2:$CE$1516,5,FALSE) -> 2780 | U81: 0.2661815396 | V81: =VLOOKUP(LookUpSheet!$B33,'PP2013'!$C$2:$CE$1512,5,FALSE) -> 3566 | W81: 0.2690305545 | X81: =VLOOKUP(LookUpSheet!$B33,'PP2012'!$C$2:$CE$1515,5,FALSE) -> 3118 | Y81: 0.2666780705 | Z81: =VLOOKUP(LookUpSheet!$B33,'PP2011'!$C$2:$CE$1515,5,FALSE) -> 2636 | AA81: 0.2678045311 | AB81: =VLOOKUP(LookUpSheet!$B33,'PP2010'!$C$2:$CE$1516,5,FALSE) -> 2589
C82: Strafford | E82: 0.6680988185 | F82: =VLOOKUP(LookUpSheet!$B34,'PP2021'!$C$2:$CE$1515,5,FALSE) -> 1553 | G82: 0.06909592454 | H82: =VLOOKUP(LookUpSheet!$B34,'PP2020'!$C$2:$CE$1515,5,FALSE) -> 1641 | I82: 0.07301121196 | J82: =VLOOKUP(LookUpSheet!$B34,'PP2019'!$C$2:$CE$1515,5,FALSE) -> 1864 | K82: 0.08293290621 | L82: =VLOOKUP(LookUpSheet!$B34,'PP2018'!$C$2:$CE$1515,5,FALSE) -> 1905 | M82: 0.08473068541 | N82: =VLOOKUP(LookUpSheet!$B34,'PP2017'!$C$2:$CE$1515,5,FALSE) -> 1995 | O82: 0.08012691782 | P82: =VLOOKUP(LookUpSheet!$B34,'PP2016'!$C$2:$CE$1515,5,FALSE) -> 1862 | Q82: 0.08143806858 | R82: =VLOOKUP(LookUpSheet!$B34,'PP2015'!$C$2:$CE$1515,5,FALSE) -> 1600 | S82: 0.07882938365 | T82: =VLOOKUP(LookUpSheet!$B34,'PP2014'!$C$2:$CE$1516,5,FALSE) -> 857 | U82: 0.08205668326 | V82: =VLOOKUP(LookUpSheet!$B34,'PP2013'!$C$2:$CE$1512,5,FALSE) -> 1115 | W82: 0.0841192003 | X82: =VLOOKUP(LookUpSheet!$B34,'PP2012'!$C$2:$CE$1515,5,FALSE) -> 1028 | Y82: 0.0879233664 | Z82: =VLOOKUP(LookUpSheet!$B34,'PP2011'!$C$2:$CE$1515,5,FALSE) -> 878 | AA82: 0.08920044702 | AB82: =VLOOKUP(LookUpSheet!$B34,'PP2010'!$C$2:$CE$1516,5,FALSE) -> 931
C83: Sullivan | E83: 1.58 | F83: =VLOOKUP(LookUpSheet!$B35,'PP2021'!$C$2:$CE$1515,5,FALSE) -> 645 | G83: 0.0286972771 | H83: =VLOOKUP(LookUpSheet!$B35,'PP2020'!$C$2:$CE$1515,5,FALSE) -> 662 | I83: 0.02945363944 | J83: =VLOOKUP(LookUpSheet!$B35,'PP2019'!$C$2:$CE$1515,5,FALSE) -> 634 | K83: 0.02820786617 | L83: =VLOOKUP(LookUpSheet!$B35,'PP2018'!$C$2:$CE$1515,5,FALSE) -> 695 | M83: 0.03091224481 | N83: =VLOOKUP(LookUpSheet!$B35,'PP2017'!$C$2:$CE$1515,5,FALSE) -> 727 | O83: 0.02919913246 | P83: =VLOOKUP(LookUpSheet!$B35,'PP2016'!$C$2:$CE$1515,5,FALSE) -> 657 | Q83: 0.02873512946 | R83: =VLOOKUP(LookUpSheet!$B35,'PP2015'!$C$2:$CE$1515,5,FALSE) -> 531 | S83: 0.0261615017 | T83: =VLOOKUP(LookUpSheet!$B35,'PP2014'!$C$2:$CE$1516,5,FALSE) -> 214 | U83: 0.02049023363 | V83: =VLOOKUP(LookUpSheet!$B35,'PP2013'!$C$2:$CE$1512,5,FALSE) -> 366 | W83: 0.0276122218 | X83: =VLOOKUP(LookUpSheet!$B35,'PP2012'!$C$2:$CE$1515,5,FALSE) -> 252 | Y83: 0.02155319877 | Z83: =VLOOKUP(LookUpSheet!$B35,'PP2011'!$C$2:$CE$1515,5,FALSE) -> 241 | AA83: 0.02448440516 | AB83: =VLOOKUP(LookUpSheet!$B35,'PP2010'!$C$2:$CE$1516,5,FALSE) -> 250
C85: New Hampshire Statewide | E85: =(F85-AB85)/AB85 -> 0.9592755751 | F85: =SUM(F74:F83) -> 20014 | H85: =SUM(H74:H83) -> 20201 | J85: =SUM(J74:J83) -> 22476 | L85: =SUM(L74:L83) -> 22483 | N85: =SUM(N74:N83) -> 24898 | P85: =SUM(P74:P83) -> 22864 | R85: =SUM(R74:R83) -> 20297 | T85: =SUM(T74:T83) -> 10444 | V85: =SUM(V74:V83) -> 13255 | X85: =SUM(X74:X83) -> 11692 | Z85: =SUM(Z74:Z83) -> 9843 | AB85: =SUM(AB74:AB83) -> 10215
C86: Source: 1990-2014 - NH Dept. of Revenue, PA-34 Dataset, Compiled by Real Data Corp. Filtered and analyzed by New Hampshire Housing.
C87: =StateWideChartAndTable!$C$66 -> 2015 - The Warren Group. Filtered and analyzed by New Hampshire Housing.
C88: Note: Calculations based on a sample size of less than 50 are highly volatile and not considered valid.
C89: Data includes only homes for primary occupancy, data does not include land, multifamily homes, seasonal or vacation property, or manufactured homes.
C112: Existing Homes
F113: ='PP2021'!$D71 -> 2021 | H113: ='PP2020'!$D71 -> 2020 | J113: ='PP2019'!$D71 -> 2019 | L113: 2018 | N113: 2017 | P113: 2016 | R113: 2015 | T113: 2014 | V113: 2013 | X113: 2012 | Z113: 2011 | AB113: 2010
E114: Change Since 2010 | F114: Median | G114: % Change from Prior Yr | H114: Median | I114: % Change from Prior Yr | J114: Median | K114: % Change from Prior Yr | L114: Median | M114: % Change from Prior Yr | N114: Median | O114: % Change from Prior Yr | P114: Median | Q114: % Change from Prior Yr | R114: Median | S114: % Change from Prior Yr | T114: Median | U114: % Change from Prior Yr | V114: Median | W114: % Change from Prior Yr | X114: Median | Y114: % Change from Prior Yr | Z114: Median | AA114: % Change from Prior Yr | AB114: Median
C115: Belknap County | E115: =(F115-AB115)/AB115 -> 0.8124280783 | F115: =VLOOKUP(LookUpSheet!$C26,'PP2021'!$C$2:$CE$1515,8,FALSE) -> 315000 | G115: =(F115-H115)/H115 -> 0.1886792453 | H115: =VLOOKUP(LookUpSheet!$C26,'PP2020'!$C$2:$CE$1515,8,FALSE) -> 265000 | I115: =(H115-J115)/J115 -> 0.1043231124 | J115: =VLOOKUP(LookUpSheet!$C26,'PP2019'!$C$2:$CE$1515,8,FALSE) -> 239966 | K115: =(J115-L115)/L115 -> 0.2058592965 | L115: =VLOOKUP(LookUpSheet!$C26,'PP2016'!$C$2:$CE$1515,8,FALSE) -> 199000 | M115: =(L115-N115)/N115 -> -0.08519626907 | N115: =VLOOKUP(LookUpSheet!$C26,'PP2018'!$C$2:$CE$1515,8,FALSE) -> 217533 | O115: =(N115-P115)/P115 -> 0.09313065327 | P115: =VLOOKUP(LookUpSheet!$C26,'PP2016'!$C$2:$CE$1515,8,FALSE) -> 199000 | Q115: =(P115-R115)/R115 -> 0.04736842105 | R115: =VLOOKUP(LookUpSheet!$C26,'PP2015'!$C$2:$CE$1515,8,FALSE) -> 190000 | S115: =(R115-T115)/T115 -> -0.005235602094 | T115: =VLOOKUP(LookUpSheet!$C26,'PP2014'!$C$2:$CE$1516,8,FALSE) -> 191000 | U115: =(T115-V115)/V115 -> 0.1222091657 | V115: =VLOOKUP(LookUpSheet!$C26,'PP2013'!$C$2:$CE$1512,8,FALSE) -> 170200 | W115: =(V115-X115)/X115 -> 0.02689722581 | X115: =VLOOKUP(LookUpSheet!$C26,'PP2012'!$C$2:$CE$1515,8,FALSE) -> 165742 | Y115: =(X115-Z115)/Z115 -> -0.001554216867 | Z115: =VLOOKUP(LookUpSheet!$C26,'PP2011'!$C$2:$CE$1515,8,FALSE) -> 166000 | AA115: =(Z115-AB115)/AB115 -> -0.04487917146 | AB115: =VLOOKUP(LookUpSheet!$C26,'PP2010'!$C$2:$CE$1516,8,FALSE) -> 173800
C116: Carroll County | E116: =(F116-AB116)/AB116 -> 0.8222222222 | F116: =VLOOKUP(LookUpSheet!$C27,'PP2021'!$C$2:$CE$1515,8,FALSE) -> 328000 | G116: 0.224950143 | H116: =VLOOKUP(LookUpSheet!$C27,'PP2020'!$C$2:$CE$1515,8,FALSE) -> 267766 | I116: 0.1203598326 | J116: =VLOOKUP(LookUpSheet!$C27,'PP2019'!$C$2:$CE$1515,8,FALSE) -> 239000 | K116: 0.2010050251 | L116: =VLOOKUP(LookUpSheet!$C27,'PP2016'!$C$2:$CE$1515,8,FALSE) -> 199000 | M116: -0.07441860465 | N116: =VLOOKUP(LookUpSheet!$C27,'PP2018'!$C$2:$CE$1515,8,FALSE) -> 215000 | O116: 0.08040201005 | P116: =VLOOKUP(LookUpSheet!$C27,'PP2016'!$C$2:$CE$1515,8,FALSE) -> 199000 | Q116: 0.0005027652086 | R116: =VLOOKUP(LookUpSheet!$C27,'PP2015'!$C$2:$CE$1515,8,FALSE) -> 198900 | S116: 0.06935483871 | T116: =VLOOKUP(LookUpSheet!$C27,'PP2014'!$C$2:$CE$1516,8,FALSE) -> 186000 | U116: 0.03362045013 | V116: =VLOOKUP(LookUpSheet!$C27,'PP2013'!$C$2:$CE$1512,8,FALSE) -> 179950 | W116: 0.07432835821 | X116: =VLOOKUP(LookUpSheet!$C27,'PP2012'!$C$2:$CE$1515,8,FALSE) -> 167500 | Y116: -0.01759530792 | Z116: =VLOOKUP(LookUpSheet!$C27,'PP2011'!$C$2:$CE$1515,8,FALSE) -> 170500 | AA116: -0.05277777778 | AB116: =VLOOKUP(LookUpSheet!$C27,'PP2010'!$C$2:$CE$1516,8,FALSE) -> 180000
C117: Cheshire County | E117: 0.6307692308 | F117: =VLOOKUP(LookUpSheet!$C28,'PP2021'!$C$2:$CE$1515,8,FALSE) -> 265000 | G117: 0.1422413793 | H117: =VLOOKUP(LookUpSheet!$C28,'PP2020'!$C$2:$CE$1515,8,FALSE) -> 232000 | I117: 0.1658291457 | J117: =VLOOKUP(LookUpSheet!$C28,'PP2019'!$C$2:$CE$1515,8,FALSE) -> 199000 | K117: 0.1712772219 | L117: =VLOOKUP(LookUpSheet!$C28,'PP2016'!$C$2:$CE$1515,8,FALSE) -> 169900 | M117: -0.06132596685 | N117: =VLOOKUP(LookUpSheet!$C28,'PP2018'!$C$2:$CE$1515,8,FALSE) -> 181000 | O117: 0.06533254856 | P117: =VLOOKUP(LookUpSheet!$C28,'PP2016'!$C$2:$CE$1515,8,FALSE) -> 169900 | Q117: 0.03893403778 | R117: =VLOOKUP(LookUpSheet!$C28,'PP2015'!$C$2:$CE$1515,8,FALSE) -> 163533 | S117: 0.02208125 | T117: =VLOOKUP(LookUpSheet!$C28,'PP2014'!$C$2:$CE$1516,8,FALSE) -> 160000 | U117: -0.0243902439 | V117: =VLOOKUP(LookUpSheet!$C28,'PP2013'!$C$2:$CE$1512,8,FALSE) -> 164000 | W117: 0.01547987616 | X117: =VLOOKUP(LookUpSheet!$C28,'PP2012'!$C$2:$CE$1515,8,FALSE) -> 161500 | Y117: 0.02931803697 | Z117: =VLOOKUP(LookUpSheet!$C28,'PP2011'!$C$2:$CE$1515,8,FALSE) -> 156900 | AA117: -0.03446153846 | AB117: =VLOOKUP(LookUpSheet!$C28,'PP2010'!$C$2:$CE$1516,8,FALSE) -> 162500
C118: Coos County | E118: 0.6931216931 | F118: =VLOOKUP(LookUpSheet!$C29,'PP2021'!$C$2:$CE$1515,8,FALSE) -> 160000 | G118: 0.1034482759 | H118: =VLOOKUP(LookUpSheet!$C29,'PP2020'!$C$2:$CE$1515,8,FALSE) -> 145000 | I118: 0.2083333333 | J118: =VLOOKUP(LookUpSheet!$C29,'PP2019'!$C$2:$CE$1515,8,FALSE) -> 120000 | K118: 0.2012012012 | L118: =VLOOKUP(LookUpSheet!$C29,'PP2016'!$C$2:$CE$1515,8,FALSE) -> 99900 | M118: -0.09181818182 | N118: =VLOOKUP(LookUpSheet!$C29,'PP2018'!$C$2:$CE$1515,8,FALSE) -> 110000 | O118: 0.1011011011 | P118: =VLOOKUP(LookUpSheet!$C29,'PP2016'!$C$2:$CE$1515,8,FALSE) -> 99900 | Q118: -0.04310344828 | R118: =VLOOKUP(LookUpSheet!$C29,'PP2015'!$C$2:$CE$1515,8,FALSE) -> 104400 | S118: -0.1197301855 | T118: =VLOOKUP(LookUpSheet!$C29,'PP2014'!$C$2:$CE$1516,8,FALSE) -> 118600 | U118: 0.3523375143 | V118: =VLOOKUP(LookUpSheet!$C29,'PP2013'!$C$2:$CE$1512,8,FALSE) -> 87700 | W118: -0.1051020408 | X118: =VLOOKUP(LookUpSheet!$C29,'PP2012'!$C$2:$CE$1515,8,FALSE) -> 98000 | Y118: 0.08888888889 | Z118: =VLOOKUP(LookUpSheet!$C29,'PP2011'!$C$2:$CE$1515,8,FALSE) -> 90000 | AA118: -0.04761904762 | AB118: =VLOOKUP(LookUpSheet!$C29,'PP2010'!$C$2:$CE$1516,8,FALSE) -> 94500
C119: Grafton County | E119: 0.4965986395 | F119: =VLOOKUP(LookUpSheet!$C30,'PP2021'!$C$2:$CE$1515,8,FALSE) -> 275000 | G119: 0.1956521739 | H119: =VLOOKUP(LookUpSheet!$C30,'PP2020'!$C$2:$CE$1515,8,FALSE) -> 230000 | I119: 0.1106282293 | J119: =VLOOKUP(LookUpSheet!$C30,'PP2019'!$C$2:$CE$1515,8,FALSE) -> 207090 | K119: 0.09571428571 | L119: =VLOOKUP(LookUpSheet!$C30,'PP2016'!$C$2:$CE$1515,8,FALSE) -> 189000 | M119: -0.04060913706 | N119: =VLOOKUP(LookUpSheet!$C30,'PP2018'!$C$2:$CE$1515,8,FALSE) -> 197000 | O119: 0.04232804233 | P119: =VLOOKUP(LookUpSheet!$C30,'PP2016'!$C$2:$CE$1515,8,FALSE) -> 189000 | Q119: 0.05 | R119: =VLOOKUP(LookUpSheet!$C30,'PP2015'!$C$2:$CE$1515,8,FALSE) -> 180000 | S119: 0.0904662955 | T119: =VLOOKUP(LookUpSheet!$C30,'PP2014'!$C$2:$CE$1516,8,FALSE) -> 165067 | U119: -0.1077459459 | V119: =VLOOKUP(LookUpSheet!$C30,'PP2013'!$C$2:$CE$1512,8,FALSE) -> 185000 | W119: 0.02777777778 | X119: =VLOOKUP(LookUpSheet!$C30,'PP2012'!$C$2:$CE$1515,8,FALSE) -> 180000 | Y119: -0.02702702703 | Z119: =VLOOKUP(LookUpSheet!$C30,'PP2011'!$C$2:$CE$1515,8,FALSE) -> 185000 | AA119: 0.006802721088 | AB119: =VLOOKUP(LookUpSheet!$C30,'PP2010'!$C$2:$CE$1516,8,FALSE) -> 183750
C120: Hillsborough County | E120: 0.7011494253 | F120: =VLOOKUP(LookUpSheet!$C31,'PP2021'!$C$2:$CE$1515,8,FALSE) -> 370000 | G120: 0.1746031746 | H120: =VLOOKUP(LookUpSheet!$C31,'PP2020'!$C$2:$CE$1515,8,FALSE) -> 315000 | I120: 0.125 | J120: =VLOOKUP(LookUpSheet!$C31,'PP2019'!$C$2:$CE$1515,8,FALSE) -> 280000 | K120: 0.2041301665 | L120: =VLOOKUP(LookUpSheet!$C31,'PP2016'!$C$2:$CE$1515,8,FALSE) -> 232533 | M120: -0.1124694656 | N120: =VLOOKUP(LookUpSheet!$C31,'PP2018'!$C$2:$CE$1515,8,FALSE) -> 262000 | O120: 0.1267217986 | P120: =VLOOKUP(LookUpSheet!$C31,'PP2016'!$C$2:$CE$1515,8,FALSE) -> 232533 | Q120: 0.03809375 | R120: =VLOOKUP(LookUpSheet!$C31,'PP2015'!$C$2:$CE$1515,8,FALSE) -> 224000 | S120: 0.06161137441 | T120: =VLOOKUP(LookUpSheet!$C31,'PP2014'!$C$2:$CE$1516,8,FALSE) -> 211000 | U120: -0.04090909091 | V120: =VLOOKUP(LookUpSheet!$C31,'PP2013'!$C$2:$CE$1512,8,FALSE) -> 220000 | W120: 0.08356769589 | X120: =VLOOKUP(LookUpSheet!$C31,'PP2012'!$C$2:$CE$1515,8,FALSE) -> 203033 | Y120: -0.01440291262 | Z120: =VLOOKUP(LookUpSheet!$C31,'PP2011'!$C$2:$CE$1515,8,FALSE) -> 206000 | AA120: -0.05287356322 | AB120: =VLOOKUP(LookUpSheet!$C31,'PP2010'!$C$2:$CE$1516,8,FALSE) -> 217500
C121: Merrimack County | E121: 0.7195767196 | F121: =VLOOKUP(LookUpSheet!$C32,'PP2021'!$C$2:$CE$1515,8,FALSE) -> 325000 | G121: 0.1607142857 | H121: =VLOOKUP(LookUpSheet!$C32,'PP2020'!$C$2:$CE$1515,8,FALSE) -> 280000 | I121: 0.1290322581 | J121: =VLOOKUP(LookUpSheet!$C32,'PP2019'!$C$2:$CE$1515,8,FALSE) -> 248000 | K121: 0.1923076923 | L121: =VLOOKUP(LookUpSheet!$C32,'PP2016'!$C$2:$CE$1515,8,FALSE) -> 208000 | M121: -0.1330913213 | N121: =VLOOKUP(LookUpSheet!$C32,'PP2018'!$C$2:$CE$1515,8,FALSE) -> 239933 | O121: 0.1535240385 | P121: =VLOOKUP(LookUpSheet!$C32,'PP2016'!$C$2:$CE$1515,8,FALSE) -> 208000 | Q121: 0.05583756345 | R121: =VLOOKUP(LookUpSheet!$C32,'PP2015'!$C$2:$CE$1515,8,FALSE) -> 197000 | S121: -0.01005025126 | T121: =VLOOKUP(LookUpSheet!$C32,'PP2014'!$C$2:$CE$1516,8,FALSE) -> 199000 | U121: 0 | V121: =VLOOKUP(LookUpSheet!$C32,'PP2013'!$C$2:$CE$1512,8,FALSE) -> 199000 | W121: 0.0886214442 | X121: =VLOOKUP(LookUpSheet!$C32,'PP2012'!$C$2:$CE$1515,8,FALSE) -> 182800 | Y121: 0.04457142857 | Z121: =VLOOKUP(LookUpSheet!$C32,'PP2011'!$C$2:$CE$1515,8,FALSE) -> 175000 | AA121: -0.07407407407 | AB121: =VLOOKUP(LookUpSheet!$C32,'PP2010'!$C$2:$CE$1516,8,FALSE) -> 189000
C122: Rockingham County | E122: 0.76 | F122: =VLOOKUP(LookUpSheet!$C33,'PP2021'!$C$2:$CE$1515,8,FALSE) -> 440000 | G122: 0.1282051282 | H122: =VLOOKUP(LookUpSheet!$C33,'PP2020'!$C$2:$CE$1515,8,FALSE) -> 390000 | I122: 0.1239193084 | J122: =VLOOKUP(LookUpSheet!$C33,'PP2019'!$C$2:$CE$1515,8,FALSE) -> 347000 | K122: 0.2132867133 | L122: =VLOOKUP(LookUpSheet!$C33,'PP2016'!$C$2:$CE$1515,8,FALSE) -> 286000 | M122: -0.12 | N122: =VLOOKUP(LookUpSheet!$C33,'PP2018'!$C$2:$CE$1515,8,FALSE) -> 325000 | O122: 0.1363636364 | P122: =VLOOKUP(LookUpSheet!$C33,'PP2016'!$C$2:$CE$1515,8,FALSE) -> 286000 | Q122: 0.05147058824 | R122: =VLOOKUP(LookUpSheet!$C33,'PP2015'!$C$2:$CE$1515,8,FALSE) -> 272000 | S122: 0.06666666667 | T122: =VLOOKUP(LookUpSheet!$C33,'PP2014'!$C$2:$CE$1516,8,FALSE) -> 255000 | U122: -0.01923076923 | V122: =VLOOKUP(LookUpSheet!$C33,'PP2013'!$C$2:$CE$1512,8,FALSE) -> 260000 | W122: 0.04859850776 | X122: =VLOOKUP(LookUpSheet!$C33,'PP2012'!$C$2:$CE$1515,8,FALSE) -> 247950 | Y122: 0.01204081633 | Z122: =VLOOKUP(LookUpSheet!$C33,'PP2011'!$C$2:$CE$1515,8,FALSE) -> 245000 | AA122: -0.02 | AB122: =VLOOKUP(LookUpSheet!$C33,'PP2010'!$C$2:$CE$1516,8,FALSE) -> 250000
C123: Strafford County | E123: 0.7073170732 | F123: =VLOOKUP(LookUpSheet!$C34,'PP2021'!$C$2:$CE$1515,8,FALSE) -> 315000 | G123: 0.125 | H123: =VLOOKUP(LookUpSheet!$C34,'PP2020'!$C$2:$CE$1515,8,FALSE) -> 280000 | I123: 0.102653062 | J123: =VLOOKUP(LookUpSheet!$C34,'PP2019'!$C$2:$CE$1515,8,FALSE) -> 253933 | K123: 0.2095906789 | L123: =VLOOKUP(LookUpSheet!$C34,'PP2016'!$C$2:$CE$1515,8,FALSE) -> 209933 | M123: -0.1252791667 | N123: =VLOOKUP(LookUpSheet!$C34,'PP2018'!$C$2:$CE$1515,8,FALSE) -> 240000 | O123: 0.1432218851 | P123: =VLOOKUP(LookUpSheet!$C34,'PP2016'!$C$2:$CE$1515,8,FALSE) -> 209933 | Q123: 0.049665 | R123: =VLOOKUP(LookUpSheet!$C34,'PP2015'!$C$2:$CE$1515,8,FALSE) -> 200000 | S123: -0.01477832512 | T123: =VLOOKUP(LookUpSheet!$C34,'PP2014'!$C$2:$CE$1516,8,FALSE) -> 203000 | U123: 0.04102564103 | V123: =VLOOKUP(LookUpSheet!$C34,'PP2013'!$C$2:$CE$1512,8,FALSE) -> 195000 | W123: 0.0985915493 | X123: =VLOOKUP(LookUpSheet!$C34,'PP2012'!$C$2:$CE$1515,8,FALSE) -> 177500 | Y123: -0.01388888889 | Z123: =VLOOKUP(LookUpSheet!$C34,'PP2011'!$C$2:$CE$1515,8,FALSE) -> 180000 | AA123: -0.0243902439 | AB123: =VLOOKUP(LookUpSheet!$C34,'PP2010'!$C$2:$CE$1516,8,FALSE) -> 184500
C124: Sullivan County | E124: 0.5309446254 | F124: =VLOOKUP(LookUpSheet!$C35,'PP2021'!$C$2:$CE$1515,8,FALSE) -> 235000 | G124: 0.1057106426 | H124: =VLOOKUP(LookUpSheet!$C35,'PP2020'!$C$2:$CE$1515,8,FALSE) -> 212533 | I124: 0.2144742857 | J124: =VLOOKUP(LookUpSheet!$C35,'PP2019'!$C$2:$CE$1515,8,FALSE) -> 175000 | K124: 0.1075949367 | L124: =VLOOKUP(LookUpSheet!$C35,'PP2016'!$C$2:$CE$1515,8,FALSE) -> 158000 | M124: -0.07058823529 | N124: =VLOOKUP(LookUpSheet!$C35,'PP2018'!$C$2:$CE$1515,8,FALSE) -> 170000 | O124: 0.07594936709 | P124: =VLOOKUP(LookUpSheet!$C35,'PP2016'!$C$2:$CE$1515,8,FALSE) -> 158000 | Q124: 0.006369426752 | R124: =VLOOKUP(LookUpSheet!$C35,'PP2015'!$C$2:$CE$1515,8,FALSE) -> 157000 | S124: 0.08275862069 | T124: =VLOOKUP(LookUpSheet!$C35,'PP2014'!$C$2:$CE$1516,8,FALSE) -> 145000 | U124: 0 | V124: =VLOOKUP(LookUpSheet!$C35,'PP2013'!$C$2:$CE$1512,8,FALSE) -> 145000 | W124: -0.06451612903 | X124: =VLOOKUP(LookUpSheet!$C35,'PP2012'!$C$2:$CE$1515,8,FALSE) -> 155000 | Y124: 0.05442176871 | Z124: =VLOOKUP(LookUpSheet!$C35,'PP2011'!$C$2:$CE$1515,8,FALSE) -> 147000 | AA124: -0.04234527687 | AB124: =VLOOKUP(LookUpSheet!$C35,'PP2010'!$C$2:$CE$1516,8,FALSE) -> 153500
C126: New Hampshire Statewide | E126: =(F126-AB126)/AB126 -> 0.7073170732 | F126: =VLOOKUP(LookUpSheet!$C20,'PP2021'!$C$2:$CE$1515,8,FALSE) -> 350000 | G126: =(F126-H126)/H126 -> 0.1666666667 | H126: =VLOOKUP(LookUpSheet!$C20,'PP2020'!$C$2:$CE$1515,8,FALSE) -> 300000 | I126: =(H126-J126)/J126 -> 0.1113868997 | J126: =VLOOKUP(LookUpSheet!$C20,'PP2019'!$C$2:$CE$1515,8,FALSE) -> 269933 | K126: =(J126-L126)/L126 -> 0.1997022222 | L126: =VLOOKUP(LookUpSheet!$C20,'PP2016'!$C$2:$CE$1515,8,FALSE) -> 225000 | M126: =(L126-N126)/N126 -> -0.1 | N126: =VLOOKUP(LookUpSheet!$C20,'PP2018'!$C$2:$CE$1515,8,FALSE) -> 250000 | O126: =(N126-P126)/P126 -> 0.1111111111 | P126: =VLOOKUP(LookUpSheet!$C20,'PP2016'!$C$2:$CE$1515,8,FALSE) -> 225000 | Q126: =(P126-R126)/R126 -> 0.02303883455 | R126: =VLOOKUP(LookUpSheet!$C20,'PP2015'!$C$2:$CE$1515,8,FALSE) -> 219933 | S126: =(R126-T126)/T126 -> 0.02997194813 | T126: =VLOOKUP(LookUpSheet!$C20,'PP2014'!$C$2:$CE$1516,8,FALSE) -> 213533 | U126: =(T126-V126)/V126 -> -0.006823255814 | V126: =VLOOKUP(LookUpSheet!$C20,'PP2013'!$C$2:$CE$1512,8,FALSE) -> 215000 | W126: =(V126-X126)/X126 -> 0.08040201005 | X126: =VLOOKUP(LookUpSheet!$C20,'PP2012'!$C$2:$CE$1515,8,FALSE) -> 199000 | Y126: =(X126-Z126)/Z126 -> -0.005 | Z126: =VLOOKUP(LookUpSheet!$C20,'PP2011'!$C$2:$CE$1515,8,FALSE) -> 200000 | AA126: =(Z126-AB126)/AB126 -> -0.0243902439 | AB126: =VLOOKUP(LookUpSheet!$C20,'PP2010'!$C$2:$CE$1516,8,FALSE) -> 205000
C127: Source: 1990-2014 - NH Dept. of Revenue, PA-34 Dataset, Compiled by Real Data Corp. Filtered and analyzed by New Hampshire Housing. | E127: Source: NH Dept. of Revenue, PA-34 Dataset, Compiled by Real Data Corp. Filtered and analyzed by New Hampshire Housing.
C128: =StateWideChartAndTable!$C$66 -> 2015 - The Warren Group. Filtered and analyzed by New Hampshire Housing.
C129: Note: Calculations based on a sample size of less than 50 are highly volatile and not considered valid.
C130: Data includes only homes for primary occupancy, data does not include land, multifamily homes, seasonal or vacation property, or manufactured homes.
C153: New Homes
F154: ='PP2021'!$D112 -> 2021 | H154: ='PP2020'!$D112 -> 2020 | J154: ='PP2019'!$D112 -> 2019 | L154: 2018 | N154: 2017 | P154: 2016 | R154: 2015 | T154: 2014 | V154: 2013 | X154: 2012 | Z154: 2011 | AB154: 2010
E155: Change Since 2010 | F155: Median | G155: % Change from Prior Yr | H155: Median | I155: % Change from Prior Yr | J155: Median | K155: % Change from Prior Yr | L155: Median | M155: % Change from Prior Yr | N155: Median | O155: % Change from Prior Yr | P155: Median | Q155: % Change from Prior Yr | R155: Median | S155: % Change from Prior Yr | T155: Median | U155: % Change from Prior Yr | V155: Median | W155: % Change from Prior Yr | X155: Median | Y155: % Change from Prior Yr | Z155: Median | AA155: % Change from Prior Yr | AB155: Median
C156: Belknap County | E156: =(F156-AB156)/AB156 -> 1.368530414 | F156: =VLOOKUP(LookUpSheet!$D26,'PP2021'!$C$2:$CE$1515,8,FALSE) -> 486733 | G156: =(F156-H156)/H156 -> 0.2981866093 | H156: =VLOOKUP(LookUpSheet!$D26,'PP2020'!$C$2:$CE$1515,8,FALSE) -> 374933 | I156: =(H156-J156)/J156 -> 0.1881888766 | J156: =VLOOKUP(LookUpSheet!$D26,'PP2019'!$C$2:$CE$1515,8,FALSE) -> 315550 | K156: =(J156-L156)/L156 -> 0.1269642857 | L156: =VLOOKUP(LookUpSheet!$D26,'PP2018'!$C$2:$CE$1515,8,FALSE) -> 280000 | M156: =(L156-N156)/N156 -> -0.01696783729 | N156: =VLOOKUP(LookUpSheet!$D26,'PP2017'!$C$2:$CE$1515,8,FALSE) -> 284833 | O156: =(N156-P156)/P156 -> -0.4348551587 | P156: =VLOOKUP(LookUpSheet!$D26,'PP2016'!$C$2:$CE$1515,8,FALSE) -> 504000 | Q156: =(P156-R156)/R156 -> 0.7000263099 | R156: =VLOOKUP(LookUpSheet!$D26,'PP2015'!$C$2:$CE$1515,8,FALSE) -> 296466 | S156: =(R156-T156)/T156 -> 0.1775458164 | T156: =VLOOKUP(LookUpSheet!$D26,'PP2014'!$C$2:$CE$1516,8,FALSE) -> 251766 | U156: =(T156-V156)/V156 -> 0.09511091779 | V156: =VLOOKUP(LookUpSheet!$D26,'PP2013'!$C$2:$CE$1512,8,FALSE) -> 229900 | W156: =(V156-X156)/X156 -> -0.153300801 | X156: =VLOOKUP(LookUpSheet!$D26,'PP2012'!$C$2:$CE$1515,8,FALSE) -> 271525 | Y156: =(X156-Z156)/Z156 -> 0.2592463768 | Z156: =VLOOKUP(LookUpSheet!$D26,'PP2011'!$C$2:$CE$1515,8,FALSE) -> 215625 | AA156: =(Z156-AB156)/AB156 -> 0.04927007299 | AB156: =VLOOKUP(LookUpSheet!$D26,'PP2010'!$C$2:$CE$1516,8,FALSE) -> 205500
C157: Carroll County | E157: =(F157-AB157)/AB157 -> 0.5257231314 | F157: =VLOOKUP(LookUpSheet!$D27,'PP2021'!$C$2:$CE$1515,8,FALSE) -> 344966 | G157: -0.3599888683 | H157: =VLOOKUP(LookUpSheet!$D27,'PP2020'!$C$2:$CE$1515,8,FALSE) -> 539000 | I157: 0.5901299835 | J157: =VLOOKUP(LookUpSheet!$D27,'PP2019'!$C$2:$CE$1515,8,FALSE) -> 338966 | K157: -0.1308564103 | L157: =VLOOKUP(LookUpSheet!$D27,'PP2018'!$C$2:$CE$1515,8,FALSE) -> 390000 | M157: 0.214953271 | N157: =VLOOKUP(LookUpSheet!$D27,'PP2017'!$C$2:$CE$1515,8,FALSE) -> 321000 | O157: 0.1661447473 | P157: =VLOOKUP(LookUpSheet!$D27,'PP2016'!$C$2:$CE$1515,8,FALSE) -> 275266 | Q157: 0.05871538462 | R157: =VLOOKUP(LookUpSheet!$D27,'PP2015'!$C$2:$CE$1515,8,FALSE) -> 260000 | S157: 0.3684210526 | T157: =VLOOKUP(LookUpSheet!$D27,'PP2014'!$C$2:$CE$1516,8,FALSE) -> 190000 | U157: -0.01783406565 | V157: =VLOOKUP(LookUpSheet!$D27,'PP2013'!$C$2:$CE$1512,8,FALSE) -> 193450 | W157: -0.02066996401 | X157: =VLOOKUP(LookUpSheet!$D27,'PP2012'!$C$2:$CE$1515,8,FALSE) -> 197533 | Y157: -0.2402576923 | Z157: =VLOOKUP(LookUpSheet!$D27,'PP2011'!$C$2:$CE$1515,8,FALSE) -> 260000 | AA157: 0.1499336577 | AB157: =VLOOKUP(LookUpSheet!$D27,'PP2010'!$C$2:$CE$1516,8,FALSE) -> 226100
C158: Cheshire County | E158: 0.9034852547 | F158: =VLOOKUP(LookUpSheet!$D28,'PP2021'!$C$2:$CE$1515,8,FALSE) -> 355000 | G158: 0.2033898305 | H158: =VLOOKUP(LookUpSheet!$D28,'PP2020'!$C$2:$CE$1515,8,FALSE) -> 295000 | I158: -0.05901116427 | J158: =VLOOKUP(LookUpSheet!$D28,'PP2019'!$C$2:$CE$1515,8,FALSE) -> 313500 | K158: 0.9391832544 | L158: =VLOOKUP(LookUpSheet!$D28,'PP2018'!$C$2:$CE$1515,8,FALSE) -> 161666 | M158: -0.2315012882 | N158: =VLOOKUP(LookUpSheet!$D28,'PP2017'!$C$2:$CE$1515,8,FALSE) -> 210366 | O158: 0.02885565326 | P158: =VLOOKUP(LookUpSheet!$D28,'PP2016'!$C$2:$CE$1515,8,FALSE) -> 204466 | Q158: 0.05123907455 | R158: =VLOOKUP(LookUpSheet!$D28,'PP2015'!$C$2:$CE$1515,8,FALSE) -> 194500 | S158: 0.384341637 | T158: =VLOOKUP(LookUpSheet!$D28,'PP2014'!$C$2:$CE$1516,8,FALSE) -> 140500 | U158: -0.1515700483 | V158: =VLOOKUP(LookUpSheet!$D28,'PP2013'!$C$2:$CE$1512,8,FALSE) -> 165600 | W158: -0.2329782307 | X158: =VLOOKUP(LookUpSheet!$D28,'PP2012'!$C$2:$CE$1515,8,FALSE) -> 215900 | Y158: 0.239380023 | Z158: =VLOOKUP(LookUpSheet!$D28,'PP2011'!$C$2:$CE$1515,8,FALSE) -> 174200 | AA158: -0.06595174263 | AB158: =VLOOKUP(LookUpSheet!$D28,'PP2010'!$C$2:$CE$1516,8,FALSE) -> 186500
C159: Coos County | E159: -0.4534435262 | F159: =VLOOKUP(LookUpSheet!$D29,'PP2021'!$C$2:$CE$1515,8,FALSE) -> 223200 | G159: -0.07743052829 | H159: =VLOOKUP(LookUpSheet!$D29,'PP2020'!$C$2:$CE$1515,8,FALSE) -> 241933 | J159: =VLOOKUP(LookUpSheet!$D29,'PP2019'!$C$2:$CE$1515,8,FALSE) ->  | L159: =VLOOKUP(LookUpSheet!$D29,'PP2018'!$C$2:$CE$1515,8,FALSE) -> 165000 | M159: 0.9023900937 | N159: =VLOOKUP(LookUpSheet!$D29,'PP2017'!$C$2:$CE$1515,8,FALSE) -> 86733 | O159: -0.7399310345 | P159: =VLOOKUP(LookUpSheet!$D29,'PP2016'!$C$2:$CE$1515,8,FALSE) -> 333500 | Q159: 1.802521008 | R159: =VLOOKUP(LookUpSheet!$D29,'PP2015'!$C$2:$CE$1515,8,FALSE) -> 119000 | S159: 0.06472451372 | T159: =VLOOKUP(LookUpSheet!$D29,'PP2014'!$C$2:$CE$1516,8,FALSE) -> 111766 | U159: -0.08011522634 | V159: =VLOOKUP(LookUpSheet!$D29,'PP2013'!$C$2:$CE$1512,8,FALSE) -> 121500 | X159: =VLOOKUP(LookUpSheet!$D29,'PP2012'!$C$2:$CE$1515,8,FALSE) ->  | Z159: =VLOOKUP(LookUpSheet!$D29,'PP2011'!$C$2:$CE$1515,8,FALSE) -> 137500 | AA159: -0.6632996633 | AB159: =VLOOKUP(LookUpSheet!$D29,'PP2010'!$C$2:$CE$1516,8,FALSE) -> 408375
C160: Grafton County | E160: 0.602739726 | F160: =VLOOKUP(LookUpSheet!$D30,'PP2021'!$C$2:$CE$1515,8,FALSE) -> 351000 | G160: -0.0487804878 | H160: =VLOOKUP(LookUpSheet!$D30,'PP2020'!$C$2:$CE$1515,8,FALSE) -> 369000 | I160: -0.08322981366 | J160: =VLOOKUP(LookUpSheet!$D30,'PP2019'!$C$2:$CE$1515,8,FALSE) -> 402500 | K160: 0.07908847185 | L160: =VLOOKUP(LookUpSheet!$D30,'PP2018'!$C$2:$CE$1515,8,FALSE) -> 373000 | M160: 0.002688172043 | N160: =VLOOKUP(LookUpSheet!$D30,'PP2017'!$C$2:$CE$1515,8,FALSE) -> 372000 | O160: 0.06285714286 | P160: =VLOOKUP(LookUpSheet!$D30,'PP2016'!$C$2:$CE$1515,8,FALSE) -> 350000 | Q160: 0.5418502203 | R160: =VLOOKUP(LookUpSheet!$D30,'PP2015'!$C$2:$CE$1515,8,FALSE) -> 227000 | S160: -0.1446872645 | T160: =VLOOKUP(LookUpSheet!$D30,'PP2014'!$C$2:$CE$1516,8,FALSE) -> 265400 | U160: 0.005051767361 | V160: =VLOOKUP(LookUpSheet!$D30,'PP2013'!$C$2:$CE$1512,8,FALSE) -> 264066 | W160: 0.07782040816 | X160: =VLOOKUP(LookUpSheet!$D30,'PP2012'!$C$2:$CE$1515,8,FALSE) -> 245000 | Y160: 0.05687269214 | Z160: =VLOOKUP(LookUpSheet!$D30,'PP2011'!$C$2:$CE$1515,8,FALSE) -> 231816 | AA160: 0.05852054795 | AB160: =VLOOKUP(LookUpSheet!$D30,'PP2010'!$C$2:$CE$1516,8,FALSE) -> 219000
C161: Hillsborough County | E161: 0.6228070175 | F161: =VLOOKUP(LookUpSheet!$D31,'PP2021'!$C$2:$CE$1515,8,FALSE) -> 462500 | G161: 0.1664564943 | H161: =VLOOKUP(LookUpSheet!$D31,'PP2020'!$C$2:$CE$1515,8,FALSE) -> 396500 | I161: -0.05595238095 | J161: =VLOOKUP(LookUpSheet!$D31,'PP2019'!$C$2:$CE$1515,8,FALSE) -> 420000 | K161: 0.1668838367 | L161: =VLOOKUP(LookUpSheet!$D31,'PP2018'!$C$2:$CE$1515,8,FALSE) -> 359933 | M161: 0 | N161: =VLOOKUP(LookUpSheet!$D31,'PP2017'!$C$2:$CE$1515,8,FALSE) -> 359933 | O161: 0.01123807009 | P161: =VLOOKUP(LookUpSheet!$D31,'PP2016'!$C$2:$CE$1515,8,FALSE) -> 355933 | Q161: 0.005841194124 | R161: =VLOOKUP(LookUpSheet!$D31,'PP2015'!$C$2:$CE$1515,8,FALSE) -> 353866 | S161: 0.136615778 | T161: =VLOOKUP(LookUpSheet!$D31,'PP2014'!$C$2:$CE$1516,8,FALSE) -> 311333 | U161: 0.01411400651 | V161: =VLOOKUP(LookUpSheet!$D31,'PP2013'!$C$2:$CE$1512,8,FALSE) -> 307000 | W161: 0.0902220928 | X161: =VLOOKUP(LookUpSheet!$D31,'PP2012'!$C$2:$CE$1515,8,FALSE) -> 281594 | Y161: -0.06135333333 | Z161: =VLOOKUP(LookUpSheet!$D31,'PP2011'!$C$2:$CE$1515,8,FALSE) -> 300000 | AA161: 0.05263157895 | AB161: =VLOOKUP(LookUpSheet!$D31,'PP2010'!$C$2:$CE$1516,8,FALSE) -> 285000
C162: Merrimack County | E162: 0.8754863813 | F162: =VLOOKUP(LookUpSheet!$D32,'PP2021'!$C$2:$CE$1515,8,FALSE) -> 482000 | G162: 0.4833827281 | H162: =VLOOKUP(LookUpSheet!$D32,'PP2020'!$C$2:$CE$1515,8,FALSE) -> 324933 | I162: -0.1032199662 | J162: =VLOOKUP(LookUpSheet!$D32,'PP2019'!$C$2:$CE$1515,8,FALSE) -> 362333 | K162: 0.08836162876 | L162: =VLOOKUP(LookUpSheet!$D32,'PP2018'!$C$2:$CE$1515,8,FALSE) -> 332916 | M162: 0.008836363636 | N162: =VLOOKUP(LookUpSheet!$D32,'PP2017'!$C$2:$CE$1515,8,FALSE) -> 330000 | O162: 0.06796116505 | P162: =VLOOKUP(LookUpSheet!$D32,'PP2016'!$C$2:$CE$1515,8,FALSE) -> 309000 | Q162: 0.1752043296 | R162: =VLOOKUP(LookUpSheet!$D32,'PP2015'!$C$2:$CE$1515,8,FALSE) -> 262933 | S162: 0.01912015504 | T162: =VLOOKUP(LookUpSheet!$D32,'PP2014'!$C$2:$CE$1516,8,FALSE) -> 258000 | U162: 0.032 | V162: =VLOOKUP(LookUpSheet!$D32,'PP2013'!$C$2:$CE$1512,8,FALSE) -> 250000 | W162: 0.0372152844 | X162: =VLOOKUP(LookUpSheet!$D32,'PP2012'!$C$2:$CE$1515,8,FALSE) -> 241030 | Y162: -0.03549419768 | Z162: =VLOOKUP(LookUpSheet!$D32,'PP2011'!$C$2:$CE$1515,8,FALSE) -> 249900 | AA162: -0.02762645914 | AB162: =VLOOKUP(LookUpSheet!$D32,'PP2010'!$C$2:$CE$1516,8,FALSE) -> 257000
C163: Rockingham County | E163: 0.9011342303 | F163: =VLOOKUP(LookUpSheet!$D33,'PP2021'!$C$2:$CE$1515,8,FALSE) -> 560000 | G163: 0.1702432225 | H163: =VLOOKUP(LookUpSheet!$D33,'PP2020'!$C$2:$CE$1515,8,FALSE) -> 478533 | I163: -0.005335689046 | J163: =VLOOKUP(LookUpSheet!$D33,'PP2019'!$C$2:$CE$1515,8,FALSE) -> 481100 | K163: 0.1266978923 | L163: =VLOOKUP(LookUpSheet!$D33,'PP2018'!$C$2:$CE$1515,8,FALSE) -> 427000 | M163: 0.05224248398 | N163: =VLOOKUP(LookUpSheet!$D33,'PP2017'!$C$2:$CE$1515,8,FALSE) -> 405800 | O163: 0.06789473684 | P163: =VLOOKUP(LookUpSheet!$D33,'PP2016'!$C$2:$CE$1515,8,FALSE) -> 380000 | Q163: 0.09258194365 | R163: =VLOOKUP(LookUpSheet!$D33,'PP2015'!$C$2:$CE$1515,8,FALSE) -> 347800 | S163: -0.03011712214 | T163: =VLOOKUP(LookUpSheet!$D33,'PP2014'!$C$2:$CE$1516,8,FALSE) -> 358600 | U163: 0.120625 | V163: =VLOOKUP(LookUpSheet!$D33,'PP2013'!$C$2:$CE$1512,8,FALSE) -> 320000 | W163: 0.06678756926 | X163: =VLOOKUP(LookUpSheet!$D33,'PP2012'!$C$2:$CE$1515,8,FALSE) -> 299966 | Y163: 0.05377311099 | Z163: =VLOOKUP(LookUpSheet!$D33,'PP2011'!$C$2:$CE$1515,8,FALSE) -> 284659 | AA163: -0.03361612705 | AB163: =VLOOKUP(LookUpSheet!$D33,'PP2010'!$C$2:$CE$1516,8,FALSE) -> 294561
C164: Strafford County | E164: 0.6825370148 | F164: =VLOOKUP(LookUpSheet!$D34,'PP2021'!$C$2:$CE$1515,8,FALSE) -> 420466 | G164: 0.08854002164 | H164: =VLOOKUP(LookUpSheet!$D34,'PP2020'!$C$2:$CE$1515,8,FALSE) -> 386266 | I164: 0.05845730586 | J164: =VLOOKUP(LookUpSheet!$D34,'PP2019'!$C$2:$CE$1515,8,FALSE) -> 364933 | K164: 0.03527092199 | L164: =VLOOKUP(LookUpSheet!$D34,'PP2018'!$C$2:$CE$1515,8,FALSE) -> 352500 | M164: -0.01536312849 | N164: =VLOOKUP(LookUpSheet!$D34,'PP2017'!$C$2:$CE$1515,8,FALSE) -> 358000 | O164: 0.005996639184 | P164: =VLOOKUP(LookUpSheet!$D34,'PP2016'!$C$2:$CE$1515,8,FALSE) -> 355866 | Q164: 0.03610255455 | R164: =VLOOKUP(LookUpSheet!$D34,'PP2015'!$C$2:$CE$1515,8,FALSE) -> 343466 | S164: 0.08600355397 | T164: =VLOOKUP(LookUpSheet!$D34,'PP2014'!$C$2:$CE$1516,8,FALSE) -> 316266 | U164: 0.04206260297 | V164: =VLOOKUP(LookUpSheet!$D34,'PP2013'!$C$2:$CE$1512,8,FALSE) -> 303500 | W164: 0.04223901099 | X164: =VLOOKUP(LookUpSheet!$D34,'PP2012'!$C$2:$CE$1515,8,FALSE) -> 291200 | Y164: 0.1652661064 | Z164: =VLOOKUP(LookUpSheet!$D34,'PP2011'!$C$2:$CE$1515,8,FALSE) -> 249900 | AA164: 0 | AB164: =VLOOKUP(LookUpSheet!$D34,'PP2010'!$C$2:$CE$1516,8,FALSE) -> 249900
C165: Sullivan County | E165: =(F165-AB165)/AB165 ->  | F165: N/A | G165: N/A | H165: N/A | I165: N/A | J165: N/A | K165: N/A | L165: =VLOOKUP(LookUpSheet!$D35,'PP2018'!$C$2:$CE$1515,8,FALSE) -> 328466 | M165: 0.05266430153 | N165: =VLOOKUP(LookUpSheet!$D35,'PP2017'!$C$2:$CE$1515,8,FALSE) -> 312033 | O165: -0.1508520516 | P165: =VLOOKUP(LookUpSheet!$D35,'PP2016'!$C$2:$CE$1515,8,FALSE) -> 367466 | Q165: 0.7712107044 | R165: =VLOOKUP(LookUpSheet!$D35,'PP2015'!$C$2:$CE$1515,8,FALSE) -> 207466 | S165: 0.5311143911 | T165: =VLOOKUP(LookUpSheet!$D35,'PP2014'!$C$2:$CE$1516,8,FALSE) -> 135500 | U165: -0.2410366711 | V165: =VLOOKUP(LookUpSheet!$D35,'PP2013'!$C$2:$CE$1512,8,FALSE) -> 178533 | W165: -0.1498428571 | X165: =VLOOKUP(LookUpSheet!$D35,'PP2012'!$C$2:$CE$1515,8,FALSE) -> 210000 | Y165: 0.03703703704 | Z165: =VLOOKUP(LookUpSheet!$D35,'PP2011'!$C$2:$CE$1515,8,FALSE) -> 202500 | AA165: 0.06132075472 | AB165: =VLOOKUP(LookUpSheet!$D35,'PP2010'!$C$2:$CE$1516,8,FALSE) -> 190800
C167: New Hampshire Statewide | E167: =(F167-AB167)/AB167 -> 0.8456995201 | F167: =VLOOKUP(LookUpSheet!$D20,'PP2021'!$C$2:$CE$1515,8,FALSE) -> 500000 | G167: =(F167-H167)/H167 -> 0.1766560846 | H167: =VLOOKUP(LookUpSheet!$D20,'PP2020'!$C$2:$CE$1515,8,FALSE) -> 424933 | I167: =(H167-J167)/J167 -> 0.03642195122 | J167: =VLOOKUP(LookUpSheet!$D20,'PP2019'!$C$2:$CE$1515,8,FALSE) -> 410000 | K167: =(J167-L167)/L167 -> 0.09547754805 | L167: =VLOOKUP(LookUpSheet!$D20,'PP2018'!$C$2:$CE$1515,8,FALSE) -> 374266 | M167: =(L167-N167)/N167 -> 0.02267970249 | N167: =VLOOKUP(LookUpSheet!$D20,'PP2017'!$C$2:$CE$1515,8,FALSE) -> 365966 | O167: =(N167-P167)/P167 -> 0.01244930367 | P167: =VLOOKUP(LookUpSheet!$D20,'PP2016'!$C$2:$CE$1515,8,FALSE) -> 361466 | Q167: =(P167-R167)/R167 -> 0.07196322657 | R167: =VLOOKUP(LookUpSheet!$D20,'PP2015'!$C$2:$CE$1515,8,FALSE) -> 337200 | S167: =(R167-T167)/T167 -> 0.07047619048 | T167: =VLOOKUP(LookUpSheet!$D20,'PP2014'!$C$2:$CE$1516,8,FALSE) -> 315000 | U167: =(T167-V167)/V167 -> 0.05386416862 | V167: =VLOOKUP(LookUpSheet!$D20,'PP2013'!$C$2:$CE$1512,8,FALSE) -> 298900 | W167: =(V167-X167)/X167 -> 0.0675 | X167: =VLOOKUP(LookUpSheet!$D20,'PP2012'!$C$2:$CE$1515,8,FALSE) -> 280000 | Y167: =(X167-Z167)/Z167 -> 0.04672897196 | Z167: =VLOOKUP(LookUpSheet!$D20,'PP2011'!$C$2:$CE$1515,8,FALSE) -> 267500 | AA167: =(Z167-AB167)/AB167 -> -0.01255075674 | AB167: =VLOOKUP(LookUpSheet!$D20,'PP2010'!$C$2:$CE$1516,8,FALSE) -> 270900
C168: Source: 1990-2014 - NH Dept. of Revenue, PA-34 Dataset, Compiled by Real Data Corp. Filtered and analyzed by New Hampshire Housing.
C169: =StateWideChartAndTable!$C$66 -> 2015 - The Warren Group. Filtered and analyzed by New Hampshire Housing.
C170: Note: Calculations based on a sample size of less than 50 are highly volatile and not considered valid.
C171: Data includes only homes for primary occupancy, data does not include land, multifamily homes, seasonal or vacation property, or manufactured homes.

Sheet RPCChartAndTable (hidden)
B2: Navigation | I2: Select Another Planning Commission Area
E3: OR | H3: OR
H5: =DataLink!A778 -> Rockingham Planning Commission
C27: Year | D27: All Homes | F27: Existing Homes | H27: New Homes | J27: Non-Condominiums | L27: Condominiums
D28: Median Purchase Price | E28: Sample Size | F28: Median Purchase Price | G28: Sample Size | H28: Median Purchase Price | I28: Sample Size | J28: Median Purchase Price | K28: Sample Size | L28: Median Purchase Price | M28: Sample Size
C29: =DataLink!B781 -> 2024 Jan-Feb | D29: =IF(DataLink!F781>AreaSelection!$B$114, DataLink!E781, NA()) -> 560000 | E29: =DataLink!F781 -> 167 | F29: =IF(DataLink!F816>AreaSelection!$B$114, DataLink!E816, NA()) -> 550000 | G29: =DataLink!F816 -> 145 | H29: =IF(DataLink!F851>AreaSelection!$B$114, DataLink!E851, NA()) ->  | I29: =DataLink!F851 -> 22 | J29: =IF(DataLink!F886>AreaSelection!$B$114, DataLink!E886, NA()) -> 582533 | K29: =DataLink!F886 -> 105 | L29: =IF(DataLink!F921>AreaSelection!$B$114, DataLink!E921, NA()) -> 501600 | M29: =DataLink!F921 -> 62
C30: =DataLink!B782 -> 2023 | D30: =IF(DataLink!F782>AreaSelection!$B$114, DataLink!E782, NA()) -> 552000 | E30: =DataLink!F782 -> 3197 | F30: =IF(DataLink!F817>AreaSelection!$B$114, DataLink!E817, NA()) -> 543000 | G30: =DataLink!F817 -> 2897 | H30: =IF(DataLink!F852>AreaSelection!$B$114, DataLink!E852, NA()) -> 654800 | I30: =DataLink!F852 -> 300 | J30: =IF(DataLink!F887>AreaSelection!$B$114, DataLink!E887, NA()) -> 585000 | K30: =DataLink!F887 -> 2125 | L30: =IF(DataLink!F922>AreaSelection!$B$114, DataLink!E922, NA()) -> 470000 | M30: =DataLink!F922 -> 1072
C31: =DataLink!B783 -> 2022 | D31: =IF(DataLink!F783>AreaSelection!$B$114, DataLink!E783, NA()) -> 532066 | E31: =DataLink!F783 -> 2972 | F31: =IF(DataLink!F818>AreaSelection!$B$114, DataLink!E818, NA()) -> 525000 | G31: =DataLink!F818 -> 2850 | H31: =IF(DataLink!F853>AreaSelection!$B$114, DataLink!E853, NA()) -> 699966 | I31: =DataLink!F853 -> 122 | J31: =IF(DataLink!F888>AreaSelection!$B$114, DataLink!E888, NA()) -> 575000 | K31: =DataLink!F888 -> 2050 | L31: =IF(DataLink!F923>AreaSelection!$B$114, DataLink!E923, NA()) -> 450000 | M31: =DataLink!F923 -> 922
C32: =DataLink!B784 -> 2021 | D32: =IF(DataLink!F784>AreaSelection!$B$114, DataLink!E784, NA()) -> 466000 | E32: =DataLink!F784 -> 2993 | F32: =IF(DataLink!F819>AreaSelection!$B$114, DataLink!E819, NA()) -> 460166 | G32: =DataLink!F819 -> 2864 | H32: =IF(DataLink!F854>AreaSelection!$B$114, DataLink!E854, NA()) -> 542133 | I32: =DataLink!F854 -> 129 | J32: =IF(DataLink!F889>AreaSelection!$B$114, DataLink!E889, NA()) -> 500000 | K32: =DataLink!F889 -> 2100 | L32: =IF(DataLink!F924>AreaSelection!$B$114, DataLink!E924, NA()) -> 365000 | M32: =DataLink!F924 -> 893
C33: =DataLink!B785 -> 2020 | D33: =IF(DataLink!F785>AreaSelection!$B$114, DataLink!E785, NA()) -> 416500 | E33: =DataLink!F785 -> 2848 | F33: =IF(DataLink!F820>AreaSelection!$B$114, DataLink!E820, NA()) -> 412000 | G33: =DataLink!F820 -> 2769 | H33: =IF(DataLink!F855>AreaSelection!$B$114, DataLink!E855, NA()) -> 494933 | I33: =DataLink!F855 -> 79 | J33: =IF(DataLink!F890>AreaSelection!$B$114, DataLink!E890, NA()) -> 449966 | K33: =DataLink!F890 -> 1804 | L33: =IF(DataLink!F925>AreaSelection!$B$114, DataLink!E925, NA()) -> 343733 | M33: =DataLink!F925 -> 1044
C34: =DataLink!B786 -> 2019 | D34: =IF(DataLink!F786>AreaSelection!$B$114, DataLink!E786, NA()) -> 370000 | E34: =DataLink!F786 -> 3253 | F34: =IF(DataLink!F821>AreaSelection!$B$114, DataLink!E821, NA()) -> 369933 | G34: =DataLink!F821 -> 3216 | H34: =IF(DataLink!F856>AreaSelection!$B$114, DataLink!E856, NA()) ->  | I34: =DataLink!F856 -> 37 | J34: =IF(DataLink!F891>AreaSelection!$B$114, DataLink!E891, NA()) -> 393000 | K34: =DataLink!F891 -> 2247 | L34: =IF(DataLink!F926>AreaSelection!$B$114, DataLink!E926, NA()) -> 306766 | M34: =DataLink!F926 -> 1006
C35: =DataLink!B787 -> 2018 | D35: =IF(DataLink!F787>AreaSelection!$B$114, DataLink!E787, NA()) -> 352666 | E35: =DataLink!F787 -> 3047 | F35: =IF(DataLink!F822>AreaSelection!$B$114, DataLink!E822, NA()) -> 349933 | G35: =DataLink!F822 -> 2895 | H35: =IF(DataLink!F857>AreaSelection!$B$114, DataLink!E857, NA()) -> 422000 | I35: =DataLink!F857 -> 152 | J35: =IF(DataLink!F892>AreaSelection!$B$114, DataLink!E892, NA()) -> 378500 | K35: =DataLink!F892 -> 2106 | L35: =IF(DataLink!F927>AreaSelection!$B$114, DataLink!E927, NA()) -> 287000 | M35: =DataLink!F927 -> 941
C36: =DataLink!B788 -> 2017 | D36: =IF(DataLink!F788>AreaSelection!$B$114, DataLink!E788, NA()) -> 330000 | E36: =DataLink!F788 -> 3632 | F36: =IF(DataLink!F823>AreaSelection!$B$114, DataLink!E823, NA()) -> 325000 | G36: =DataLink!F823 -> 3404 | H36: =IF(DataLink!F858>AreaSelection!$B$114, DataLink!E858, NA()) -> 399933 | I36: =DataLink!F858 -> 228 | J36: =IF(DataLink!F893>AreaSelection!$B$114, DataLink!E893, NA()) -> 355000 | K36: =DataLink!F893 -> 2566 | L36: =IF(DataLink!F928>AreaSelection!$B$114, DataLink!E928, NA()) -> 259500 | M36: =DataLink!F928 -> 1066
C37: =DataLink!B789 -> 2016 | D37: =IF(DataLink!F789>AreaSelection!$B$114, DataLink!E789, NA()) -> 310200 | E37: =DataLink!F789 -> 3592 | F37: =IF(DataLink!F824>AreaSelection!$B$114, DataLink!E824, NA()) -> 305000 | G37: =DataLink!F824 -> 3342 | H37: =IF(DataLink!F859>AreaSelection!$B$114, DataLink!E859, NA()) -> 363266 | I37: =DataLink!F859 -> 250 | J37: =IF(DataLink!F894>AreaSelection!$B$114, DataLink!E894, NA()) -> 335000 | K37: =DataLink!F894 -> 2566 | L37: =IF(DataLink!F929>AreaSelection!$B$114, DataLink!E929, NA()) -> 238000 | M37: =DataLink!F929 -> 1026
C38: =DataLink!B790 -> 2015 | D38: =IF(DataLink!F790>AreaSelection!$B$114, DataLink!E790, NA()) -> 290000 | E38: =DataLink!F790 -> 3262 | F38: =IF(DataLink!F825>AreaSelection!$B$114, DataLink!E825, NA()) -> 290000 | G38: =DataLink!F825 -> 3101 | H38: =IF(DataLink!F860>AreaSelection!$B$114, DataLink!E860, NA()) -> 329800 | I38: =DataLink!F860 -> 161 | J38: =IF(DataLink!F895>AreaSelection!$B$114, DataLink!E895, NA()) -> 320000 | K38: =DataLink!F895 -> 2303 | L38: =IF(DataLink!F930>AreaSelection!$B$114, DataLink!E930, NA()) -> 235000 | M38: =DataLink!F930 -> 959
C39: =DataLink!B791 -> 2014 | D39: =IF(DataLink!F791>AreaSelection!$B$114, DataLink!E791, NA()) -> 290000 | E39: =DataLink!F791 -> 1677 | F39: =IF(DataLink!F826>AreaSelection!$B$114, DataLink!E826, NA()) -> 280000 | G39: =DataLink!F826 -> 1493 | H39: =IF(DataLink!F861>AreaSelection!$B$114, DataLink!E861, NA()) -> 343466 | I39: =DataLink!F861 -> 184 | J39: =IF(DataLink!F896>AreaSelection!$B$114, DataLink!E896, NA()) -> 318000 | K39: =DataLink!F896 -> 1165 | L39: =IF(DataLink!F931>AreaSelection!$B$114, DataLink!E931, NA()) -> 225966 | M39: =DataLink!F931 -> 512
C40: =DataLink!B792 -> 2013 | D40: =IF(DataLink!F792>AreaSelection!$B$114, DataLink!E792, NA()) -> 284900 | E40: =DataLink!F792 -> 2197 | F40: =IF(DataLink!F827>AreaSelection!$B$114, DataLink!E827, NA()) -> 279900 | G40: =DataLink!F827 -> 1916 | H40: =IF(DataLink!F862>AreaSelection!$B$114, DataLink!E862, NA()) -> 304900 | I40: =DataLink!F862 -> 281 | J40: =IF(DataLink!F897>AreaSelection!$B$114, DataLink!E897, NA()) -> 299900 | K40: =DataLink!F897 -> 1741 | L40: =IF(DataLink!F932>AreaSelection!$B$114, DataLink!E932, NA()) -> 231216 | M40: =DataLink!F932 -> 456
C41: =DataLink!B793 -> 2012 | D41: =IF(DataLink!F793>AreaSelection!$B$114, DataLink!E793, NA()) -> 272533 | E41: =DataLink!F793 -> 1939 | F41: =IF(DataLink!F828>AreaSelection!$B$114, DataLink!E828, NA()) -> 265000 | G41: =DataLink!F828 -> 1664 | H41: =IF(DataLink!F863>AreaSelection!$B$114, DataLink!E863, NA()) -> 294800 | I41: =DataLink!F863 -> 275 | J41: =IF(DataLink!F898>AreaSelection!$B$114, DataLink!E898, NA()) -> 289000 | K41: =DataLink!F898 -> 1519 | L41: =IF(DataLink!F933>AreaSelection!$B$114, DataLink!E933, NA()) -> 224916 | M41: =DataLink!F933 -> 420
C42: =DataLink!B794 -> 2011 | D42: =IF(DataLink!F794>AreaSelection!$B$114, DataLink!E794, NA()) -> 269933 | E42: =DataLink!F794 -> 1577 | F42: =IF(DataLink!F829>AreaSelection!$B$114, DataLink!E829, NA()) -> 262500 | G42: =DataLink!F829 -> 1379 | H42: =IF(DataLink!F864>AreaSelection!$B$114, DataLink!E864, NA()) -> 285166 | I42: =DataLink!F864 -> 198 | J42: =IF(DataLink!F899>AreaSelection!$B$114, DataLink!E899, NA()) -> 285000 | K42: =DataLink!F899 -> 1258 | L42: =IF(DataLink!F934>AreaSelection!$B$114, DataLink!E934, NA()) -> 213000 | M42: =DataLink!F934 -> 319
C43: =DataLink!B795 -> 2010 | D43: =IF(DataLink!F795>AreaSelection!$B$114, DataLink!E795, NA()) -> 280000 | E43: =DataLink!F795 -> 1543 | F43: =IF(DataLink!F830>AreaSelection!$B$114, DataLink!E830, NA()) -> 277000 | G43: =DataLink!F830 -> 1337 | H43: =IF(DataLink!F865>AreaSelection!$B$114, DataLink!E865, NA()) -> 289550 | I43: =DataLink!F865 -> 206 | J43: =IF(DataLink!F900>AreaSelection!$B$114, DataLink!E900, NA()) -> 293000 | K43: =DataLink!F900 -> 1235 | L43: =IF(DataLink!F935>AreaSelection!$B$114, DataLink!E935, NA()) -> 225500 | M43: =DataLink!F935 -> 308
C44: =DataLink!B796 -> 2009 | D44: =IF(DataLink!F796>AreaSelection!$B$114, DataLink!E796, NA()) -> 262000 | E44: =DataLink!F796 -> 1670 | F44: =IF(DataLink!F831>AreaSelection!$B$114, DataLink!E831, NA()) -> 255250 | G44: =DataLink!F831 -> 1462 | H44: =IF(DataLink!F866>AreaSelection!$B$114, DataLink!E866, NA()) -> 287000 | I44: =DataLink!F866 -> 208 | J44: =IF(DataLink!F901>AreaSelection!$B$114, DataLink!E901, NA()) -> 275516 | K44: =DataLink!F901 -> 1300 | L44: =IF(DataLink!F936>AreaSelection!$B$114, DataLink!E936, NA()) -> 212750 | M44: =DataLink!F936 -> 370
C45: =DataLink!B797 -> 2008 | D45: =IF(DataLink!F797>AreaSelection!$B$114, DataLink!E797, NA()) -> 304200 | E45: =DataLink!F797 -> 1406 | F45: =IF(DataLink!F832>AreaSelection!$B$114, DataLink!E832, NA()) -> 295925 | G45: =DataLink!F832 -> 1190 | H45: =IF(DataLink!F867>AreaSelection!$B$114, DataLink!E867, NA()) -> 328640 | I45: =DataLink!F867 -> 216 | J45: =IF(DataLink!F902>AreaSelection!$B$114, DataLink!E902, NA()) -> 325000 | K45: =DataLink!F902 -> 1054 | L45: =IF(DataLink!F937>AreaSelection!$B$114, DataLink!E937, NA()) -> 232500 | M45: =DataLink!F937 -> 352
C46: =DataLink!B798 -> 2007 | D46: =IF(DataLink!F798>AreaSelection!$B$114, DataLink!E798, NA()) -> 315000 | E46: =DataLink!F798 -> 1683 | F46: =IF(DataLink!F833>AreaSelection!$B$114, DataLink!E833, NA()) -> 307000 | G46: =DataLink!F833 -> 1367 | H46: =IF(DataLink!F868>AreaSelection!$B$114, DataLink!E868, NA()) -> 359382 | I46: =DataLink!F868 -> 316 | J46: =IF(DataLink!F903>AreaSelection!$B$114, DataLink!E903, NA()) -> 345000 | K46: =DataLink!F903 -> 1166 | L46: =IF(DataLink!F938>AreaSelection!$B$114, DataLink!E938, NA()) -> 239000 | M46: =DataLink!F938 -> 517
C47: =DataLink!B799 -> 2006 | D47: =IF(DataLink!F799>AreaSelection!$B$114, DataLink!E799, NA()) -> 325000 | E47: =DataLink!F799 -> 1868 | F47: =IF(DataLink!F834>AreaSelection!$B$114, DataLink!E834, NA()) -> 310000 | G47: =DataLink!F834 -> 1469 | H47: =IF(DataLink!F869>AreaSelection!$B$114, DataLink!E869, NA()) -> 357950 | I47: =DataLink!F869 -> 399 | J47: =IF(DataLink!F904>AreaSelection!$B$114, DataLink!E904, NA()) -> 353900 | K47: =DataLink!F904 -> 1277 | L47: =IF(DataLink!F939>AreaSelection!$B$114, DataLink!E939, NA()) -> 257000 | M47: =DataLink!F939 -> 591
C48: =DataLink!B800 -> 2005 | D48: =IF(DataLink!F800>AreaSelection!$B$114, DataLink!E800, NA()) -> 324900 | E48: =DataLink!F800 -> 2537 | F48: =IF(DataLink!F835>AreaSelection!$B$114, DataLink!E835, NA()) -> 318000 | G48: =DataLink!F835 -> 1959 | H48: =IF(DataLink!F870>AreaSelection!$B$114, DataLink!E870, NA()) -> 338563 | I48: =DataLink!F870 -> 578 | J48: =IF(DataLink!F905>AreaSelection!$B$114, DataLink!E905, NA()) -> 357134 | K48: =DataLink!F905 -> 1686 | L48: =IF(DataLink!F940>AreaSelection!$B$114, DataLink!E940, NA()) -> 255000 | M48: =DataLink!F940 -> 851
C49: =DataLink!B801 -> 2004 | D49: =IF(DataLink!F801>AreaSelection!$B$114, DataLink!E801, NA()) -> 300000 | E49: =DataLink!F801 -> 2903 | F49: =IF(DataLink!F836>AreaSelection!$B$114, DataLink!E836, NA()) -> 290000 | G49: =DataLink!F836 -> 2348 | H49: =IF(DataLink!F871>AreaSelection!$B$114, DataLink!E871, NA()) -> 357533 | I49: =DataLink!F871 -> 555 | J49: =IF(DataLink!F906>AreaSelection!$B$114, DataLink!E906, NA()) -> 333000 | K49: =DataLink!F906 -> 2021 | L49: =IF(DataLink!F941>AreaSelection!$B$114, DataLink!E941, NA()) -> 225900 | M49: =DataLink!F941 -> 882
C50: =DataLink!B802 -> 2003 | D50: =IF(DataLink!F802>AreaSelection!$B$114, DataLink!E802, NA()) -> 279933 | E50: =DataLink!F802 -> 2594 | F50: =IF(DataLink!F837>AreaSelection!$B$114, DataLink!E837, NA()) -> 266700 | G50: =DataLink!F837 -> 2088 | H50: =IF(DataLink!F872>AreaSelection!$B$114, DataLink!E872, NA()) -> 359900 | I50: =DataLink!F872 -> 506 | J50: =IF(DataLink!F907>AreaSelection!$B$114, DataLink!E907, NA()) -> 302948 | K50: =DataLink!F907 -> 1934 | L50: =IF(DataLink!F942>AreaSelection!$B$114, DataLink!E942, NA()) -> 206750 | M50: =DataLink!F942 -> 660
C51: =DataLink!B803 -> 2002 | D51: =IF(DataLink!F803>AreaSelection!$B$114, DataLink!E803, NA()) -> 255000 | E51: =DataLink!F803 -> 2630 | F51: =IF(DataLink!F838>AreaSelection!$B$114, DataLink!E838, NA()) -> 240000 | G51: =DataLink!F838 -> 2109 | H51: =IF(DataLink!F873>AreaSelection!$B$114, DataLink!E873, NA()) -> 322400 | I51: =DataLink!F873 -> 521 | J51: =IF(DataLink!F908>AreaSelection!$B$114, DataLink!E908, NA()) -> 275000 | K51: =DataLink!F908 -> 2023 | L51: =IF(DataLink!F943>AreaSelection!$B$114, DataLink!E943, NA()) -> 175000 | M51: =DataLink!F943 -> 607
C52: =DataLink!B804 -> 2001 | D52: =IF(DataLink!F804>AreaSelection!$B$114, DataLink!E804, NA()) -> 222650 | E52: =DataLink!F804 -> 2502 | F52: =IF(DataLink!F839>AreaSelection!$B$114, DataLink!E839, NA()) -> 205000 | G52: =DataLink!F839 -> 1972 | H52: =IF(DataLink!F874>AreaSelection!$B$114, DataLink!E874, NA()) -> 289450 | I52: =DataLink!F874 -> 530 | J52: =IF(DataLink!F909>AreaSelection!$B$114, DataLink!E909, NA()) -> 245000 | K52: =DataLink!F909 -> 1864 | L52: =IF(DataLink!F944>AreaSelection!$B$114, DataLink!E944, NA()) -> 150100 | M52: =DataLink!F944 -> 638
C53: =DataLink!B805 -> 2000 | D53: =IF(DataLink!F805>AreaSelection!$B$114, DataLink!E805, NA()) -> 194000 | E53: =DataLink!F805 -> 2847 | F53: =IF(DataLink!F840>AreaSelection!$B$114, DataLink!E840, NA()) -> 179900 | G53: =DataLink!F840 -> 2209 | H53: =IF(DataLink!F875>AreaSelection!$B$114, DataLink!E875, NA()) -> 254900 | I53: =DataLink!F875 -> 638 | J53: =IF(DataLink!F910>AreaSelection!$B$114, DataLink!E910, NA()) -> 215500 | K53: =DataLink!F910 -> 2208 | L53: =IF(DataLink!F945>AreaSelection!$B$114, DataLink!E945, NA()) -> 133000 | M53: =DataLink!F945 -> 639
C54: =DataLink!B806 -> 1999 | D54: =IF(DataLink!F806>AreaSelection!$B$114, DataLink!E806, NA()) -> 172900 | E54: =DataLink!F806 -> 2753 | F54: =IF(DataLink!F841>AreaSelection!$B$114, DataLink!E841, NA()) -> 160000 | G54: =DataLink!F841 -> 2097 | H54: =IF(DataLink!F876>AreaSelection!$B$114, DataLink!E876, NA()) -> 228592 | I54: =DataLink!F876 -> 656 | J54: =IF(DataLink!F911>AreaSelection!$B$114, DataLink!E911, NA()) -> 185000 | K54: =DataLink!F911 -> 2179 | L54: =IF(DataLink!F946>AreaSelection!$B$114, DataLink!E946, NA()) -> 122500 | M54: =DataLink!F946 -> 574
C55: =DataLink!B807 -> 1998 | D55: =IF(DataLink!F807>AreaSelection!$B$114, DataLink!E807, NA()) -> 159900 | E55: =DataLink!F807 -> 1674 | F55: =IF(DataLink!F842>AreaSelection!$B$114, DataLink!E842, NA()) -> 149900 | G55: =DataLink!F842 -> 1287 | H55: =IF(DataLink!F877>AreaSelection!$B$114, DataLink!E877, NA()) -> 205595 | I55: =DataLink!F877 -> 387 | J55: =IF(DataLink!F912>AreaSelection!$B$114, DataLink!E912, NA()) -> 167000 | K55: =DataLink!F912 -> 1441 | L55: =IF(DataLink!F947>AreaSelection!$B$114, DataLink!E947, NA()) -> 104000 | M55: =DataLink!F947 -> 233
C56: =DataLink!B808 -> 1997 | D56: =IF(DataLink!F808>AreaSelection!$B$114, DataLink!E808, NA()) -> 143600 | E56: =DataLink!F808 -> 2260 | F56: =IF(DataLink!F843>AreaSelection!$B$114, DataLink!E843, NA()) -> 136000 | G56: =DataLink!F843 -> 1879 | H56: =IF(DataLink!F878>AreaSelection!$B$114, DataLink!E878, NA()) -> 205000 | I56: =DataLink!F878 -> 381 | J56: =IF(DataLink!F913>AreaSelection!$B$114, DataLink!E913, NA()) -> 153000 | K56: =DataLink!F913 -> 1985 | L56: =IF(DataLink!F948>AreaSelection!$B$114, DataLink!E948, NA()) -> 105000 | M56: =DataLink!F948 -> 275
C57: =DataLink!B809 -> 1996 | D57: =IF(DataLink!F809>AreaSelection!$B$114, DataLink!E809, NA()) -> 137500 | E57: =DataLink!F809 -> 1449 | F57: =IF(DataLink!F844>AreaSelection!$B$114, DataLink!E844, NA()) -> 130500 | G57: =DataLink!F844 -> 1188 | H57: =IF(DataLink!F879>AreaSelection!$B$114, DataLink!E879, NA()) -> 191200 | I57: =DataLink!F879 -> 261 | J57: =IF(DataLink!F914>AreaSelection!$B$114, DataLink!E914, NA()) -> 147900 | K57: =DataLink!F914 -> 1244 | L57: =IF(DataLink!F949>AreaSelection!$B$114, DataLink!E949, NA()) -> 99900 | M57: =DataLink!F949 -> 205
C58: =DataLink!B810 -> 1995 | D58: =IF(DataLink!F810>AreaSelection!$B$114, DataLink!E810, NA()) -> 136000 | E58: =DataLink!F810 -> 2021 | F58: =IF(DataLink!F845>AreaSelection!$B$114, DataLink!E845, NA()) -> 129900 | G58: =DataLink!F845 -> 1591 | H58: =IF(DataLink!F880>AreaSelection!$B$114, DataLink!E880, NA()) -> 176800 | I58: =DataLink!F880 -> 430 | J58: =IF(DataLink!F915>AreaSelection!$B$114, DataLink!E915, NA()) -> 140000 | K58: =DataLink!F915 -> 1727 | L58: =IF(DataLink!F950>AreaSelection!$B$114, DataLink!E950, NA()) -> 88500 | M58: =DataLink!F950 -> 294
C59: =DataLink!B811 -> 1994 | D59: =IF(DataLink!F811>AreaSelection!$B$114, DataLink!E811, NA()) -> 126000 | E59: =DataLink!F811 -> 2276 | F59: =IF(DataLink!F846>AreaSelection!$B$114, DataLink!E846, NA()) -> 121900 | G59: =DataLink!F846 -> 1699 | H59: =IF(DataLink!F881>AreaSelection!$B$114, DataLink!E881, NA()) -> 145000 | I59: =DataLink!F881 -> 577 | J59: =IF(DataLink!F916>AreaSelection!$B$114, DataLink!E916, NA()) -> 132900 | K59: =DataLink!F916 -> 1882 | L59: =IF(DataLink!F951>AreaSelection!$B$114, DataLink!E951, NA()) -> 89900 | M59: =DataLink!F951 -> 394
C60: =DataLink!B812 -> 1993 | D60: =IF(DataLink!F812>AreaSelection!$B$114, DataLink!E812, NA()) -> 124900 | E60: =DataLink!F812 -> 1920 | F60: =IF(DataLink!F847>AreaSelection!$B$114, DataLink!E847, NA()) -> 123500 | G60: =DataLink!F847 -> 1431 | H60: =IF(DataLink!F882>AreaSelection!$B$114, DataLink!E882, NA()) -> 127048 | I60: =DataLink!F882 -> 489 | J60: =IF(DataLink!F917>AreaSelection!$B$114, DataLink!E917, NA()) -> 130000 | K60: =DataLink!F917 -> 1616 | L60: =IF(DataLink!F952>AreaSelection!$B$114, DataLink!E952, NA()) -> 89905 | M60: =DataLink!F952 -> 304
C61: =DataLink!B813 -> 1992 | D61: =IF(DataLink!F813>AreaSelection!$B$114, DataLink!E813, NA()) -> 120000 | E61: =DataLink!F813 -> 1652 | F61: =IF(DataLink!F848>AreaSelection!$B$114, DataLink!E848, NA()) -> 119000 | G61: =DataLink!F848 -> 1282 | H61: =IF(DataLink!F883>AreaSelection!$B$114, DataLink!E883, NA()) -> 124952 | I61: =DataLink!F883 -> 370 | J61: =IF(DataLink!F918>AreaSelection!$B$114, DataLink!E918, NA()) -> 128000 | K61: =DataLink!F918 -> 1340 | L61: =IF(DataLink!F953>AreaSelection!$B$114, DataLink!E953, NA()) -> 79048 | M61: =DataLink!F953 -> 312
C62: =DataLink!B814 -> 1991 | D62: =IF(DataLink!F814>AreaSelection!$B$114, DataLink!E814, NA()) -> 122476 | E62: =DataLink!F814 -> 1254 | F62: =IF(DataLink!F849>AreaSelection!$B$114, DataLink!E849, NA()) -> 121048 | G62: =DataLink!F849 -> 942 | H62: =IF(DataLink!F884>AreaSelection!$B$114, DataLink!E884, NA()) -> 125048 | I62: =DataLink!F884 -> 312 | J62: =IF(DataLink!F919>AreaSelection!$B$114, DataLink!E919, NA()) -> 130000 | K62: =DataLink!F919 -> 990 | L62: =IF(DataLink!F954>AreaSelection!$B$114, DataLink!E954, NA()) -> 90000 | M62: =DataLink!F954 -> 264
C63: =DataLink!B815 -> 1990 | D63: =IF(DataLink!F815>AreaSelection!$B$114, DataLink!E815, NA()) -> 138500 | E63: =DataLink!F815 -> 948 | F63: =IF(DataLink!F850>AreaSelection!$B$114, DataLink!E850, NA()) -> 135048 | G63: =DataLink!F850 -> 659 | H63: =IF(DataLink!F885>AreaSelection!$B$114, DataLink!E885, NA()) -> 142000 | I63: =DataLink!F885 -> 289 | J63: =IF(DataLink!F920>AreaSelection!$B$114, DataLink!E920, NA()) -> 145000 | K63: =DataLink!F920 -> 759 | L63: =IF(DataLink!F955>AreaSelection!$B$114, DataLink!E955, NA()) -> 113000 | M63: =DataLink!F955 -> 189
C65: Source: 1990-2014 - NH Dept. of Revenue, PA-34 Dataset, Compiled by Real Data Corp. Filtered and analyzed by New Hampshire Housing.
C66: =StateWideChartAndTable!$C$66 -> 2015 - The Warren Group. Filtered and analyzed by New Hampshire Housing.
C67: Note: Calculations based on a sample size of less than 50 are highly volatile and not considered valid.
C71: =H5 -> Rockingham Planning Commission
C72: Percent Change In Median Home Purchase Price
D74: All Homes | F74: Existing Homes | H74: New Homes | J74: Non-Condominiums | L74: Condominiums
C75: 2020 to 2023 | D75: =(D30-D33)/D33 -> 0.3253301321 | F75: =(F30-F33)/F33 -> 0.317961165 | H75: =(H30-H33)/H33 -> 0.3230073566 | J75: =(J30-J33)/J33 -> 0.3000982296 | L75: =(L30-L33)/L33 -> 0.3673403485
C76: Avg per Year | D76: =D75/3 -> 0.1084433774 | F76: =F75/3 -> 0.105987055 | H76: =H75/3 -> 0.1076691189 | J76: =J75/3 -> 0.1000327432 | L76: =L75/3 -> 0.1224467828
C77: 2019 to 2023 | D77: =(D30-D34)/D34 -> 0.4918918919 | F77: =(F30-F34)/F34 -> 0.4678333644 | H77: =(H30-H34)/H34 ->  | J77: =(J30-J34)/J34 -> 0.4885496183 | L77: =(L30-L34)/L34 -> 0.5321124245
C78: Avg per Year | D78: =D77/5 -> 0.09837837838 | F78: =F77/5 -> 0.09356667288 | H78: =H77/5 ->  | J78: =J77/5 -> 0.09770992366 | L78: =L77/5 -> 0.1064224849
C79: 2013 to 2023 | D79: =(D30-D40)/D40 -> 0.9375219375 | F79: =(F30-F40)/F40 -> 0.9399785638 | H79: =(H30-H40)/H40 -> 1.147589374 | J79: =(J30-J40)/J40 -> 0.9506502167 | L79: =(L30-L40)/L40 -> 1.032731299
C80: Avg per Year | D80: =D79/10 -> 0.09375219375 | F80: =F79/10 -> 0.09399785638 | H80: =H79/10 -> 0.1147589374 | J80: =J79/10 -> 0.09506502167 | L80: =L79/10 -> 0.1032731299
C82: 2022 to 2023 | D82: =(D30-D31)/D31 -> 0.03746527686 | F82: =(F30-F31)/F31 -> 0.03428571429 | H82: =(H30-H31)/H31 -> -0.06452599126 | J82: =(J30-J31)/J31 -> 0.01739130435 | L82: =(L30-L31)/L31 -> 0.04444444444
C83: 2021 to 2022 | D83: 0.1417725322 | F83: =(F31-F32)/F32 -> 0.1408926344 | H83: =(H31-H32)/H32 -> 0.2911333566 | J83: =(J31-J32)/J32 -> 0.15 | L83: =(L31-L32)/L32 -> 0.2328767123
C84: 2020 to 2021 | D84: 0.118847539 | F84: =(F32-F33)/F33 -> 0.116907767 | H84: =(H32-H33)/H33 -> 0.09536644354 | J84: =(J32-J33)/J33 -> 0.1111950681 | L84: =(L32-L33)/L33 -> 0.06187069615
C85: 2019 to 2020 | D85: 0.1256756757 | F85: =(F33-F34)/F34 -> 0.1137151863 | H85: =(H33-H34)/H34 ->  | J85: =(J33-J34)/J34 -> 0.1449516539 | L85: =(L33-L34)/L34 -> 0.1205055319
C86: 2018 to 2019 | D86: 0.04915132165 | F86: =(F34-F35)/F35 -> 0.05715379801 | H86: =(H34-H35)/H35 ->  | J86: =(J34-J35)/J35 -> 0.03830911493 | L86: =(L34-L35)/L35 -> 0.06887108014
C87: 2017 to 2018 | D87: 0.06868484848 | F87: 0.07671692308 | H87: 0.0551767421 | J87: 0.0661971831 | L87: 0.105973025
C88: 2016 to 2017 | D88: 0.06382978723 | F88: 0.06557377049 | H88: 0.1009370544 | J88: 0.05970149254 | L88: 0.09033613445
C89: 2015 to 2016 | D89: 0.06965517241 | F89: 0.05172413793 | H89: 0.1014736204 | J89: 0.046875 | L89: 0.01276595745
C90: 2014 to 2015 | D90: 0 | F90: 0.03571428571 | H90: -0.03978850891 | J90: 0.006289308176 | L90: 0.03997946594
C91: 2013 to 2014 | D91: 0.0179010179 | F91: 0.0003572704537 | H91: 0.1264873729 | J91: 0.06035345115 | L91: -0.0227060411
C92: 2012 to 2013 | D92: 0.04537799092 | F92: 0.05622641509 | H92: 0.0342605156 | J92: 0.03771626298 | L92: 0.02801045724
C93: 2011 to 2012 | D93: 0.009632019798 | F93: 0.009523809524 | H93: 0.03378383117 | J93: 0.01403508772 | L93: 0.05594366197
C94: 2010 to 2011 | D94: -0.03595357143 | F94: -0.0523465704 | H94: -0.01514073562 | J94: -0.02730375427 | L94: -0.05543237251
C95: 2009 to 2010 | D95: 0.06870229008 | F95: 0.08521057786 | H95: 0.008885017422 | J95: 0.06345910945 | L95: 0.05992949471
C96: 2008 to 2009 | D96: -0.1387245233 | F96: -0.1374503675 | H96: -0.1267039922 | J96: -0.1522584615 | L96: -0.08494623656
C97: 2007 to 2008 | D97: -0.03428571429 | F97: -0.03607491857 | H97: -0.08554129033 | J97: -0.05797101449 | L97: -0.02719665272
C98: 2006 to 2007 | D98: -0.03076923077 | F98: -0.009677419355 | H98: 0.004000558737 | J98: -0.02514834699 | L98: -0.07003891051
C99: 2005 to 2006 | D99: 0.0003077870114 | F99: -0.0251572327 | H99: 0.05726260696 | J99: -0.009055424575 | L99: 0.007843137255
C100: 2004 to 2005 | D100: 0.083 | F100: 0.09655172414 | H100: -0.0530580394 | J100: 0.07247447447 | L100: 0.1288180611
C101: 2003 to 2004 | D101: 0.07168501034 | F101: 0.08736407949 | H101: -0.006576826896 | J101: 0.09919854232 | L101: 0.09262394196
C102: 2002 to 2003 | D102: 0.09777647059 | F102: 0.11125 | H102: 0.1163151365 | J102: 0.1016290909 | L102: 0.1814285714
C103: 2001 to 2002 | D103: 0.1452953065 | F103: 0.1707317073 | H103: 0.1138365866 | J103: 0.1224489796 | L103: 0.1658894071
C104: 2000 to 2001 | D104: 0.1476804124 | F104: 0.1395219566 | H104: 0.1355433503 | J104: 0.1368909513 | L104: 0.1285714286
C105: 1999 to 2000 | D105: 0.1220358589 | F105: 0.124375 | H105: 0.1150871422 | J105: 0.1648648649 | L105: 0.08571428571
C106: 1998 to 1999 | D106: 0.08130081301 | F106: 0.06737825217 | H106: 0.1118558331 | J106: 0.1077844311 | L106: 0.1778846154
C107: 1997 to 1998 | D107: 0.1135097493 | F107: 0.1022058824 | H107: 0.002902439024 | J107: 0.09150326797 | L107: -0.009523809524
C108: 1996 to 1997 | D108: 0.04436363636 | F108: 0.04214559387 | H108: 0.07217573222 | J108: 0.03448275862 | L108: 0.05105105105
C109: 1995 to 1996 | D109: 0.01102941176 | F109: 0.004618937644 | H109: 0.0814479638 | J109: 0.05642857143 | L109: 0.1288135593
C110: 1994 to 1995 | D110: 0.07936507937 | F110: 0.06562756358 | H110: =(H58-H59)/H59 -> 0.2193103448 | J110: =(J58-J59)/J59 -> 0.05342362679 | L110: =(L58-L59)/L59 -> -0.01557285873
C111: 1993 to 1994 | D111: 0.008807045637 | F111: -0.01295546559 | H111: =(H59-H60)/H60 -> 0.1413009256 | J111: =(J59-J60)/J60 -> 0.02230769231 | L111: =(L59-L60)/L60 -> -5.56142595e-05
C112: 1992 to 1993 | D112: 0.04083333333 | F112: 0.03781512605 | H112: =(H60-H61)/H61 -> 0.01677444139 | J112: =(J60-J61)/J61 -> 0.015625 | L112: =(L60-L61)/L61 -> 0.1373469284
C113: 1991 to 1992 | D113: -0.02021620562 | F113: -0.0169189082 | H113: =(H61-H62)/H62 -> -0.0007677052012 | J113: =(J61-J62)/J62 -> -0.01538461538 | L113: =(L61-L62)/L62 -> -0.1216888889
C114: 1990 to 1991 | D114: -0.1156967509 | F114: -0.1036668444 | H114: =(H62-H63)/H63 -> -0.1193802817 | J114: =(J62-J63)/J63 -> -0.1034482759 | L114: =(L62-L63)/L63 -> -0.203539823

Sheet RPCFrequencyChart (hidden)
B2: Navigation | I2: Select Another Planning Commission | O2: Select Another Period For Analysis
E3: OR | N3: OR
B5: =DataLink!A958 -> Rockingham Planning Commission
C8: Primary Home Purchase Price Frequency
C9: =DataLink!$A$958&", "&DataLink!$B$961 -> Rockingham Planning Commission, 2023
C43: Source: 1990-2014 - NH Dept. of Revenue, PA-34 Dataset, Compiled by Real Data Corp. Filtered and analyzed by New Hampshire Housing.
C44: =StateWideChartAndTable!$C$66 -> 2015 - The Warren Group. Filtered and analyzed by New Hampshire Housing.
C45: Note: Calculations based on a sample size of less than 50 are highly volatile and not considered valid.
C48: Primary Home Purchase Price Frequency
C49: =DataLink!$A$958&", "&DataLink!$B$961 -> Rockingham Planning Commission, 2023
C85: Source: 1990-2014 - NH Dept. of Revenue, PA-34 Dataset, Compiled by Real Data Corp. Filtered and analyzed by New Hampshire Housing.
C86: =C44 -> 2015 - The Warren Group. Filtered and analyzed by New Hampshire Housing.
C87: Note: Calculations based on a sample size of less than 50 are highly volatile and not considered valid.
C89: Primary Home Purchase Price Frequency
C90: =DataLink!$A$958&", "&DataLink!$B$961 -> Rockingham Planning Commission, 2023
C122: Source: 1990-2014 - NH Dept. of Revenue, PA-34 Dataset, Compiled by Real Data Corp. Filtered and analyzed by New Hampshire Housing.
C123: =C44 -> 2015 - The Warren Group. Filtered and analyzed by New Hampshire Housing.
C124: Note: Calculations based on a sample size of less than 50 are highly volatile and not considered valid.
A127: Output for Freq Chart
A128: =DataLink!A958 -> Rockingham Planning Commission
A130: =DataLink!B960 -> Year | C130: =DataLink!D960 -> UnitType | D130: =DataLink!F960 -> Sample | E130: =DataLink!I960 -> 30000 | F130: =DataLink!J960 -> 40000 | G130: =DataLink!K960 -> 50000 | H130: =DataLink!L960 -> 60000 | I130: =DataLink!M960 -> 70000 | J130: =DataLink!N960 -> 80000 | K130: =DataLink!O960 -> 90000 | L130: =DataLink!P960 -> 100000 | M130: =DataLink!Q960 -> 110000 | N130: =DataLink!R960 -> 120000 | O130: =DataLink!S960 -> 130000 | P130: =DataLink!T960 -> 140000 | Q130: =DataLink!U960 -> 150000 | R130: =DataLink!V960 -> 160000 | S130: =DataLink!W960 -> 170000 | T130: =DataLink!X960 -> 180000 | U130: =DataLink!Y960 -> 190000 | V130: =DataLink!Z960 -> 200000 | W130: =DataLink!AA960 -> 210000 | X130: =DataLink!AB960 -> 220000 | Y130: =DataLink!AC960 -> 230000 | Z130: =DataLink!AD960 -> 240000 | AA130: =DataLink!AE960 -> 250000 | AB130: =DataLink!AF960 -> 260000 | AC130: =DataLink!AG960 -> 270000 | AD130: =DataLink!AH960 -> 280000 | AE130: =DataLink!AI960 -> 290000 | AF130: =DataLink!AJ960 -> 300000 | AG130: =DataLink!AK960 -> 310000 | AH130: =DataLink!AL960 -> 320000 | AI130: =DataLink!AM960 -> 330000 | AJ130: =DataLink!AN960 -> 340000 | AK130: =DataLink!AO960 -> 350000 | AL130: =DataLink!AP960 -> 360000 | AM130: =DataLink!AQ960 -> 370000 | AN130: =DataLink!AR960 -> 380000 | AO130: =DataLink!AS960 -> 390000 | AP130: =DataLink!AT960 -> 400000 | AQ130: =DataLink!AU960 -> 410000 | AR130: =DataLink!AV960 -> 420000 | AS130: =DataLink!AW960 -> 430000 | AT130: =DataLink!AX960 -> 440000 | AU130: =DataLink!AY960 -> 450000 | AV130: =DataLink!AZ960 -> 460000 | AW130: =DataLink!BA960 -> 470000 | AX130: =DataLink!BB960 -> 480000 | AY130: =DataLink!BC960 -> 490000 | AZ130: =DataLink!BD960 -> 500000 | BA130: =DataLink!BE960 -> 510000 | BB130: =DataLink!BF960 -> 520000 | BC130: =DataLink!BG960 -> 530000 | BD130: =DataLink!BH960 -> 540000
A131: =DataLink!B961 -> 2023 | C131: =DataLink!D961 -> All Units | D131: =DataLink!F961 -> 3197 | E131: =DataLink!I961 -> 0 | F131: =DataLink!J961 -> 0 | G131: =DataLink!K961 -> 4 | H131: =DataLink!L961 -> 4 | I131: =DataLink!M961 -> 3 | J131: =DataLink!N961 -> 0 | K131: =DataLink!O961 -> 3 | L131: =DataLink!P961 -> 6 | M131: =DataLink!Q961 -> 1 | N131: =DataLink!R961 -> 0 | O131: =DataLink!S961 -> 2 | P131: =DataLink!T961 -> 4 | Q131: =DataLink!U961 -> 14 | R131: =DataLink!V961 -> 11 | S131: =DataLink!W961 -> 7 | T131: =DataLink!X961 -> 15 | U131: =DataLink!Y961 -> 11 | V131: =DataLink!Z961 -> 17 | W131: =DataLink!AA961 -> 16 | X131: =DataLink!AB961 -> 10 | Y131: =DataLink!AC961 -> 21 | Z131: =DataLink!AD961 -> 16 | AA131: =DataLink!AE961 -> 16 | AB131: =DataLink!AF961 -> 17 | AC131: =DataLink!AG961 -> 17 | AD131: =DataLink!AH961 -> 15 | AE131: =DataLink!AI961 -> 12 | AF131: =DataLink!AJ961 -> 43 | AG131: =DataLink!AK961 -> 30 | AH131: =DataLink!AL961 -> 53 | AI131: =DataLink!AM961 -> 48 | AJ131: =DataLink!AN961 -> 43 | AK131: =DataLink!AO961 -> 46 | AL131: =DataLink!AP961 -> 19 | AM131: =DataLink!AQ961 -> 27 | AN131: =DataLink!AR961 -> 45 | AO131: =DataLink!AS961 -> 38 | AP131: =DataLink!AT961 -> 58 | AQ131: =DataLink!AU961 -> 53 | AR131: =DataLink!AV961 -> 59 | AS131: =DataLink!AW961 -> 83 | AT131: =DataLink!AX961 -> 50 | AU131: =DataLink!AY961 -> 63 | AV131: =DataLink!AZ961 -> 50 | AW131: =DataLink!BA961 -> 37 | AX131: =DataLink!BB961 -> 76 | AY131: =DataLink!BC961 -> 66 | AZ131: =DataLink!BD961 -> 82 | BA131: =DataLink!BE961 -> 60 | BB131: =DataLink!BF961 -> 46 | BC131: =DataLink!BG961 -> 40 | BD131: =DataLink!BH961 -> 1740
